Workbook

Sheet Version
A2: Version | B2: Date | C2: Modified By | D2: Detail
A3: 1 | B3: 2013-08-29 | C3: Sam Shiao | D3: Initial Release
A4: 1.1 | B4: 2013-10-31 | C4: Sam Shiao | D4: Introduced higher transformer failure rates for newly in stalled transformers. Transformers age 3 years or less get a constant failure rate of 0.027
A5: 2 | B5: 2022-02-28 | C5: Barbara Neil | D5: Added CECV, safety and environmental risks
A6: 2.1 | B6: 2022-03-02 | C6: Josh Hockey | D6: Added code to automate the option creation and risk benefits
A7: 2.2 | B7: 2022-03-06 | C7: Josh Hockey | D7: Program was crashing. Fixed optimisation for number of scenarios.
A8: 2.3 | B8: 2022-03-14 | C8: Josh Hockey | D8: Updated with changes to wording. Update to data validation.
A9: 3 | D9: Work in progress. Updating flexibility for switching
A10: 3.1 | D10: Update CECV calcs. Include ability to combine scenarios.
A11: 3.3 | B11: 2022-03-21 | D11: Remove user forms from showing
A12: 3.4-3.9 | B12: 2022-03-29 | C12: Josh Hockey | D12: Various updates to allow better flow of processing
A13: 4.5 | B13: 2022-04-04 | C13: Barbara Neil | D13: Corrected safety calculations
A14: 4.6 | B14: 2022-04-06 | C14: Josh Hockey | D14: Added Fused Transformer
A15: 4.7-4.8 | B15: 2022-04-08 | C15: Josh Hockey | D15: updated fused transformer data to resemble a multipler above failure rates for zone substation transformers
A16: 4.9 | B16: 2022-04-13 | C16: Josh Hockey/ Barb Neil | D16: update CECV calcs based on values provided by the AER
A17: 4.1 | B17: 2022-04-13 | C17: Josh Hockey | D17: Error messaging when Time at capacity 3 = restoration time. Updated read/write requirements
A18: 4.12 | B18: 2022-05-03 | C18: Josh Hockey | D18: Update to CECV calculations.
A19: 4.13 | B19: 2022-05-09 | C19: Josh Hockey | D19: Update to LDC curve to give greater granularity
A20: 4.14 | B20: 2022-06-08 | C20: Josh Hockey | D20: Updat to result_0 tab to handle errors and still calculate total $
A21: 4.15 | B21: 2022-06-08 | C21: Barb Neil, Josh Hockey | D21: Update safety, Environment and Bushfire procedure
A22: 4.16 | B22: 2022-06-19 | C22: Josh Hockey | D22: Error with combine scenarios hitting a limit and therefore not combining correctly. Error fixed.
A23: 4.17 | B23: 2022-07-19 | C23: Josh Hockey | D23: Capacity calculations corrected in HIST and SOLAR tabs. Would not have caused issues in previous versions where capacity at time three was >max demand
A24: 4.18 | B24: 2022-07-21 | C24: Barb Neil, Josh Hockey | D24: Update to CECV numbers after publish of final determination
A25: 4.19 | B25: 2022-07-28 | C25: Josh Hockey | D25: Problem with calculating results for Option 6
A26: 4.2 | B26: 2022-09-07 | C26: Josh Hockey | D26: Updated issue with "Clear Results" code
A27: 4.21 | B27: 2022-09-08 | C27: Josh Hockey | D27: Deleted comments for contingency siuation. Updated comments for load profile in input sheet.
A28: 4.22 | B28: 2022-09-12 | C28: Josh Hockey | D28: Update to CECV calculations. Previous error in calculating load at risk for a feeder. Added scaling to overcome shortcoming in using a single load profile.
A29: 4.23 | B29: 2022-11-22 | C29: Josh Hockey | D29: included probability of failure and benefit multiplier
A30: 4.24 | B30: 2023-01-12 | C30: Josh Hockey | D30: Updated VCR values
A31: 4.25 | B31: 2023-07-13 | C31: Josh Hockey | D31: Update CECV values and value of statiscal Life

Sheet Instructions
A2: DO NOT Modify any of the names of the tabs
J3: Known Limitations
A4: Pre-start | J4: There is an issue with calculating the benefits for options 7-9.
A5: 1. Clear input data | J5: If there are more then 9 options + the CF the code won't work and will need to be updated
A6: 2. Clear results content | J6: If there is an update so that more then 5 elements are considered for risks, the code will need to be updated
A7: 3. Clear Benefits | J7: If another row gets added to the results tab the benefits code won't pick up the correct cells
A8: 5. Know what scenarios and options need to be run | J8: The names of sheets shouldn't be changed. The automated sheet creation naming is used to calculate the benefits
B9: Note: If the results content is deleted it will not be possible to recalculate data. Clearing results should only be done at the start | J9: The safety risks when changed do not revert back to the options for the CF.
A11: Start | K11: CECV
A12: 1. Make sure that the number of options remains consistent across scenarios | K12: Only one curve is input. As the calculation is based on the load curve, as the ratio changes through the years so does the generation at risk. This has been overcome by scaling basd on the intial years data.
A13: 2. Enter the data for the Counter-factual of the first scenario
A14: 3. When ready hit the "Start Option Analysis' button. This will begin the process of creating the options for the scenario.
A15: 4.No data has been changed at this point. Only the scenarios have been created.
A16: 5. Go through each of the options and scenario and update the data as required. | K16: Useful Information
A17: 6. Once data input is complete, run the 'Recalculate ALL Option' - this will update the results tab for each option | K17: Only one type can be assessed at a time (e.g. Bus, transformer, feeder). These would be considered scenarios
A18: Note: Renaming tabs will stop some of the code from working correctly. | K18: Useful names for scenarios could be (Bus Tie, TRx, Fdr, VT etc) - try to keep these names short
A19: 7. More scenarios can be entered by completing Start steps 1-6. | K19: The suffix of the new created tabs relates to the option -CF (counter factual), -01 (option 1) etc
K20: Each scenario will be colour coded.
A21: Calculating Benefits
A22: 8. Benefits can be calculated using the "Calculate Benefits" button
A23: Note: The tool can only handle 9 options + counter factual. Everytime a scenario is added the benefits will need to be calculated. | K23: For Automation
K24: - Name of file must not have anyspaces in it (for either NPV or RqBT)
A25: Post Option/ Scenario creation
A26: If on reviewing the data something needs to be changed
B27: 1. Change the data in the option/scenario
B28: 2. Hit the "Recalculate Option" button. (This will update the results tabs with new data for that option/scenario, as well as update the spreadsheet relating to that option
B29: 3. Alt 'Recalculate All' will recalculate every scenario and option
A31: Combine Scenarios
B32: For complex projects that have multiple stages it may be nesecary to use data from your counter-factual up to the year that the new asset will be installed and then use data for the new asset post that year.
B33: This can be done using the 'combine scenarios' button.
B34: Note: Once an option is combined it can not be recalculated. This is due to the fact that it is renamed with a (comb) post-script. It is recommended to save a file (e.g RqBT-All scenarios) before combining and the new workbook file as (e.g. RqBT-Combined). So that if scenarios need to be recalculated it can be done in the 'All scenarios' workbook and then combine scenarios again.
B36: 1. Combining scenarios should only be done at the end once all the scenarios are completed and the user is satisfied that the benefit values in Results is correct.
B37: 2. For a project with multiple stages (one stage per scenario), the Year for Combination should be the year of the latest stage - i.e. for a refurb in 2025, and replacement in 2040, Year for Combination should be 2040
A39: Choose Scenario
B40: At times the user may want to review the results in real time without using the recalculate option. This can be done by entering data in the "Input" tab and reviewing the Results in the "Results_0" tab.
B41: If the user has a number of scenarios and want to see the impact they can copy and paste the data from the scenario tab into the "input sheet". Alternatively the user can hit the "Choose scenario for input sheet" button and choose what they want
A43: Prepare Data for Graphing
B44: This will name row B on the results sheet such that the data can be easily graphed.
B45: If the data is recalcualted the "Prepare Data for Graphing" will need to be re-run.

Sheet Input
C1: Cell Guide: | F1: Safety risk | I1: Environmental risk | K1: Bushfire risk
C2: Input | F2: risk exists | G2: yes | I2: risk exists | J2: yes | K2: risk exists | L2: yes | N2: Option & Scenario Description
C3: Formula/Calculations | F3: likelihood scale | G3: 3 | I3: likelihood scale | J3: 3 | K3: bushfire region | L3: Gold Coast | N3: Rebuild 341 as 33kV DCCT feeder
C4: Formula/Calculations that can be overriden | F4: risk of fatality | G4: no | I4: quantity of spill | J4: >20,000 L
F5: fatality of public | G5: no
C6: Base Year: | D6: 2029 | F6: fatality of employee | G6: yes
C7: Single Contingency | D7: Yes - model single contingency | F7: risk of injury | G7: yes | J7: Benefit Multiplier | K7: =DATA!C73 -> 1
F8: injury to public | G8: no | J8: PoF multiplier | K8: =DATA!C72 -> 1
F9: injury to employee | G9: yes
B11: Contingency Components | P11: Substation/Feeder Load Forecast | Z11: Generation Forecast
C13: Transformers and Circuit Breakers | I13: Circuits/Feeders | Q13: SIFT Load Forecast | U13: Historic 30 minute load data from (SCID/NODW) (kW) This data is not used for calcualtions | W13: 30 minute load data corrected (kW) [for solar customers] This is used for calcualtions | AA13: Generation (export) data MW | AC13: Max installed output (MW) | AE13: Max allowed export under system normal (MW)
C14: Name | D14: Type | E14: YOM | F14: Full restoration of supply time (hours) | G14: Cost of emergency repair ($) | I14: Name | J14: Type | K14: Length (km) | L14: Forced Outage Rate (per year) | M14: Repair (hrs) | Q14: Year | R14: Loading (MVA) | S14: PF | U14: Annual | W14: Annual | AA14: Annual | AC14: Year | AD14: Annual | AE14: Annual
F15: =IFERROR(VLOOKUP(D15,DATA!B$42:G$46,6,FALSE),"") ->  | I15: F429 | J15: Overhead 33kV | K15: 27.4 | L15: =IFERROR((VLOOKUP(J15,DATA!B$3:C$10,2,FALSE)*(K15/100)),"") -> 1.5344 | M15: 6 | Q15: =D6 -> 2029 | R15: 25.072627 | S15: 1 | U15: 15429.18813 | V15: ="" ->  | W15: 15429.18813 | AC15: =D6 -> 2029
F16: =IFERROR(VLOOKUP(D16,DATA!B$42:G$46,6,FALSE),"") ->  | L16: =IFERROR((VLOOKUP(J16,DATA!B$3:C$10,2,FALSE)*(K16/100)),"") ->  | M16: =IFERROR(VLOOKUP(J16,DATA!G$3:H$10,2,FALSE),"") ->  | Q16: =Q15+1 -> 2030 | R16: 25.074335 | S16: 1 | U16: 15119.23915 | V16: ="" ->  | W16: 15119.23915 | AC16: =AC15+1 -> 2030
F17: =IFERROR(VLOOKUP(D17,DATA!B$42:G$46,6,FALSE),"") ->  | L17: =IFERROR((VLOOKUP(J17,DATA!B$3:C$10,2,FALSE)*(K17/100)),"") ->  | M17: =IFERROR(VLOOKUP(J17,DATA!G$3:H$10,2,FALSE),"") ->  | Q17: 2031 | R17: 25.109078 | S17: 1 | U17: 15580.09177 | V17: ="" ->  | W17: 15580.09177 | AC17: 2031
F18: =IFERROR(VLOOKUP(D18,DATA!B$42:G$46,6,FALSE),"") ->  | L18: =IFERROR((VLOOKUP(J18,DATA!B$3:C$10,2,FALSE)*(K18/100)),"") ->  | M18: =IFERROR(VLOOKUP(J18,DATA!G$3:H$10,2,FALSE),"") ->  | Q18: 2032 | R18: 25.149012 | S18: 1 | U18: 15532.54288 | V18: ="" ->  | W18: 15532.54288 | AC18: 2032
F19: =IFERROR(VLOOKUP(D19,DATA!B$42:G$46,6,FALSE),"") ->  | L19: =IFERROR((VLOOKUP(J19,DATA!B$3:C$10,2,FALSE)*(K19/100)),"") ->  | M19: =IFERROR(VLOOKUP(J19,DATA!G$3:H$10,2,FALSE),"") ->  | Q19: 2033 | R19: 25.048406 | S19: 1 | U19: 14882.5627 | V19: ="" ->  | W19: 14882.5627 | AC19: 2033
F20: =IFERROR(VLOOKUP(D20,DATA!B$42:G$46,6,FALSE),"") ->  | L20: =IFERROR((VLOOKUP(J20,DATA!B$3:C$10,2,FALSE)*(K20/100)),"") ->  | M20: =IFERROR(VLOOKUP(J20,DATA!G$3:H$10,2,FALSE),"") ->  | Q20: 2034 | R20: 25.019577 | S20: 1 | U20: 15198.70764 | V20: ="" ->  | W20: 15198.70764 | AC20: 2034
F21: =IFERROR(VLOOKUP(D21,DATA!B$42:G$46,6,FALSE),"") ->  | L21: =IFERROR((VLOOKUP(J21,DATA!B$3:C$10,2,FALSE)*(K21/100)),"") ->  | M21: =IFERROR(VLOOKUP(J21,DATA!G$3:H$10,2,FALSE),"") ->  | Q21: 2035 | R21: =R20*1.005 -> 25.14467489 | S21: 1 | U21: 14924.57587 | V21: ="" ->  | W21: 14924.57587 | AC21: 2035
F22: =IFERROR(VLOOKUP(D22,DATA!B$42:G$46,6,FALSE),"") ->  | L22: =IFERROR((VLOOKUP(J22,DATA!B$3:C$10,2,FALSE)*(K22/100)),"") ->  | M22: =IFERROR(VLOOKUP(J22,DATA!G$3:H$10,2,FALSE),"") ->  | Q22: 2036 | R22: =R21*1.005 -> 25.27039826 | S22: 1 | U22: 14712.16798 | V22: ="" ->  | W22: 14712.16798 | AC22: 2036
F23: =IFERROR(VLOOKUP(D23,DATA!B$42:G$46,6,FALSE),"") ->  | L23: =IFERROR((VLOOKUP(J23,DATA!B$3:C$10,2,FALSE)*(K23/100)),"") ->  | M23: =IFERROR(VLOOKUP(J23,DATA!G$3:H$10,2,FALSE),"") ->  | Q23: 2037 | R23: 25.39675025 | S23: 1 | U23: 14670.63534 | V23: ="" ->  | W23: 14670.63534 | AC23: 2037
F24: =IFERROR(VLOOKUP(D24,DATA!B$42:G$46,6,FALSE),"") ->  | L24: =IFERROR((VLOOKUP(J24,DATA!B$3:C$10,2,FALSE)*(K24/100)),"") ->  | M24: =IFERROR(VLOOKUP(J24,DATA!G$3:H$10,2,FALSE),"") ->  | Q24: 2038 | R24: 25.523734 | S24: 1 | U24: 13389.02414 | V24: ="" ->  | W24: 13389.02414 | AC24: 2038
F25: =IFERROR(VLOOKUP(D25,DATA!B$42:G$46,6,FALSE),"") ->  | L25: =IFERROR((VLOOKUP(J25,DATA!B$3:C$10,2,FALSE)*(K25/100)),"") ->  | M25: =IFERROR(VLOOKUP(J25,DATA!G$3:H$10,2,FALSE),"") ->  | Q25: 2039 | R25: 25.65135267 | S25: 1 | U25: 13088.81247 | V25: ="" ->  | W25: 13088.81247 | AC25: 2039
F26: =IFERROR(VLOOKUP(D26,DATA!B$42:G$46,6,FALSE),"") ->  | L26: =IFERROR((VLOOKUP(J26,DATA!B$3:C$10,2,FALSE)*(K26/100)),"") ->  | M26: =IFERROR(VLOOKUP(J26,DATA!G$3:H$10,2,FALSE),"") ->  | Q26: 2040 | R26: 25.77960944 | S26: 1 | U26: 13708.70441 | V26: ="" ->  | W26: 13708.70441 | AC26: 2040
F27: =IFERROR(VLOOKUP(D27,DATA!B$42:G$46,6,FALSE),"") ->  | L27: =IFERROR((VLOOKUP(J27,DATA!B$3:C$10,2,FALSE)*(K27/100)),"") ->  | M27: =IFERROR(VLOOKUP(J27,DATA!G$3:H$10,2,FALSE),"") ->  | Q27: 2041 | R27: 25.90850748 | S27: 1 | U27: 13548.62189 | V27: ="" ->  | W27: 13548.62189 | AC27: 2041
F28: =IFERROR(VLOOKUP(D28,DATA!B$42:G$46,6,FALSE),"") ->  | Q28: 2042 | R28: 26.03805002 | S28: 1 | U28: 13212.03911 | V28: ="" ->  | W28: 13212.03911 | AC28: 2042
F29: =IFERROR(VLOOKUP(D29,DATA!B$42:G$46,6,FALSE),"") ->  | I29: Buses, VTs, CTs and Relays | Q29: 2043 | R29: 26.16824027 | S29: 1 | U29: 13120.07976 | V29: ="" ->  | W29: 13120.07976 | AC29: 2043
F30: =IFERROR(VLOOKUP(D30,DATA!B$42:G$46,6,FALSE),"") ->  | I30: Name | J30: Type | K30: YOM | L30: Repair (hrs) | M30: Repair Cost ($) | Q30: 2044 | R30: 26.29908147 | S30: 1 | U30: 13483.21599 | V30: ="" ->  | W30: 13483.21599 | AC30: 2044
F31: =IFERROR(VLOOKUP(D31,DATA!B$42:G$46,6,FALSE),"") ->  | L31: =IFERROR(VLOOKUP(J31,DATA!G$14:H$37,2,FALSE),"") ->  | Q31: 2045 | R31: 26.43057688 | S31: 1 | U31: 14305.52685 | V31: ="" ->  | W31: 14305.52685 | AC31: 2045
F32: =IFERROR(VLOOKUP(D32,DATA!B$42:G$46,6,FALSE),"") ->  | L32: =IFERROR(VLOOKUP(J32,DATA!G$14:H$37,2,FALSE),"") ->  | Q32: 2046 | R32: 26.56272976 | S32: 1 | U32: 13732.96535 | V32: ="" ->  | W32: 13732.96535 | AC32: 2046
F33: =IFERROR(VLOOKUP(D33,DATA!B$42:G$46,6,FALSE),"") ->  | L33: =IFERROR(VLOOKUP(J33,DATA!G$14:H$37,2,FALSE),"") ->  | Q33: 2047 | R33: 26.69554341 | S33: 1 | U33: 12714.43519 | V33: ="" ->  | W33: 12714.43519 | AC33: 2047
F34: =IFERROR(VLOOKUP(D34,DATA!B$42:G$46,6,FALSE),"") ->  | L34: =IFERROR(VLOOKUP(J34,DATA!G$14:H$37,2,FALSE),"") ->  | Q34: 2048 | R34: 26.82902113 | S34: 1 | U34: 12813.57291 | V34: ="" ->  | W34: 12813.57291 | AC34: 2048
F35: =IFERROR(VLOOKUP(D35,DATA!B$42:G$46,6,FALSE),"") ->  | L35: =IFERROR(VLOOKUP(J35,DATA!G$14:H$37,2,FALSE),"") ->  | Q35: 2049 | R35: 26.96316623 | S35: 1 | U35: 14006.21402 | V35: ="" ->  | W35: 14006.21402 | AC35: 2049
F36: =IFERROR(VLOOKUP(D36,DATA!B$42:G$46,6,FALSE),"") ->  | L36: =IFERROR(VLOOKUP(J36,DATA!G$14:H$37,2,FALSE),"") ->  | Q36: 2050 | R36: 27.09798207 | S36: 1 | U36: 13235.30173 | V36: ="" ->  | W36: 13235.30173 | AC36: 2050
F37: =IFERROR(VLOOKUP(D37,DATA!B$42:G$46,6,FALSE),"") ->  | L37: =IFERROR(VLOOKUP(J37,DATA!G$14:H$37,2,FALSE),"") ->  | Q37: 2051 | R37: 27.23347198 | S37: 1 | U37: 13074.85425 | V37: ="" ->  | W37: 13074.85425 | AC37: 2051
F38: =IFERROR(VLOOKUP(D38,DATA!B$42:G$46,6,FALSE),"") ->  | L38: =IFERROR(VLOOKUP(J38,DATA!G$14:H$37,2,FALSE),"") ->  | Q38: 2052 | R38: 27.36963934 | S38: 1 | U38: 12409.35695 | V38: ="" ->  | W38: 12409.35695 | AC38: 2052
F39: =IFERROR(VLOOKUP(D39,DATA!B$42:G$46,6,FALSE),"") ->  | L39: =IFERROR(VLOOKUP(J39,DATA!G$14:H$37,2,FALSE),"") ->  | Q39: 2053 | R39: 27.50648753 | S39: 1 | U39: 13613.27016 | V39: ="" ->  | W39: 13613.27016 | AC39: 2053
F40: =IFERROR(VLOOKUP(D40,DATA!B$42:G$46,6,FALSE),"") ->  | L40: =IFERROR(VLOOKUP(J40,DATA!G$14:H$37,2,FALSE),"") ->  | Q40: 2054 | R40: 27.64401997 | S40: 1 | U40: 13945.67633 | V40: ="" ->  | W40: 13945.67633 | AC40: 2054
Q41: 2055 | R41: 27.78224007 | S41: 1 | U41: 13589.1512 | V41: ="" ->  | W41: 13589.1512 | AC41: 2055
Q42: 2056 | R42: 27.92115127 | S42: 1 | U42: 13355.33178 | V42: ="" ->  | W42: 13355.33178 | AC42: 2056
B43: Contingency Response | I43: VCR Rate Calculation | Q43: 2057 | R43: 28.06075703 | S43: 1 | U43: 14082.76075 | V43: ="" ->  | W43: 14082.76075 | AC43: 2057
Q44: 2058 | R44: 28.20106081 | S44: 1 | U44: 15678.1491 | V44: ="" ->  | W44: 15678.1491 | AC44: 2058
C45: Load Served after Contingency | L45: Customer Energy Calculation | Q45: 2059 | R45: 28.34206612 | S45: 1 | U45: 16524.37723 | V45: ="" ->  | W45: 16524.37723 | AC45: 2059
D46: Rating | E46: Period of Time Rating is available | G46: Notes on why values have been chosen | K46: Postcode | L46: Annual Consumption (kWH) | M46: VCR | Q46: 2060 | R46: 28.48377645 | S46: 1 | U46: 16820.20402 | V46: ="" ->  | W46: 16820.20402 | AC46: 2060
C47: 'Total' Immediate Capacity | D47: =45.7*2 -> 91.4 | E47: 2 | F47: Time 1 | G47: DCCT 2hr | J47: Domestic | K47: 4580 | L47: 23189248.08 | M47: 29.967228 | Q47: 2061 | R47: 28.62619533 | S47: 1 | U47: 17251.23596 | V47: ="" ->  | W47: 17251.23596 | AC47: 2061
C48: 'Total' Capacity between Time 1 and Time 3 | D48: =40.7*2+0.5 -> 81.9 | E48: =E49-E47 -> 3 | F48: Time 2 | G48: DCCT ec+mt 0.5MVA | J48: Commercial | L48: 13562890.98 | M48: 52.200298 | Q48: 2062 | R48: 28.76932631 | S48: 1 | U48: 17756.7091 | V48: ="" ->  | W48: 17756.7091 | AC48: 2062
C49: 'Total' Capacity at Time 3 | D49: =40.7*2+0.5 -> 81.9 | E49: 5 | F49: Time 3 | G49: DCCT ec+mt (not enough time to deploy MG) | J49: Industrial | L49: 92993204.86 | M49: 74.781089 | Q49: =Q48+1 -> 2063 | R49: 28.91317294 | S49: 1 | U49: 17982.47433 | V49: ="" ->  | W49: 17982.47433 | AC49: =AC48+1 -> 2063
J50: Agricultural | L50: 6919505.3 | M50: 44.402918 | Q50: =Q49+1 -> 2064 | R50: 29.0577388 | S50: 1 | U50: 18492.49434 | V50: ="" ->  | W50: 18492.49434 | AC50: =AC49+1 -> 2064
J51: Large Cust. Services (>10MVA) | M51: 12.359901 | Q51: 2065 | R51: 29.2030275 | S51: 1 | U51: 18856.14324 | V51: ="" ->  | W51: 18856.14324 | AC51: 2065
J52: Large Cust. Industrial (>10MVA) | M52: 138.329736 | Q52: 2066 | R52: 29.34904263 | S52: 1 | U52: 18509.29248 | V52: ="" ->  | W52: 18509.29248 | AC52: 2066
C53: Export under Contingency (MVA) | J53: Large Cust. Metals (>10MVA) | M53: 23.28677 | Q53: 2067 | R53: 29.49578785 | S53: 1 | U53: 16868.69049 | V53: ="" ->  | W53: 16868.69049 | AC53: 2067
D54: Rating | E54: Period of Time Export is available | J54: Large Cust. Mines (>10MVA) | M54: 41.220744 | Q54: 2068 | R54: 29.64326679 | S54: 1 | U54: 15831.62808 | V54: ="" ->  | W54: 15831.62808 | AC54: 2068
C55: Immediate Export allowed | E55: 2 | F55: Time 1 | J55: Total | L55: =SUM(L47:L54) -> 136664849.2 | M55: =(($L$47*$M$47)+($L$48*$M$48)+($L$49*$M$49)+($L$50*$M$50)+ ($L$51*$M$51)+ ($L$52*$M$52)+ ($L$53*$M$53)+ ($L$54*$M$54))/$L$55 -> 63.39804156 | Q55: =Q54+1 -> 2069 | R55: 29.79148312 | S55: 1 | U55: 15528.2284 | V55: ="" ->  | W55: 15528.2284 | AC55: =AC54+1 -> 2069
C56: Export allowed between Time 1 and Time 3 | E56: =E57-E55 -> -2 | F56: Time 2 | Q56: 2070 | R56: 29.94044054 | S56: 1 | U56: 15363.13987 | V56: ="" ->  | W56: 15363.13987 | AC56: 2070
C57: Export allowed after Time 3 | F57: Time 3 | Q57: 2071 | R57: 30.09014274 | S57: 1 | U57: 17346.69757 | V57: ="" ->  | W57: 17346.69757 | AC57: 2071
Q58: 2072 | R58: 30.24059345 | S58: 1 | U58: 16986.66668 | V58: ="" ->  | W58: 16986.66668 | AC58: 2072
Q59: 2073 | R59: 30.39179642 | S59: 1 | U59: 16781.68774 | V59: ="" ->  | W59: 16781.68774 | AC59: 2073
Q60: 2074 | R60: 30.5437554 | S60: 1 | U60: 16589.68842 | V60: ="" ->  | W60: 16589.68842 | AC60: 2074
Q61: 2075 | R61: 30.69647418 | S61: 1 | U61: 16750.26238 | V61: ="" ->  | W61: 16750.26238 | AC61: 2075
Q62: 2076 | R62: 30.84995655 | S62: 1 | U62: 16345.86608 | V62: ="" ->  | W62: 16345.86608 | AC62: 2076
Q63: 2077 | R63: 31.00420633 | S63: 1 | U63: 15465.27553 | V63: ="" ->  | W63: 15465.27553 | AC63: 2077
Q64: 2078 | R64: 31.15922736 | S64: 1 | U64: 15100.17955 | V64: ="" ->  | W64: 15100.17955 | AC64: 2078
Q65: 2079 | R65: 31.3150235 | S65: 1 | U65: 16211.8544 | V65: ="" ->  | W65: 16211.8544 | AC65: 2079
Q66: 2080 | R66: 31.47159862 | S66: 1 | U66: 15984.92151 | V66: ="" ->  | W66: 15984.92151 | AC66: 2080
Q67: 2081 | R67: 31.62895661 | S67: 1 | U67: 15508.27503 | V67: ="" ->  | W67: 15508.27503 | AC67: 2081
Q68: 2082 | R68: 31.78710139 | S68: 1 | U68: 15529.49876 | V68: ="" ->  | W68: 15529.49876 | AC68: 2082
Q69: 2083 | R69: 31.9460369 | S69: 1 | U69: 15055.82786 | V69: ="" ->  | W69: 15055.82786 | AC69: 2083
Q70: 2084 | R70: 32.10576709 | S70: 1 | U70: 14697.95126 | V70: ="" ->  | W70: 14697.95126 | AC70: 2084
Q71: 2085 | R71: 32.26629592 | S71: 1 | U71: 15264.48005 | V71: ="" ->  | W71: 15264.48005 | AC71: 2085
Q72: 2086 | R72: 32.4276274 | S72: 1 | U72: 15382.33078 | V72: ="" ->  | W72: 15382.33078 | AC72: 2086
Q73: 2087 | R73: 32.58976554 | S73: 1 | U73: 14216.22962 | V73: ="" ->  | W73: 14216.22962 | AC73: 2087
Q74: 2088 | R74: 32.75271436 | S74: 1 | U74: 13782.89413 | V74: ="" ->  | W74: 13782.89413 | AC74: 2088
Q75: 2089 | R75: 32.91647794 | S75: 1 | U75: 14537.34148 | V75: ="" ->  | W75: 14537.34148 | AC75: 2089
U76: 14568.53354 | V76: ="" ->  | W76: 14568.53354
U77: 15501.48463 | V77: ="" ->  | W77: 15501.48463
U78: 16615.62443 | V78: ="" ->  | W78: 16615.62443
U79: 16170.36772 | V79: ="" ->  | W79: 16170.36772
U80: 15499.76194 | V80: ="" ->  | W80: 15499.76194
U81: 15077.71194 | V81: ="" ->  | W81: 15077.71194
U82: 14674.19159 | V82: ="" ->  | W82: 14674.19159
U83: 14651.45844 | V83: ="" ->  | W83: 14651.45844
U84: 14508.64971 | V84: ="" ->  | W84: 14508.64971
U85: 15130.93084 | V85: ="" ->  | W85: 15130.93084
U86: 15494.49244 | V86: ="" ->  | W86: 15494.49244
U87: 15167.26699 | V87: ="" ->  | W87: 15167.26699
U88: 14912.92751 | V88: ="" ->  | W88: 14912.92751
U89: 13862.84155 | V89: ="" ->  | W89: 13862.84155
U90: 13984.85243 | V90: ="" ->  | W90: 13984.85243
U91: 15458.01353 | V91: ="" ->  | W91: 15458.01353
U92: 15823.66115 | V92: ="" ->  | W92: 15823.66115
U93: 15552.38843 | V93: ="" ->  | W93: 15552.38843
U94: 15986.53448 | V94: ="" ->  | W94: 15986.53448
U95: 17089.72585 | V95: ="" ->  | W95: 17089.72585
U96: 17088.2771 | V96: ="" ->  | W96: 17088.2771
U97: 16135.72299 | V97: ="" ->  | W97: 16135.72299
U98: 15864.74335 | V98: ="" ->  | W98: 15864.74335
U99: 16135.83124 | V99: ="" ->  | W99: 16135.83124
U100: 16087.75258 | V100: ="" ->  | W100: 16087.75258
U101: 15666.03005 | V101: ="" ->  | W101: 15666.03005
U102: 16820.82283 | V102: ="" ->  | W102: 16820.82283
U103: 17261.31153 | V103: ="" ->  | W103: 17261.31153
U104: 17130.09465 | V104: ="" ->  | W104: 17130.09465
U105: 17285.63976 | V105: ="" ->  | W105: 17285.63976
U106: 17094.9297 | V106: ="" ->  | W106: 17094.9297
U107: 16637.96043 | V107: ="" ->  | W107: 16637.96043
U108: 16561.02288 | V108: ="" ->  | W108: 16561.02288
U109: 16595.36624 | V109: ="" ->  | W109: 16595.36624
U110: 16347.03207 | V110: ="" ->  | W110: 16347.03207
U111: 15725.71588 | V111: ="" ->  | W111: 15725.71588
U112: 15229.23607 | V112: ="" ->  | W112: 15229.23607
U113: 15806.4391 | V113: ="" ->  | W113: 15806.4391
U114: 15859.92825 | V114: ="" ->  | W114: 15859.92825
U115: 15460.65331 | V115: ="" ->  | W115: 15460.65331
U116: 15474.77251 | V116: ="" ->  | W116: 15474.77251
U117: 15077.97474 | V117: ="" ->  | W117: 15077.97474
U118: 14863.81304 | V118: ="" ->  | W118: 14863.81304
U119: 15216.36403 | V119: ="" ->  | W119: 15216.36403
U120: 15297.26738 | V120: ="" ->  | W120: 15297.26738
U121: 15482.08249 | V121: ="" ->  | W121: 15482.08249
U122: 15682.02293 | V122: ="" ->  | W122: 15682.02293
U123: 16222.39387 | V123: ="" ->  | W123: 16222.39387
U124: 16153.41139 | V124: ="" ->  | W124: 16153.41139
U125: 15587.87727 | V125: ="" ->  | W125: 15587.87727
U126: 14419.41661 | V126: ="" ->  | W126: 14419.41661
U127: 13721.30376 | V127: ="" ->  | W127: 13721.30376
U128: 13166.23777 | V128: ="" ->  | W128: 13166.23777
U129: 13162.86087 | V129: ="" ->  | W129: 13162.86087
U130: 13005.67216 | V130: ="" ->  | W130: 13005.67216
U131: 12796.23415 | V131: ="" ->  | W131: 12796.23415
U132: 11963.43352 | V132: ="" ->  | W132: 11963.43352
U133: 12372.55602 | V133: ="" ->  | W133: 12372.55602
U134: 12670.16551 | V134: ="" ->  | W134: 12670.16551
U135: 12412.51521 | V135: ="" ->  | W135: 12412.51521
U136: 12720.19495 | V136: ="" ->  | W136: 12720.19495
U137: 13166.49759 | V137: ="" ->  | W137: 13166.49759
U138: 13770.39051 | V138: ="" ->  | W138: 13770.39051
U139: 12990.245 | V139: ="" ->  | W139: 12990.245
U140: 12341.06772 | V140: ="" ->  | W140: 12341.06772
U141: 13104.13066 | V141: ="" ->  | W141: 13104.13066
U142: 14492.64157 | V142: ="" ->  | W142: 14492.64157
U143: 15242.68711 | V143: ="" ->  | W143: 15242.68711
U144: 16650.90716 | V144: ="" ->  | W144: 16650.90716
U145: 17280.30503 | V145: ="" ->  | W145: 17280.30503
U146: 17922.59085 | V146: ="" ->  | W146: 17922.59085
U147: 18513.70347 | V147: ="" ->  | W147: 18513.70347
U148: 18289.2313 | V148: ="" ->  | W148: 18289.2313
U149: 17973.21081 | V149: ="" ->  | W149: 17973.21081
U150: 17689.35859 | V150: ="" ->  | W150: 17689.35859
U151: 17516.87002 | V151: ="" ->  | W151: 17516.87002
U152: 17062.60753 | V152: ="" ->  | W152: 17062.60753
U153: 16868.63232 | V153: ="" ->  | W153: 16868.63232
U154: 16554.41129 | V154: ="" ->  | W154: 16554.41129
U155: 16120.09501 | V155: ="" ->  | W155: 16120.09501
U156: 16651.60298 | V156: ="" ->  | W156: 16651.60298
U157: 16376.29318 | V157: ="" ->  | W157: 16376.29318
U158: 15717.22519 | V158: ="" ->  | W158: 15717.22519
U159: 14923.64812 | V159: ="" ->  | W159: 14923.64812
U160: 14393.3621 | V160: ="" ->  | W160: 14393.3621
U161: 14773.59933 | V161: ="" ->  | W161: 14773.59933
U162: 15037.44715 | V162: ="" ->  | W162: 15037.44715
U163: 14817.38389 | V163: ="" ->  | W163: 14817.38389
U164: 14636.72858 | V164: ="" ->  | W164: 14636.72858
U165: 14711.5494 | V165: ="" ->  | W165: 14711.5494
U166: 14559.89277 | V166: ="" ->  | W166: 14559.89277
U167: 14225.67809 | V167: ="" ->  | W167: 14225.67809
U168: 14280.69335 | V168: ="" ->  | W168: 14280.69335
U169: 14609.45016 | V169: ="" ->  | W169: 14609.45016
U170: 14749.98808 | V170: ="" ->  | W170: 14749.98808
U171: 14746.45162 | V171: ="" ->  | W171: 14746.45162
U172: 14340.68388 | V172: ="" ->  | W172: 14340.68388
U173: 14009.68957 | V173: ="" ->  | W173: 14009.68957
U174: 13557.23685 | V174: ="" ->  | W174: 13557.23685
U175: 12584.58024 | V175: ="" ->  | W175: 12584.58024
U176: 12204.06336 | V176: ="" ->  | W176: 12204.06336
U177: 11829.48487 | V177: ="" ->  | W177: 11829.48487
U178: 12164.61033 | V178: ="" ->  | W178: 12164.61033
U179: 11947.48983 | V179: ="" ->  | W179: 11947.48983
U180: 11585.47986 | V180: ="" ->  | W180: 11585.47986
U181: 11602.82132 | V181: ="" ->  | W181: 11602.82132
U182: 11493.48922 | V182: ="" ->  | W182: 11493.48922
U183: 11819.89832 | V183: ="" ->  | W183: 11819.89832
U184: 12532.66908 | V184: ="" ->  | W184: 12532.66908
U185: 13405.48509 | V185: ="" ->  | W185: 13405.48509
U186: 13296.71526 | V186: ="" ->  | W186: 13296.71526
U187: 15277.91637 | V187: ="" ->  | W187: 15277.91637
U188: 15743.14696 | V188: ="" ->  | W188: 15743.14696
U189: 14324.10091 | V189: ="" ->  | W189: 14324.10091
U190: 14341.26526 | V190: ="" ->  | W190: 14341.26526
U191: 15583.3261 | V191: ="" ->  | W191: 15583.3261
U192: 16972.07367 | V192: ="" ->  | W192: 16972.07367
U193: 17562.46817 | V193: ="" ->  | W193: 17562.46817
U194: 18558.3204 | V194: ="" ->  | W194: 18558.3204
U195: 19245.3835 | V195: ="" ->  | W195: 19245.3835
U196: 19489.97974 | V196: ="" ->  | W196: 19489.97974
U197: 18954.10299 | V197: ="" ->  | W197: 18954.10299
U198: 18543.59388 | V198: ="" ->  | W198: 18543.59388
U199: 17851.37844 | V199: ="" ->  | W199: 17851.37844
U200: 17197.25764 | V200: ="" ->  | W200: 17197.25764
U201: 17075.51467 | V201: ="" ->  | W201: 17075.51467
U202: 14809.69048 | V202: ="" ->  | W202: 14809.69048
... 2048 more rows

Sheet Results
B1: Reconductor -CF | G1: Reconductor -01 | L1: Reconductor -02
A2: Date | B2: VCR at $63.4/kWh | C2: CECV | D2: Emergency Replacement Cost ($) | E2: Safety Risk ($) | F2: Environmental Risk ($) | G2: VCR at $63.4/kWh | H2: CECV | I2: Emergency Replacement Cost ($) | J2: Safety Risk ($) | K2: Environmental Risk ($) | L2: VCR at $63.4/kWh | M2: CECV | N2: Emergency Replacement Cost ($) | O2: Safety Risk ($) | P2: Environmental Risk ($)
A3: =Results_0!B4 -> 2029 | B3: 726526.5858 | C3: 0 | D3: 0 | E3: 0 | F3: 0 | G3: 0 | H3: 0 | I3: 0 | J3: 0 | K3: 0 | L3: 0 | M3: 0 | N3: 0 | O3: 0 | P3: 0
A4: =Results_0!B5 -> 2030 | B4: 726576.0783 | C4: 0 | D4: 0 | E4: 0 | F4: 0 | G4: 0 | H4: 0 | I4: 0 | J4: 0 | K4: 0 | L4: 0 | M4: 0 | N4: 0 | O4: 0 | P4: 0
A5: =Results_0!B6 -> 2031 | B5: 728570.1824 | C5: 0 | D5: 0 | E5: 0 | F5: 0 | G5: 0 | H5: 0 | I5: 0 | J5: 0 | K5: 0 | L5: 0 | M5: 0 | N5: 0 | O5: 0 | P5: 0
A6: =Results_0!B7 -> 2032 | B6: 737125.1055 | C6: 0 | D6: 0 | E6: 0 | F6: 0 | G6: 0 | H6: 0 | I6: 0 | J6: 0 | K6: 0 | L6: 0 | M6: 0 | N6: 0 | O6: 0 | P6: 0
A7: =Results_0!B8 -> 2033 | B7: 718514.234 | C7: 0 | D7: 0 | E7: 0 | F7: 0 | G7: 0 | H7: 0 | I7: 0 | J7: 0 | K7: 0 | L7: 0 | M7: 0 | N7: 0 | O7: 0 | P7: 0
A8: =Results_0!B9 -> 2034 | B8: 710423.6483 | C8: 0 | D8: 0 | E8: 0 | F8: 0 | G8: 0 | H8: 0 | I8: 0 | J8: 0 | K8: 0 | L8: 0 | M8: 0 | N8: 0 | O8: 0 | P8: 0
A9: =Results_0!B10 -> 2035 | B9: 736997.9834 | C9: 0 | D9: 0 | E9: 0 | F9: 0 | G9: 0 | H9: 0 | I9: 0 | J9: 0 | K9: 0 | L9: 0 | M9: 0 | N9: 0 | O9: 0 | P9: 0
A10: =Results_0!B11 -> 2036 | B10: 756740.7095 | C10: 0 | D10: 0 | E10: 0 | F10: 0 | G10: 0 | H10: 0 | I10: 0 | J10: 0 | K10: 0 | L10: 0 | M10: 0 | N10: 0 | O10: 0 | P10: 0
A11: =Results_0!B12 -> 2037 | B11: 783537.9971 | C11: 0 | D11: 0 | E11: 0 | F11: 0 | G11: 0 | H11: 0 | I11: 0 | J11: 0 | K11: 0 | L11: 0 | M11: 0 | N11: 0 | O11: 0 | P11: 0
A12: =Results_0!B13 -> 2038 | B12: 804297.4208 | C12: 0 | D12: 0 | E12: 0 | F12: 0 | G12: 0 | H12: 0 | I12: 0 | J12: 0 | K12: 0 | L12: 0 | M12: 0 | N12: 0 | O12: 0 | P12: 0
A13: =Results_0!B14 -> 2039 | B13: 832379.1374 | C13: 0 | D13: 0 | E13: 0 | F13: 0 | G13: 0 | H13: 0 | I13: 0 | J13: 0 | K13: 0 | L13: 0 | M13: 0 | N13: 0 | O13: 0 | P13: 0
A14: =Results_0!B15 -> 2040 | B14: 854175.1656 | C14: 0 | D14: 0 | E14: 0 | F14: 0 | G14: 0 | H14: 0 | I14: 0 | J14: 0 | K14: 0 | L14: 0 | M14: 0 | N14: 0 | O14: 0 | P14: 0
A15: =Results_0!B16 -> 2041 | B15: 883544.0791 | C15: 0 | D15: 0 | E15: 0 | F15: 0 | G15: 0 | H15: 0 | I15: 0 | J15: 0 | K15: 0 | L15: 0 | M15: 0 | N15: 0 | O15: 0 | P15: 0
A16: =Results_0!B17 -> 2042 | B16: 906426.1406 | C16: 0 | D16: 0 | E16: 0 | F16: 0 | G16: 0 | H16: 0 | I16: 0 | J16: 0 | K16: 0 | L16: 0 | M16: 0 | N16: 0 | O16: 0 | P16: 0
A17: =Results_0!B18 -> 2043 | B17: 937130.3067 | C17: 0 | D17: 0 | E17: 0 | F17: 0 | G17: 0 | H17: 0 | I17: 0 | J17: 0 | K17: 0 | L17: 0 | M17: 0 | N17: 0 | O17: 0 | P17: 0
A18: =Results_0!B19 -> 2044 | B18: 961144.2869 | C18: 0 | D18: 0 | E18: 0 | F18: 0 | G18: 0 | H18: 0 | I18: 0 | J18: 0 | K18: 0 | L18: 0 | M18: 0 | N18: 0 | O18: 0 | P18: 0
A19: =Results_0!B20 -> 2045 | B19: 985698.2848 | C19: 0 | D19: 0 | E19: 0 | F19: 0 | G19: 0 | H19: 0 | I19: 0 | J19: 0 | K19: 0 | L19: 0 | M19: 0 | N19: 0 | O19: 0 | P19: 0
A20: =Results_0!B21 -> 2046 | B20: 1018436.356 | C20: 0 | D20: 0 | E20: 0 | F20: 0 | G20: 0 | H20: 0 | I20: 0 | J20: 0 | K20: 0 | L20: 0 | M20: 0 | N20: 0 | O20: 0 | P20: 0
A21: =Results_0!B22 -> 2047 | B21: 1044188.708 | C21: 0 | D21: 0 | E21: 0 | F21: 0 | G21: 0 | H21: 0 | I21: 0 | J21: 0 | K21: 0 | L21: 0 | M21: 0 | N21: 0 | O21: 0 | P21: 0
A22: =Results_0!B23 -> 2048 | B22: 1070523.557 | C22: 0 | D22: 0 | E22: 0 | F22: 0 | G22: 0 | H22: 0 | I22: 0 | J22: 0 | K22: 0 | L22: 0 | M22: 0 | N22: 0 | O22: 0 | P22: 0
A23: =Results_0!B24 -> 2049 | B23: 1105462.3 | C23: 0 | D23: 0 | E23: 0 | F23: 0 | G23: 0 | H23: 0 | I23: 0 | J23: 0 | K23: 0 | L23: 0 | M23: 0 | N23: 0 | O23: 0 | P23: 0
A24: =Results_0!B25 -> 2050 | B24: 1133122.731 | C24: 0 | D24: 0 | E24: 0 | F24: 0 | G24: 0 | H24: 0 | I24: 0 | J24: 0 | K24: 0 | L24: 0 | M24: 0 | N24: 0 | O24: 0 | P24: 0
A25: =Results_0!B26 -> 2051 | B25: 1161403.658 | C25: 0 | D25: 0 | E25: 0 | F25: 0 | G25: 0 | H25: 0 | I25: 0 | J25: 0 | K25: 0 | L25: 0 | M25: 0 | N25: 0 | O25: 0 | P25: 0
A26: =Results_0!B27 -> 2052 | B26: 1198669.324 | C26: 0 | D26: 0 | E26: 0 | F26: 0 | G26: 0 | H26: 0 | I26: 0 | J26: 0 | K26: 0 | L26: 0 | M26: 0 | N26: 0 | O26: 0 | P26: 0
A27: =Results_0!B28 -> 2053 | B27: 1228284.114 | C27: 0 | D27: 0 | E27: 0 | F27: 0 | G27: 0 | H27: 0 | I27: 0 | J27: 0 | K27: 0 | L27: 0 | M27: 0 | N27: 0 | O27: 0 | P27: 0
A28: =Results_0!B29 -> 2054 | B28: 1258517.145 | C28: 0 | D28: 0 | E28: 0 | F28: 0 | G28: 0 | H28: 0 | I28: 0 | J28: 0 | K28: 0 | L28: 0 | M28: 0 | N28: 0 | O28: 0 | P28: 0
A29: =Results_0!B30 -> 2055 | B29: 1289356.107 | C29: 0 | D29: 0 | E29: 0 | F29: 0 | G29: 0 | H29: 0 | I29: 0 | J29: 0 | K29: 0 | L29: 0 | M29: 0 | N29: 0 | O29: 0 | P29: 0
A30: =Results_0!B31 -> 2056 | B30: 1327041.336 | C30: 0 | D30: 0 | E30: 0 | F30: 0 | G30: 0 | H30: 0 | I30: 0 | J30: 0 | K30: 0 | L30: 0 | M30: 0 | N30: 0 | O30: 0 | P30: 0
A31: =Results_0!B32 -> 2057 | B31: 1359054.937 | C31: 0 | D31: 0 | E31: 0 | F31: 0 | G31: 0 | H31: 0 | I31: 0 | J31: 0 | K31: 0 | L31: 0 | M31: 0 | N31: 0 | O31: 0 | P31: 0
A32: =Results_0!B33 -> 2058 | B32: 1391654.142 | C32: 0 | D32: 0 | E32: 0 | F32: 0 | G32: 0 | H32: 0 | I32: 0 | J32: 0 | K32: 0 | L32: 0 | M32: 0 | N32: 0 | O32: 0 | P32: 0
A33: =Results_0!B34 -> 2059 | B33: 1424804.596 | C33: 0 | D33: 0 | E33: 0 | F33: 0 | G33: 0 | H33: 0 | I33: 0 | J33: 0 | K33: 0 | L33: 0 | M33: 0 | N33: 0 | O33: 0 | P33: 0
A34: =Results_0!B35 -> 2060 | B34: 1467681.584 | C34: 0 | D34: 0 | E34: 0 | F34: 0 | G34: 0 | H34: 0 | I34: 0 | J34: 0 | K34: 0 | L34: 0 | M34: 0 | N34: 0 | O34: 0 | P34: 0
A35: =Results_0!B36 -> 2061 | B35: 1499172.937 | C35: 0 | D35: 0 | E35: 0 | F35: 0 | G35: 0 | H35: 0 | I35: 0 | J35: 0 | K35: 0 | L35: 0 | M35: 0 | N35: 0 | O35: 0 | P35: 0
A36: =Results_0!B37 -> 2062 | B36: 1533964.596 | C36: 0 | D36: 0 | E36: 0 | F36: 0 | G36: 0 | H36: 0 | I36: 0 | J36: 0 | K36: 0 | L36: 0 | M36: 0 | N36: 0 | O36: 0 | P36: 0
A37: =Results_0!B38 -> 2063 | B37: 1569287.977 | C37: 0 | D37: 0 | E37: 0 | F37: 0 | G37: 0 | H37: 0 | I37: 0 | J37: 0 | K37: 0 | L37: 0 | M37: 0 | N37: 0 | O37: 0 | P37: 0
A38: =Results_0!B39 -> 2064 | B38: 1605133.368 | C38: 0 | D38: 0 | E38: 0 | F38: 0 | G38: 0 | H38: 0 | I38: 0 | J38: 0 | K38: 0 | L38: 0 | M38: 0 | N38: 0 | O38: 0 | P38: 0
A39: =Results_0!B40 -> 2065 | B39: 1638432.853 | C39: 0 | D39: 0 | E39: 0 | F39: 0 | G39: 0 | H39: 0 | I39: 0 | J39: 0 | K39: 0 | L39: 0 | M39: 0 | N39: 0 | O39: 0 | P39: 0
A40: =Results_0!B41 -> 2066 | B40: 1684975.727 | C40: 0 | D40: 0 | E40: 0 | F40: 0 | G40: 0 | H40: 0 | I40: 0 | J40: 0 | K40: 0 | L40: 0 | M40: 0 | N40: 0 | O40: 0 | P40: 0
A41: =Results_0!B42 -> 2067 | B41: 1722427.764 | C41: 0 | D41: 0 | E41: 0 | F41: 0 | G41: 0 | H41: 0 | I41: 0 | J41: 0 | K41: 0 | L41: 0 | M41: 0 | N41: 0 | O41: 0 | P41: 0
A42: =Results_0!B43 -> 2068 | B42: 1757205.522 | C42: 0 | D42: 0 | E42: 0 | F42: 0 | G42: 0 | H42: 0 | I42: 0 | J42: 0 | K42: 0 | L42: 0 | M42: 0 | N42: 0 | O42: 0 | P42: 0
A43: =Results_0!B44 -> 2069 | B43: 1795699.988 | C43: 0 | D43: 0 | E43: 0 | F43: 0 | G43: 0 | H43: 0 | I43: 0 | J43: 0 | K43: 0 | L43: 0 | M43: 0 | N43: 0 | O43: 0 | P43: 0
A44: =Results_0!B45 -> 2070 | B44: 1834710.143 | C44: 0 | D44: 0 | E44: 0 | F44: 0 | G44: 0 | H44: 0 | I44: 0 | J44: 0 | K44: 0 | L44: 0 | M44: 0 | N44: 0 | O44: 0 | P44: 0
A45: =Results_0!B46 -> 2071 | B45: 1870851.105 | C45: 0 | D45: 0 | E45: 0 | F45: 0 | G45: 0 | H45: 0 | I45: 0 | J45: 0 | K45: 0 | L45: 0 | M45: 0 | N45: 0 | O45: 0 | P45: 0
A46: =Results_0!B47 -> 2072 | B46: 1910859.33 | C46: 0 | D46: 0 | E46: 0 | F46: 0 | G46: 0 | H46: 0 | I46: 0 | J46: 0 | K46: 0 | L46: 0 | M46: 0 | N46: 0 | O46: 0 | P46: 0
A47: =Results_0!B48 -> 2073 | B47: 1951453.469 | C47: 0 | D47: 0 | E47: 0 | F47: 0 | G47: 0 | H47: 0 | I47: 0 | J47: 0 | K47: 0 | L47: 0 | M47: 0 | N47: 0 | O47: 0 | P47: 0
A48: =Results_0!B49 -> 2074 | B48: 1989040.393 | C48: 0 | D48: 0 | E48: 0 | F48: 0 | G48: 0 | H48: 0 | I48: 0 | J48: 0 | K48: 0 | L48: 0 | M48: 0 | N48: 0 | O48: 0 | P48: 0
A49: =Results_0!B50 -> 2075 | B49: 2030692.067 | C49: 0 | D49: 0 | E49: 0 | F49: 0 | G49: 0 | H49: 0 | I49: 0 | J49: 0 | K49: 0 | L49: 0 | M49: 0 | N49: 0 | O49: 0 | P49: 0
A50: =Results_0!B51 -> 2076 | B50: 2069233.96 | C50: 0 | D50: 0 | E50: 0 | F50: 0 | G50: 0 | H50: 0 | I50: 0 | J50: 0 | K50: 0 | L50: 0 | M50: 0 | N50: 0 | O50: 0 | P50: 0
A51: =Results_0!B52 -> 2077 | B51: 2111949.763 | C51: 0 | D51: 0 | E51: 0 | F51: 0 | G51: 0 | H51: 0 | I51: 0 | J51: 0 | K51: 0 | L51: 0 | M51: 0 | N51: 0 | O51: 0 | P51: 0
A52: =Results_0!B53 -> 2078 | B52: 2155225.707 | C52: 0 | D52: 0 | E52: 0 | F52: 0 | G52: 0 | H52: 0 | I52: 0 | J52: 0 | K52: 0 | L52: 0 | M52: 0 | N52: 0 | O52: 0 | P52: 0
A53: =Results_0!B54 -> 2079 | B53: 2195234.01 | C53: 0 | D53: 0 | E53: 0 | F53: 0 | G53: 0 | H53: 0 | I53: 0 | J53: 0 | K53: 0 | L53: 0 | M53: 0 | N53: 0 | O53: 0 | P53: 0
A54: =Results_0!B55 -> 2080 | B54: 2239620.005 | C54: 0 | D54: 0 | E54: 0 | F54: 0 | G54: 0 | H54: 0 | I54: 0 | J54: 0 | K54: 0 | L54: 0 | M54: 0 | N54: 0 | O54: 0 | P54: 0
A55: =Results_0!B56 -> 2081 | B55: 2280623.182 | C55: 0 | D55: 0 | E55: 0 | F55: 0 | G55: 0 | H55: 0 | I55: 0 | J55: 0 | K55: 0 | L55: 0 | M55: 0 | N55: 0 | O55: 0 | P55: 0
A56: =Results_0!B57 -> 2082 | B56: 2326154.61 | C56: 0 | D56: 0 | E56: 0 | F56: 0 | G56: 0 | H56: 0 | I56: 0 | J56: 0 | K56: 0 | L56: 0 | M56: 0 | N56: 0 | O56: 0 | P56: 0
A57: =Results_0!B58 -> 2083 | B57: 2368209.542 | C57: 0 | D57: 0 | E57: 0 | F57: 0 | G57: 0 | H57: 0 | I57: 0 | J57: 0 | K57: 0 | L57: 0 | M57: 0 | N57: 0 | O57: 0 | P57: 0
A58: =Results_0!B59 -> 2084 | B58: 2414946.785 | C58: 0 | D58: 0 | E58: 0 | F58: 0 | G58: 0 | H58: 0 | I58: 0 | J58: 0 | K58: 0 | L58: 0 | M58: 0 | N58: 0 | O58: 0 | P58: 0
A59: =Results_0!B60 -> 2085 | B59: 2458100.405 | C59: 0 | D59: 0 | E59: 0 | F59: 0 | G59: 0 | H59: 0 | I59: 0 | J59: 0 | K59: 0 | L59: 0 | M59: 0 | N59: 0 | O59: 0 | P59: 0
A60: =Results_0!B61 -> 2086 | B60: 2501774.565 | C60: 0 | D60: 0 | E60: 0 | F60: 0 | G60: 0 | H60: 0 | I60: 0 | J60: 0 | K60: 0 | L60: 0 | M60: 0 | N60: 0 | O60: 0 | P60: 0
A61: =Results_0!B62 -> 2087 | B61: 2550355.93 | C61: 0 | D61: 0 | E61: 0 | F61: 0 | G61: 0 | H61: 0 | I61: 0 | J61: 0 | K61: 0 | L61: 0 | M61: 0 | N61: 0 | O61: 0 | P61: 0
A62: =Results_0!B63 -> 2088 | B62: 2595128.021 | C62: 0 | D62: 0 | E62: 0 | F62: 0 | G62: 0 | H62: 0 | I62: 0 | J62: 0 | K62: 0 | L62: 0 | M62: 0 | N62: 0 | O62: 0 | P62: 0
A63: =Results_0!B64 -> 2089 | B63: 2644973.186 | C63: 0 | D63: 0 | E63: 0 | F63: 0 | G63: 0 | H63: 0 | I63: 0 | J63: 0 | K63: 0 | L63: 0 | M63: 0 | N63: 0 | O63: 0 | P63: 0

Sheet Benefits
B1: Option 1 | I1: Option 2 | P1: Option 3 | W1: Option 4 | AD1: Option 5 | AK1: Option 6 | AR1: Option 7 | AY1: Option 8 | BF1: Option 9 | BM1: Option 10
A2: Date | B2: VCR | C2: CECV | D2: Emergency | E2: Safety | F2: Environmental | G2: Total | I2: VCR | J2: CECV | K2: Emergency | L2: Safety | M2: Environmental | N2: Total | P2: VCR | Q2: CECV | R2: Emergency | S2: Safety | T2: Environmental | U2: Total | W2: VCR | X2: CECV | Y2: Emergency | Z2: Safety | AA2: Environmental | AB2: Total | AD2: VCR | AE2: CECV | AF2: Emergency | AG2: Safety | AH2: Environmental | AI2: Total | AK2: VCR | AL2: CECV | AM2: Emergency | AN2: Safety | AO2: Environmental | AP2: Total | AR2: VCR | AS2: CECV | AT2: Emergency | AU2: Safety | AV2: Environmental | AW2: Total | AY2: VCR | AZ2: CECV | BA2: Emergency | BB2: Safety | BC2: Environmental | BD2: Total | BF2: VCR | BG2: CECV | BH2: Emergency | BI2: Safety | BJ2: Environmental | BK2: Total | BM2: VCR | BN2: CECV | BO2: Emergency | BP2: Safety | BQ2: Environmental | BR2: Total
A3: =Results!A3 -> 2029 | B3: =Results!B3-Results!G3 -> 726526.5858 | C3: =Results!C3-Results!H3 -> 0 | D3: =Results!D3-Results!I3 -> 0 | E3: =Results!E3-Results!J3 -> 0 | F3: =Results!F3-Results!K3 -> 0 | G3: =SUM(B3:F3)*DATA!C73 -> 726526.5858 | I3: =Results!B3-Results!L3 -> 726526.5858 | J3: =Results!C3-Results!M3 -> 0 | K3: =Results!D3-Results!N3 -> 0 | L3: =Results!E3-Results!O3 -> 0 | M3: =Results!F3-Results!P3 -> 0 | N3: =SUM(I3:M3)*DATA!C73 -> 726526.5858 | U3: =SUM(P3:T3)*DATA!C73 -> 0 | AB3: =SUM(W3:AA3)*DATA!C73 -> 0 | AI3: =SUM(AD3:AH3)*DATA!C73 -> 0 | BD3: =SUM(AY3:BC3)*DATA!C73 -> 0 | BK3: =SUM(BF3:BJ3)*DATA!C73 -> 0 | BR3: =SUM(BM3:BQ3)*DATA!C73 -> 0
A4: =Results!A4 -> 2030 | B4: =Results!B4-Results!G4 -> 726576.0783 | C4: =Results!C4-Results!H4 -> 0 | D4: =Results!D4-Results!I4 -> 0 | E4: =Results!E4-Results!J4 -> 0 | F4: =Results!F4-Results!K4 -> 0 | G4: =SUM(B4:F4)*DATA!C73 -> 726576.0783 | I4: =Results!B4-Results!L4 -> 726576.0783 | J4: =Results!C4-Results!M4 -> 0 | K4: =Results!D4-Results!N4 -> 0 | L4: =Results!E4-Results!O4 -> 0 | M4: =Results!F4-Results!P4 -> 0 | N4: =SUM(I4:M4)*DATA!C73 -> 726576.0783 | U4: =SUM(P4:T4)*DATA!C73 -> 0 | AB4: =SUM(W4:AA4)*DATA!C73 -> 0 | AI4: =SUM(AD4:AH4)*DATA!C73 -> 0 | BD4: =SUM(AY4:BC4)*DATA!C73 -> 0 | BK4: =SUM(BF4:BJ4)*DATA!C73 -> 0 | BR4: =SUM(BM4:BQ4)*DATA!C73 -> 0
A5: =Results!A5 -> 2031 | B5: =Results!B5-Results!G5 -> 728570.1824 | C5: =Results!C5-Results!H5 -> 0 | D5: =Results!D5-Results!I5 -> 0 | E5: =Results!E5-Results!J5 -> 0 | F5: =Results!F5-Results!K5 -> 0 | G5: =SUM(B5:F5)*DATA!C73 -> 728570.1824 | I5: =Results!B5-Results!L5 -> 728570.1824 | J5: =Results!C5-Results!M5 -> 0 | K5: =Results!D5-Results!N5 -> 0 | L5: =Results!E5-Results!O5 -> 0 | M5: =Results!F5-Results!P5 -> 0 | N5: =SUM(I5:M5)*DATA!C73 -> 728570.1824 | U5: =SUM(P5:T5)*DATA!C73 -> 0 | AB5: =SUM(W5:AA5)*DATA!C73 -> 0 | AI5: =SUM(AD5:AH5)*DATA!C73 -> 0 | BD5: =SUM(AY5:BC5)*DATA!C73 -> 0 | BK5: =SUM(BF5:BJ5)*DATA!C73 -> 0 | BR5: =SUM(BM5:BQ5)*DATA!C73 -> 0
A6: =Results!A6 -> 2032 | B6: =Results!B6-Results!G6 -> 737125.1055 | C6: =Results!C6-Results!H6 -> 0 | D6: =Results!D6-Results!I6 -> 0 | E6: =Results!E6-Results!J6 -> 0 | F6: =Results!F6-Results!K6 -> 0 | G6: =SUM(B6:F6)*DATA!C73 -> 737125.1055 | I6: =Results!B6-Results!L6 -> 737125.1055 | J6: =Results!C6-Results!M6 -> 0 | K6: =Results!D6-Results!N6 -> 0 | L6: =Results!E6-Results!O6 -> 0 | M6: =Results!F6-Results!P6 -> 0 | N6: =SUM(I6:M6)*DATA!C73 -> 737125.1055 | U6: =SUM(P6:T6)*DATA!C73 -> 0 | AB6: =SUM(W6:AA6)*DATA!C73 -> 0 | AI6: =SUM(AD6:AH6)*DATA!C73 -> 0 | BD6: =SUM(AY6:BC6)*DATA!C73 -> 0 | BK6: =SUM(BF6:BJ6)*DATA!C73 -> 0 | BR6: =SUM(BM6:BQ6)*DATA!C73 -> 0
A7: =Results!A7 -> 2033 | B7: =Results!B7-Results!G7 -> 718514.234 | C7: =Results!C7-Results!H7 -> 0 | D7: =Results!D7-Results!I7 -> 0 | E7: =Results!E7-Results!J7 -> 0 | F7: =Results!F7-Results!K7 -> 0 | G7: =SUM(B7:F7)*DATA!C73 -> 718514.234 | I7: =Results!B7-Results!L7 -> 718514.234 | J7: =Results!C7-Results!M7 -> 0 | K7: =Results!D7-Results!N7 -> 0 | L7: =Results!E7-Results!O7 -> 0 | M7: =Results!F7-Results!P7 -> 0 | N7: =SUM(I7:M7)*DATA!C73 -> 718514.234 | U7: =SUM(P7:T7)*DATA!C73 -> 0 | AB7: =SUM(W7:AA7)*DATA!C73 -> 0 | AI7: =SUM(AD7:AH7)*DATA!C73 -> 0 | BD7: =SUM(AY7:BC7)*DATA!C73 -> 0 | BK7: =SUM(BF7:BJ7)*DATA!C73 -> 0 | BR7: =SUM(BM7:BQ7)*DATA!C73 -> 0
A8: =Results!A8 -> 2034 | B8: =Results!B8-Results!G8 -> 710423.6483 | C8: =Results!C8-Results!H8 -> 0 | D8: =Results!D8-Results!I8 -> 0 | E8: =Results!E8-Results!J8 -> 0 | F8: =Results!F8-Results!K8 -> 0 | G8: =SUM(B8:F8)*DATA!C73 -> 710423.6483 | I8: =Results!B8-Results!L8 -> 710423.6483 | J8: =Results!C8-Results!M8 -> 0 | K8: =Results!D8-Results!N8 -> 0 | L8: =Results!E8-Results!O8 -> 0 | M8: =Results!F8-Results!P8 -> 0 | N8: =SUM(I8:M8)*DATA!C73 -> 710423.6483 | U8: =SUM(P8:T8)*DATA!C73 -> 0 | AB8: =SUM(W8:AA8)*DATA!C73 -> 0 | AI8: =SUM(AD8:AH8)*DATA!C73 -> 0 | BD8: =SUM(AY8:BC8)*DATA!C73 -> 0 | BK8: =SUM(BF8:BJ8)*DATA!C73 -> 0 | BR8: =SUM(BM8:BQ8)*DATA!C73 -> 0
A9: =Results!A9 -> 2035 | B9: =Results!B9-Results!G9 -> 736997.9834 | C9: =Results!C9-Results!H9 -> 0 | D9: =Results!D9-Results!I9 -> 0 | E9: =Results!E9-Results!J9 -> 0 | F9: =Results!F9-Results!K9 -> 0 | G9: =SUM(B9:F9)*DATA!C73 -> 736997.9834 | I9: =Results!B9-Results!L9 -> 736997.9834 | J9: =Results!C9-Results!M9 -> 0 | K9: =Results!D9-Results!N9 -> 0 | L9: =Results!E9-Results!O9 -> 0 | M9: =Results!F9-Results!P9 -> 0 | N9: =SUM(I9:M9)*DATA!C73 -> 736997.9834 | U9: =SUM(P9:T9)*DATA!C73 -> 0 | AB9: =SUM(W9:AA9)*DATA!C73 -> 0 | AI9: =SUM(AD9:AH9)*DATA!C73 -> 0 | BD9: =SUM(AY9:BC9)*DATA!C73 -> 0 | BK9: =SUM(BF9:BJ9)*DATA!C73 -> 0 | BR9: =SUM(BM9:BQ9)*DATA!C73 -> 0
A10: =Results!A10 -> 2036 | B10: =Results!B10-Results!G10 -> 756740.7095 | C10: =Results!C10-Results!H10 -> 0 | D10: =Results!D10-Results!I10 -> 0 | E10: =Results!E10-Results!J10 -> 0 | F10: =Results!F10-Results!K10 -> 0 | G10: =SUM(B10:F10)*DATA!C73 -> 756740.7095 | I10: =Results!B10-Results!L10 -> 756740.7095 | J10: =Results!C10-Results!M10 -> 0 | K10: =Results!D10-Results!N10 -> 0 | L10: =Results!E10-Results!O10 -> 0 | M10: =Results!F10-Results!P10 -> 0 | N10: =SUM(I10:M10)*DATA!C73 -> 756740.7095 | U10: =SUM(P10:T10)*DATA!C73 -> 0 | AB10: =SUM(W10:AA10)*DATA!C73 -> 0 | AI10: =SUM(AD10:AH10)*DATA!C73 -> 0 | BD10: =SUM(AY10:BC10)*DATA!C73 -> 0 | BK10: =SUM(BF10:BJ10)*DATA!C73 -> 0 | BR10: =SUM(BM10:BQ10)*DATA!C73 -> 0
A11: =Results!A11 -> 2037 | B11: =Results!B11-Results!G11 -> 783537.9971 | C11: =Results!C11-Results!H11 -> 0 | D11: =Results!D11-Results!I11 -> 0 | E11: =Results!E11-Results!J11 -> 0 | F11: =Results!F11-Results!K11 -> 0 | G11: =SUM(B11:F11)*DATA!C73 -> 783537.9971 | I11: =Results!B11-Results!L11 -> 783537.9971 | J11: =Results!C11-Results!M11 -> 0 | K11: =Results!D11-Results!N11 -> 0 | L11: =Results!E11-Results!O11 -> 0 | M11: =Results!F11-Results!P11 -> 0 | N11: =SUM(I11:M11)*DATA!C73 -> 783537.9971 | U11: =SUM(P11:T11)*DATA!C73 -> 0 | AB11: =SUM(W11:AA11)*DATA!C73 -> 0 | AI11: =SUM(AD11:AH11)*DATA!C73 -> 0 | BD11: =SUM(AY11:BC11)*DATA!C73 -> 0 | BK11: =SUM(BF11:BJ11)*DATA!C73 -> 0 | BR11: =SUM(BM11:BQ11)*DATA!C73 -> 0
A12: =Results!A12 -> 2038 | B12: =Results!B12-Results!G12 -> 804297.4208 | C12: =Results!C12-Results!H12 -> 0 | D12: =Results!D12-Results!I12 -> 0 | E12: =Results!E12-Results!J12 -> 0 | F12: =Results!F12-Results!K12 -> 0 | G12: =SUM(B12:F12)*DATA!C73 -> 804297.4208 | I12: =Results!B12-Results!L12 -> 804297.4208 | J12: =Results!C12-Results!M12 -> 0 | K12: =Results!D12-Results!N12 -> 0 | L12: =Results!E12-Results!O12 -> 0 | M12: =Results!F12-Results!P12 -> 0 | N12: =SUM(I12:M12)*DATA!C73 -> 804297.4208 | U12: =SUM(P12:T12)*DATA!C73 -> 0 | AB12: =SUM(W12:AA12)*DATA!C73 -> 0 | AI12: =SUM(AD12:AH12)*DATA!C73 -> 0 | BD12: =SUM(AY12:BC12)*DATA!C73 -> 0 | BK12: =SUM(BF12:BJ12)*DATA!C73 -> 0 | BR12: =SUM(BM12:BQ12)*DATA!C73 -> 0
A13: =Results!A13 -> 2039 | B13: =Results!B13-Results!G13 -> 832379.1374 | C13: =Results!C13-Results!H13 -> 0 | D13: =Results!D13-Results!I13 -> 0 | E13: =Results!E13-Results!J13 -> 0 | F13: =Results!F13-Results!K13 -> 0 | G13: =SUM(B13:F13)*DATA!C73 -> 832379.1374 | I13: =Results!B13-Results!L13 -> 832379.1374 | J13: =Results!C13-Results!M13 -> 0 | K13: =Results!D13-Results!N13 -> 0 | L13: =Results!E13-Results!O13 -> 0 | M13: =Results!F13-Results!P13 -> 0 | N13: =SUM(I13:M13)*DATA!C73 -> 832379.1374 | U13: =SUM(P13:T13)*DATA!C73 -> 0 | AB13: =SUM(W13:AA13)*DATA!C73 -> 0 | AI13: =SUM(AD13:AH13)*DATA!C73 -> 0 | BD13: =SUM(AY13:BC13)*DATA!C73 -> 0 | BK13: =SUM(BF13:BJ13)*DATA!C73 -> 0 | BR13: =SUM(BM13:BQ13)*DATA!C73 -> 0
A14: =Results!A14 -> 2040 | B14: =Results!B14-Results!G14 -> 854175.1656 | C14: =Results!C14-Results!H14 -> 0 | D14: =Results!D14-Results!I14 -> 0 | E14: =Results!E14-Results!J14 -> 0 | F14: =Results!F14-Results!K14 -> 0 | G14: =SUM(B14:F14)*DATA!C73 -> 854175.1656 | I14: =Results!B14-Results!L14 -> 854175.1656 | J14: =Results!C14-Results!M14 -> 0 | K14: =Results!D14-Results!N14 -> 0 | L14: =Results!E14-Results!O14 -> 0 | M14: =Results!F14-Results!P14 -> 0 | N14: =SUM(I14:M14)*DATA!C73 -> 854175.1656 | U14: =SUM(P14:T14)*DATA!C73 -> 0 | AB14: =SUM(W14:AA14)*DATA!C73 -> 0 | AI14: =SUM(AD14:AH14)*DATA!C73 -> 0 | BD14: =SUM(AY14:BC14)*DATA!C73 -> 0 | BK14: =SUM(BF14:BJ14)*DATA!C73 -> 0 | BR14: =SUM(BM14:BQ14)*DATA!C73 -> 0
A15: =Results!A15 -> 2041 | B15: =Results!B15-Results!G15 -> 883544.0791 | C15: =Results!C15-Results!H15 -> 0 | D15: =Results!D15-Results!I15 -> 0 | E15: =Results!E15-Results!J15 -> 0 | F15: =Results!F15-Results!K15 -> 0 | G15: =SUM(B15:F15)*DATA!C73 -> 883544.0791 | I15: =Results!B15-Results!L15 -> 883544.0791 | J15: =Results!C15-Results!M15 -> 0 | K15: =Results!D15-Results!N15 -> 0 | L15: =Results!E15-Results!O15 -> 0 | M15: =Results!F15-Results!P15 -> 0 | N15: =SUM(I15:M15)*DATA!C73 -> 883544.0791 | U15: =SUM(P15:T15)*DATA!C73 -> 0 | AB15: =SUM(W15:AA15)*DATA!C73 -> 0 | AI15: =SUM(AD15:AH15)*DATA!C73 -> 0 | BD15: =SUM(AY15:BC15)*DATA!C73 -> 0 | BK15: =SUM(BF15:BJ15)*DATA!C73 -> 0 | BR15: =SUM(BM15:BQ15)*DATA!C73 -> 0
A16: =Results!A16 -> 2042 | B16: =Results!B16-Results!G16 -> 906426.1406 | C16: =Results!C16-Results!H16 -> 0 | D16: =Results!D16-Results!I16 -> 0 | E16: =Results!E16-Results!J16 -> 0 | F16: =Results!F16-Results!K16 -> 0 | G16: =SUM(B16:F16)*DATA!C73 -> 906426.1406 | I16: =Results!B16-Results!L16 -> 906426.1406 | J16: =Results!C16-Results!M16 -> 0 | K16: =Results!D16-Results!N16 -> 0 | L16: =Results!E16-Results!O16 -> 0 | M16: =Results!F16-Results!P16 -> 0 | N16: =SUM(I16:M16)*DATA!C73 -> 906426.1406 | U16: =SUM(P16:T16)*DATA!C73 -> 0 | AB16: =SUM(W16:AA16)*DATA!C73 -> 0 | AI16: =SUM(AD16:AH16)*DATA!C73 -> 0 | BD16: =SUM(AY16:BC16)*DATA!C73 -> 0 | BK16: =SUM(BF16:BJ16)*DATA!C73 -> 0 | BR16: =SUM(BM16:BQ16)*DATA!C73 -> 0
A17: =Results!A17 -> 2043 | B17: =Results!B17-Results!G17 -> 937130.3067 | C17: =Results!C17-Results!H17 -> 0 | D17: =Results!D17-Results!I17 -> 0 | E17: =Results!E17-Results!J17 -> 0 | F17: =Results!F17-Results!K17 -> 0 | G17: =SUM(B17:F17)*DATA!C73 -> 937130.3067 | I17: =Results!B17-Results!L17 -> 937130.3067 | J17: =Results!C17-Results!M17 -> 0 | K17: =Results!D17-Results!N17 -> 0 | L17: =Results!E17-Results!O17 -> 0 | M17: =Results!F17-Results!P17 -> 0 | N17: =SUM(I17:M17)*DATA!C73 -> 937130.3067 | U17: =SUM(P17:T17)*DATA!C73 -> 0 | AB17: =SUM(W17:AA17)*DATA!C73 -> 0 | AI17: =SUM(AD17:AH17)*DATA!C73 -> 0 | BD17: =SUM(AY17:BC17)*DATA!C73 -> 0 | BK17: =SUM(BF17:BJ17)*DATA!C73 -> 0 | BR17: =SUM(BM17:BQ17)*DATA!C73 -> 0
A18: =Results!A18 -> 2044 | B18: =Results!B18-Results!G18 -> 961144.2869 | C18: =Results!C18-Results!H18 -> 0 | D18: =Results!D18-Results!I18 -> 0 | E18: =Results!E18-Results!J18 -> 0 | F18: =Results!F18-Results!K18 -> 0 | G18: =SUM(B18:F18)*DATA!C73 -> 961144.2869 | I18: =Results!B18-Results!L18 -> 961144.2869 | J18: =Results!C18-Results!M18 -> 0 | K18: =Results!D18-Results!N18 -> 0 | L18: =Results!E18-Results!O18 -> 0 | M18: =Results!F18-Results!P18 -> 0 | N18: =SUM(I18:M18)*DATA!C73 -> 961144.2869 | U18: =SUM(P18:T18)*DATA!C73 -> 0 | AB18: =SUM(W18:AA18)*DATA!C73 -> 0 | AI18: =SUM(AD18:AH18)*DATA!C73 -> 0 | BD18: =SUM(AY18:BC18)*DATA!C73 -> 0 | BK18: =SUM(BF18:BJ18)*DATA!C73 -> 0 | BR18: =SUM(BM18:BQ18)*DATA!C73 -> 0
A19: =Results!A19 -> 2045 | B19: =Results!B19-Results!G19 -> 985698.2848 | C19: =Results!C19-Results!H19 -> 0 | D19: =Results!D19-Results!I19 -> 0 | E19: =Results!E19-Results!J19 -> 0 | F19: =Results!F19-Results!K19 -> 0 | G19: =SUM(B19:F19)*DATA!C73 -> 985698.2848 | I19: =Results!B19-Results!L19 -> 985698.2848 | J19: =Results!C19-Results!M19 -> 0 | K19: =Results!D19-Results!N19 -> 0 | L19: =Results!E19-Results!O19 -> 0 | M19: =Results!F19-Results!P19 -> 0 | N19: =SUM(I19:M19)*DATA!C73 -> 985698.2848 | U19: =SUM(P19:T19)*DATA!C73 -> 0 | AB19: =SUM(W19:AA19)*DATA!C73 -> 0 | AI19: =SUM(AD19:AH19)*DATA!C73 -> 0 | BD19: =SUM(AY19:BC19)*DATA!C73 -> 0 | BK19: =SUM(BF19:BJ19)*DATA!C73 -> 0 | BR19: =SUM(BM19:BQ19)*DATA!C73 -> 0
A20: =Results!A20 -> 2046 | B20: =Results!B20-Results!G20 -> 1018436.356 | C20: =Results!C20-Results!H20 -> 0 | D20: =Results!D20-Results!I20 -> 0 | E20: =Results!E20-Results!J20 -> 0 | F20: =Results!F20-Results!K20 -> 0 | G20: =SUM(B20:F20)*DATA!C73 -> 1018436.356 | I20: =Results!B20-Results!L20 -> 1018436.356 | J20: =Results!C20-Results!M20 -> 0 | K20: =Results!D20-Results!N20 -> 0 | L20: =Results!E20-Results!O20 -> 0 | M20: =Results!F20-Results!P20 -> 0 | N20: =SUM(I20:M20)*DATA!C73 -> 1018436.356 | U20: =SUM(P20:T20)*DATA!C73 -> 0 | AB20: =SUM(W20:AA20)*DATA!C73 -> 0 | AI20: =SUM(AD20:AH20)*DATA!C73 -> 0 | BD20: =SUM(AY20:BC20)*DATA!C73 -> 0 | BK20: =SUM(BF20:BJ20)*DATA!C73 -> 0 | BR20: =SUM(BM20:BQ20)*DATA!C73 -> 0
A21: =Results!A21 -> 2047 | B21: =Results!B21-Results!G21 -> 1044188.708 | C21: =Results!C21-Results!H21 -> 0 | D21: =Results!D21-Results!I21 -> 0 | E21: =Results!E21-Results!J21 -> 0 | F21: =Results!F21-Results!K21 -> 0 | G21: =SUM(B21:F21)*DATA!C73 -> 1044188.708 | I21: =Results!B21-Results!L21 -> 1044188.708 | J21: =Results!C21-Results!M21 -> 0 | K21: =Results!D21-Results!N21 -> 0 | L21: =Results!E21-Results!O21 -> 0 | M21: =Results!F21-Results!P21 -> 0 | N21: =SUM(I21:M21)*DATA!C73 -> 1044188.708 | U21: =SUM(P21:T21)*DATA!C73 -> 0 | AB21: =SUM(W21:AA21)*DATA!C73 -> 0 | AI21: =SUM(AD21:AH21)*DATA!C73 -> 0 | BD21: =SUM(AY21:BC21)*DATA!C73 -> 0 | BK21: =SUM(BF21:BJ21)*DATA!C73 -> 0 | BR21: =SUM(BM21:BQ21)*DATA!C73 -> 0
A22: =Results!A22 -> 2048 | B22: =Results!B22-Results!G22 -> 1070523.557 | C22: =Results!C22-Results!H22 -> 0 | D22: =Results!D22-Results!I22 -> 0 | E22: =Results!E22-Results!J22 -> 0 | F22: =Results!F22-Results!K22 -> 0 | G22: =SUM(B22:F22)*DATA!C73 -> 1070523.557 | I22: =Results!B22-Results!L22 -> 1070523.557 | J22: =Results!C22-Results!M22 -> 0 | K22: =Results!D22-Results!N22 -> 0 | L22: =Results!E22-Results!O22 -> 0 | M22: =Results!F22-Results!P22 -> 0 | N22: =SUM(I22:M22)*DATA!C73 -> 1070523.557 | U22: =SUM(P22:T22)*DATA!C73 -> 0 | AB22: =SUM(W22:AA22)*DATA!C73 -> 0 | AI22: =SUM(AD22:AH22)*DATA!C73 -> 0 | BD22: =SUM(AY22:BC22)*DATA!C73 -> 0 | BK22: =SUM(BF22:BJ22)*DATA!C73 -> 0 | BR22: =SUM(BM22:BQ22)*DATA!C73 -> 0
A23: =Results!A23 -> 2049 | B23: =Results!B23-Results!G23 -> 1105462.3 | C23: =Results!C23-Results!H23 -> 0 | D23: =Results!D23-Results!I23 -> 0 | E23: =Results!E23-Results!J23 -> 0 | F23: =Results!F23-Results!K23 -> 0 | G23: =SUM(B23:F23)*DATA!C73 -> 1105462.3 | I23: =Results!B23-Results!L23 -> 1105462.3 | J23: =Results!C23-Results!M23 -> 0 | K23: =Results!D23-Results!N23 -> 0 | L23: =Results!E23-Results!O23 -> 0 | M23: =Results!F23-Results!P23 -> 0 | N23: =SUM(I23:M23)*DATA!C73 -> 1105462.3 | U23: =SUM(P23:T23)*DATA!C73 -> 0 | AB23: =SUM(W23:AA23)*DATA!C73 -> 0 | AI23: =SUM(AD23:AH23)*DATA!C73 -> 0 | BD23: =SUM(AY23:BC23)*DATA!C73 -> 0 | BK23: =SUM(BF23:BJ23)*DATA!C73 -> 0 | BR23: =SUM(BM23:BQ23)*DATA!C73 -> 0
A24: =Results!A24 -> 2050 | B24: =Results!B24-Results!G24 -> 1133122.731 | C24: =Results!C24-Results!H24 -> 0 | D24: =Results!D24-Results!I24 -> 0 | E24: =Results!E24-Results!J24 -> 0 | F24: =Results!F24-Results!K24 -> 0 | G24: =SUM(B24:F24)*DATA!C73 -> 1133122.731 | I24: =Results!B24-Results!L24 -> 1133122.731 | J24: =Results!C24-Results!M24 -> 0 | K24: =Results!D24-Results!N24 -> 0 | L24: =Results!E24-Results!O24 -> 0 | M24: =Results!F24-Results!P24 -> 0 | N24: =SUM(I24:M24)*DATA!C73 -> 1133122.731 | U24: =SUM(P24:T24)*DATA!C73 -> 0 | AB24: =SUM(W24:AA24)*DATA!C73 -> 0 | AI24: =SUM(AD24:AH24)*DATA!C73 -> 0 | BD24: =SUM(AY24:BC24)*DATA!C73 -> 0 | BK24: =SUM(BF24:BJ24)*DATA!C73 -> 0 | BR24: =SUM(BM24:BQ24)*DATA!C73 -> 0
A25: =Results!A25 -> 2051 | B25: =Results!B25-Results!G25 -> 1161403.658 | C25: =Results!C25-Results!H25 -> 0 | D25: =Results!D25-Results!I25 -> 0 | E25: =Results!E25-Results!J25 -> 0 | F25: =Results!F25-Results!K25 -> 0 | G25: =SUM(B25:F25)*DATA!C73 -> 1161403.658 | I25: =Results!B25-Results!L25 -> 1161403.658 | J25: =Results!C25-Results!M25 -> 0 | K25: =Results!D25-Results!N25 -> 0 | L25: =Results!E25-Results!O25 -> 0 | M25: =Results!F25-Results!P25 -> 0 | N25: =SUM(I25:M25)*DATA!C73 -> 1161403.658 | U25: =SUM(P25:T25)*DATA!C73 -> 0 | AB25: =SUM(W25:AA25)*DATA!C73 -> 0 | AI25: =SUM(AD25:AH25)*DATA!C73 -> 0 | BD25: =SUM(AY25:BC25)*DATA!C73 -> 0 | BK25: =SUM(BF25:BJ25)*DATA!C73 -> 0 | BR25: =SUM(BM25:BQ25)*DATA!C73 -> 0
A26: =Results!A26 -> 2052 | B26: =Results!B26-Results!G26 -> 1198669.324 | C26: =Results!C26-Results!H26 -> 0 | D26: =Results!D26-Results!I26 -> 0 | E26: =Results!E26-Results!J26 -> 0 | F26: =Results!F26-Results!K26 -> 0 | G26: =SUM(B26:F26)*DATA!C73 -> 1198669.324 | I26: =Results!B26-Results!L26 -> 1198669.324 | J26: =Results!C26-Results!M26 -> 0 | K26: =Results!D26-Results!N26 -> 0 | L26: =Results!E26-Results!O26 -> 0 | M26: =Results!F26-Results!P26 -> 0 | N26: =SUM(I26:M26)*DATA!C73 -> 1198669.324 | U26: =SUM(P26:T26)*DATA!C73 -> 0 | AB26: =SUM(W26:AA26)*DATA!C73 -> 0 | AI26: =SUM(AD26:AH26)*DATA!C73 -> 0 | BD26: =SUM(AY26:BC26)*DATA!C73 -> 0 | BK26: =SUM(BF26:BJ26)*DATA!C73 -> 0 | BR26: =SUM(BM26:BQ26)*DATA!C73 -> 0
A27: =Results!A27 -> 2053 | B27: =Results!B27-Results!G27 -> 1228284.114 | C27: =Results!C27-Results!H27 -> 0 | D27: =Results!D27-Results!I27 -> 0 | E27: =Results!E27-Results!J27 -> 0 | F27: =Results!F27-Results!K27 -> 0 | G27: =SUM(B27:F27)*DATA!C73 -> 1228284.114 | I27: =Results!B27-Results!L27 -> 1228284.114 | J27: =Results!C27-Results!M27 -> 0 | K27: =Results!D27-Results!N27 -> 0 | L27: =Results!E27-Results!O27 -> 0 | M27: =Results!F27-Results!P27 -> 0 | N27: =SUM(I27:M27)*DATA!C73 -> 1228284.114 | U27: =SUM(P27:T27)*DATA!C73 -> 0 | AB27: =SUM(W27:AA27)*DATA!C73 -> 0 | AI27: =SUM(AD27:AH27)*DATA!C73 -> 0 | BD27: =SUM(AY27:BC27)*DATA!C73 -> 0 | BK27: =SUM(BF27:BJ27)*DATA!C73 -> 0 | BR27: =SUM(BM27:BQ27)*DATA!C73 -> 0
A28: =Results!A28 -> 2054 | B28: =Results!B28-Results!G28 -> 1258517.145 | C28: =Results!C28-Results!H28 -> 0 | D28: =Results!D28-Results!I28 -> 0 | E28: =Results!E28-Results!J28 -> 0 | F28: =Results!F28-Results!K28 -> 0 | G28: =SUM(B28:F28)*DATA!C73 -> 1258517.145 | I28: =Results!B28-Results!L28 -> 1258517.145 | J28: =Results!C28-Results!M28 -> 0 | K28: =Results!D28-Results!N28 -> 0 | L28: =Results!E28-Results!O28 -> 0 | M28: =Results!F28-Results!P28 -> 0 | N28: =SUM(I28:M28)*DATA!C73 -> 1258517.145 | U28: =SUM(P28:T28)*DATA!C73 -> 0 | AB28: =SUM(W28:AA28)*DATA!C73 -> 0 | AI28: =SUM(AD28:AH28)*DATA!C73 -> 0 | BD28: =SUM(AY28:BC28)*DATA!C73 -> 0 | BK28: =SUM(BF28:BJ28)*DATA!C73 -> 0 | BR28: =SUM(BM28:BQ28)*DATA!C73 -> 0
A29: =Results!A29 -> 2055 | B29: =Results!B29-Results!G29 -> 1289356.107 | C29: =Results!C29-Results!H29 -> 0 | D29: =Results!D29-Results!I29 -> 0 | E29: =Results!E29-Results!J29 -> 0 | F29: =Results!F29-Results!K29 -> 0 | G29: =SUM(B29:F29)*DATA!C73 -> 1289356.107 | I29: =Results!B29-Results!L29 -> 1289356.107 | J29: =Results!C29-Results!M29 -> 0 | K29: =Results!D29-Results!N29 -> 0 | L29: =Results!E29-Results!O29 -> 0 | M29: =Results!F29-Results!P29 -> 0 | N29: =SUM(I29:M29)*DATA!C73 -> 1289356.107 | U29: =SUM(P29:T29)*DATA!C73 -> 0 | AB29: =SUM(W29:AA29)*DATA!C73 -> 0 | AI29: =SUM(AD29:AH29)*DATA!C73 -> 0 | BD29: =SUM(AY29:BC29)*DATA!C73 -> 0 | BK29: =SUM(BF29:BJ29)*DATA!C73 -> 0 | BR29: =SUM(BM29:BQ29)*DATA!C73 -> 0
A30: =Results!A30 -> 2056 | B30: =Results!B30-Results!G30 -> 1327041.336 | C30: =Results!C30-Results!H30 -> 0 | D30: =Results!D30-Results!I30 -> 0 | E30: =Results!E30-Results!J30 -> 0 | F30: =Results!F30-Results!K30 -> 0 | G30: =SUM(B30:F30)*DATA!C73 -> 1327041.336 | I30: =Results!B30-Results!L30 -> 1327041.336 | J30: =Results!C30-Results!M30 -> 0 | K30: =Results!D30-Results!N30 -> 0 | L30: =Results!E30-Results!O30 -> 0 | M30: =Results!F30-Results!P30 -> 0 | N30: =SUM(I30:M30)*DATA!C73 -> 1327041.336 | U30: =SUM(P30:T30)*DATA!C73 -> 0 | AB30: =SUM(W30:AA30)*DATA!C73 -> 0 | AI30: =SUM(AD30:AH30)*DATA!C73 -> 0 | BD30: =SUM(AY30:BC30)*DATA!C73 -> 0 | BK30: =SUM(BF30:BJ30)*DATA!C73 -> 0 | BR30: =SUM(BM30:BQ30)*DATA!C73 -> 0
A31: =Results!A31 -> 2057 | B31: =Results!B31-Results!G31 -> 1359054.937 | C31: =Results!C31-Results!H31 -> 0 | D31: =Results!D31-Results!I31 -> 0 | E31: =Results!E31-Results!J31 -> 0 | F31: =Results!F31-Results!K31 -> 0 | G31: =SUM(B31:F31)*DATA!C73 -> 1359054.937 | I31: =Results!B31-Results!L31 -> 1359054.937 | J31: =Results!C31-Results!M31 -> 0 | K31: =Results!D31-Results!N31 -> 0 | L31: =Results!E31-Results!O31 -> 0 | M31: =Results!F31-Results!P31 -> 0 | N31: =SUM(I31:M31)*DATA!C73 -> 1359054.937 | U31: =SUM(P31:T31)*DATA!C73 -> 0 | AB31: =SUM(W31:AA31)*DATA!C73 -> 0 | AI31: =SUM(AD31:AH31)*DATA!C73 -> 0 | BD31: =SUM(AY31:BC31)*DATA!C73 -> 0 | BK31: =SUM(BF31:BJ31)*DATA!C73 -> 0 | BR31: =SUM(BM31:BQ31)*DATA!C73 -> 0
A32: =Results!A32 -> 2058 | B32: =Results!B32-Results!G32 -> 1391654.142 | C32: =Results!C32-Results!H32 -> 0 | D32: =Results!D32-Results!I32 -> 0 | E32: =Results!E32-Results!J32 -> 0 | F32: =Results!F32-Results!K32 -> 0 | G32: =SUM(B32:F32)*DATA!C73 -> 1391654.142 | I32: =Results!B32-Results!L32 -> 1391654.142 | J32: =Results!C32-Results!M32 -> 0 | K32: =Results!D32-Results!N32 -> 0 | L32: =Results!E32-Results!O32 -> 0 | M32: =Results!F32-Results!P32 -> 0 | N32: =SUM(I32:M32)*DATA!C73 -> 1391654.142 | U32: =SUM(P32:T32)*DATA!C73 -> 0 | AB32: =SUM(W32:AA32)*DATA!C73 -> 0 | AI32: =SUM(AD32:AH32)*DATA!C73 -> 0 | BD32: =SUM(AY32:BC32)*DATA!C73 -> 0 | BK32: =SUM(BF32:BJ32)*DATA!C73 -> 0 | BR32: =SUM(BM32:BQ32)*DATA!C73 -> 0
A33: =Results!A33 -> 2059 | B33: =Results!B33-Results!G33 -> 1424804.596 | C33: =Results!C33-Results!H33 -> 0 | D33: =Results!D33-Results!I33 -> 0 | E33: =Results!E33-Results!J33 -> 0 | F33: =Results!F33-Results!K33 -> 0 | G33: =SUM(B33:F33)*DATA!C73 -> 1424804.596 | I33: =Results!B33-Results!L33 -> 1424804.596 | J33: =Results!C33-Results!M33 -> 0 | K33: =Results!D33-Results!N33 -> 0 | L33: =Results!E33-Results!O33 -> 0 | M33: =Results!F33-Results!P33 -> 0 | N33: =SUM(I33:M33)*DATA!C73 -> 1424804.596 | U33: =SUM(P33:T33)*DATA!C73 -> 0 | AB33: =SUM(W33:AA33)*DATA!C73 -> 0 | AI33: =SUM(AD33:AH33)*DATA!C73 -> 0 | BD33: =SUM(AY33:BC33)*DATA!C73 -> 0 | BK33: =SUM(BF33:BJ33)*DATA!C73 -> 0 | BR33: =SUM(BM33:BQ33)*DATA!C73 -> 0
A34: =Results!A34 -> 2060 | B34: =Results!B34-Results!G34 -> 1467681.584 | C34: =Results!C34-Results!H34 -> 0 | D34: =Results!D34-Results!I34 -> 0 | E34: =Results!E34-Results!J34 -> 0 | F34: =Results!F34-Results!K34 -> 0 | G34: =SUM(B34:F34)*DATA!C73 -> 1467681.584 | I34: =Results!B34-Results!L34 -> 1467681.584 | J34: =Results!C34-Results!M34 -> 0 | K34: =Results!D34-Results!N34 -> 0 | L34: =Results!E34-Results!O34 -> 0 | M34: =Results!F34-Results!P34 -> 0 | N34: =SUM(I34:M34)*DATA!C73 -> 1467681.584 | U34: =SUM(P34:T34)*DATA!C73 -> 0 | AB34: =SUM(W34:AA34)*DATA!C73 -> 0 | AI34: =SUM(AD34:AH34)*DATA!C73 -> 0 | BD34: =SUM(AY34:BC34)*DATA!C73 -> 0 | BK34: =SUM(BF34:BJ34)*DATA!C73 -> 0 | BR34: =SUM(BM34:BQ34)*DATA!C73 -> 0
A35: =Results!A35 -> 2061 | B35: =Results!B35-Results!G35 -> 1499172.937 | C35: =Results!C35-Results!H35 -> 0 | D35: =Results!D35-Results!I35 -> 0 | E35: =Results!E35-Results!J35 -> 0 | F35: =Results!F35-Results!K35 -> 0 | G35: =SUM(B35:F35)*DATA!C73 -> 1499172.937 | I35: =Results!B35-Results!L35 -> 1499172.937 | J35: =Results!C35-Results!M35 -> 0 | K35: =Results!D35-Results!N35 -> 0 | L35: =Results!E35-Results!O35 -> 0 | M35: =Results!F35-Results!P35 -> 0 | N35: =SUM(I35:M35)*DATA!C73 -> 1499172.937 | U35: =SUM(P35:T35)*DATA!C73 -> 0 | AB35: =SUM(W35:AA35)*DATA!C73 -> 0 | AI35: =SUM(AD35:AH35)*DATA!C73 -> 0 | BD35: =SUM(AY35:BC35)*DATA!C73 -> 0 | BK35: =SUM(BF35:BJ35)*DATA!C73 -> 0 | BR35: =SUM(BM35:BQ35)*DATA!C73 -> 0
A36: =Results!A36 -> 2062 | B36: =Results!B36-Results!G36 -> 1533964.596 | C36: =Results!C36-Results!H36 -> 0 | D36: =Results!D36-Results!I36 -> 0 | E36: =Results!E36-Results!J36 -> 0 | F36: =Results!F36-Results!K36 -> 0 | G36: =SUM(B36:F36)*DATA!C73 -> 1533964.596 | I36: =Results!B36-Results!L36 -> 1533964.596 | J36: =Results!C36-Results!M36 -> 0 | K36: =Results!D36-Results!N36 -> 0 | L36: =Results!E36-Results!O36 -> 0 | M36: =Results!F36-Results!P36 -> 0 | N36: =SUM(I36:M36)*DATA!C73 -> 1533964.596 | U36: =SUM(P36:T36)*DATA!C73 -> 0 | AB36: =SUM(W36:AA36)*DATA!C73 -> 0 | AI36: =SUM(AD36:AH36)*DATA!C73 -> 0 | BD36: =SUM(AY36:BC36)*DATA!C73 -> 0 | BK36: =SUM(BF36:BJ36)*DATA!C73 -> 0 | BR36: =SUM(BM36:BQ36)*DATA!C73 -> 0
A37: =Results!A37 -> 2063 | B37: =Results!B37-Results!G37 -> 1569287.977 | C37: =Results!C37-Results!H37 -> 0 | D37: =Results!D37-Results!I37 -> 0 | E37: =Results!E37-Results!J37 -> 0 | F37: =Results!F37-Results!K37 -> 0 | G37: =SUM(B37:F37)*DATA!C73 -> 1569287.977 | I37: =Results!B37-Results!L37 -> 1569287.977 | J37: =Results!C37-Results!M37 -> 0 | K37: =Results!D37-Results!N37 -> 0 | L37: =Results!E37-Results!O37 -> 0 | M37: =Results!F37-Results!P37 -> 0 | N37: =SUM(I37:M37)*DATA!C73 -> 1569287.977 | U37: =SUM(P37:T37)*DATA!C73 -> 0 | AB37: =SUM(W37:AA37)*DATA!C73 -> 0 | AI37: =SUM(AD37:AH37)*DATA!C73 -> 0 | BD37: =SUM(AY37:BC37)*DATA!C73 -> 0 | BK37: =SUM(BF37:BJ37)*DATA!C73 -> 0 | BR37: =SUM(BM37:BQ37)*DATA!C73 -> 0
A38: =Results!A38 -> 2064 | B38: =Results!B38-Results!G38 -> 1605133.368 | C38: =Results!C38-Results!H38 -> 0 | D38: =Results!D38-Results!I38 -> 0 | E38: =Results!E38-Results!J38 -> 0 | F38: =Results!F38-Results!K38 -> 0 | G38: =SUM(B38:F38)*DATA!C73 -> 1605133.368 | I38: =Results!B38-Results!L38 -> 1605133.368 | J38: =Results!C38-Results!M38 -> 0 | K38: =Results!D38-Results!N38 -> 0 | L38: =Results!E38-Results!O38 -> 0 | M38: =Results!F38-Results!P38 -> 0 | N38: =SUM(I38:M38)*DATA!C73 -> 1605133.368 | U38: =SUM(P38:T38)*DATA!C73 -> 0 | AB38: =SUM(W38:AA38)*DATA!C73 -> 0 | AI38: =SUM(AD38:AH38)*DATA!C73 -> 0 | BD38: =SUM(AY38:BC38)*DATA!C73 -> 0 | BK38: =SUM(BF38:BJ38)*DATA!C73 -> 0 | BR38: =SUM(BM38:BQ38)*DATA!C73 -> 0
A39: =Results!A39 -> 2065 | B39: =Results!B39-Results!G39 -> 1638432.853 | C39: =Results!C39-Results!H39 -> 0 | D39: =Results!D39-Results!I39 -> 0 | E39: =Results!E39-Results!J39 -> 0 | F39: =Results!F39-Results!K39 -> 0 | G39: =SUM(B39:F39)*DATA!C73 -> 1638432.853 | I39: =Results!B39-Results!L39 -> 1638432.853 | J39: =Results!C39-Results!M39 -> 0 | K39: =Results!D39-Results!N39 -> 0 | L39: =Results!E39-Results!O39 -> 0 | M39: =Results!F39-Results!P39 -> 0 | N39: =SUM(I39:M39)*DATA!C73 -> 1638432.853 | U39: =SUM(P39:T39)*DATA!C73 -> 0 | AB39: =SUM(W39:AA39)*DATA!C73 -> 0 | AI39: =SUM(AD39:AH39)*DATA!C73 -> 0 | BD39: =SUM(AY39:BC39)*DATA!C73 -> 0 | BK39: =SUM(BF39:BJ39)*DATA!C73 -> 0 | BR39: =SUM(BM39:BQ39)*DATA!C73 -> 0
A40: =Results!A40 -> 2066 | B40: =Results!B40-Results!G40 -> 1684975.727 | C40: =Results!C40-Results!H40 -> 0 | D40: =Results!D40-Results!I40 -> 0 | E40: =Results!E40-Results!J40 -> 0 | F40: =Results!F40-Results!K40 -> 0 | G40: =SUM(B40:F40)*DATA!C73 -> 1684975.727 | I40: =Results!B40-Results!L40 -> 1684975.727 | J40: =Results!C40-Results!M40 -> 0 | K40: =Results!D40-Results!N40 -> 0 | L40: =Results!E40-Results!O40 -> 0 | M40: =Results!F40-Results!P40 -> 0 | N40: =SUM(I40:M40)*DATA!C73 -> 1684975.727 | U40: =SUM(P40:T40)*DATA!C73 -> 0 | AB40: =SUM(W40:AA40)*DATA!C73 -> 0 | AI40: =SUM(AD40:AH40)*DATA!C73 -> 0 | BD40: =SUM(AY40:BC40)*DATA!C73 -> 0 | BK40: =SUM(BF40:BJ40)*DATA!C73 -> 0 | BR40: =SUM(BM40:BQ40)*DATA!C73 -> 0
A41: =Results!A41 -> 2067 | B41: =Results!B41-Results!G41 -> 1722427.764 | C41: =Results!C41-Results!H41 -> 0 | D41: =Results!D41-Results!I41 -> 0 | E41: =Results!E41-Results!J41 -> 0 | F41: =Results!F41-Results!K41 -> 0 | G41: =SUM(B41:F41)*DATA!C73 -> 1722427.764 | I41: =Results!B41-Results!L41 -> 1722427.764 | J41: =Results!C41-Results!M41 -> 0 | K41: =Results!D41-Results!N41 -> 0 | L41: =Results!E41-Results!O41 -> 0 | M41: =Results!F41-Results!P41 -> 0 | N41: =SUM(I41:M41)*DATA!C73 -> 1722427.764 | U41: =SUM(P41:T41)*DATA!C73 -> 0 | AB41: =SUM(W41:AA41)*DATA!C73 -> 0 | AI41: =SUM(AD41:AH41)*DATA!C73 -> 0 | BD41: =SUM(AY41:BC41)*DATA!C73 -> 0 | BK41: =SUM(BF41:BJ41)*DATA!C73 -> 0 | BR41: =SUM(BM41:BQ41)*DATA!C73 -> 0
A42: =Results!A42 -> 2068 | B42: =Results!B42-Results!G42 -> 1757205.522 | C42: =Results!C42-Results!H42 -> 0 | D42: =Results!D42-Results!I42 -> 0 | E42: =Results!E42-Results!J42 -> 0 | F42: =Results!F42-Results!K42 -> 0 | G42: =SUM(B42:F42)*DATA!C73 -> 1757205.522 | I42: =Results!B42-Results!L42 -> 1757205.522 | J42: =Results!C42-Results!M42 -> 0 | K42: =Results!D42-Results!N42 -> 0 | L42: =Results!E42-Results!O42 -> 0 | M42: =Results!F42-Results!P42 -> 0 | N42: =SUM(I42:M42)*DATA!C73 -> 1757205.522 | U42: =SUM(P42:T42)*DATA!C73 -> 0 | AB42: =SUM(W42:AA42)*DATA!C73 -> 0 | AI42: =SUM(AD42:AH42)*DATA!C73 -> 0 | BD42: =SUM(AY42:BC42)*DATA!C73 -> 0 | BK42: =SUM(BF42:BJ42)*DATA!C73 -> 0 | BR42: =SUM(BM42:BQ42)*DATA!C73 -> 0
A43: =Results!A43 -> 2069 | B43: =Results!B43-Results!G43 -> 1795699.988 | C43: =Results!C43-Results!H43 -> 0 | D43: =Results!D43-Results!I43 -> 0 | E43: =Results!E43-Results!J43 -> 0 | F43: =Results!F43-Results!K43 -> 0 | G43: =SUM(B43:F43)*DATA!C73 -> 1795699.988 | I43: =Results!B43-Results!L43 -> 1795699.988 | J43: =Results!C43-Results!M43 -> 0 | K43: =Results!D43-Results!N43 -> 0 | L43: =Results!E43-Results!O43 -> 0 | M43: =Results!F43-Results!P43 -> 0 | N43: =SUM(I43:M43)*DATA!C73 -> 1795699.988 | U43: =SUM(P43:T43)*DATA!C73 -> 0 | AB43: =SUM(W43:AA43)*DATA!C73 -> 0 | AI43: =SUM(AD43:AH43)*DATA!C73 -> 0 | BD43: =SUM(AY43:BC43)*DATA!C73 -> 0 | BK43: =SUM(BF43:BJ43)*DATA!C73 -> 0 | BR43: =SUM(BM43:BQ43)*DATA!C73 -> 0
A44: =Results!A44 -> 2070 | B44: =Results!B44-Results!G44 -> 1834710.143 | C44: =Results!C44-Results!H44 -> 0 | D44: =Results!D44-Results!I44 -> 0 | E44: =Results!E44-Results!J44 -> 0 | F44: =Results!F44-Results!K44 -> 0 | G44: =SUM(B44:F44)*DATA!C73 -> 1834710.143 | I44: =Results!B44-Results!L44 -> 1834710.143 | J44: =Results!C44-Results!M44 -> 0 | K44: =Results!D44-Results!N44 -> 0 | L44: =Results!E44-Results!O44 -> 0 | M44: =Results!F44-Results!P44 -> 0 | N44: =SUM(I44:M44)*DATA!C73 -> 1834710.143 | U44: =SUM(P44:T44)*DATA!C73 -> 0 | AB44: =SUM(W44:AA44)*DATA!C73 -> 0 | AI44: =SUM(AD44:AH44)*DATA!C73 -> 0 | BD44: =SUM(AY44:BC44)*DATA!C73 -> 0 | BK44: =SUM(BF44:BJ44)*DATA!C73 -> 0 | BR44: =SUM(BM44:BQ44)*DATA!C73 -> 0
A45: =Results!A45 -> 2071 | B45: =Results!B45-Results!G45 -> 1870851.105 | C45: =Results!C45-Results!H45 -> 0 | D45: =Results!D45-Results!I45 -> 0 | E45: =Results!E45-Results!J45 -> 0 | F45: =Results!F45-Results!K45 -> 0 | G45: =SUM(B45:F45)*DATA!C73 -> 1870851.105 | I45: =Results!B45-Results!L45 -> 1870851.105 | J45: =Results!C45-Results!M45 -> 0 | K45: =Results!D45-Results!N45 -> 0 | L45: =Results!E45-Results!O45 -> 0 | M45: =Results!F45-Results!P45 -> 0 | N45: =SUM(I45:M45)*DATA!C73 -> 1870851.105 | U45: =SUM(P45:T45)*DATA!C73 -> 0 | AB45: =SUM(W45:AA45)*DATA!C73 -> 0 | AI45: =SUM(AD45:AH45)*DATA!C73 -> 0 | BD45: =SUM(AY45:BC45)*DATA!C73 -> 0 | BK45: =SUM(BF45:BJ45)*DATA!C73 -> 0 | BR45: =SUM(BM45:BQ45)*DATA!C73 -> 0
A46: =Results!A46 -> 2072 | B46: =Results!B46-Results!G46 -> 1910859.33 | C46: =Results!C46-Results!H46 -> 0 | D46: =Results!D46-Results!I46 -> 0 | E46: =Results!E46-Results!J46 -> 0 | F46: =Results!F46-Results!K46 -> 0 | G46: =SUM(B46:F46)*DATA!C73 -> 1910859.33 | I46: =Results!B46-Results!L46 -> 1910859.33 | J46: =Results!C46-Results!M46 -> 0 | K46: =Results!D46-Results!N46 -> 0 | L46: =Results!E46-Results!O46 -> 0 | M46: =Results!F46-Results!P46 -> 0 | N46: =SUM(I46:M46)*DATA!C73 -> 1910859.33 | U46: =SUM(P46:T46)*DATA!C73 -> 0 | AB46: =SUM(W46:AA46)*DATA!C73 -> 0 | AI46: =SUM(AD46:AH46)*DATA!C73 -> 0 | BD46: =SUM(AY46:BC46)*DATA!C73 -> 0 | BK46: =SUM(BF46:BJ46)*DATA!C73 -> 0 | BR46: =SUM(BM46:BQ46)*DATA!C73 -> 0
A47: =Results!A47 -> 2073 | B47: =Results!B47-Results!G47 -> 1951453.469 | C47: =Results!C47-Results!H47 -> 0 | D47: =Results!D47-Results!I47 -> 0 | E47: =Results!E47-Results!J47 -> 0 | F47: =Results!F47-Results!K47 -> 0 | G47: =SUM(B47:F47)*DATA!C73 -> 1951453.469 | I47: =Results!B47-Results!L47 -> 1951453.469 | J47: =Results!C47-Results!M47 -> 0 | K47: =Results!D47-Results!N47 -> 0 | L47: =Results!E47-Results!O47 -> 0 | M47: =Results!F47-Results!P47 -> 0 | N47: =SUM(I47:M47)*DATA!C73 -> 1951453.469 | U47: =SUM(P47:T47)*DATA!C73 -> 0 | AB47: =SUM(W47:AA47)*DATA!C73 -> 0 | AI47: =SUM(AD47:AH47)*DATA!C73 -> 0 | BD47: =SUM(AY47:BC47)*DATA!C73 -> 0 | BK47: =SUM(BF47:BJ47)*DATA!C73 -> 0 | BR47: =SUM(BM47:BQ47)*DATA!C73 -> 0
A48: =Results!A48 -> 2074 | B48: =Results!B48-Results!G48 -> 1989040.393 | C48: =Results!C48-Results!H48 -> 0 | D48: =Results!D48-Results!I48 -> 0 | E48: =Results!E48-Results!J48 -> 0 | F48: =Results!F48-Results!K48 -> 0 | G48: =SUM(B48:F48)*DATA!C73 -> 1989040.393 | I48: =Results!B48-Results!L48 -> 1989040.393 | J48: =Results!C48-Results!M48 -> 0 | K48: =Results!D48-Results!N48 -> 0 | L48: =Results!E48-Results!O48 -> 0 | M48: =Results!F48-Results!P48 -> 0 | N48: =SUM(I48:M48)*DATA!C73 -> 1989040.393 | U48: =SUM(P48:T48)*DATA!C73 -> 0 | AB48: =SUM(W48:AA48)*DATA!C73 -> 0 | AI48: =SUM(AD48:AH48)*DATA!C73 -> 0 | BD48: =SUM(AY48:BC48)*DATA!C73 -> 0 | BK48: =SUM(BF48:BJ48)*DATA!C73 -> 0 | BR48: =SUM(BM48:BQ48)*DATA!C73 -> 0
A49: =Results!A49 -> 2075 | B49: =Results!B49-Results!G49 -> 2030692.067 | C49: =Results!C49-Results!H49 -> 0 | D49: =Results!D49-Results!I49 -> 0 | E49: =Results!E49-Results!J49 -> 0 | F49: =Results!F49-Results!K49 -> 0 | G49: =SUM(B49:F49)*DATA!C73 -> 2030692.067 | I49: =Results!B49-Results!L49 -> 2030692.067 | J49: =Results!C49-Results!M49 -> 0 | K49: =Results!D49-Results!N49 -> 0 | L49: =Results!E49-Results!O49 -> 0 | M49: =Results!F49-Results!P49 -> 0 | N49: =SUM(I49:M49)*DATA!C73 -> 2030692.067 | U49: =SUM(P49:T49)*DATA!C73 -> 0 | AB49: =SUM(W49:AA49)*DATA!C73 -> 0 | AI49: =SUM(AD49:AH49)*DATA!C73 -> 0 | BD49: =SUM(AY49:BC49)*DATA!C73 -> 0 | BK49: =SUM(BF49:BJ49)*DATA!C73 -> 0 | BR49: =SUM(BM49:BQ49)*DATA!C73 -> 0
A50: =Results!A50 -> 2076 | B50: =Results!B50-Results!G50 -> 2069233.96 | C50: =Results!C50-Results!H50 -> 0 | D50: =Results!D50-Results!I50 -> 0 | E50: =Results!E50-Results!J50 -> 0 | F50: =Results!F50-Results!K50 -> 0 | G50: =SUM(B50:F50)*DATA!C73 -> 2069233.96 | I50: =Results!B50-Results!L50 -> 2069233.96 | J50: =Results!C50-Results!M50 -> 0 | K50: =Results!D50-Results!N50 -> 0 | L50: =Results!E50-Results!O50 -> 0 | M50: =Results!F50-Results!P50 -> 0 | N50: =SUM(I50:M50)*DATA!C73 -> 2069233.96 | U50: =SUM(P50:T50)*DATA!C73 -> 0 | AB50: =SUM(W50:AA50)*DATA!C73 -> 0 | AI50: =SUM(AD50:AH50)*DATA!C73 -> 0 | BD50: =SUM(AY50:BC50)*DATA!C73 -> 0 | BK50: =SUM(BF50:BJ50)*DATA!C73 -> 0 | BR50: =SUM(BM50:BQ50)*DATA!C73 -> 0
A51: =Results!A51 -> 2077 | B51: =Results!B51-Results!G51 -> 2111949.763 | C51: =Results!C51-Results!H51 -> 0 | D51: =Results!D51-Results!I51 -> 0 | E51: =Results!E51-Results!J51 -> 0 | F51: =Results!F51-Results!K51 -> 0 | G51: =SUM(B51:F51)*DATA!C73 -> 2111949.763 | I51: =Results!B51-Results!L51 -> 2111949.763 | J51: =Results!C51-Results!M51 -> 0 | K51: =Results!D51-Results!N51 -> 0 | L51: =Results!E51-Results!O51 -> 0 | M51: =Results!F51-Results!P51 -> 0 | N51: =SUM(I51:M51)*DATA!C73 -> 2111949.763 | U51: =SUM(P51:T51)*DATA!C73 -> 0 | AB51: =SUM(W51:AA51)*DATA!C73 -> 0 | AI51: =SUM(AD51:AH51)*DATA!C73 -> 0 | BD51: =SUM(AY51:BC51)*DATA!C73 -> 0 | BK51: =SUM(BF51:BJ51)*DATA!C73 -> 0 | BR51: =SUM(BM51:BQ51)*DATA!C73 -> 0
A52: =Results!A52 -> 2078 | B52: =Results!B52-Results!G52 -> 2155225.707 | C52: =Results!C52-Results!H52 -> 0 | D52: =Results!D52-Results!I52 -> 0 | E52: =Results!E52-Results!J52 -> 0 | F52: =Results!F52-Results!K52 -> 0 | G52: =SUM(B52:F52)*DATA!C73 -> 2155225.707 | I52: =Results!B52-Results!L52 -> 2155225.707 | J52: =Results!C52-Results!M52 -> 0 | K52: =Results!D52-Results!N52 -> 0 | L52: =Results!E52-Results!O52 -> 0 | M52: =Results!F52-Results!P52 -> 0 | N52: =SUM(I52:M52)*DATA!C73 -> 2155225.707 | U52: =SUM(P52:T52)*DATA!C73 -> 0 | AB52: =SUM(W52:AA52)*DATA!C73 -> 0 | AI52: =SUM(AD52:AH52)*DATA!C73 -> 0 | BD52: =SUM(AY52:BC52)*DATA!C73 -> 0 | BK52: =SUM(BF52:BJ52)*DATA!C73 -> 0 | BR52: =SUM(BM52:BQ52)*DATA!C73 -> 0
A53: =Results!A53 -> 2079 | B53: =Results!B53-Results!G53 -> 2195234.01 | C53: =Results!C53-Results!H53 -> 0 | D53: =Results!D53-Results!I53 -> 0 | E53: =Results!E53-Results!J53 -> 0 | F53: =Results!F53-Results!K53 -> 0 | G53: =SUM(B53:F53)*DATA!C73 -> 2195234.01 | I53: =Results!B53-Results!L53 -> 2195234.01 | J53: =Results!C53-Results!M53 -> 0 | K53: =Results!D53-Results!N53 -> 0 | L53: =Results!E53-Results!O53 -> 0 | M53: =Results!F53-Results!P53 -> 0 | N53: =SUM(I53:M53)*DATA!C73 -> 2195234.01 | U53: =SUM(P53:T53)*DATA!C73 -> 0 | AB53: =SUM(W53:AA53)*DATA!C73 -> 0 | AI53: =SUM(AD53:AH53)*DATA!C73 -> 0 | BD53: =SUM(AY53:BC53)*DATA!C73 -> 0 | BK53: =SUM(BF53:BJ53)*DATA!C73 -> 0 | BR53: =SUM(BM53:BQ53)*DATA!C73 -> 0
A54: =Results!A54 -> 2080 | B54: =Results!B54-Results!G54 -> 2239620.005 | C54: =Results!C54-Results!H54 -> 0 | D54: =Results!D54-Results!I54 -> 0 | E54: =Results!E54-Results!J54 -> 0 | F54: =Results!F54-Results!K54 -> 0 | G54: =SUM(B54:F54)*DATA!C73 -> 2239620.005 | I54: =Results!B54-Results!L54 -> 2239620.005 | J54: =Results!C54-Results!M54 -> 0 | K54: =Results!D54-Results!N54 -> 0 | L54: =Results!E54-Results!O54 -> 0 | M54: =Results!F54-Results!P54 -> 0 | N54: =SUM(I54:M54)*DATA!C73 -> 2239620.005 | U54: =SUM(P54:T54)*DATA!C73 -> 0 | AB54: =SUM(W54:AA54)*DATA!C73 -> 0 | AI54: =SUM(AD54:AH54)*DATA!C73 -> 0 | BD54: =SUM(AY54:BC54)*DATA!C73 -> 0 | BK54: =SUM(BF54:BJ54)*DATA!C73 -> 0 | BR54: =SUM(BM54:BQ54)*DATA!C73 -> 0
A55: =Results!A55 -> 2081 | B55: =Results!B55-Results!G55 -> 2280623.182 | C55: =Results!C55-Results!H55 -> 0 | D55: =Results!D55-Results!I55 -> 0 | E55: =Results!E55-Results!J55 -> 0 | F55: =Results!F55-Results!K55 -> 0 | G55: =SUM(B55:F55)*DATA!C73 -> 2280623.182 | I55: =Results!B55-Results!L55 -> 2280623.182 | J55: =Results!C55-Results!M55 -> 0 | K55: =Results!D55-Results!N55 -> 0 | L55: =Results!E55-Results!O55 -> 0 | M55: =Results!F55-Results!P55 -> 0 | N55: =SUM(I55:M55)*DATA!C73 -> 2280623.182 | U55: =SUM(P55:T55)*DATA!C73 -> 0 | AB55: =SUM(W55:AA55)*DATA!C73 -> 0 | AI55: =SUM(AD55:AH55)*DATA!C73 -> 0 | BD55: =SUM(AY55:BC55)*DATA!C73 -> 0 | BK55: =SUM(BF55:BJ55)*DATA!C73 -> 0 | BR55: =SUM(BM55:BQ55)*DATA!C73 -> 0
A56: =Results!A56 -> 2082 | B56: =Results!B56-Results!G56 -> 2326154.61 | C56: =Results!C56-Results!H56 -> 0 | D56: =Results!D56-Results!I56 -> 0 | E56: =Results!E56-Results!J56 -> 0 | F56: =Results!F56-Results!K56 -> 0 | G56: =SUM(B56:F56)*DATA!C73 -> 2326154.61 | I56: =Results!B56-Results!L56 -> 2326154.61 | J56: =Results!C56-Results!M56 -> 0 | K56: =Results!D56-Results!N56 -> 0 | L56: =Results!E56-Results!O56 -> 0 | M56: =Results!F56-Results!P56 -> 0 | N56: =SUM(I56:M56)*DATA!C73 -> 2326154.61 | U56: =SUM(P56:T56)*DATA!C73 -> 0 | AB56: =SUM(W56:AA56)*DATA!C73 -> 0 | AI56: =SUM(AD56:AH56)*DATA!C73 -> 0 | BD56: =SUM(AY56:BC56)*DATA!C73 -> 0 | BK56: =SUM(BF56:BJ56)*DATA!C73 -> 0 | BR56: =SUM(BM56:BQ56)*DATA!C73 -> 0
A57: =Results!A57 -> 2083 | B57: =Results!B57-Results!G57 -> 2368209.542 | C57: =Results!C57-Results!H57 -> 0 | D57: =Results!D57-Results!I57 -> 0 | E57: =Results!E57-Results!J57 -> 0 | F57: =Results!F57-Results!K57 -> 0 | G57: =SUM(B57:F57)*DATA!C73 -> 2368209.542 | I57: =Results!B57-Results!L57 -> 2368209.542 | J57: =Results!C57-Results!M57 -> 0 | K57: =Results!D57-Results!N57 -> 0 | L57: =Results!E57-Results!O57 -> 0 | M57: =Results!F57-Results!P57 -> 0 | N57: =SUM(I57:M57)*DATA!C73 -> 2368209.542 | U57: =SUM(P57:T57)*DATA!C73 -> 0 | AB57: =SUM(W57:AA57)*DATA!C73 -> 0 | AI57: =SUM(AD57:AH57)*DATA!C73 -> 0 | BD57: =SUM(AY57:BC57)*DATA!C73 -> 0 | BK57: =SUM(BF57:BJ57)*DATA!C73 -> 0 | BR57: =SUM(BM57:BQ57)*DATA!C73 -> 0
A58: =Results!A58 -> 2084 | B58: =Results!B58-Results!G58 -> 2414946.785 | C58: =Results!C58-Results!H58 -> 0 | D58: =Results!D58-Results!I58 -> 0 | E58: =Results!E58-Results!J58 -> 0 | F58: =Results!F58-Results!K58 -> 0 | G58: =SUM(B58:F58)*DATA!C73 -> 2414946.785 | I58: =Results!B58-Results!L58 -> 2414946.785 | J58: =Results!C58-Results!M58 -> 0 | K58: =Results!D58-Results!N58 -> 0 | L58: =Results!E58-Results!O58 -> 0 | M58: =Results!F58-Results!P58 -> 0 | N58: =SUM(I58:M58)*DATA!C73 -> 2414946.785 | U58: =SUM(P58:T58)*DATA!C73 -> 0 | AB58: =SUM(W58:AA58)*DATA!C73 -> 0 | AI58: =SUM(AD58:AH58)*DATA!C73 -> 0 | BD58: =SUM(AY58:BC58)*DATA!C73 -> 0 | BK58: =SUM(BF58:BJ58)*DATA!C73 -> 0 | BR58: =SUM(BM58:BQ58)*DATA!C73 -> 0
A59: =Results!A59 -> 2085 | B59: =Results!B59-Results!G59 -> 2458100.405 | C59: =Results!C59-Results!H59 -> 0 | D59: =Results!D59-Results!I59 -> 0 | E59: =Results!E59-Results!J59 -> 0 | F59: =Results!F59-Results!K59 -> 0 | G59: =SUM(B59:F59)*DATA!C73 -> 2458100.405 | I59: =Results!B59-Results!L59 -> 2458100.405 | J59: =Results!C59-Results!M59 -> 0 | K59: =Results!D59-Results!N59 -> 0 | L59: =Results!E59-Results!O59 -> 0 | M59: =Results!F59-Results!P59 -> 0 | N59: =SUM(I59:M59)*DATA!C73 -> 2458100.405 | U59: =SUM(P59:T59)*DATA!C73 -> 0 | AB59: =SUM(W59:AA59)*DATA!C73 -> 0 | AI59: =SUM(AD59:AH59)*DATA!C73 -> 0 | BD59: =SUM(AY59:BC59)*DATA!C73 -> 0 | BK59: =SUM(BF59:BJ59)*DATA!C73 -> 0 | BR59: =SUM(BM59:BQ59)*DATA!C73 -> 0
A60: =Results!A60 -> 2086 | B60: =Results!B60-Results!G60 -> 2501774.565 | C60: =Results!C60-Results!H60 -> 0 | D60: =Results!D60-Results!I60 -> 0 | E60: =Results!E60-Results!J60 -> 0 | F60: =Results!F60-Results!K60 -> 0 | G60: =SUM(B60:F60)*DATA!C73 -> 2501774.565 | I60: =Results!B60-Results!L60 -> 2501774.565 | J60: =Results!C60-Results!M60 -> 0 | K60: =Results!D60-Results!N60 -> 0 | L60: =Results!E60-Results!O60 -> 0 | M60: =Results!F60-Results!P60 -> 0 | N60: =SUM(I60:M60)*DATA!C73 -> 2501774.565 | U60: =SUM(P60:T60)*DATA!C73 -> 0 | AB60: =SUM(W60:AA60)*DATA!C73 -> 0 | AI60: =SUM(AD60:AH60)*DATA!C73 -> 0 | BD60: =SUM(AY60:BC60)*DATA!C73 -> 0 | BK60: =SUM(BF60:BJ60)*DATA!C73 -> 0 | BR60: =SUM(BM60:BQ60)*DATA!C73 -> 0
A61: =Results!A61 -> 2087 | B61: =Results!B61-Results!G61 -> 2550355.93 | C61: =Results!C61-Results!H61 -> 0 | D61: =Results!D61-Results!I61 -> 0 | E61: =Results!E61-Results!J61 -> 0 | F61: =Results!F61-Results!K61 -> 0 | G61: =SUM(B61:F61)*DATA!C73 -> 2550355.93 | I61: =Results!B61-Results!L61 -> 2550355.93 | J61: =Results!C61-Results!M61 -> 0 | K61: =Results!D61-Results!N61 -> 0 | L61: =Results!E61-Results!O61 -> 0 | M61: =Results!F61-Results!P61 -> 0 | N61: =SUM(I61:M61)*DATA!C73 -> 2550355.93 | U61: =SUM(P61:T61)*DATA!C73 -> 0 | AB61: =SUM(W61:AA61)*DATA!C73 -> 0 | AI61: =SUM(AD61:AH61)*DATA!C73 -> 0 | BD61: =SUM(AY61:BC61)*DATA!C73 -> 0 | BK61: =SUM(BF61:BJ61)*DATA!C73 -> 0 | BR61: =SUM(BM61:BQ61)*DATA!C73 -> 0
A62: =Results!A62 -> 2088 | B62: =Results!B62-Results!G62 -> 2595128.021 | C62: =Results!C62-Results!H62 -> 0 | D62: =Results!D62-Results!I62 -> 0 | E62: =Results!E62-Results!J62 -> 0 | F62: =Results!F62-Results!K62 -> 0 | G62: =SUM(B62:F62)*DATA!C73 -> 2595128.021 | I62: =Results!B62-Results!L62 -> 2595128.021 | J62: =Results!C62-Results!M62 -> 0 | K62: =Results!D62-Results!N62 -> 0 | L62: =Results!E62-Results!O62 -> 0 | M62: =Results!F62-Results!P62 -> 0 | N62: =SUM(I62:M62)*DATA!C73 -> 2595128.021 | U62: =SUM(P62:T62)*DATA!C73 -> 0 | AB62: =SUM(W62:AA62)*DATA!C73 -> 0 | AI62: =SUM(AD62:AH62)*DATA!C73 -> 0 | BD62: =SUM(AY62:BC62)*DATA!C73 -> 0 | BK62: =SUM(BF62:BJ62)*DATA!C73 -> 0 | BR62: =SUM(BM62:BQ62)*DATA!C73 -> 0
A63: =Results!A63 -> 2089 | B63: =Results!B63-Results!G63 -> 2644973.186 | C63: =Results!C63-Results!H63 -> 0 | D63: =Results!D63-Results!I63 -> 0 | E63: =Results!E63-Results!J63 -> 0 | F63: =Results!F63-Results!K63 -> 0 | G63: =SUM(B63:F63)*DATA!C73 -> 2644973.186 | I63: =Results!B63-Results!L63 -> 2644973.186 | J63: =Results!C63-Results!M63 -> 0 | K63: =Results!D63-Results!N63 -> 0 | L63: =Results!E63-Results!O63 -> 0 | M63: =Results!F63-Results!P63 -> 0 | N63: =SUM(I63:M63)*DATA!C73 -> 2644973.186 | U63: =SUM(P63:T63)*DATA!C73 -> 0 | AB63: =SUM(W63:AA63)*DATA!C73 -> 0 | AI63: =SUM(AD63:AH63)*DATA!C73 -> 0 | BD63: =SUM(AY63:BC63)*DATA!C73 -> 0 | BK63: =SUM(BF63:BJ63)*DATA!C73 -> 0 | BR63: =SUM(BM63:BQ63)*DATA!C73 -> 0

Sheet Results_0
C2: Annual
C3: Probability Of Load Shedding | D3: Total Load Shed (kWh) | E3: Lost Energy (kWh) | F3: Probability of Curtailment | G3: Total Energy Curtailed (MWh) | H3: Lost Generation (MWh) | I3: =IFERROR("VCR at $" &ROUND(Input!M$55,2)& "/kWh","VCR") -> VCR at $63.4/kWh | J3: CECV | K3: Emergency Replacement Cost ($) | L3: Safety Risk ($) | M3: Environmental Risk ($) | N3: Total Risk ($)
B4: =Input!Q15 -> 2029 | C4: =OFFSET('RISK QUANTN - RELIABILITY solar'!$E$79,0,ROW()-ROW($C$4)) -> 0 | D4: =IFERROR(OFFSET('RISK QUANTN - RELIABILITY solar'!$E$78,0,ROW()-ROW($C$4)),0) -> 0 | E4: =C4*D4 -> 0 | F4: =OFFSET('RISK QUANTN - RELIABILITY expor'!$E$89,0,ROW()-ROW($C$4)) -> 0 | G4: =IFERROR(OFFSET('RISK QUANTN - RELIABILITY expor'!$E$88,0,ROW()-ROW($C$4)),0) -> 0 | H4: =F4*G4 -> 0 | I4: =IFERROR($E4*Input!M$55,0) -> 0 | J4: =OFFSET('RISK QUANTN - RELIABILITY expor'!$E$97,0,ROW()-ROW($C$4)) -> 0 | K4: =OFFSET('RISK QUANTN - EMERGENCY REPLACE'!$D$92,0,ROW()-ROW($C$4)) -> 0 | L4: =OFFSET('RISK QUANTN - SAFETY'!$D$90,0,ROW()-ROW($C$4)) -> 0 | M4: =SUM(OFFSET('RISK QUANTN - ENVIRONMENTAL'!$D$90,0,ROW()-ROW($C$4)),OFFSET('RISK QUANTN - ENVIRONMENTAL'!$D$130,0,ROW()-ROW($C$4))) -> 0 | N4: =SUM(I4:M4) -> 0
B5: =Input!Q16 -> 2030 | C5: =OFFSET('RISK QUANTN - RELIABILITY solar'!$E$79,0,ROW()-ROW($C$4)) -> 0 | D5: =IFERROR(OFFSET('RISK QUANTN - RELIABILITY solar'!$E$78,0,ROW()-ROW($C$4)),0) -> 0 | E5: =C5*D5 -> 0 | F5: =OFFSET('RISK QUANTN - RELIABILITY expor'!$E$89,0,ROW()-ROW($C$4)) -> 0 | G5: =IFERROR(OFFSET('RISK QUANTN - RELIABILITY expor'!$E$88,0,ROW()-ROW($C$4)),0) -> 0 | H5: =F5*G5 -> 0 | I5: =IFERROR($E5*Input!M$55,0) -> 0 | J5: =OFFSET('RISK QUANTN - RELIABILITY expor'!$E$97,0,ROW()-ROW($C$4)) -> 0 | K5: =OFFSET('RISK QUANTN - EMERGENCY REPLACE'!$D$92,0,ROW()-ROW($C$4)) -> 0 | L5: =OFFSET('RISK QUANTN - SAFETY'!$D$90,0,ROW()-ROW($C$4)) -> 0 | M5: =SUM(OFFSET('RISK QUANTN - ENVIRONMENTAL'!$D$90,0,ROW()-ROW($C$4)),OFFSET('RISK QUANTN - ENVIRONMENTAL'!$D$130,0,ROW()-ROW($C$4))) -> 0 | N5: =SUM(I5:M5) -> 0
B6: =Input!Q17 -> 2031 | C6: =OFFSET('RISK QUANTN - RELIABILITY solar'!$E$79,0,ROW()-ROW($C$4)) -> 0 | D6: =IFERROR(OFFSET('RISK QUANTN - RELIABILITY solar'!$E$78,0,ROW()-ROW($C$4)),0) -> 0 | E6: 0 | F6: =OFFSET('RISK QUANTN - RELIABILITY expor'!$E$89,0,ROW()-ROW($C$4)) -> 0 | G6: =IFERROR(OFFSET('RISK QUANTN - RELIABILITY expor'!$E$88,0,ROW()-ROW($C$4)),0) -> 0 | H6: 0 | I6: =IFERROR($E6*Input!M$55,0) -> 0 | J6: =OFFSET('RISK QUANTN - RELIABILITY expor'!$E$97,0,ROW()-ROW($C$4)) -> 0 | K6: =OFFSET('RISK QUANTN - EMERGENCY REPLACE'!$D$92,0,ROW()-ROW($C$4)) -> 0 | L6: =OFFSET('RISK QUANTN - SAFETY'!$D$90,0,ROW()-ROW($C$4)) -> 0 | M6: =SUM(OFFSET('RISK QUANTN - ENVIRONMENTAL'!$D$90,0,ROW()-ROW($C$4)),OFFSET('RISK QUANTN - ENVIRONMENTAL'!$D$130,0,ROW()-ROW($C$4))) -> 0 | N6: 0
B7: =Input!Q18 -> 2032 | C7: =OFFSET('RISK QUANTN - RELIABILITY solar'!$E$79,0,ROW()-ROW($C$4)) -> 0 | D7: =IFERROR(OFFSET('RISK QUANTN - RELIABILITY solar'!$E$78,0,ROW()-ROW($C$4)),0) -> 0 | E7: 0 | F7: =OFFSET('RISK QUANTN - RELIABILITY expor'!$E$89,0,ROW()-ROW($C$4)) -> 0 | G7: =IFERROR(OFFSET('RISK QUANTN - RELIABILITY expor'!$E$88,0,ROW()-ROW($C$4)),0) -> 0 | H7: 0 | I7: =IFERROR($E7*Input!M$55,0) -> 0 | J7: =OFFSET('RISK QUANTN - RELIABILITY expor'!$E$97,0,ROW()-ROW($C$4)) -> 0 | K7: =OFFSET('RISK QUANTN - EMERGENCY REPLACE'!$D$92,0,ROW()-ROW($C$4)) -> 0 | L7: =OFFSET('RISK QUANTN - SAFETY'!$D$90,0,ROW()-ROW($C$4)) -> 0 | M7: =SUM(OFFSET('RISK QUANTN - ENVIRONMENTAL'!$D$90,0,ROW()-ROW($C$4)),OFFSET('RISK QUANTN - ENVIRONMENTAL'!$D$130,0,ROW()-ROW($C$4))) -> 0 | N7: 0
B8: =Input!Q19 -> 2033 | C8: =OFFSET('RISK QUANTN - RELIABILITY solar'!$E$79,0,ROW()-ROW($C$4)) -> 0 | D8: =IFERROR(OFFSET('RISK QUANTN - RELIABILITY solar'!$E$78,0,ROW()-ROW($C$4)),0) -> 0 | E8: =C8*D8 -> 0 | F8: =OFFSET('RISK QUANTN - RELIABILITY expor'!$E$89,0,ROW()-ROW($C$4)) -> 0 | G8: =IFERROR(OFFSET('RISK QUANTN - RELIABILITY expor'!$E$88,0,ROW()-ROW($C$4)),0) -> 0 | H8: 0 | I8: =IFERROR($E8*Input!M$55,0) -> 0 | J8: =OFFSET('RISK QUANTN - RELIABILITY expor'!$E$97,0,ROW()-ROW($C$4)) -> 0 | K8: =OFFSET('RISK QUANTN - EMERGENCY REPLACE'!$D$92,0,ROW()-ROW($C$4)) -> 0 | L8: =OFFSET('RISK QUANTN - SAFETY'!$D$90,0,ROW()-ROW($C$4)) -> 0 | M8: =SUM(OFFSET('RISK QUANTN - ENVIRONMENTAL'!$D$90,0,ROW()-ROW($C$4)),OFFSET('RISK QUANTN - ENVIRONMENTAL'!$D$130,0,ROW()-ROW($C$4))) -> 0 | N8: 0
B9: =Input!Q20 -> 2034 | C9: =OFFSET('RISK QUANTN - RELIABILITY solar'!$E$79,0,ROW()-ROW($C$4)) -> 0 | D9: =IFERROR(OFFSET('RISK QUANTN - RELIABILITY solar'!$E$78,0,ROW()-ROW($C$4)),0) -> 0 | E9: 0 | F9: =OFFSET('RISK QUANTN - RELIABILITY expor'!$E$89,0,ROW()-ROW($C$4)) -> 0 | G9: =IFERROR(OFFSET('RISK QUANTN - RELIABILITY expor'!$E$88,0,ROW()-ROW($C$4)),0) -> 0 | H9: 0 | I9: =IFERROR($E9*Input!M$55,0) -> 0 | J9: =OFFSET('RISK QUANTN - RELIABILITY expor'!$E$97,0,ROW()-ROW($C$4)) -> 0 | K9: =OFFSET('RISK QUANTN - EMERGENCY REPLACE'!$D$92,0,ROW()-ROW($C$4)) -> 0 | L9: =OFFSET('RISK QUANTN - SAFETY'!$D$90,0,ROW()-ROW($C$4)) -> 0 | M9: =SUM(OFFSET('RISK QUANTN - ENVIRONMENTAL'!$D$90,0,ROW()-ROW($C$4)),OFFSET('RISK QUANTN - ENVIRONMENTAL'!$D$130,0,ROW()-ROW($C$4))) -> 0 | N9: 0
B10: =Input!Q21 -> 2035 | C10: =OFFSET('RISK QUANTN - RELIABILITY solar'!$E$79,0,ROW()-ROW($C$4)) -> 0 | D10: =IFERROR(OFFSET('RISK QUANTN - RELIABILITY solar'!$E$78,0,ROW()-ROW($C$4)),0) -> 0 | E10: 0 | F10: =OFFSET('RISK QUANTN - RELIABILITY expor'!$E$89,0,ROW()-ROW($C$4)) -> 0 | G10: =IFERROR(OFFSET('RISK QUANTN - RELIABILITY expor'!$E$88,0,ROW()-ROW($C$4)),0) -> 0 | H10: 0 | I10: =IFERROR($E10*Input!M$55,0) -> 0 | J10: =OFFSET('RISK QUANTN - RELIABILITY expor'!$E$97,0,ROW()-ROW($C$4)) -> 0 | K10: =OFFSET('RISK QUANTN - EMERGENCY REPLACE'!$D$92,0,ROW()-ROW($C$4)) -> 0 | L10: =OFFSET('RISK QUANTN - SAFETY'!$D$90,0,ROW()-ROW($C$4)) -> 0 | M10: =SUM(OFFSET('RISK QUANTN - ENVIRONMENTAL'!$D$90,0,ROW()-ROW($C$4)),OFFSET('RISK QUANTN - ENVIRONMENTAL'!$D$130,0,ROW()-ROW($C$4))) -> 0 | N10: 0
B11: =Input!Q22 -> 2036 | C11: =OFFSET('RISK QUANTN - RELIABILITY solar'!$E$79,0,ROW()-ROW($C$4)) -> 0 | D11: =IFERROR(OFFSET('RISK QUANTN - RELIABILITY solar'!$E$78,0,ROW()-ROW($C$4)),0) -> 0 | E11: 0 | F11: =OFFSET('RISK QUANTN - RELIABILITY expor'!$E$89,0,ROW()-ROW($C$4)) -> 0 | G11: =IFERROR(OFFSET('RISK QUANTN - RELIABILITY expor'!$E$88,0,ROW()-ROW($C$4)),0) -> 0 | H11: 0 | I11: =IFERROR($E11*Input!M$55,0) -> 0 | J11: =OFFSET('RISK QUANTN - RELIABILITY expor'!$E$97,0,ROW()-ROW($C$4)) -> 0 | K11: =OFFSET('RISK QUANTN - EMERGENCY REPLACE'!$D$92,0,ROW()-ROW($C$4)) -> 0 | L11: =OFFSET('RISK QUANTN - SAFETY'!$D$90,0,ROW()-ROW($C$4)) -> 0 | M11: =SUM(OFFSET('RISK QUANTN - ENVIRONMENTAL'!$D$90,0,ROW()-ROW($C$4)),OFFSET('RISK QUANTN - ENVIRONMENTAL'!$D$130,0,ROW()-ROW($C$4))) -> 0 | N11: 0
B12: =Input!Q23 -> 2037 | C12: =OFFSET('RISK QUANTN - RELIABILITY solar'!$E$79,0,ROW()-ROW($C$4)) -> 0 | D12: =IFERROR(OFFSET('RISK QUANTN - RELIABILITY solar'!$E$78,0,ROW()-ROW($C$4)),0) -> 0 | E12: 0 | F12: =OFFSET('RISK QUANTN - RELIABILITY expor'!$E$89,0,ROW()-ROW($C$4)) -> 0 | G12: =IFERROR(OFFSET('RISK QUANTN - RELIABILITY expor'!$E$88,0,ROW()-ROW($C$4)),0) -> 0 | H12: 0 | I12: =IFERROR($E12*Input!M$55,0) -> 0 | J12: =OFFSET('RISK QUANTN - RELIABILITY expor'!$E$97,0,ROW()-ROW($C$4)) -> 0 | K12: =OFFSET('RISK QUANTN - EMERGENCY REPLACE'!$D$92,0,ROW()-ROW($C$4)) -> 0 | L12: =OFFSET('RISK QUANTN - SAFETY'!$D$90,0,ROW()-ROW($C$4)) -> 0 | M12: =SUM(OFFSET('RISK QUANTN - ENVIRONMENTAL'!$D$90,0,ROW()-ROW($C$4)),OFFSET('RISK QUANTN - ENVIRONMENTAL'!$D$130,0,ROW()-ROW($C$4))) -> 0 | N12: 0
B13: =Input!Q24 -> 2038 | C13: =OFFSET('RISK QUANTN - RELIABILITY solar'!$E$79,0,ROW()-ROW($C$4)) -> 0 | D13: =IFERROR(OFFSET('RISK QUANTN - RELIABILITY solar'!$E$78,0,ROW()-ROW($C$4)),0) -> 0 | E13: 0 | F13: =OFFSET('RISK QUANTN - RELIABILITY expor'!$E$89,0,ROW()-ROW($C$4)) -> 0 | G13: =IFERROR(OFFSET('RISK QUANTN - RELIABILITY expor'!$E$88,0,ROW()-ROW($C$4)),0) -> 0 | H13: 0 | I13: =IFERROR($E13*Input!M$55,0) -> 0 | J13: =OFFSET('RISK QUANTN - RELIABILITY expor'!$E$97,0,ROW()-ROW($C$4)) -> 0 | K13: =OFFSET('RISK QUANTN - EMERGENCY REPLACE'!$D$92,0,ROW()-ROW($C$4)) -> 0 | L13: =OFFSET('RISK QUANTN - SAFETY'!$D$90,0,ROW()-ROW($C$4)) -> 0 | M13: =SUM(OFFSET('RISK QUANTN - ENVIRONMENTAL'!$D$90,0,ROW()-ROW($C$4)),OFFSET('RISK QUANTN - ENVIRONMENTAL'!$D$130,0,ROW()-ROW($C$4))) -> 0 | N13: 0
B14: =Input!Q25 -> 2039 | C14: =OFFSET('RISK QUANTN - RELIABILITY solar'!$E$79,0,ROW()-ROW($C$4)) -> 0 | D14: =IFERROR(OFFSET('RISK QUANTN - RELIABILITY solar'!$E$78,0,ROW()-ROW($C$4)),0) -> 0 | E14: 0 | F14: =OFFSET('RISK QUANTN - RELIABILITY expor'!$E$89,0,ROW()-ROW($C$4)) -> 0 | G14: =IFERROR(OFFSET('RISK QUANTN - RELIABILITY expor'!$E$88,0,ROW()-ROW($C$4)),0) -> 0 | H14: 0 | I14: =IFERROR($E14*Input!M$55,0) -> 0 | J14: =OFFSET('RISK QUANTN - RELIABILITY expor'!$E$97,0,ROW()-ROW($C$4)) -> 0 | K14: =OFFSET('RISK QUANTN - EMERGENCY REPLACE'!$D$92,0,ROW()-ROW($C$4)) -> 0 | L14: =OFFSET('RISK QUANTN - SAFETY'!$D$90,0,ROW()-ROW($C$4)) -> 0 | M14: =SUM(OFFSET('RISK QUANTN - ENVIRONMENTAL'!$D$90,0,ROW()-ROW($C$4)),OFFSET('RISK QUANTN - ENVIRONMENTAL'!$D$130,0,ROW()-ROW($C$4))) -> 0 | N14: 0
B15: =Input!Q26 -> 2040 | C15: =OFFSET('RISK QUANTN - RELIABILITY solar'!$E$79,0,ROW()-ROW($C$4)) -> 0 | D15: =IFERROR(OFFSET('RISK QUANTN - RELIABILITY solar'!$E$78,0,ROW()-ROW($C$4)),0) -> 0 | E15: 0 | F15: =OFFSET('RISK QUANTN - RELIABILITY expor'!$E$89,0,ROW()-ROW($C$4)) -> 0 | G15: =IFERROR(OFFSET('RISK QUANTN - RELIABILITY expor'!$E$88,0,ROW()-ROW($C$4)),0) -> 0 | H15: 0 | I15: =IFERROR($E15*Input!M$55,0) -> 0 | J15: =OFFSET('RISK QUANTN - RELIABILITY expor'!$E$97,0,ROW()-ROW($C$4)) -> 0 | K15: =OFFSET('RISK QUANTN - EMERGENCY REPLACE'!$D$92,0,ROW()-ROW($C$4)) -> 0 | L15: =OFFSET('RISK QUANTN - SAFETY'!$D$90,0,ROW()-ROW($C$4)) -> 0 | M15: =SUM(OFFSET('RISK QUANTN - ENVIRONMENTAL'!$D$90,0,ROW()-ROW($C$4)),OFFSET('RISK QUANTN - ENVIRONMENTAL'!$D$130,0,ROW()-ROW($C$4))) -> 0 | N15: 0
B16: =Input!Q27 -> 2041 | C16: =OFFSET('RISK QUANTN - RELIABILITY solar'!$E$79,0,ROW()-ROW($C$4)) -> 0 | D16: =IFERROR(OFFSET('RISK QUANTN - RELIABILITY solar'!$E$78,0,ROW()-ROW($C$4)),0) -> 0 | E16: 0 | F16: =OFFSET('RISK QUANTN - RELIABILITY expor'!$E$89,0,ROW()-ROW($C$4)) -> 0 | G16: =IFERROR(OFFSET('RISK QUANTN - RELIABILITY expor'!$E$88,0,ROW()-ROW($C$4)),0) -> 0 | H16: 0 | I16: =IFERROR($E16*Input!M$55,0) -> 0 | J16: =OFFSET('RISK QUANTN - RELIABILITY expor'!$E$97,0,ROW()-ROW($C$4)) -> 0 | K16: =OFFSET('RISK QUANTN - EMERGENCY REPLACE'!$D$92,0,ROW()-ROW($C$4)) -> 0 | L16: =OFFSET('RISK QUANTN - SAFETY'!$D$90,0,ROW()-ROW($C$4)) -> 0 | M16: =SUM(OFFSET('RISK QUANTN - ENVIRONMENTAL'!$D$90,0,ROW()-ROW($C$4)),OFFSET('RISK QUANTN - ENVIRONMENTAL'!$D$130,0,ROW()-ROW($C$4))) -> 0 | N16: 0
B17: =Input!Q28 -> 2042 | C17: =OFFSET('RISK QUANTN - RELIABILITY solar'!$E$79,0,ROW()-ROW($C$4)) -> 0 | D17: =IFERROR(OFFSET('RISK QUANTN - RELIABILITY solar'!$E$78,0,ROW()-ROW($C$4)),0) -> 0 | E17: 0 | F17: =OFFSET('RISK QUANTN - RELIABILITY expor'!$E$89,0,ROW()-ROW($C$4)) -> 0 | G17: =IFERROR(OFFSET('RISK QUANTN - RELIABILITY expor'!$E$88,0,ROW()-ROW($C$4)),0) -> 0 | H17: 0 | I17: =IFERROR($E17*Input!M$55,0) -> 0 | J17: =OFFSET('RISK QUANTN - RELIABILITY expor'!$E$97,0,ROW()-ROW($C$4)) -> 0 | K17: =OFFSET('RISK QUANTN - EMERGENCY REPLACE'!$D$92,0,ROW()-ROW($C$4)) -> 0 | L17: =OFFSET('RISK QUANTN - SAFETY'!$D$90,0,ROW()-ROW($C$4)) -> 0 | M17: =SUM(OFFSET('RISK QUANTN - ENVIRONMENTAL'!$D$90,0,ROW()-ROW($C$4)),OFFSET('RISK QUANTN - ENVIRONMENTAL'!$D$130,0,ROW()-ROW($C$4))) -> 0 | N17: 0
B18: =Input!Q29 -> 2043 | C18: =OFFSET('RISK QUANTN - RELIABILITY solar'!$E$79,0,ROW()-ROW($C$4)) -> 0 | D18: =IFERROR(OFFSET('RISK QUANTN - RELIABILITY solar'!$E$78,0,ROW()-ROW($C$4)),0) -> 0 | E18: 0 | F18: =OFFSET('RISK QUANTN - RELIABILITY expor'!$E$89,0,ROW()-ROW($C$4)) -> 0 | G18: =IFERROR(OFFSET('RISK QUANTN - RELIABILITY expor'!$E$88,0,ROW()-ROW($C$4)),0) -> 0 | H18: 0 | I18: =IFERROR($E18*Input!M$55,0) -> 0 | J18: =OFFSET('RISK QUANTN - RELIABILITY expor'!$E$97,0,ROW()-ROW($C$4)) -> 0 | K18: =OFFSET('RISK QUANTN - EMERGENCY REPLACE'!$D$92,0,ROW()-ROW($C$4)) -> 0 | L18: =OFFSET('RISK QUANTN - SAFETY'!$D$90,0,ROW()-ROW($C$4)) -> 0 | M18: =SUM(OFFSET('RISK QUANTN - ENVIRONMENTAL'!$D$90,0,ROW()-ROW($C$4)),OFFSET('RISK QUANTN - ENVIRONMENTAL'!$D$130,0,ROW()-ROW($C$4))) -> 0 | N18: 0
B19: =Input!Q30 -> 2044 | C19: =OFFSET('RISK QUANTN - RELIABILITY solar'!$E$79,0,ROW()-ROW($C$4)) -> 0 | D19: =IFERROR(OFFSET('RISK QUANTN - RELIABILITY solar'!$E$78,0,ROW()-ROW($C$4)),0) -> 0 | E19: 0 | F19: =OFFSET('RISK QUANTN - RELIABILITY expor'!$E$89,0,ROW()-ROW($C$4)) -> 0 | G19: =IFERROR(OFFSET('RISK QUANTN - RELIABILITY expor'!$E$88,0,ROW()-ROW($C$4)),0) -> 0 | H19: 0 | I19: =IFERROR($E19*Input!M$55,0) -> 0 | J19: =OFFSET('RISK QUANTN - RELIABILITY expor'!$E$97,0,ROW()-ROW($C$4)) -> 0 | K19: =OFFSET('RISK QUANTN - EMERGENCY REPLACE'!$D$92,0,ROW()-ROW($C$4)) -> 0 | L19: =OFFSET('RISK QUANTN - SAFETY'!$D$90,0,ROW()-ROW($C$4)) -> 0 | M19: =SUM(OFFSET('RISK QUANTN - ENVIRONMENTAL'!$D$90,0,ROW()-ROW($C$4)),OFFSET('RISK QUANTN - ENVIRONMENTAL'!$D$130,0,ROW()-ROW($C$4))) -> 0 | N19: 0
B20: =Input!Q31 -> 2045 | C20: =OFFSET('RISK QUANTN - RELIABILITY solar'!$E$79,0,ROW()-ROW($C$4)) -> 0 | D20: =IFERROR(OFFSET('RISK QUANTN - RELIABILITY solar'!$E$78,0,ROW()-ROW($C$4)),0) -> 0 | E20: 0 | F20: =OFFSET('RISK QUANTN - RELIABILITY expor'!$E$89,0,ROW()-ROW($C$4)) -> 0 | G20: =IFERROR(OFFSET('RISK QUANTN - RELIABILITY expor'!$E$88,0,ROW()-ROW($C$4)),0) -> 0 | H20: 0 | I20: =IFERROR($E20*Input!M$55,0) -> 0 | J20: =OFFSET('RISK QUANTN - RELIABILITY expor'!$E$97,0,ROW()-ROW($C$4)) -> 0 | K20: =OFFSET('RISK QUANTN - EMERGENCY REPLACE'!$D$92,0,ROW()-ROW($C$4)) -> 0 | L20: =OFFSET('RISK QUANTN - SAFETY'!$D$90,0,ROW()-ROW($C$4)) -> 0 | M20: =SUM(OFFSET('RISK QUANTN - ENVIRONMENTAL'!$D$90,0,ROW()-ROW($C$4)),OFFSET('RISK QUANTN - ENVIRONMENTAL'!$D$130,0,ROW()-ROW($C$4))) -> 0 | N20: 0
B21: =Input!Q32 -> 2046 | C21: =OFFSET('RISK QUANTN - RELIABILITY solar'!$E$79,0,ROW()-ROW($C$4)) -> 0 | D21: =IFERROR(OFFSET('RISK QUANTN - RELIABILITY solar'!$E$78,0,ROW()-ROW($C$4)),0) -> 0 | E21: 0 | F21: =OFFSET('RISK QUANTN - RELIABILITY expor'!$E$89,0,ROW()-ROW($C$4)) -> 0 | G21: =IFERROR(OFFSET('RISK QUANTN - RELIABILITY expor'!$E$88,0,ROW()-ROW($C$4)),0) -> 0 | H21: 0 | I21: =IFERROR($E21*Input!M$55,0) -> 0 | J21: =OFFSET('RISK QUANTN - RELIABILITY expor'!$E$97,0,ROW()-ROW($C$4)) -> 0 | K21: =OFFSET('RISK QUANTN - EMERGENCY REPLACE'!$D$92,0,ROW()-ROW($C$4)) -> 0 | L21: =OFFSET('RISK QUANTN - SAFETY'!$D$90,0,ROW()-ROW($C$4)) -> 0 | M21: =SUM(OFFSET('RISK QUANTN - ENVIRONMENTAL'!$D$90,0,ROW()-ROW($C$4)),OFFSET('RISK QUANTN - ENVIRONMENTAL'!$D$130,0,ROW()-ROW($C$4))) -> 0 | N21: 0
B22: =Input!Q33 -> 2047 | C22: =OFFSET('RISK QUANTN - RELIABILITY solar'!$E$79,0,ROW()-ROW($C$4)) -> 0 | D22: =IFERROR(OFFSET('RISK QUANTN - RELIABILITY solar'!$E$78,0,ROW()-ROW($C$4)),0) -> 0 | E22: 0 | F22: =OFFSET('RISK QUANTN - RELIABILITY expor'!$E$89,0,ROW()-ROW($C$4)) -> 0 | G22: =IFERROR(OFFSET('RISK QUANTN - RELIABILITY expor'!$E$88,0,ROW()-ROW($C$4)),0) -> 0 | H22: 0 | I22: =IFERROR($E22*Input!M$55,0) -> 0 | J22: =OFFSET('RISK QUANTN - RELIABILITY expor'!$E$97,0,ROW()-ROW($C$4)) -> 0 | K22: =OFFSET('RISK QUANTN - EMERGENCY REPLACE'!$D$92,0,ROW()-ROW($C$4)) -> 0 | L22: =OFFSET('RISK QUANTN - SAFETY'!$D$90,0,ROW()-ROW($C$4)) -> 0 | M22: =SUM(OFFSET('RISK QUANTN - ENVIRONMENTAL'!$D$90,0,ROW()-ROW($C$4)),OFFSET('RISK QUANTN - ENVIRONMENTAL'!$D$130,0,ROW()-ROW($C$4))) -> 0 | N22: 0
B23: =Input!Q34 -> 2048 | C23: =OFFSET('RISK QUANTN - RELIABILITY solar'!$E$79,0,ROW()-ROW($C$4)) -> 0 | D23: =IFERROR(OFFSET('RISK QUANTN - RELIABILITY solar'!$E$78,0,ROW()-ROW($C$4)),0) -> 0 | E23: 0 | F23: =OFFSET('RISK QUANTN - RELIABILITY expor'!$E$89,0,ROW()-ROW($C$4)) -> 0 | G23: =IFERROR(OFFSET('RISK QUANTN - RELIABILITY expor'!$E$88,0,ROW()-ROW($C$4)),0) -> 0 | H23: 0 | I23: =IFERROR($E23*Input!M$55,0) -> 0 | J23: =OFFSET('RISK QUANTN - RELIABILITY expor'!$E$97,0,ROW()-ROW($C$4)) -> 0 | K23: =OFFSET('RISK QUANTN - EMERGENCY REPLACE'!$D$92,0,ROW()-ROW($C$4)) -> 0 | L23: =OFFSET('RISK QUANTN - SAFETY'!$D$90,0,ROW()-ROW($C$4)) -> 0 | M23: =SUM(OFFSET('RISK QUANTN - ENVIRONMENTAL'!$D$90,0,ROW()-ROW($C$4)),OFFSET('RISK QUANTN - ENVIRONMENTAL'!$D$130,0,ROW()-ROW($C$4))) -> 0 | N23: 0
B24: =Input!Q35 -> 2049 | C24: =OFFSET('RISK QUANTN - RELIABILITY solar'!$E$79,0,ROW()-ROW($C$4)) -> 0 | D24: =IFERROR(OFFSET('RISK QUANTN - RELIABILITY solar'!$E$78,0,ROW()-ROW($C$4)),0) -> 0 | E24: 0 | F24: =OFFSET('RISK QUANTN - RELIABILITY expor'!$E$89,0,ROW()-ROW($C$4)) -> 0 | G24: =IFERROR(OFFSET('RISK QUANTN - RELIABILITY expor'!$E$88,0,ROW()-ROW($C$4)),0) -> 0 | H24: 0 | I24: =IFERROR($E24*Input!M$55,0) -> 0 | J24: =OFFSET('RISK QUANTN - RELIABILITY expor'!$E$97,0,ROW()-ROW($C$4)) -> 0 | K24: =OFFSET('RISK QUANTN - EMERGENCY REPLACE'!$D$92,0,ROW()-ROW($C$4)) -> 0 | L24: =OFFSET('RISK QUANTN - SAFETY'!$D$90,0,ROW()-ROW($C$4)) -> 0 | M24: =SUM(OFFSET('RISK QUANTN - ENVIRONMENTAL'!$D$90,0,ROW()-ROW($C$4)),OFFSET('RISK QUANTN - ENVIRONMENTAL'!$D$130,0,ROW()-ROW($C$4))) -> 0 | N24: 0
B25: =Input!Q36 -> 2050 | C25: =OFFSET('RISK QUANTN - RELIABILITY solar'!$E$79,0,ROW()-ROW($C$4)) -> 0 | D25: =IFERROR(OFFSET('RISK QUANTN - RELIABILITY solar'!$E$78,0,ROW()-ROW($C$4)),0) -> 0 | E25: 0 | F25: =OFFSET('RISK QUANTN - RELIABILITY expor'!$E$89,0,ROW()-ROW($C$4)) -> 0 | G25: =IFERROR(OFFSET('RISK QUANTN - RELIABILITY expor'!$E$88,0,ROW()-ROW($C$4)),0) -> 0 | H25: 0 | I25: =IFERROR($E25*Input!M$55,0) -> 0 | J25: =OFFSET('RISK QUANTN - RELIABILITY expor'!$E$97,0,ROW()-ROW($C$4)) -> 0 | K25: =OFFSET('RISK QUANTN - EMERGENCY REPLACE'!$D$92,0,ROW()-ROW($C$4)) -> 0 | L25: =OFFSET('RISK QUANTN - SAFETY'!$D$90,0,ROW()-ROW($C$4)) -> 0 | M25: =SUM(OFFSET('RISK QUANTN - ENVIRONMENTAL'!$D$90,0,ROW()-ROW($C$4)),OFFSET('RISK QUANTN - ENVIRONMENTAL'!$D$130,0,ROW()-ROW($C$4))) -> 0 | N25: 0
B26: =Input!Q37 -> 2051 | C26: =OFFSET('RISK QUANTN - RELIABILITY solar'!$E$79,0,ROW()-ROW($C$4)) -> 0 | D26: =IFERROR(OFFSET('RISK QUANTN - RELIABILITY solar'!$E$78,0,ROW()-ROW($C$4)),0) -> 0 | E26: 0 | F26: =OFFSET('RISK QUANTN - RELIABILITY expor'!$E$89,0,ROW()-ROW($C$4)) -> 0 | G26: =IFERROR(OFFSET('RISK QUANTN - RELIABILITY expor'!$E$88,0,ROW()-ROW($C$4)),0) -> 0 | H26: 0 | I26: =IFERROR($E26*Input!M$55,0) -> 0 | J26: =OFFSET('RISK QUANTN - RELIABILITY expor'!$E$97,0,ROW()-ROW($C$4)) -> 0 | K26: =OFFSET('RISK QUANTN - EMERGENCY REPLACE'!$D$92,0,ROW()-ROW($C$4)) -> 0 | L26: =OFFSET('RISK QUANTN - SAFETY'!$D$90,0,ROW()-ROW($C$4)) -> 0 | M26: =SUM(OFFSET('RISK QUANTN - ENVIRONMENTAL'!$D$90,0,ROW()-ROW($C$4)),OFFSET('RISK QUANTN - ENVIRONMENTAL'!$D$130,0,ROW()-ROW($C$4))) -> 0 | N26: 0
B27: =Input!Q38 -> 2052 | C27: =OFFSET('RISK QUANTN - RELIABILITY solar'!$E$79,0,ROW()-ROW($C$4)) -> 0 | D27: =IFERROR(OFFSET('RISK QUANTN - RELIABILITY solar'!$E$78,0,ROW()-ROW($C$4)),0) -> 0 | E27: 0 | F27: =OFFSET('RISK QUANTN - RELIABILITY expor'!$E$89,0,ROW()-ROW($C$4)) -> 0 | G27: =IFERROR(OFFSET('RISK QUANTN - RELIABILITY expor'!$E$88,0,ROW()-ROW($C$4)),0) -> 0 | H27: 0 | I27: =IFERROR($E27*Input!M$55,0) -> 0 | J27: =OFFSET('RISK QUANTN - RELIABILITY expor'!$E$97,0,ROW()-ROW($C$4)) -> 0 | K27: =OFFSET('RISK QUANTN - EMERGENCY REPLACE'!$D$92,0,ROW()-ROW($C$4)) -> 0 | L27: =OFFSET('RISK QUANTN - SAFETY'!$D$90,0,ROW()-ROW($C$4)) -> 0 | M27: =SUM(OFFSET('RISK QUANTN - ENVIRONMENTAL'!$D$90,0,ROW()-ROW($C$4)),OFFSET('RISK QUANTN - ENVIRONMENTAL'!$D$130,0,ROW()-ROW($C$4))) -> 0 | N27: 0
B28: =Input!Q39 -> 2053 | C28: =OFFSET('RISK QUANTN - RELIABILITY solar'!$E$79,0,ROW()-ROW($C$4)) -> 0 | D28: =IFERROR(OFFSET('RISK QUANTN - RELIABILITY solar'!$E$78,0,ROW()-ROW($C$4)),0) -> 0 | E28: 0 | F28: =OFFSET('RISK QUANTN - RELIABILITY expor'!$E$89,0,ROW()-ROW($C$4)) -> 0 | G28: =IFERROR(OFFSET('RISK QUANTN - RELIABILITY expor'!$E$88,0,ROW()-ROW($C$4)),0) -> 0 | H28: 0 | I28: =IFERROR($E28*Input!M$55,0) -> 0 | J28: =OFFSET('RISK QUANTN - RELIABILITY expor'!$E$97,0,ROW()-ROW($C$4)) -> 0 | K28: =OFFSET('RISK QUANTN - EMERGENCY REPLACE'!$D$92,0,ROW()-ROW($C$4)) -> 0 | L28: =OFFSET('RISK QUANTN - SAFETY'!$D$90,0,ROW()-ROW($C$4)) -> 0 | M28: =SUM(OFFSET('RISK QUANTN - ENVIRONMENTAL'!$D$90,0,ROW()-ROW($C$4)),OFFSET('RISK QUANTN - ENVIRONMENTAL'!$D$130,0,ROW()-ROW($C$4))) -> 0 | N28: 0
B29: =Input!Q40 -> 2054 | C29: =OFFSET('RISK QUANTN - RELIABILITY solar'!$E$79,0,ROW()-ROW($C$4)) -> 0 | D29: =IFERROR(OFFSET('RISK QUANTN - RELIABILITY solar'!$E$78,0,ROW()-ROW($C$4)),0) -> 0 | E29: 0 | F29: =OFFSET('RISK QUANTN - RELIABILITY expor'!$E$89,0,ROW()-ROW($C$4)) -> 0 | G29: =IFERROR(OFFSET('RISK QUANTN - RELIABILITY expor'!$E$88,0,ROW()-ROW($C$4)),0) -> 0 | H29: 0 | I29: =IFERROR($E29*Input!M$55,0) -> 0 | J29: =OFFSET('RISK QUANTN - RELIABILITY expor'!$E$97,0,ROW()-ROW($C$4)) -> 0 | K29: =OFFSET('RISK QUANTN - EMERGENCY REPLACE'!$D$92,0,ROW()-ROW($C$4)) -> 0 | L29: =OFFSET('RISK QUANTN - SAFETY'!$D$90,0,ROW()-ROW($C$4)) -> 0 | M29: =SUM(OFFSET('RISK QUANTN - ENVIRONMENTAL'!$D$90,0,ROW()-ROW($C$4)),OFFSET('RISK QUANTN - ENVIRONMENTAL'!$D$130,0,ROW()-ROW($C$4))) -> 0 | N29: 0
B30: =Input!Q41 -> 2055 | C30: =OFFSET('RISK QUANTN - RELIABILITY solar'!$E$79,0,ROW()-ROW($C$4)) -> 0 | D30: =IFERROR(OFFSET('RISK QUANTN - RELIABILITY solar'!$E$78,0,ROW()-ROW($C$4)),0) -> 0 | E30: 0 | F30: =OFFSET('RISK QUANTN - RELIABILITY expor'!$E$89,0,ROW()-ROW($C$4)) -> 0 | G30: =IFERROR(OFFSET('RISK QUANTN - RELIABILITY expor'!$E$88,0,ROW()-ROW($C$4)),0) -> 0 | H30: 0 | I30: =IFERROR($E30*Input!M$55,0) -> 0 | J30: =OFFSET('RISK QUANTN - RELIABILITY expor'!$E$97,0,ROW()-ROW($C$4)) -> 0 | K30: =OFFSET('RISK QUANTN - EMERGENCY REPLACE'!$D$92,0,ROW()-ROW($C$4)) -> 0 | L30: =OFFSET('RISK QUANTN - SAFETY'!$D$90,0,ROW()-ROW($C$4)) -> 0 | M30: =SUM(OFFSET('RISK QUANTN - ENVIRONMENTAL'!$D$90,0,ROW()-ROW($C$4)),OFFSET('RISK QUANTN - ENVIRONMENTAL'!$D$130,0,ROW()-ROW($C$4))) -> 0 | N30: 0
B31: =Input!Q42 -> 2056 | C31: =OFFSET('RISK QUANTN - RELIABILITY solar'!$E$79,0,ROW()-ROW($C$4)) -> 0 | D31: =IFERROR(OFFSET('RISK QUANTN - RELIABILITY solar'!$E$78,0,ROW()-ROW($C$4)),0) -> 0 | E31: 0 | F31: =OFFSET('RISK QUANTN - RELIABILITY expor'!$E$89,0,ROW()-ROW($C$4)) -> 0 | G31: =IFERROR(OFFSET('RISK QUANTN - RELIABILITY expor'!$E$88,0,ROW()-ROW($C$4)),0) -> 0 | H31: 0 | I31: =IFERROR($E31*Input!M$55,0) -> 0 | J31: =OFFSET('RISK QUANTN - RELIABILITY expor'!$E$97,0,ROW()-ROW($C$4)) -> 0 | K31: =OFFSET('RISK QUANTN - EMERGENCY REPLACE'!$D$92,0,ROW()-ROW($C$4)) -> 0 | L31: =OFFSET('RISK QUANTN - SAFETY'!$D$90,0,ROW()-ROW($C$4)) -> 0 | M31: =SUM(OFFSET('RISK QUANTN - ENVIRONMENTAL'!$D$90,0,ROW()-ROW($C$4)),OFFSET('RISK QUANTN - ENVIRONMENTAL'!$D$130,0,ROW()-ROW($C$4))) -> 0 | N31: 0
B32: =Input!Q43 -> 2057 | C32: =OFFSET('RISK QUANTN - RELIABILITY solar'!$E$79,0,ROW()-ROW($C$4)) -> 0 | D32: =IFERROR(OFFSET('RISK QUANTN - RELIABILITY solar'!$E$78,0,ROW()-ROW($C$4)),0) -> 0 | E32: 0 | F32: =OFFSET('RISK QUANTN - RELIABILITY expor'!$E$89,0,ROW()-ROW($C$4)) -> 0 | G32: =IFERROR(OFFSET('RISK QUANTN - RELIABILITY expor'!$E$88,0,ROW()-ROW($C$4)),0) -> 0 | H32: 0 | I32: =IFERROR($E32*Input!M$55,0) -> 0 | J32: =OFFSET('RISK QUANTN - RELIABILITY expor'!$E$97,0,ROW()-ROW($C$4)) -> 0 | K32: =OFFSET('RISK QUANTN - EMERGENCY REPLACE'!$D$92,0,ROW()-ROW($C$4)) -> 0 | L32: =OFFSET('RISK QUANTN - SAFETY'!$D$90,0,ROW()-ROW($C$4)) -> 0 | M32: =SUM(OFFSET('RISK QUANTN - ENVIRONMENTAL'!$D$90,0,ROW()-ROW($C$4)),OFFSET('RISK QUANTN - ENVIRONMENTAL'!$D$130,0,ROW()-ROW($C$4))) -> 0 | N32: 0
B33: =Input!Q44 -> 2058 | C33: =OFFSET('RISK QUANTN - RELIABILITY solar'!$E$79,0,ROW()-ROW($C$4)) -> 0 | D33: =IFERROR(OFFSET('RISK QUANTN - RELIABILITY solar'!$E$78,0,ROW()-ROW($C$4)),0) -> 0 | E33: 0 | F33: =OFFSET('RISK QUANTN - RELIABILITY expor'!$E$89,0,ROW()-ROW($C$4)) -> 0 | G33: =IFERROR(OFFSET('RISK QUANTN - RELIABILITY expor'!$E$88,0,ROW()-ROW($C$4)),0) -> 0 | H33: 0 | I33: =IFERROR($E33*Input!M$55,0) -> 0 | J33: =OFFSET('RISK QUANTN - RELIABILITY expor'!$E$97,0,ROW()-ROW($C$4)) -> 0 | K33: =OFFSET('RISK QUANTN - EMERGENCY REPLACE'!$D$92,0,ROW()-ROW($C$4)) -> 0 | L33: =OFFSET('RISK QUANTN - SAFETY'!$D$90,0,ROW()-ROW($C$4)) -> 0 | M33: =SUM(OFFSET('RISK QUANTN - ENVIRONMENTAL'!$D$90,0,ROW()-ROW($C$4)),OFFSET('RISK QUANTN - ENVIRONMENTAL'!$D$130,0,ROW()-ROW($C$4))) -> 0 | N33: 0
B34: =Input!Q45 -> 2059 | C34: =OFFSET('RISK QUANTN - RELIABILITY solar'!$E$79,0,ROW()-ROW($C$4)) -> 0 | D34: =IFERROR(OFFSET('RISK QUANTN - RELIABILITY solar'!$E$78,0,ROW()-ROW($C$4)),0) -> 0 | E34: 0 | F34: =OFFSET('RISK QUANTN - RELIABILITY expor'!$E$89,0,ROW()-ROW($C$4)) -> 0 | G34: =IFERROR(OFFSET('RISK QUANTN - RELIABILITY expor'!$E$88,0,ROW()-ROW($C$4)),0) -> 0 | H34: 0 | I34: =IFERROR($E34*Input!M$55,0) -> 0 | J34: =OFFSET('RISK QUANTN - RELIABILITY expor'!$E$97,0,ROW()-ROW($C$4)) -> 0 | K34: =OFFSET('RISK QUANTN - EMERGENCY REPLACE'!$D$92,0,ROW()-ROW($C$4)) -> 0 | L34: =OFFSET('RISK QUANTN - SAFETY'!$D$90,0,ROW()-ROW($C$4)) -> 0 | M34: =SUM(OFFSET('RISK QUANTN - ENVIRONMENTAL'!$D$90,0,ROW()-ROW($C$4)),OFFSET('RISK QUANTN - ENVIRONMENTAL'!$D$130,0,ROW()-ROW($C$4))) -> 0 | N34: 0
B35: =Input!Q46 -> 2060 | C35: =OFFSET('RISK QUANTN - RELIABILITY solar'!$E$79,0,ROW()-ROW($C$4)) -> 0 | D35: =IFERROR(OFFSET('RISK QUANTN - RELIABILITY solar'!$E$78,0,ROW()-ROW($C$4)),0) -> 0 | E35: 0 | F35: =OFFSET('RISK QUANTN - RELIABILITY expor'!$E$89,0,ROW()-ROW($C$4)) -> 0 | G35: =IFERROR(OFFSET('RISK QUANTN - RELIABILITY expor'!$E$88,0,ROW()-ROW($C$4)),0) -> 0 | H35: 0 | I35: =IFERROR($E35*Input!M$55,0) -> 0 | J35: =OFFSET('RISK QUANTN - RELIABILITY expor'!$E$97,0,ROW()-ROW($C$4)) -> 0 | K35: =OFFSET('RISK QUANTN - EMERGENCY REPLACE'!$D$92,0,ROW()-ROW($C$4)) -> 0 | L35: =OFFSET('RISK QUANTN - SAFETY'!$D$90,0,ROW()-ROW($C$4)) -> 0 | M35: =SUM(OFFSET('RISK QUANTN - ENVIRONMENTAL'!$D$90,0,ROW()-ROW($C$4)),OFFSET('RISK QUANTN - ENVIRONMENTAL'!$D$130,0,ROW()-ROW($C$4))) -> 0 | N35: 0
B36: =Input!Q47 -> 2061 | C36: =OFFSET('RISK QUANTN - RELIABILITY solar'!$E$79,0,ROW()-ROW($C$4)) -> 0 | D36: =IFERROR(OFFSET('RISK QUANTN - RELIABILITY solar'!$E$78,0,ROW()-ROW($C$4)),0) -> 0 | E36: 0 | F36: =OFFSET('RISK QUANTN - RELIABILITY expor'!$E$89,0,ROW()-ROW($C$4)) -> 0 | G36: =IFERROR(OFFSET('RISK QUANTN - RELIABILITY expor'!$E$88,0,ROW()-ROW($C$4)),0) -> 0 | H36: 0 | I36: =IFERROR($E36*Input!M$55,0) -> 0 | J36: =OFFSET('RISK QUANTN - RELIABILITY expor'!$E$97,0,ROW()-ROW($C$4)) -> 0 | K36: =OFFSET('RISK QUANTN - EMERGENCY REPLACE'!$D$92,0,ROW()-ROW($C$4)) -> 0 | L36: =OFFSET('RISK QUANTN - SAFETY'!$D$90,0,ROW()-ROW($C$4)) -> 0 | M36: =SUM(OFFSET('RISK QUANTN - ENVIRONMENTAL'!$D$90,0,ROW()-ROW($C$4)),OFFSET('RISK QUANTN - ENVIRONMENTAL'!$D$130,0,ROW()-ROW($C$4))) -> 0 | N36: 0
B37: =Input!Q48 -> 2062 | C37: =OFFSET('RISK QUANTN - RELIABILITY solar'!$E$79,0,ROW()-ROW($C$4)) -> 0 | D37: =IFERROR(OFFSET('RISK QUANTN - RELIABILITY solar'!$E$78,0,ROW()-ROW($C$4)),0) -> 0 | E37: 0 | F37: =OFFSET('RISK QUANTN - RELIABILITY expor'!$E$89,0,ROW()-ROW($C$4)) -> 0 | G37: =IFERROR(OFFSET('RISK QUANTN - RELIABILITY expor'!$E$88,0,ROW()-ROW($C$4)),0) -> 0 | H37: 0 | I37: =IFERROR($E37*Input!M$55,0) -> 0 | J37: =OFFSET('RISK QUANTN - RELIABILITY expor'!$E$97,0,ROW()-ROW($C$4)) -> 0 | K37: =OFFSET('RISK QUANTN - EMERGENCY REPLACE'!$D$92,0,ROW()-ROW($C$4)) -> 0 | L37: =OFFSET('RISK QUANTN - SAFETY'!$D$90,0,ROW()-ROW($C$4)) -> 0 | M37: =SUM(OFFSET('RISK QUANTN - ENVIRONMENTAL'!$D$90,0,ROW()-ROW($C$4)),OFFSET('RISK QUANTN - ENVIRONMENTAL'!$D$130,0,ROW()-ROW($C$4))) -> 0 | N37: 0
B38: =Input!Q49 -> 2063 | C38: =OFFSET('RISK QUANTN - RELIABILITY solar'!$E$79,0,ROW()-ROW($C$4)) -> 0 | D38: =IFERROR(OFFSET('RISK QUANTN - RELIABILITY solar'!$E$78,0,ROW()-ROW($C$4)),0) -> 0 | E38: 0 | F38: =OFFSET('RISK QUANTN - RELIABILITY expor'!$E$89,0,ROW()-ROW($C$4)) -> 0 | G38: =IFERROR(OFFSET('RISK QUANTN - RELIABILITY expor'!$E$88,0,ROW()-ROW($C$4)),0) -> 0 | H38: 0 | I38: =IFERROR($E38*Input!M$55,0) -> 0 | J38: =OFFSET('RISK QUANTN - RELIABILITY expor'!$E$97,0,ROW()-ROW($C$4)) -> 0 | K38: =OFFSET('RISK QUANTN - EMERGENCY REPLACE'!$D$92,0,ROW()-ROW($C$4)) -> 0 | L38: =OFFSET('RISK QUANTN - SAFETY'!$D$90,0,ROW()-ROW($C$4)) -> 0 | M38: =SUM(OFFSET('RISK QUANTN - ENVIRONMENTAL'!$D$90,0,ROW()-ROW($C$4)),OFFSET('RISK QUANTN - ENVIRONMENTAL'!$D$130,0,ROW()-ROW($C$4))) -> 0 | N38: 0
B39: =Input!Q50 -> 2064 | C39: =OFFSET('RISK QUANTN - RELIABILITY solar'!$E$79,0,ROW()-ROW($C$4)) -> 0 | D39: =IFERROR(OFFSET('RISK QUANTN - RELIABILITY solar'!$E$78,0,ROW()-ROW($C$4)),0) -> 0 | E39: 0 | F39: =OFFSET('RISK QUANTN - RELIABILITY expor'!$E$89,0,ROW()-ROW($C$4)) -> 0 | G39: =IFERROR(OFFSET('RISK QUANTN - RELIABILITY expor'!$E$88,0,ROW()-ROW($C$4)),0) -> 0 | H39: 0 | I39: =IFERROR($E39*Input!M$55,0) -> 0 | J39: =OFFSET('RISK QUANTN - RELIABILITY expor'!$E$97,0,ROW()-ROW($C$4)) -> 0 | K39: =OFFSET('RISK QUANTN - EMERGENCY REPLACE'!$D$92,0,ROW()-ROW($C$4)) -> 0 | L39: =OFFSET('RISK QUANTN - SAFETY'!$D$90,0,ROW()-ROW($C$4)) -> 0 | M39: =SUM(OFFSET('RISK QUANTN - ENVIRONMENTAL'!$D$90,0,ROW()-ROW($C$4)),OFFSET('RISK QUANTN - ENVIRONMENTAL'!$D$130,0,ROW()-ROW($C$4))) -> 0 | N39: 0
B40: =Input!Q51 -> 2065 | C40: =OFFSET('RISK QUANTN - RELIABILITY solar'!$E$79,0,ROW()-ROW($C$4)) -> 0 | D40: =IFERROR(OFFSET('RISK QUANTN - RELIABILITY solar'!$E$78,0,ROW()-ROW($C$4)),0) -> 0 | E40: 0 | F40: =OFFSET('RISK QUANTN - RELIABILITY expor'!$E$89,0,ROW()-ROW($C$4)) -> 0 | G40: =IFERROR(OFFSET('RISK QUANTN - RELIABILITY expor'!$E$88,0,ROW()-ROW($C$4)),0) -> 0 | H40: 0 | I40: =IFERROR($E40*Input!M$55,0) -> 0 | J40: =OFFSET('RISK QUANTN - RELIABILITY expor'!$E$97,0,ROW()-ROW($C$4)) -> 0 | K40: =OFFSET('RISK QUANTN - EMERGENCY REPLACE'!$D$92,0,ROW()-ROW($C$4)) -> 0 | L40: =OFFSET('RISK QUANTN - SAFETY'!$D$90,0,ROW()-ROW($C$4)) -> 0 | M40: =SUM(OFFSET('RISK QUANTN - ENVIRONMENTAL'!$D$90,0,ROW()-ROW($C$4)),OFFSET('RISK QUANTN - ENVIRONMENTAL'!$D$130,0,ROW()-ROW($C$4))) -> 0 | N40: 0
B41: =Input!Q52 -> 2066 | C41: =OFFSET('RISK QUANTN - RELIABILITY solar'!$E$79,0,ROW()-ROW($C$4)) -> 0 | D41: =IFERROR(OFFSET('RISK QUANTN - RELIABILITY solar'!$E$78,0,ROW()-ROW($C$4)),0) -> 0 | E41: 0 | F41: =OFFSET('RISK QUANTN - RELIABILITY expor'!$E$89,0,ROW()-ROW($C$4)) -> 0 | G41: =IFERROR(OFFSET('RISK QUANTN - RELIABILITY expor'!$E$88,0,ROW()-ROW($C$4)),0) -> 0 | H41: 0 | I41: =IFERROR($E41*Input!M$55,0) -> 0 | J41: =OFFSET('RISK QUANTN - RELIABILITY expor'!$E$97,0,ROW()-ROW($C$4)) -> 0 | K41: =OFFSET('RISK QUANTN - EMERGENCY REPLACE'!$D$92,0,ROW()-ROW($C$4)) -> 0 | L41: =OFFSET('RISK QUANTN - SAFETY'!$D$90,0,ROW()-ROW($C$4)) -> 0 | M41: =SUM(OFFSET('RISK QUANTN - ENVIRONMENTAL'!$D$90,0,ROW()-ROW($C$4)),OFFSET('RISK QUANTN - ENVIRONMENTAL'!$D$130,0,ROW()-ROW($C$4))) -> 0 | N41: 0
B42: =Input!Q53 -> 2067 | C42: =OFFSET('RISK QUANTN - RELIABILITY solar'!$E$79,0,ROW()-ROW($C$4)) -> 0 | D42: =IFERROR(OFFSET('RISK QUANTN - RELIABILITY solar'!$E$78,0,ROW()-ROW($C$4)),0) -> 0 | E42: 0 | F42: =OFFSET('RISK QUANTN - RELIABILITY expor'!$E$89,0,ROW()-ROW($C$4)) -> 0 | G42: =IFERROR(OFFSET('RISK QUANTN - RELIABILITY expor'!$E$88,0,ROW()-ROW($C$4)),0) -> 0 | H42: 0 | I42: =IFERROR($E42*Input!M$55,0) -> 0 | J42: =OFFSET('RISK QUANTN - RELIABILITY expor'!$E$97,0,ROW()-ROW($C$4)) -> 0 | K42: =OFFSET('RISK QUANTN - EMERGENCY REPLACE'!$D$92,0,ROW()-ROW($C$4)) -> 0 | L42: =OFFSET('RISK QUANTN - SAFETY'!$D$90,0,ROW()-ROW($C$4)) -> 0 | M42: =SUM(OFFSET('RISK QUANTN - ENVIRONMENTAL'!$D$90,0,ROW()-ROW($C$4)),OFFSET('RISK QUANTN - ENVIRONMENTAL'!$D$130,0,ROW()-ROW($C$4))) -> 0 | N42: 0
B43: =Input!Q54 -> 2068 | C43: =OFFSET('RISK QUANTN - RELIABILITY solar'!$E$79,0,ROW()-ROW($C$4)) -> 0 | D43: =IFERROR(OFFSET('RISK QUANTN - RELIABILITY solar'!$E$78,0,ROW()-ROW($C$4)),0) -> 0 | E43: 0 | F43: =OFFSET('RISK QUANTN - RELIABILITY expor'!$E$89,0,ROW()-ROW($C$4)) -> 0 | G43: =IFERROR(OFFSET('RISK QUANTN - RELIABILITY expor'!$E$88,0,ROW()-ROW($C$4)),0) -> 0 | H43: 0 | I43: =IFERROR($E43*Input!M$55,0) -> 0 | J43: =OFFSET('RISK QUANTN - RELIABILITY expor'!$E$97,0,ROW()-ROW($C$4)) -> 0 | K43: =OFFSET('RISK QUANTN - EMERGENCY REPLACE'!$D$92,0,ROW()-ROW($C$4)) -> 0 | L43: =OFFSET('RISK QUANTN - SAFETY'!$D$90,0,ROW()-ROW($C$4)) -> 0 | M43: =SUM(OFFSET('RISK QUANTN - ENVIRONMENTAL'!$D$90,0,ROW()-ROW($C$4)),OFFSET('RISK QUANTN - ENVIRONMENTAL'!$D$130,0,ROW()-ROW($C$4))) -> 0 | N43: 0
B44: =Input!Q55 -> 2069 | C44: =OFFSET('RISK QUANTN - RELIABILITY solar'!$E$79,0,ROW()-ROW($C$4)) -> 0 | D44: =IFERROR(OFFSET('RISK QUANTN - RELIABILITY solar'!$E$78,0,ROW()-ROW($C$4)),0) -> 0 | E44: 0 | F44: =OFFSET('RISK QUANTN - RELIABILITY expor'!$E$89,0,ROW()-ROW($C$4)) -> 0 | G44: =IFERROR(OFFSET('RISK QUANTN - RELIABILITY expor'!$E$88,0,ROW()-ROW($C$4)),0) -> 0 | H44: 0 | I44: =IFERROR($E44*Input!M$55,0) -> 0 | J44: =OFFSET('RISK QUANTN - RELIABILITY expor'!$E$97,0,ROW()-ROW($C$4)) -> 0 | K44: =OFFSET('RISK QUANTN - EMERGENCY REPLACE'!$D$92,0,ROW()-ROW($C$4)) -> 0 | L44: =OFFSET('RISK QUANTN - SAFETY'!$D$90,0,ROW()-ROW($C$4)) -> 0 | M44: =SUM(OFFSET('RISK QUANTN - ENVIRONMENTAL'!$D$90,0,ROW()-ROW($C$4)),OFFSET('RISK QUANTN - ENVIRONMENTAL'!$D$130,0,ROW()-ROW($C$4))) -> 0 | N44: 0
B45: =Input!Q56 -> 2070 | C45: =OFFSET('RISK QUANTN - RELIABILITY solar'!$E$79,0,ROW()-ROW($C$4)) -> 0 | D45: =IFERROR(OFFSET('RISK QUANTN - RELIABILITY solar'!$E$78,0,ROW()-ROW($C$4)),0) -> 0 | E45: 0 | F45: =OFFSET('RISK QUANTN - RELIABILITY expor'!$E$89,0,ROW()-ROW($C$4)) -> 0 | G45: =IFERROR(OFFSET('RISK QUANTN - RELIABILITY expor'!$E$88,0,ROW()-ROW($C$4)),0) -> 0 | H45: 0 | I45: =IFERROR($E45*Input!M$55,0) -> 0 | J45: =OFFSET('RISK QUANTN - RELIABILITY expor'!$E$97,0,ROW()-ROW($C$4)) -> 0 | K45: =OFFSET('RISK QUANTN - EMERGENCY REPLACE'!$D$92,0,ROW()-ROW($C$4)) -> 0 | L45: =OFFSET('RISK QUANTN - SAFETY'!$D$90,0,ROW()-ROW($C$4)) -> 0 | M45: =SUM(OFFSET('RISK QUANTN - ENVIRONMENTAL'!$D$90,0,ROW()-ROW($C$4)),OFFSET('RISK QUANTN - ENVIRONMENTAL'!$D$130,0,ROW()-ROW($C$4))) -> 0 | N45: 0
B46: =Input!Q57 -> 2071 | C46: =OFFSET('RISK QUANTN - RELIABILITY solar'!$E$79,0,ROW()-ROW($C$4)) -> 0 | D46: =IFERROR(OFFSET('RISK QUANTN - RELIABILITY solar'!$E$78,0,ROW()-ROW($C$4)),0) -> 0 | E46: 0 | F46: =OFFSET('RISK QUANTN - RELIABILITY expor'!$E$89,0,ROW()-ROW($C$4)) -> 0 | G46: =IFERROR(OFFSET('RISK QUANTN - RELIABILITY expor'!$E$88,0,ROW()-ROW($C$4)),0) -> 0 | H46: 0 | I46: =IFERROR($E46*Input!M$55,0) -> 0 | J46: =OFFSET('RISK QUANTN - RELIABILITY expor'!$E$97,0,ROW()-ROW($C$4)) -> 0 | K46: =OFFSET('RISK QUANTN - EMERGENCY REPLACE'!$D$92,0,ROW()-ROW($C$4)) -> 0 | L46: =OFFSET('RISK QUANTN - SAFETY'!$D$90,0,ROW()-ROW($C$4)) -> 0 | M46: =SUM(OFFSET('RISK QUANTN - ENVIRONMENTAL'!$D$90,0,ROW()-ROW($C$4)),OFFSET('RISK QUANTN - ENVIRONMENTAL'!$D$130,0,ROW()-ROW($C$4))) -> 0 | N46: 0
B47: =Input!Q58 -> 2072 | C47: =OFFSET('RISK QUANTN - RELIABILITY solar'!$E$79,0,ROW()-ROW($C$4)) -> 0 | D47: =IFERROR(OFFSET('RISK QUANTN - RELIABILITY solar'!$E$78,0,ROW()-ROW($C$4)),0) -> 0 | E47: 0 | F47: =OFFSET('RISK QUANTN - RELIABILITY expor'!$E$89,0,ROW()-ROW($C$4)) -> 0 | G47: =IFERROR(OFFSET('RISK QUANTN - RELIABILITY expor'!$E$88,0,ROW()-ROW($C$4)),0) -> 0 | H47: 0 | I47: =IFERROR($E47*Input!M$55,0) -> 0 | J47: =OFFSET('RISK QUANTN - RELIABILITY expor'!$E$97,0,ROW()-ROW($C$4)) -> 0 | K47: =OFFSET('RISK QUANTN - EMERGENCY REPLACE'!$D$92,0,ROW()-ROW($C$4)) -> 0 | L47: =OFFSET('RISK QUANTN - SAFETY'!$D$90,0,ROW()-ROW($C$4)) -> 0 | M47: =SUM(OFFSET('RISK QUANTN - ENVIRONMENTAL'!$D$90,0,ROW()-ROW($C$4)),OFFSET('RISK QUANTN - ENVIRONMENTAL'!$D$130,0,ROW()-ROW($C$4))) -> 0 | N47: 0
B48: =Input!Q59 -> 2073 | C48: =OFFSET('RISK QUANTN - RELIABILITY solar'!$E$79,0,ROW()-ROW($C$4)) -> 0 | D48: =IFERROR(OFFSET('RISK QUANTN - RELIABILITY solar'!$E$78,0,ROW()-ROW($C$4)),0) -> 0 | E48: 0 | F48: =OFFSET('RISK QUANTN - RELIABILITY expor'!$E$89,0,ROW()-ROW($C$4)) -> 0 | G48: =IFERROR(OFFSET('RISK QUANTN - RELIABILITY expor'!$E$88,0,ROW()-ROW($C$4)),0) -> 0 | H48: 0 | I48: =IFERROR($E48*Input!M$55,0) -> 0 | J48: =OFFSET('RISK QUANTN - RELIABILITY expor'!$E$97,0,ROW()-ROW($C$4)) -> 0 | K48: =OFFSET('RISK QUANTN - EMERGENCY REPLACE'!$D$92,0,ROW()-ROW($C$4)) -> 0 | L48: =OFFSET('RISK QUANTN - SAFETY'!$D$90,0,ROW()-ROW($C$4)) -> 0 | M48: =SUM(OFFSET('RISK QUANTN - ENVIRONMENTAL'!$D$90,0,ROW()-ROW($C$4)),OFFSET('RISK QUANTN - ENVIRONMENTAL'!$D$130,0,ROW()-ROW($C$4))) -> 0 | N48: 0
B49: =Input!Q60 -> 2074 | C49: =OFFSET('RISK QUANTN - RELIABILITY solar'!$E$79,0,ROW()-ROW($C$4)) -> 0 | D49: =IFERROR(OFFSET('RISK QUANTN - RELIABILITY solar'!$E$78,0,ROW()-ROW($C$4)),0) -> 0 | E49: 0 | F49: =OFFSET('RISK QUANTN - RELIABILITY expor'!$E$89,0,ROW()-ROW($C$4)) -> 0 | G49: =IFERROR(OFFSET('RISK QUANTN - RELIABILITY expor'!$E$88,0,ROW()-ROW($C$4)),0) -> 0 | H49: 0 | I49: =IFERROR($E49*Input!M$55,0) -> 0 | J49: =OFFSET('RISK QUANTN - RELIABILITY expor'!$E$97,0,ROW()-ROW($C$4)) -> 0 | K49: =OFFSET('RISK QUANTN - EMERGENCY REPLACE'!$D$92,0,ROW()-ROW($C$4)) -> 0 | L49: =OFFSET('RISK QUANTN - SAFETY'!$D$90,0,ROW()-ROW($C$4)) -> 0 | M49: =SUM(OFFSET('RISK QUANTN - ENVIRONMENTAL'!$D$90,0,ROW()-ROW($C$4)),OFFSET('RISK QUANTN - ENVIRONMENTAL'!$D$130,0,ROW()-ROW($C$4))) -> 0 | N49: 0
B50: =Input!Q61 -> 2075 | C50: =OFFSET('RISK QUANTN - RELIABILITY solar'!$E$79,0,ROW()-ROW($C$4)) -> 0 | D50: =IFERROR(OFFSET('RISK QUANTN - RELIABILITY solar'!$E$78,0,ROW()-ROW($C$4)),0) -> 0 | E50: 0 | F50: =OFFSET('RISK QUANTN - RELIABILITY expor'!$E$89,0,ROW()-ROW($C$4)) -> 0 | G50: =IFERROR(OFFSET('RISK QUANTN - RELIABILITY expor'!$E$88,0,ROW()-ROW($C$4)),0) -> 0 | H50: 0 | I50: =IFERROR($E50*Input!M$55,0) -> 0 | J50: =OFFSET('RISK QUANTN - RELIABILITY expor'!$E$97,0,ROW()-ROW($C$4)) -> 0 | K50: =OFFSET('RISK QUANTN - EMERGENCY REPLACE'!$D$92,0,ROW()-ROW($C$4)) -> 0 | L50: =OFFSET('RISK QUANTN - SAFETY'!$D$90,0,ROW()-ROW($C$4)) -> 0 | M50: =SUM(OFFSET('RISK QUANTN - ENVIRONMENTAL'!$D$90,0,ROW()-ROW($C$4)),OFFSET('RISK QUANTN - ENVIRONMENTAL'!$D$130,0,ROW()-ROW($C$4))) -> 0 | N50: 0
B51: =Input!Q62 -> 2076 | C51: =OFFSET('RISK QUANTN - RELIABILITY solar'!$E$79,0,ROW()-ROW($C$4)) -> 0 | D51: =IFERROR(OFFSET('RISK QUANTN - RELIABILITY solar'!$E$78,0,ROW()-ROW($C$4)),0) -> 0 | E51: 0 | F51: =OFFSET('RISK QUANTN - RELIABILITY expor'!$E$89,0,ROW()-ROW($C$4)) -> 0 | G51: =IFERROR(OFFSET('RISK QUANTN - RELIABILITY expor'!$E$88,0,ROW()-ROW($C$4)),0) -> 0 | H51: 0 | I51: =IFERROR($E51*Input!M$55,0) -> 0 | J51: =OFFSET('RISK QUANTN - RELIABILITY expor'!$E$97,0,ROW()-ROW($C$4)) -> 0 | K51: =OFFSET('RISK QUANTN - EMERGENCY REPLACE'!$D$92,0,ROW()-ROW($C$4)) -> 0 | L51: =OFFSET('RISK QUANTN - SAFETY'!$D$90,0,ROW()-ROW($C$4)) -> 0 | M51: =SUM(OFFSET('RISK QUANTN - ENVIRONMENTAL'!$D$90,0,ROW()-ROW($C$4)),OFFSET('RISK QUANTN - ENVIRONMENTAL'!$D$130,0,ROW()-ROW($C$4))) -> 0 | N51: 0
B52: =Input!Q63 -> 2077 | C52: =OFFSET('RISK QUANTN - RELIABILITY solar'!$E$79,0,ROW()-ROW($C$4)) -> 0 | D52: =IFERROR(OFFSET('RISK QUANTN - RELIABILITY solar'!$E$78,0,ROW()-ROW($C$4)),0) -> 0 | E52: 0 | F52: =OFFSET('RISK QUANTN - RELIABILITY expor'!$E$89,0,ROW()-ROW($C$4)) -> 0 | G52: =IFERROR(OFFSET('RISK QUANTN - RELIABILITY expor'!$E$88,0,ROW()-ROW($C$4)),0) -> 0 | H52: 0 | I52: =IFERROR($E52*Input!M$55,0) -> 0 | J52: =OFFSET('RISK QUANTN - RELIABILITY expor'!$E$97,0,ROW()-ROW($C$4)) -> 0 | K52: =OFFSET('RISK QUANTN - EMERGENCY REPLACE'!$D$92,0,ROW()-ROW($C$4)) -> 0 | L52: =OFFSET('RISK QUANTN - SAFETY'!$D$90,0,ROW()-ROW($C$4)) -> 0 | M52: =SUM(OFFSET('RISK QUANTN - ENVIRONMENTAL'!$D$90,0,ROW()-ROW($C$4)),OFFSET('RISK QUANTN - ENVIRONMENTAL'!$D$130,0,ROW()-ROW($C$4))) -> 0 | N52: 0
B53: =Input!Q64 -> 2078 | C53: =OFFSET('RISK QUANTN - RELIABILITY solar'!$E$79,0,ROW()-ROW($C$4)) -> 0 | D53: =IFERROR(OFFSET('RISK QUANTN - RELIABILITY solar'!$E$78,0,ROW()-ROW($C$4)),0) -> 0 | E53: 0 | F53: =OFFSET('RISK QUANTN - RELIABILITY expor'!$E$89,0,ROW()-ROW($C$4)) -> 0 | G53: =IFERROR(OFFSET('RISK QUANTN - RELIABILITY expor'!$E$88,0,ROW()-ROW($C$4)),0) -> 0 | H53: 0 | I53: =IFERROR($E53*Input!M$55,0) -> 0 | J53: =OFFSET('RISK QUANTN - RELIABILITY expor'!$E$97,0,ROW()-ROW($C$4)) -> 0 | K53: =OFFSET('RISK QUANTN - EMERGENCY REPLACE'!$D$92,0,ROW()-ROW($C$4)) -> 0 | L53: =OFFSET('RISK QUANTN - SAFETY'!$D$90,0,ROW()-ROW($C$4)) -> 0 | M53: =SUM(OFFSET('RISK QUANTN - ENVIRONMENTAL'!$D$90,0,ROW()-ROW($C$4)),OFFSET('RISK QUANTN - ENVIRONMENTAL'!$D$130,0,ROW()-ROW($C$4))) -> 0 | N53: 0
B54: =Input!Q65 -> 2079 | C54: =OFFSET('RISK QUANTN - RELIABILITY solar'!$E$79,0,ROW()-ROW($C$4)) -> 0 | D54: =IFERROR(OFFSET('RISK QUANTN - RELIABILITY solar'!$E$78,0,ROW()-ROW($C$4)),0) -> 0 | E54: 0 | F54: =OFFSET('RISK QUANTN - RELIABILITY expor'!$E$89,0,ROW()-ROW($C$4)) -> 0 | G54: =IFERROR(OFFSET('RISK QUANTN - RELIABILITY expor'!$E$88,0,ROW()-ROW($C$4)),0) -> 0 | H54: 0 | I54: =IFERROR($E54*Input!M$55,0) -> 0 | J54: =OFFSET('RISK QUANTN - RELIABILITY expor'!$E$97,0,ROW()-ROW($C$4)) -> 0 | K54: =OFFSET('RISK QUANTN - EMERGENCY REPLACE'!$D$92,0,ROW()-ROW($C$4)) -> 0 | L54: =OFFSET('RISK QUANTN - SAFETY'!$D$90,0,ROW()-ROW($C$4)) -> 0 | M54: =SUM(OFFSET('RISK QUANTN - ENVIRONMENTAL'!$D$90,0,ROW()-ROW($C$4)),OFFSET('RISK QUANTN - ENVIRONMENTAL'!$D$130,0,ROW()-ROW($C$4))) -> 0 | N54: 0
B55: =Input!Q66 -> 2080 | C55: =OFFSET('RISK QUANTN - RELIABILITY solar'!$E$79,0,ROW()-ROW($C$4)) -> 0 | D55: =IFERROR(OFFSET('RISK QUANTN - RELIABILITY solar'!$E$78,0,ROW()-ROW($C$4)),0) -> 0 | E55: 0 | F55: =OFFSET('RISK QUANTN - RELIABILITY expor'!$E$89,0,ROW()-ROW($C$4)) -> 0 | G55: =IFERROR(OFFSET('RISK QUANTN - RELIABILITY expor'!$E$88,0,ROW()-ROW($C$4)),0) -> 0 | H55: 0 | I55: =IFERROR($E55*Input!M$55,0) -> 0 | J55: =OFFSET('RISK QUANTN - RELIABILITY expor'!$E$97,0,ROW()-ROW($C$4)) -> 0 | K55: =OFFSET('RISK QUANTN - EMERGENCY REPLACE'!$D$92,0,ROW()-ROW($C$4)) -> 0 | L55: =OFFSET('RISK QUANTN - SAFETY'!$D$90,0,ROW()-ROW($C$4)) -> 0 | M55: =SUM(OFFSET('RISK QUANTN - ENVIRONMENTAL'!$D$90,0,ROW()-ROW($C$4)),OFFSET('RISK QUANTN - ENVIRONMENTAL'!$D$130,0,ROW()-ROW($C$4))) -> 0 | N55: 0
B56: =Input!Q67 -> 2081 | C56: =OFFSET('RISK QUANTN - RELIABILITY solar'!$E$79,0,ROW()-ROW($C$4)) -> 0 | D56: =IFERROR(OFFSET('RISK QUANTN - RELIABILITY solar'!$E$78,0,ROW()-ROW($C$4)),0) -> 0 | E56: 0 | F56: =OFFSET('RISK QUANTN - RELIABILITY expor'!$E$89,0,ROW()-ROW($C$4)) -> 0 | G56: =IFERROR(OFFSET('RISK QUANTN - RELIABILITY expor'!$E$88,0,ROW()-ROW($C$4)),0) -> 0 | H56: 0 | I56: =IFERROR($E56*Input!M$55,0) -> 0 | J56: =OFFSET('RISK QUANTN - RELIABILITY expor'!$E$97,0,ROW()-ROW($C$4)) -> 0 | K56: =OFFSET('RISK QUANTN - EMERGENCY REPLACE'!$D$92,0,ROW()-ROW($C$4)) -> 0 | L56: =OFFSET('RISK QUANTN - SAFETY'!$D$90,0,ROW()-ROW($C$4)) -> 0 | M56: =SUM(OFFSET('RISK QUANTN - ENVIRONMENTAL'!$D$90,0,ROW()-ROW($C$4)),OFFSET('RISK QUANTN - ENVIRONMENTAL'!$D$130,0,ROW()-ROW($C$4))) -> 0 | N56: 0
B57: =Input!Q68 -> 2082 | C57: =OFFSET('RISK QUANTN - RELIABILITY solar'!$E$79,0,ROW()-ROW($C$4)) -> 0 | D57: =IFERROR(OFFSET('RISK QUANTN - RELIABILITY solar'!$E$78,0,ROW()-ROW($C$4)),0) -> 0 | E57: 0 | F57: =OFFSET('RISK QUANTN - RELIABILITY expor'!$E$89,0,ROW()-ROW($C$4)) -> 0 | G57: =IFERROR(OFFSET('RISK QUANTN - RELIABILITY expor'!$E$88,0,ROW()-ROW($C$4)),0) -> 0 | H57: 0 | I57: =IFERROR($E57*Input!M$55,0) -> 0 | J57: =OFFSET('RISK QUANTN - RELIABILITY expor'!$E$97,0,ROW()-ROW($C$4)) -> 0 | K57: =OFFSET('RISK QUANTN - EMERGENCY REPLACE'!$D$92,0,ROW()-ROW($C$4)) -> 0 | L57: =OFFSET('RISK QUANTN - SAFETY'!$D$90,0,ROW()-ROW($C$4)) -> 0 | M57: =SUM(OFFSET('RISK QUANTN - ENVIRONMENTAL'!$D$90,0,ROW()-ROW($C$4)),OFFSET('RISK QUANTN - ENVIRONMENTAL'!$D$130,0,ROW()-ROW($C$4))) -> 0 | N57: 0
B58: =Input!Q69 -> 2083 | C58: =OFFSET('RISK QUANTN - RELIABILITY solar'!$E$79,0,ROW()-ROW($C$4)) -> 0 | D58: =IFERROR(OFFSET('RISK QUANTN - RELIABILITY solar'!$E$78,0,ROW()-ROW($C$4)),0) -> 0 | E58: 0 | F58: =OFFSET('RISK QUANTN - RELIABILITY expor'!$E$89,0,ROW()-ROW($C$4)) -> 0 | G58: =IFERROR(OFFSET('RISK QUANTN - RELIABILITY expor'!$E$88,0,ROW()-ROW($C$4)),0) -> 0 | H58: 0 | I58: =IFERROR($E58*Input!M$55,0) -> 0 | J58: =OFFSET('RISK QUANTN - RELIABILITY expor'!$E$97,0,ROW()-ROW($C$4)) -> 0 | K58: =OFFSET('RISK QUANTN - EMERGENCY REPLACE'!$D$92,0,ROW()-ROW($C$4)) -> 0 | L58: =OFFSET('RISK QUANTN - SAFETY'!$D$90,0,ROW()-ROW($C$4)) -> 0 | M58: =SUM(OFFSET('RISK QUANTN - ENVIRONMENTAL'!$D$90,0,ROW()-ROW($C$4)),OFFSET('RISK QUANTN - ENVIRONMENTAL'!$D$130,0,ROW()-ROW($C$4))) -> 0 | N58: 0
B59: =Input!Q70 -> 2084 | C59: =OFFSET('RISK QUANTN - RELIABILITY solar'!$E$79,0,ROW()-ROW($C$4)) -> 0 | D59: =IFERROR(OFFSET('RISK QUANTN - RELIABILITY solar'!$E$78,0,ROW()-ROW($C$4)),0) -> 0 | E59: 0 | F59: =OFFSET('RISK QUANTN - RELIABILITY expor'!$E$89,0,ROW()-ROW($C$4)) -> 0 | G59: =IFERROR(OFFSET('RISK QUANTN - RELIABILITY expor'!$E$88,0,ROW()-ROW($C$4)),0) -> 0 | H59: 0 | I59: =IFERROR($E59*Input!M$55,0) -> 0 | J59: =OFFSET('RISK QUANTN - RELIABILITY expor'!$E$97,0,ROW()-ROW($C$4)) -> 0 | K59: =OFFSET('RISK QUANTN - EMERGENCY REPLACE'!$D$92,0,ROW()-ROW($C$4)) -> 0 | L59: =OFFSET('RISK QUANTN - SAFETY'!$D$90,0,ROW()-ROW($C$4)) -> 0 | M59: =SUM(OFFSET('RISK QUANTN - ENVIRONMENTAL'!$D$90,0,ROW()-ROW($C$4)),OFFSET('RISK QUANTN - ENVIRONMENTAL'!$D$130,0,ROW()-ROW($C$4))) -> 0 | N59: 0
B60: =Input!Q71 -> 2085 | C60: =OFFSET('RISK QUANTN - RELIABILITY solar'!$E$79,0,ROW()-ROW($C$4)) -> 0 | D60: =IFERROR(OFFSET('RISK QUANTN - RELIABILITY solar'!$E$78,0,ROW()-ROW($C$4)),0) -> 0 | E60: 0 | F60: =OFFSET('RISK QUANTN - RELIABILITY expor'!$E$89,0,ROW()-ROW($C$4)) -> 0 | G60: =IFERROR(OFFSET('RISK QUANTN - RELIABILITY expor'!$E$88,0,ROW()-ROW($C$4)),0) -> 0 | H60: 0 | I60: =IFERROR($E60*Input!M$55,0) -> 0 | J60: =OFFSET('RISK QUANTN - RELIABILITY expor'!$E$97,0,ROW()-ROW($C$4)) -> 0 | K60: =OFFSET('RISK QUANTN - EMERGENCY REPLACE'!$D$92,0,ROW()-ROW($C$4)) -> 0 | L60: =OFFSET('RISK QUANTN - SAFETY'!$D$90,0,ROW()-ROW($C$4)) -> 0 | M60: =SUM(OFFSET('RISK QUANTN - ENVIRONMENTAL'!$D$90,0,ROW()-ROW($C$4)),OFFSET('RISK QUANTN - ENVIRONMENTAL'!$D$130,0,ROW()-ROW($C$4))) -> 0 | N60: 0
B61: =Input!Q72 -> 2086 | C61: =OFFSET('RISK QUANTN - RELIABILITY solar'!$E$79,0,ROW()-ROW($C$4)) -> 0 | D61: =IFERROR(OFFSET('RISK QUANTN - RELIABILITY solar'!$E$78,0,ROW()-ROW($C$4)),0) -> 0 | E61: 0 | F61: =OFFSET('RISK QUANTN - RELIABILITY expor'!$E$89,0,ROW()-ROW($C$4)) -> 0 | G61: =IFERROR(OFFSET('RISK QUANTN - RELIABILITY expor'!$E$88,0,ROW()-ROW($C$4)),0) -> 0 | H61: 0 | I61: =IFERROR($E61*Input!M$55,0) -> 0 | J61: =OFFSET('RISK QUANTN - RELIABILITY expor'!$E$97,0,ROW()-ROW($C$4)) -> 0 | K61: =OFFSET('RISK QUANTN - EMERGENCY REPLACE'!$D$92,0,ROW()-ROW($C$4)) -> 0 | L61: =OFFSET('RISK QUANTN - SAFETY'!$D$90,0,ROW()-ROW($C$4)) -> 0 | M61: =SUM(OFFSET('RISK QUANTN - ENVIRONMENTAL'!$D$90,0,ROW()-ROW($C$4)),OFFSET('RISK QUANTN - ENVIRONMENTAL'!$D$130,0,ROW()-ROW($C$4))) -> 0 | N61: 0
B62: =Input!Q73 -> 2087 | C62: =OFFSET('RISK QUANTN - RELIABILITY solar'!$E$79,0,ROW()-ROW($C$4)) -> 0 | D62: =IFERROR(OFFSET('RISK QUANTN - RELIABILITY solar'!$E$78,0,ROW()-ROW($C$4)),0) -> 0 | E62: 0 | F62: =OFFSET('RISK QUANTN - RELIABILITY expor'!$E$89,0,ROW()-ROW($C$4)) -> 0 | G62: =IFERROR(OFFSET('RISK QUANTN - RELIABILITY expor'!$E$88,0,ROW()-ROW($C$4)),0) -> 0 | H62: 0 | I62: =IFERROR($E62*Input!M$55,0) -> 0 | J62: =OFFSET('RISK QUANTN - RELIABILITY expor'!$E$97,0,ROW()-ROW($C$4)) -> 0 | K62: =OFFSET('RISK QUANTN - EMERGENCY REPLACE'!$D$92,0,ROW()-ROW($C$4)) -> 0 | L62: =OFFSET('RISK QUANTN - SAFETY'!$D$90,0,ROW()-ROW($C$4)) -> 0 | M62: =SUM(OFFSET('RISK QUANTN - ENVIRONMENTAL'!$D$90,0,ROW()-ROW($C$4)),OFFSET('RISK QUANTN - ENVIRONMENTAL'!$D$130,0,ROW()-ROW($C$4))) -> 0 | N62: 0
B63: =Input!Q74 -> 2088 | C63: =OFFSET('RISK QUANTN - RELIABILITY solar'!$E$79,0,ROW()-ROW($C$4)) -> 0 | D63: =IFERROR(OFFSET('RISK QUANTN - RELIABILITY solar'!$E$78,0,ROW()-ROW($C$4)),0) -> 0 | E63: 0 | F63: =OFFSET('RISK QUANTN - RELIABILITY expor'!$E$89,0,ROW()-ROW($C$4)) -> 0 | G63: =IFERROR(OFFSET('RISK QUANTN - RELIABILITY expor'!$E$88,0,ROW()-ROW($C$4)),0) -> 0 | H63: 0 | I63: =IFERROR($E63*Input!M$55,0) -> 0 | J63: =OFFSET('RISK QUANTN - RELIABILITY expor'!$E$97,0,ROW()-ROW($C$4)) -> 0 | K63: =OFFSET('RISK QUANTN - EMERGENCY REPLACE'!$D$92,0,ROW()-ROW($C$4)) -> 0 | L63: =OFFSET('RISK QUANTN - SAFETY'!$D$90,0,ROW()-ROW($C$4)) -> 0 | M63: =SUM(OFFSET('RISK QUANTN - ENVIRONMENTAL'!$D$90,0,ROW()-ROW($C$4)),OFFSET('RISK QUANTN - ENVIRONMENTAL'!$D$130,0,ROW()-ROW($C$4))) -> 0 | N63: 0
B64: =Input!Q75 -> 2089 | C64: =OFFSET('RISK QUANTN - RELIABILITY solar'!$E$79,0,ROW()-ROW($C$4)) -> 0 | D64: =IFERROR(OFFSET('RISK QUANTN - RELIABILITY solar'!$E$78,0,ROW()-ROW($C$4)),0) -> 0 | E64: 0 | F64: =OFFSET('RISK QUANTN - RELIABILITY expor'!$E$89,0,ROW()-ROW($C$4)) -> 0 | G64: =IFERROR(OFFSET('RISK QUANTN - RELIABILITY expor'!$E$88,0,ROW()-ROW($C$4)),0) -> 0 | H64: 0 | I64: =IFERROR($E64*Input!M$55,0) -> 0 | J64: =OFFSET('RISK QUANTN - RELIABILITY expor'!$E$97,0,ROW()-ROW($C$4)) -> 0 | K64: =OFFSET('RISK QUANTN - EMERGENCY REPLACE'!$D$92,0,ROW()-ROW($C$4)) -> 0 | L64: =OFFSET('RISK QUANTN - SAFETY'!$D$90,0,ROW()-ROW($C$4)) -> 0 | M64: =SUM(OFFSET('RISK QUANTN - ENVIRONMENTAL'!$D$90,0,ROW()-ROW($C$4)),OFFSET('RISK QUANTN - ENVIRONMENTAL'!$D$130,0,ROW()-ROW($C$4))) -> 0 | N64: 0

Sheet Reconductor -CF
C1: Cell Guide: | F1: Safety risk | I1: Environmental risk | K1: Bushfire risk
C2: Input | F2: risk exists | G2: yes | I2: risk exists | J2: yes | K2: risk exists | L2: yes | N2: Option & Scenario Description
C3: Formula/Calculations | F3: likelihood scale | G3: 3 | I3: likelihood scale | J3: 3 | K3: bushfire region | L3: Gold Coast | N3: After the loss of F429, SSTLF, SSTCB and SSGBN is at risk.
C4: Formula/Calculations that can be overriden | F4: risk of fatality | G4: no | I4: quantity of spill | J4: >20,000 L
F5: fatality of public | G5: no
C6: Base Year: | D6: 2029 | F6: fatality of employee | G6: yes
C7: Single Contingency | D7: Yes - model single contingency | F7: risk of injury | G7: yes | J7: Benefit Multiplier | K7: =DATA!C73 -> 1
F8: injury to public | G8: no | J8: PoF multiplier | K8: =DATA!C72 -> 1
F9: injury to employee | G9: yes
B11: Contingency Components | P11: Substation/Feeder Load Forecast | Z11: Generation Forecast
C13: Transformers and Circuit Breakers | I13: Circuits/Feeders | Q13: SIFT Load Forecast | U13: Historic 30 minute load data from (SCID/NODW) (kW) This data is not used for calcualtions | W13: 30 minute load data corrected (kW) [for solar customers] This is used for calcualtions | AA13: Generation (export) data MW | AC13: Max installed output (MW) | AE13: Max allowed export under system normal (MW)
C14: Name | D14: Type | E14: YOM | F14: Full restoration of supply time (hours) | G14: Cost of emergency repair ($) | I14: Name | J14: Type | K14: Length (km) | L14: Forced Outage Rate (per year) | M14: Repair (hrs) | Q14: Year | R14: Loading (MVA) | S14: PF | U14: Annual | W14: Annual | AA14: Annual | AC14: Year | AD14: Annual | AE14: Annual
F15: =IFERROR(VLOOKUP(D15,DATA!B$42:G$46,6,FALSE),"") ->  | I15: F429 | J15: Overhead 33kV | K15: 27.4 | L15: =IFERROR((VLOOKUP(J15,DATA!B$3:C$10,2,FALSE)*(K15/100)),"") -> 1.5344 | M15: 6 | Q15: =D6 -> 2029 | R15: 25.072627 | S15: 1 | U15: 15429.18813 | V15: ="" ->  | W15: 15429.18813 | AC15: =D6 -> 2029
F16: =IFERROR(VLOOKUP(D16,DATA!B$42:G$46,6,FALSE),"") ->  | L16: =IFERROR((VLOOKUP(J16,DATA!B$3:C$10,2,FALSE)*(K16/100)),"") ->  | M16: =IFERROR(VLOOKUP(J16,DATA!G$3:H$10,2,FALSE),"") ->  | Q16: =Q15+1 -> 2030 | R16: 25.074335 | S16: 1 | U16: 15119.23915 | V16: ="" ->  | W16: 15119.23915 | AC16: =AC15+1 -> 2030
F17: =IFERROR(VLOOKUP(D17,DATA!B$42:G$46,6,FALSE),"") ->  | L17: =IFERROR((VLOOKUP(J17,DATA!B$3:C$10,2,FALSE)*(K17/100)),"") ->  | M17: =IFERROR(VLOOKUP(J17,DATA!G$3:H$10,2,FALSE),"") ->  | Q17: 2031 | R17: 25.109078 | S17: 1 | U17: 15580.09177 | V17: ="" ->  | W17: 15580.09177 | AC17: 2031
F18: =IFERROR(VLOOKUP(D18,DATA!B$42:G$46,6,FALSE),"") ->  | L18: =IFERROR((VLOOKUP(J18,DATA!B$3:C$10,2,FALSE)*(K18/100)),"") ->  | M18: =IFERROR(VLOOKUP(J18,DATA!G$3:H$10,2,FALSE),"") ->  | Q18: 2032 | R18: 25.149012 | S18: 1 | U18: 15532.54288 | V18: ="" ->  | W18: 15532.54288 | AC18: 2032
F19: =IFERROR(VLOOKUP(D19,DATA!B$42:G$46,6,FALSE),"") ->  | L19: =IFERROR((VLOOKUP(J19,DATA!B$3:C$10,2,FALSE)*(K19/100)),"") ->  | M19: =IFERROR(VLOOKUP(J19,DATA!G$3:H$10,2,FALSE),"") ->  | Q19: 2033 | R19: 25.048406 | S19: 1 | U19: 14882.5627 | V19: ="" ->  | W19: 14882.5627 | AC19: 2033
F20: =IFERROR(VLOOKUP(D20,DATA!B$42:G$46,6,FALSE),"") ->  | L20: =IFERROR((VLOOKUP(J20,DATA!B$3:C$10,2,FALSE)*(K20/100)),"") ->  | M20: =IFERROR(VLOOKUP(J20,DATA!G$3:H$10,2,FALSE),"") ->  | Q20: 2034 | R20: 25.019577 | S20: 1 | U20: 15198.70764 | V20: ="" ->  | W20: 15198.70764 | AC20: 2034
F21: =IFERROR(VLOOKUP(D21,DATA!B$42:G$46,6,FALSE),"") ->  | L21: =IFERROR((VLOOKUP(J21,DATA!B$3:C$10,2,FALSE)*(K21/100)),"") ->  | M21: =IFERROR(VLOOKUP(J21,DATA!G$3:H$10,2,FALSE),"") ->  | Q21: 2035 | R21: =R20*1.005 -> 25.14467489 | S21: 1 | U21: 14924.57587 | V21: ="" ->  | W21: 14924.57587 | AC21: 2035
F22: =IFERROR(VLOOKUP(D22,DATA!B$42:G$46,6,FALSE),"") ->  | L22: =IFERROR((VLOOKUP(J22,DATA!B$3:C$10,2,FALSE)*(K22/100)),"") ->  | M22: =IFERROR(VLOOKUP(J22,DATA!G$3:H$10,2,FALSE),"") ->  | Q22: 2036 | R22: =R21*1.005 -> 25.27039826 | S22: 1 | U22: 14712.16798 | V22: ="" ->  | W22: 14712.16798 | AC22: 2036
F23: =IFERROR(VLOOKUP(D23,DATA!B$42:G$46,6,FALSE),"") ->  | L23: =IFERROR((VLOOKUP(J23,DATA!B$3:C$10,2,FALSE)*(K23/100)),"") ->  | M23: =IFERROR(VLOOKUP(J23,DATA!G$3:H$10,2,FALSE),"") ->  | Q23: 2037 | R23: 25.39675025 | S23: 1 | U23: 14670.63534 | V23: ="" ->  | W23: 14670.63534 | AC23: 2037
F24: =IFERROR(VLOOKUP(D24,DATA!B$42:G$46,6,FALSE),"") ->  | L24: =IFERROR((VLOOKUP(J24,DATA!B$3:C$10,2,FALSE)*(K24/100)),"") ->  | M24: =IFERROR(VLOOKUP(J24,DATA!G$3:H$10,2,FALSE),"") ->  | Q24: 2038 | R24: 25.523734 | S24: 1 | U24: 13389.02414 | V24: ="" ->  | W24: 13389.02414 | AC24: 2038
F25: =IFERROR(VLOOKUP(D25,DATA!B$42:G$46,6,FALSE),"") ->  | L25: =IFERROR((VLOOKUP(J25,DATA!B$3:C$10,2,FALSE)*(K25/100)),"") ->  | M25: =IFERROR(VLOOKUP(J25,DATA!G$3:H$10,2,FALSE),"") ->  | Q25: 2039 | R25: 25.65135267 | S25: 1 | U25: 13088.81247 | V25: ="" ->  | W25: 13088.81247 | AC25: 2039
F26: =IFERROR(VLOOKUP(D26,DATA!B$42:G$46,6,FALSE),"") ->  | L26: =IFERROR((VLOOKUP(J26,DATA!B$3:C$10,2,FALSE)*(K26/100)),"") ->  | M26: =IFERROR(VLOOKUP(J26,DATA!G$3:H$10,2,FALSE),"") ->  | Q26: 2040 | R26: 25.77960944 | S26: 1 | U26: 13708.70441 | V26: ="" ->  | W26: 13708.70441 | AC26: 2040
F27: =IFERROR(VLOOKUP(D27,DATA!B$42:G$46,6,FALSE),"") ->  | L27: =IFERROR((VLOOKUP(J27,DATA!B$3:C$10,2,FALSE)*(K27/100)),"") ->  | M27: =IFERROR(VLOOKUP(J27,DATA!G$3:H$10,2,FALSE),"") ->  | Q27: 2041 | R27: 25.90850748 | S27: 1 | U27: 13548.62189 | V27: ="" ->  | W27: 13548.62189 | AC27: 2041
F28: =IFERROR(VLOOKUP(D28,DATA!B$42:G$46,6,FALSE),"") ->  | Q28: 2042 | R28: 26.03805002 | S28: 1 | U28: 13212.03911 | V28: ="" ->  | W28: 13212.03911 | AC28: 2042
F29: =IFERROR(VLOOKUP(D29,DATA!B$42:G$46,6,FALSE),"") ->  | I29: Buses, VTs, CTs and Relays | Q29: 2043 | R29: 26.16824027 | S29: 1 | U29: 13120.07976 | V29: ="" ->  | W29: 13120.07976 | AC29: 2043
F30: =IFERROR(VLOOKUP(D30,DATA!B$42:G$46,6,FALSE),"") ->  | I30: Name | J30: Type | K30: YOM | L30: Repair (hrs) | M30: Repair Cost ($) | Q30: 2044 | R30: 26.29908147 | S30: 1 | U30: 13483.21599 | V30: ="" ->  | W30: 13483.21599 | AC30: 2044
F31: =IFERROR(VLOOKUP(D31,DATA!B$42:G$46,6,FALSE),"") ->  | L31: =IFERROR(VLOOKUP(J31,DATA!G$14:H$37,2,FALSE),"") ->  | Q31: 2045 | R31: 26.43057688 | S31: 1 | U31: 14305.52685 | V31: ="" ->  | W31: 14305.52685 | AC31: 2045
F32: =IFERROR(VLOOKUP(D32,DATA!B$42:G$46,6,FALSE),"") ->  | L32: =IFERROR(VLOOKUP(J32,DATA!G$14:H$37,2,FALSE),"") ->  | Q32: 2046 | R32: 26.56272976 | S32: 1 | U32: 13732.96535 | V32: ="" ->  | W32: 13732.96535 | AC32: 2046
F33: =IFERROR(VLOOKUP(D33,DATA!B$42:G$46,6,FALSE),"") ->  | L33: =IFERROR(VLOOKUP(J33,DATA!G$14:H$37,2,FALSE),"") ->  | Q33: 2047 | R33: 26.69554341 | S33: 1 | U33: 12714.43519 | V33: ="" ->  | W33: 12714.43519 | AC33: 2047
F34: =IFERROR(VLOOKUP(D34,DATA!B$42:G$46,6,FALSE),"") ->  | L34: =IFERROR(VLOOKUP(J34,DATA!G$14:H$37,2,FALSE),"") ->  | Q34: 2048 | R34: 26.82902113 | S34: 1 | U34: 12813.57291 | V34: ="" ->  | W34: 12813.57291 | AC34: 2048
F35: =IFERROR(VLOOKUP(D35,DATA!B$42:G$46,6,FALSE),"") ->  | L35: =IFERROR(VLOOKUP(J35,DATA!G$14:H$37,2,FALSE),"") ->  | Q35: 2049 | R35: 26.96316623 | S35: 1 | U35: 14006.21402 | V35: ="" ->  | W35: 14006.21402 | AC35: 2049
F36: =IFERROR(VLOOKUP(D36,DATA!B$42:G$46,6,FALSE),"") ->  | L36: =IFERROR(VLOOKUP(J36,DATA!G$14:H$37,2,FALSE),"") ->  | Q36: 2050 | R36: 27.09798207 | S36: 1 | U36: 13235.30173 | V36: ="" ->  | W36: 13235.30173 | AC36: 2050
F37: =IFERROR(VLOOKUP(D37,DATA!B$42:G$46,6,FALSE),"") ->  | L37: =IFERROR(VLOOKUP(J37,DATA!G$14:H$37,2,FALSE),"") ->  | Q37: 2051 | R37: 27.23347198 | S37: 1 | U37: 13074.85425 | V37: ="" ->  | W37: 13074.85425 | AC37: 2051
F38: =IFERROR(VLOOKUP(D38,DATA!B$42:G$46,6,FALSE),"") ->  | L38: =IFERROR(VLOOKUP(J38,DATA!G$14:H$37,2,FALSE),"") ->  | Q38: 2052 | R38: 27.36963934 | S38: 1 | U38: 12409.35695 | V38: ="" ->  | W38: 12409.35695 | AC38: 2052
F39: =IFERROR(VLOOKUP(D39,DATA!B$42:G$46,6,FALSE),"") ->  | L39: =IFERROR(VLOOKUP(J39,DATA!G$14:H$37,2,FALSE),"") ->  | Q39: 2053 | R39: 27.50648753 | S39: 1 | U39: 13613.27016 | V39: ="" ->  | W39: 13613.27016 | AC39: 2053
F40: =IFERROR(VLOOKUP(D40,DATA!B$42:G$46,6,FALSE),"") ->  | L40: =IFERROR(VLOOKUP(J40,DATA!G$14:H$37,2,FALSE),"") ->  | Q40: 2054 | R40: 27.64401997 | S40: 1 | U40: 13945.67633 | V40: ="" ->  | W40: 13945.67633 | AC40: 2054
Q41: 2055 | R41: 27.78224007 | S41: 1 | U41: 13589.1512 | V41: ="" ->  | W41: 13589.1512 | AC41: 2055
Q42: 2056 | R42: 27.92115127 | S42: 1 | U42: 13355.33178 | V42: ="" ->  | W42: 13355.33178 | AC42: 2056
B43: Contingency Response | I43: VCR Rate Calculation | Q43: 2057 | R43: 28.06075703 | S43: 1 | U43: 14082.76075 | V43: ="" ->  | W43: 14082.76075 | AC43: 2057
Q44: 2058 | R44: 28.20106081 | S44: 1 | U44: 15678.1491 | V44: ="" ->  | W44: 15678.1491 | AC44: 2058
C45: Load Served after Contingency | L45: Customer Energy Calculation | Q45: 2059 | R45: 28.34206612 | S45: 1 | U45: 16524.37723 | V45: ="" ->  | W45: 16524.37723 | AC45: 2059
D46: Rating | E46: Period of Time Rating is available | G46: Notes on why values have been chosen | K46: Postcode | L46: Annual Consumption (kWH) | M46: VCR | Q46: 2060 | R46: 28.48377645 | S46: 1 | U46: 16820.20402 | V46: ="" ->  | W46: 16820.20402 | AC46: 2060
C47: 'Total' Immediate Capacity | D47: 15.89 | E47: 2 | F47: Time 1 | G47: 15.89 MVA is the 2HR rating of F341 | J47: Domestic | K47: 4580 | L47: 23189248.08 | M47: 29.967228 | Q47: 2061 | R47: 28.62619533 | S47: 1 | U47: 17251.23596 | V47: ="" ->  | W47: 17251.23596 | AC47: 2061
C48: 'Total' Capacity between Time 1 and Time 3 | D48: 12.56 | E48: =E49-E47 -> 3 | F48: Time 2 | G48: ec+mt 0.5MVA (from GBN to adjacent sub) | J48: Commercial | L48: 13562890.98 | M48: 52.200298 | Q48: 2062 | R48: 28.76932631 | S48: 1 | U48: 17756.7091 | V48: ="" ->  | W48: 17756.7091 | AC48: 2062
C49: 'Total' Capacity at Time 3 | D49: 12.56 | E49: 5 | F49: Time 3 | G49: ec+mt 0.5MVA (not enough time to deploy MG) | J49: Industrial | L49: 92993204.86 | M49: 74.781089 | Q49: =Q48+1 -> 2063 | R49: 28.91317294 | S49: 1 | U49: 17982.47433 | V49: ="" ->  | W49: 17982.47433 | AC49: =AC48+1 -> 2063
J50: Agricultural | L50: 6919505.3 | M50: 44.402918 | Q50: =Q49+1 -> 2064 | R50: 29.0577388 | S50: 1 | U50: 18492.49434 | V50: ="" ->  | W50: 18492.49434 | AC50: =AC49+1 -> 2064
J51: Large Cust. Services (>10MVA) | M51: 12.359901 | Q51: 2065 | R51: 29.2030275 | S51: 1 | U51: 18856.14324 | V51: ="" ->  | W51: 18856.14324 | AC51: 2065
J52: Large Cust. Industrial (>10MVA) | M52: 138.329736 | Q52: 2066 | R52: 29.34904263 | S52: 1 | U52: 18509.29248 | V52: ="" ->  | W52: 18509.29248 | AC52: 2066
C53: Export under Contingency (MVA) | J53: Large Cust. Metals (>10MVA) | M53: 23.28677 | Q53: 2067 | R53: 29.49578785 | S53: 1 | U53: 16868.69049 | V53: ="" ->  | W53: 16868.69049 | AC53: 2067
D54: Rating | E54: Period of Time Export is available | J54: Large Cust. Mines (>10MVA) | M54: 41.220744 | Q54: 2068 | R54: 29.64326679 | S54: 1 | U54: 15831.62808 | V54: ="" ->  | W54: 15831.62808 | AC54: 2068
C55: Immediate Export allowed | E55: 2 | F55: Time 1 | J55: Total | L55: =SUM(L47:L54) -> 136664849.2 | M55: =(($L$47*$M$47)+($L$48*$M$48)+($L$49*$M$49)+($L$50*$M$50)+ ($L$51*$M$51)+ ($L$52*$M$52)+ ($L$53*$M$53)+ ($L$54*$M$54))/$L$55 -> 63.39804156 | Q55: =Q54+1 -> 2069 | R55: 29.79148312 | S55: 1 | U55: 15528.2284 | V55: ="" ->  | W55: 15528.2284 | AC55: =AC54+1 -> 2069
C56: Export allowed between Time 1 and Time 3 | E56: =E57-E55 -> -2 | F56: Time 2 | Q56: 2070 | R56: 29.94044054 | S56: 1 | U56: 15363.13987 | V56: ="" ->  | W56: 15363.13987 | AC56: 2070
C57: Export allowed after Time 3 | F57: Time 3 | Q57: 2071 | R57: 30.09014274 | S57: 1 | U57: 17346.69757 | V57: ="" ->  | W57: 17346.69757 | AC57: 2071
Q58: 2072 | R58: 30.24059345 | S58: 1 | U58: 16986.66668 | V58: ="" ->  | W58: 16986.66668 | AC58: 2072
Q59: 2073 | R59: 30.39179642 | S59: 1 | U59: 16781.68774 | V59: ="" ->  | W59: 16781.68774 | AC59: 2073
Q60: 2074 | R60: 30.5437554 | S60: 1 | U60: 16589.68842 | V60: ="" ->  | W60: 16589.68842 | AC60: 2074
Q61: 2075 | R61: 30.69647418 | S61: 1 | U61: 16750.26238 | V61: ="" ->  | W61: 16750.26238 | AC61: 2075
Q62: 2076 | R62: 30.84995655 | S62: 1 | U62: 16345.86608 | V62: ="" ->  | W62: 16345.86608 | AC62: 2076
Q63: 2077 | R63: 31.00420633 | S63: 1 | U63: 15465.27553 | V63: ="" ->  | W63: 15465.27553 | AC63: 2077
Q64: 2078 | R64: 31.15922736 | S64: 1 | U64: 15100.17955 | V64: ="" ->  | W64: 15100.17955 | AC64: 2078
Q65: 2079 | R65: 31.3150235 | S65: 1 | U65: 16211.8544 | V65: ="" ->  | W65: 16211.8544 | AC65: 2079
Q66: 2080 | R66: 31.47159862 | S66: 1 | U66: 15984.92151 | V66: ="" ->  | W66: 15984.92151 | AC66: 2080
Q67: 2081 | R67: 31.62895661 | S67: 1 | U67: 15508.27503 | V67: ="" ->  | W67: 15508.27503 | AC67: 2081
Q68: 2082 | R68: 31.78710139 | S68: 1 | U68: 15529.49876 | V68: ="" ->  | W68: 15529.49876 | AC68: 2082
Q69: 2083 | R69: 31.9460369 | S69: 1 | U69: 15055.82786 | V69: ="" ->  | W69: 15055.82786 | AC69: 2083
Q70: 2084 | R70: 32.10576709 | S70: 1 | U70: 14697.95126 | V70: ="" ->  | W70: 14697.95126 | AC70: 2084
Q71: 2085 | R71: 32.26629592 | S71: 1 | U71: 15264.48005 | V71: ="" ->  | W71: 15264.48005 | AC71: 2085
Q72: 2086 | R72: 32.4276274 | S72: 1 | U72: 15382.33078 | V72: ="" ->  | W72: 15382.33078 | AC72: 2086
Q73: 2087 | R73: 32.58976554 | S73: 1 | U73: 14216.22962 | V73: ="" ->  | W73: 14216.22962 | AC73: 2087
Q74: 2088 | R74: 32.75271436 | S74: 1 | U74: 13782.89413 | V74: ="" ->  | W74: 13782.89413 | AC74: 2088
Q75: 2089 | R75: 32.91647794 | S75: 1 | U75: 14537.34148 | V75: ="" ->  | W75: 14537.34148 | AC75: 2089
U76: 14568.53354 | V76: ="" ->  | W76: 14568.53354
U77: 15501.48463 | V77: ="" ->  | W77: 15501.48463
U78: 16615.62443 | V78: ="" ->  | W78: 16615.62443
U79: 16170.36772 | V79: ="" ->  | W79: 16170.36772
U80: 15499.76194 | V80: ="" ->  | W80: 15499.76194
U81: 15077.71194 | V81: ="" ->  | W81: 15077.71194
U82: 14674.19159 | V82: ="" ->  | W82: 14674.19159
U83: 14651.45844 | V83: ="" ->  | W83: 14651.45844
U84: 14508.64971 | V84: ="" ->  | W84: 14508.64971
U85: 15130.93084 | V85: ="" ->  | W85: 15130.93084
U86: 15494.49244 | V86: ="" ->  | W86: 15494.49244
U87: 15167.26699 | V87: ="" ->  | W87: 15167.26699
U88: 14912.92751 | V88: ="" ->  | W88: 14912.92751
U89: 13862.84155 | V89: ="" ->  | W89: 13862.84155
U90: 13984.85243 | V90: ="" ->  | W90: 13984.85243
U91: 15458.01353 | V91: ="" ->  | W91: 15458.01353
U92: 15823.66115 | V92: ="" ->  | W92: 15823.66115
U93: 15552.38843 | V93: ="" ->  | W93: 15552.38843
U94: 15986.53448 | V94: ="" ->  | W94: 15986.53448
U95: 17089.72585 | V95: ="" ->  | W95: 17089.72585
U96: 17088.2771 | V96: ="" ->  | W96: 17088.2771
U97: 16135.72299 | V97: ="" ->  | W97: 16135.72299
U98: 15864.74335 | V98: ="" ->  | W98: 15864.74335
U99: 16135.83124 | V99: ="" ->  | W99: 16135.83124
U100: 16087.75258 | V100: ="" ->  | W100: 16087.75258
U101: 15666.03005 | V101: ="" ->  | W101: 15666.03005
U102: 16820.82283 | V102: ="" ->  | W102: 16820.82283
U103: 17261.31153 | V103: ="" ->  | W103: 17261.31153
U104: 17130.09465 | V104: ="" ->  | W104: 17130.09465
U105: 17285.63976 | V105: ="" ->  | W105: 17285.63976
U106: 17094.9297 | V106: ="" ->  | W106: 17094.9297
U107: 16637.96043 | V107: ="" ->  | W107: 16637.96043
U108: 16561.02288 | V108: ="" ->  | W108: 16561.02288
U109: 16595.36624 | V109: ="" ->  | W109: 16595.36624
U110: 16347.03207 | V110: ="" ->  | W110: 16347.03207
U111: 15725.71588 | V111: ="" ->  | W111: 15725.71588
U112: 15229.23607 | V112: ="" ->  | W112: 15229.23607
U113: 15806.4391 | V113: ="" ->  | W113: 15806.4391
U114: 15859.92825 | V114: ="" ->  | W114: 15859.92825
U115: 15460.65331 | V115: ="" ->  | W115: 15460.65331
U116: 15474.77251 | V116: ="" ->  | W116: 15474.77251
U117: 15077.97474 | V117: ="" ->  | W117: 15077.97474
U118: 14863.81304 | V118: ="" ->  | W118: 14863.81304
U119: 15216.36403 | V119: ="" ->  | W119: 15216.36403
U120: 15297.26738 | V120: ="" ->  | W120: 15297.26738
U121: 15482.08249 | V121: ="" ->  | W121: 15482.08249
U122: 15682.02293 | V122: ="" ->  | W122: 15682.02293
U123: 16222.39387 | V123: ="" ->  | W123: 16222.39387
U124: 16153.41139 | V124: ="" ->  | W124: 16153.41139
U125: 15587.87727 | V125: ="" ->  | W125: 15587.87727
U126: 14419.41661 | V126: ="" ->  | W126: 14419.41661
U127: 13721.30376 | V127: ="" ->  | W127: 13721.30376
U128: 13166.23777 | V128: ="" ->  | W128: 13166.23777
U129: 13162.86087 | V129: ="" ->  | W129: 13162.86087
U130: 13005.67216 | V130: ="" ->  | W130: 13005.67216
U131: 12796.23415 | V131: ="" ->  | W131: 12796.23415
U132: 11963.43352 | V132: ="" ->  | W132: 11963.43352
U133: 12372.55602 | V133: ="" ->  | W133: 12372.55602
U134: 12670.16551 | V134: ="" ->  | W134: 12670.16551
U135: 12412.51521 | V135: ="" ->  | W135: 12412.51521
U136: 12720.19495 | V136: ="" ->  | W136: 12720.19495
U137: 13166.49759 | V137: ="" ->  | W137: 13166.49759
U138: 13770.39051 | V138: ="" ->  | W138: 13770.39051
U139: 12990.245 | V139: ="" ->  | W139: 12990.245
U140: 12341.06772 | V140: ="" ->  | W140: 12341.06772
U141: 13104.13066 | V141: ="" ->  | W141: 13104.13066
U142: 14492.64157 | V142: ="" ->  | W142: 14492.64157
U143: 15242.68711 | V143: ="" ->  | W143: 15242.68711
U144: 16650.90716 | V144: ="" ->  | W144: 16650.90716
U145: 17280.30503 | V145: ="" ->  | W145: 17280.30503
U146: 17922.59085 | V146: ="" ->  | W146: 17922.59085
U147: 18513.70347 | V147: ="" ->  | W147: 18513.70347
U148: 18289.2313 | V148: ="" ->  | W148: 18289.2313
U149: 17973.21081 | V149: ="" ->  | W149: 17973.21081
U150: 17689.35859 | V150: ="" ->  | W150: 17689.35859
U151: 17516.87002 | V151: ="" ->  | W151: 17516.87002
U152: 17062.60753 | V152: ="" ->  | W152: 17062.60753
U153: 16868.63232 | V153: ="" ->  | W153: 16868.63232
U154: 16554.41129 | V154: ="" ->  | W154: 16554.41129
U155: 16120.09501 | V155: ="" ->  | W155: 16120.09501
U156: 16651.60298 | V156: ="" ->  | W156: 16651.60298
U157: 16376.29318 | V157: ="" ->  | W157: 16376.29318
U158: 15717.22519 | V158: ="" ->  | W158: 15717.22519
U159: 14923.64812 | V159: ="" ->  | W159: 14923.64812
U160: 14393.3621 | V160: ="" ->  | W160: 14393.3621
U161: 14773.59933 | V161: ="" ->  | W161: 14773.59933
U162: 15037.44715 | V162: ="" ->  | W162: 15037.44715
U163: 14817.38389 | V163: ="" ->  | W163: 14817.38389
U164: 14636.72858 | V164: ="" ->  | W164: 14636.72858
U165: 14711.5494 | V165: ="" ->  | W165: 14711.5494
U166: 14559.89277 | V166: ="" ->  | W166: 14559.89277
U167: 14225.67809 | V167: ="" ->  | W167: 14225.67809
U168: 14280.69335 | V168: ="" ->  | W168: 14280.69335
U169: 14609.45016 | V169: ="" ->  | W169: 14609.45016
U170: 14749.98808 | V170: ="" ->  | W170: 14749.98808
U171: 14746.45162 | V171: ="" ->  | W171: 14746.45162
U172: 14340.68388 | V172: ="" ->  | W172: 14340.68388
U173: 14009.68957 | V173: ="" ->  | W173: 14009.68957
U174: 13557.23685 | V174: ="" ->  | W174: 13557.23685
U175: 12584.58024 | V175: ="" ->  | W175: 12584.58024
U176: 12204.06336 | V176: ="" ->  | W176: 12204.06336
U177: 11829.48487 | V177: ="" ->  | W177: 11829.48487
U178: 12164.61033 | V178: ="" ->  | W178: 12164.61033
U179: 11947.48983 | V179: ="" ->  | W179: 11947.48983
U180: 11585.47986 | V180: ="" ->  | W180: 11585.47986
U181: 11602.82132 | V181: ="" ->  | W181: 11602.82132
U182: 11493.48922 | V182: ="" ->  | W182: 11493.48922
U183: 11819.89832 | V183: ="" ->  | W183: 11819.89832
U184: 12532.66908 | V184: ="" ->  | W184: 12532.66908
U185: 13405.48509 | V185: ="" ->  | W185: 13405.48509
U186: 13296.71526 | V186: ="" ->  | W186: 13296.71526
U187: 15277.91637 | V187: ="" ->  | W187: 15277.91637
U188: 15743.14696 | V188: ="" ->  | W188: 15743.14696
U189: 14324.10091 | V189: ="" ->  | W189: 14324.10091
U190: 14341.26526 | V190: ="" ->  | W190: 14341.26526
U191: 15583.3261 | V191: ="" ->  | W191: 15583.3261
U192: 16972.07367 | V192: ="" ->  | W192: 16972.07367
U193: 17562.46817 | V193: ="" ->  | W193: 17562.46817
U194: 18558.3204 | V194: ="" ->  | W194: 18558.3204
U195: 19245.3835 | V195: ="" ->  | W195: 19245.3835
U196: 19489.97974 | V196: ="" ->  | W196: 19489.97974
U197: 18954.10299 | V197: ="" ->  | W197: 18954.10299
U198: 18543.59388 | V198: ="" ->  | W198: 18543.59388
U199: 17851.37844 | V199: ="" ->  | W199: 17851.37844
U200: 17197.25764 | V200: ="" ->  | W200: 17197.25764
U201: 17075.51467 | V201: ="" ->  | W201: 17075.51467
U202: 14809.69048 | V202: ="" ->  | W202: 14809.69048
... 2048 more rows

Sheet Reconductor -01
C1: Cell Guide: | F1: Safety risk | I1: Environmental risk | K1: Bushfire risk
C2: Input | F2: risk exists | G2: yes | I2: risk exists | J2: yes | K2: risk exists | L2: yes | N2: Option & Scenario Description
C3: Formula/Calculations | F3: likelihood scale | G3: 3 | I3: likelihood scale | J3: 3 | K3: bushfire region | L3: Gold Coast | N3: Reconductor to Pluto conductor
C4: Formula/Calculations that can be overriden | F4: risk of fatality | G4: no | I4: quantity of spill | J4: >20,000 L
F5: fatality of public | G5: no
C6: Base Year: | D6: 2029 | F6: fatality of employee | G6: yes
C7: Single Contingency | D7: Yes - model single contingency | F7: risk of injury | G7: yes | J7: Benefit Multiplier | K7: =DATA!C73 -> 1
F8: injury to public | G8: no | J8: PoF multiplier | K8: =DATA!C72 -> 1
F9: injury to employee | G9: yes
B11: Contingency Components | P11: Substation/Feeder Load Forecast | Z11: Generation Forecast
C13: Transformers and Circuit Breakers | I13: Circuits/Feeders | Q13: SIFT Load Forecast | U13: Historic 30 minute load data from (SCID/NODW) (kW) This data is not used for calcualtions | W13: 30 minute load data corrected (kW) [for solar customers] This is used for calcualtions | AA13: Generation (export) data MW | AC13: Max installed output (MW) | AE13: Max allowed export under system normal (MW)
C14: Name | D14: Type | E14: YOM | F14: Full restoration of supply time (hours) | G14: Cost of emergency repair ($) | I14: Name | J14: Type | K14: Length (km) | L14: Forced Outage Rate (per year) | M14: Repair (hrs) | Q14: Year | R14: Loading (MVA) | S14: PF | U14: Annual | W14: Annual | AA14: Annual | AC14: Year | AD14: Annual | AE14: Annual
F15: =IFERROR(VLOOKUP(D15,DATA!B$42:G$46,6,FALSE),"") ->  | I15: F429 | J15: Overhead 33kV | K15: 27.4 | L15: =IFERROR((VLOOKUP(J15,DATA!B$3:C$10,2,FALSE)*(K15/100)),"") -> 1.5344 | M15: 6 | Q15: =D6 -> 2029 | R15: 25.072627 | S15: 1 | U15: 15429.18813 | V15: ="" ->  | W15: 15429.18813 | AC15: =D6 -> 2029
F16: =IFERROR(VLOOKUP(D16,DATA!B$42:G$46,6,FALSE),"") ->  | L16: =IFERROR((VLOOKUP(J16,DATA!B$3:C$10,2,FALSE)*(K16/100)),"") ->  | M16: =IFERROR(VLOOKUP(J16,DATA!G$3:H$10,2,FALSE),"") ->  | Q16: =Q15+1 -> 2030 | R16: 25.074335 | S16: 1 | U16: 15119.23915 | V16: ="" ->  | W16: 15119.23915 | AC16: =AC15+1 -> 2030
F17: =IFERROR(VLOOKUP(D17,DATA!B$42:G$46,6,FALSE),"") ->  | L17: =IFERROR((VLOOKUP(J17,DATA!B$3:C$10,2,FALSE)*(K17/100)),"") ->  | M17: =IFERROR(VLOOKUP(J17,DATA!G$3:H$10,2,FALSE),"") ->  | Q17: 2031 | R17: 25.109078 | S17: 1 | U17: 15580.09177 | V17: ="" ->  | W17: 15580.09177 | AC17: 2031
F18: =IFERROR(VLOOKUP(D18,DATA!B$42:G$46,6,FALSE),"") ->  | L18: =IFERROR((VLOOKUP(J18,DATA!B$3:C$10,2,FALSE)*(K18/100)),"") ->  | M18: =IFERROR(VLOOKUP(J18,DATA!G$3:H$10,2,FALSE),"") ->  | Q18: 2032 | R18: 25.149012 | S18: 1 | U18: 15532.54288 | V18: ="" ->  | W18: 15532.54288 | AC18: 2032
F19: =IFERROR(VLOOKUP(D19,DATA!B$42:G$46,6,FALSE),"") ->  | L19: =IFERROR((VLOOKUP(J19,DATA!B$3:C$10,2,FALSE)*(K19/100)),"") ->  | M19: =IFERROR(VLOOKUP(J19,DATA!G$3:H$10,2,FALSE),"") ->  | Q19: 2033 | R19: 25.048406 | S19: 1 | U19: 14882.5627 | V19: ="" ->  | W19: 14882.5627 | AC19: 2033
F20: =IFERROR(VLOOKUP(D20,DATA!B$42:G$46,6,FALSE),"") ->  | L20: =IFERROR((VLOOKUP(J20,DATA!B$3:C$10,2,FALSE)*(K20/100)),"") ->  | M20: =IFERROR(VLOOKUP(J20,DATA!G$3:H$10,2,FALSE),"") ->  | Q20: 2034 | R20: 25.019577 | S20: 1 | U20: 15198.70764 | V20: ="" ->  | W20: 15198.70764 | AC20: 2034
F21: =IFERROR(VLOOKUP(D21,DATA!B$42:G$46,6,FALSE),"") ->  | L21: =IFERROR((VLOOKUP(J21,DATA!B$3:C$10,2,FALSE)*(K21/100)),"") ->  | M21: =IFERROR(VLOOKUP(J21,DATA!G$3:H$10,2,FALSE),"") ->  | Q21: 2035 | R21: =R20*1.005 -> 25.14467489 | S21: 1 | U21: 14924.57587 | V21: ="" ->  | W21: 14924.57587 | AC21: 2035
F22: =IFERROR(VLOOKUP(D22,DATA!B$42:G$46,6,FALSE),"") ->  | L22: =IFERROR((VLOOKUP(J22,DATA!B$3:C$10,2,FALSE)*(K22/100)),"") ->  | M22: =IFERROR(VLOOKUP(J22,DATA!G$3:H$10,2,FALSE),"") ->  | Q22: 2036 | R22: =R21*1.005 -> 25.27039826 | S22: 1 | U22: 14712.16798 | V22: ="" ->  | W22: 14712.16798 | AC22: 2036
F23: =IFERROR(VLOOKUP(D23,DATA!B$42:G$46,6,FALSE),"") ->  | L23: =IFERROR((VLOOKUP(J23,DATA!B$3:C$10,2,FALSE)*(K23/100)),"") ->  | M23: =IFERROR(VLOOKUP(J23,DATA!G$3:H$10,2,FALSE),"") ->  | Q23: 2037 | R23: 25.39675025 | S23: 1 | U23: 14670.63534 | V23: ="" ->  | W23: 14670.63534 | AC23: 2037
F24: =IFERROR(VLOOKUP(D24,DATA!B$42:G$46,6,FALSE),"") ->  | L24: =IFERROR((VLOOKUP(J24,DATA!B$3:C$10,2,FALSE)*(K24/100)),"") ->  | M24: =IFERROR(VLOOKUP(J24,DATA!G$3:H$10,2,FALSE),"") ->  | Q24: 2038 | R24: 25.523734 | S24: 1 | U24: 13389.02414 | V24: ="" ->  | W24: 13389.02414 | AC24: 2038
F25: =IFERROR(VLOOKUP(D25,DATA!B$42:G$46,6,FALSE),"") ->  | L25: =IFERROR((VLOOKUP(J25,DATA!B$3:C$10,2,FALSE)*(K25/100)),"") ->  | M25: =IFERROR(VLOOKUP(J25,DATA!G$3:H$10,2,FALSE),"") ->  | Q25: 2039 | R25: 25.65135267 | S25: 1 | U25: 13088.81247 | V25: ="" ->  | W25: 13088.81247 | AC25: 2039
F26: =IFERROR(VLOOKUP(D26,DATA!B$42:G$46,6,FALSE),"") ->  | L26: =IFERROR((VLOOKUP(J26,DATA!B$3:C$10,2,FALSE)*(K26/100)),"") ->  | M26: =IFERROR(VLOOKUP(J26,DATA!G$3:H$10,2,FALSE),"") ->  | Q26: 2040 | R26: 25.77960944 | S26: 1 | U26: 13708.70441 | V26: ="" ->  | W26: 13708.70441 | AC26: 2040
F27: =IFERROR(VLOOKUP(D27,DATA!B$42:G$46,6,FALSE),"") ->  | L27: =IFERROR((VLOOKUP(J27,DATA!B$3:C$10,2,FALSE)*(K27/100)),"") ->  | M27: =IFERROR(VLOOKUP(J27,DATA!G$3:H$10,2,FALSE),"") ->  | Q27: 2041 | R27: 25.90850748 | S27: 1 | U27: 13548.62189 | V27: ="" ->  | W27: 13548.62189 | AC27: 2041
F28: =IFERROR(VLOOKUP(D28,DATA!B$42:G$46,6,FALSE),"") ->  | Q28: 2042 | R28: 26.03805002 | S28: 1 | U28: 13212.03911 | V28: ="" ->  | W28: 13212.03911 | AC28: 2042
F29: =IFERROR(VLOOKUP(D29,DATA!B$42:G$46,6,FALSE),"") ->  | I29: Buses, VTs, CTs and Relays | Q29: 2043 | R29: 26.16824027 | S29: 1 | U29: 13120.07976 | V29: ="" ->  | W29: 13120.07976 | AC29: 2043
F30: =IFERROR(VLOOKUP(D30,DATA!B$42:G$46,6,FALSE),"") ->  | I30: Name | J30: Type | K30: YOM | L30: Repair (hrs) | M30: Repair Cost ($) | Q30: 2044 | R30: 26.29908147 | S30: 1 | U30: 13483.21599 | V30: ="" ->  | W30: 13483.21599 | AC30: 2044
F31: =IFERROR(VLOOKUP(D31,DATA!B$42:G$46,6,FALSE),"") ->  | L31: =IFERROR(VLOOKUP(J31,DATA!G$14:H$37,2,FALSE),"") ->  | Q31: 2045 | R31: 26.43057688 | S31: 1 | U31: 14305.52685 | V31: ="" ->  | W31: 14305.52685 | AC31: 2045
F32: =IFERROR(VLOOKUP(D32,DATA!B$42:G$46,6,FALSE),"") ->  | L32: =IFERROR(VLOOKUP(J32,DATA!G$14:H$37,2,FALSE),"") ->  | Q32: 2046 | R32: 26.56272976 | S32: 1 | U32: 13732.96535 | V32: ="" ->  | W32: 13732.96535 | AC32: 2046
F33: =IFERROR(VLOOKUP(D33,DATA!B$42:G$46,6,FALSE),"") ->  | L33: =IFERROR(VLOOKUP(J33,DATA!G$14:H$37,2,FALSE),"") ->  | Q33: 2047 | R33: 26.69554341 | S33: 1 | U33: 12714.43519 | V33: ="" ->  | W33: 12714.43519 | AC33: 2047
F34: =IFERROR(VLOOKUP(D34,DATA!B$42:G$46,6,FALSE),"") ->  | L34: =IFERROR(VLOOKUP(J34,DATA!G$14:H$37,2,FALSE),"") ->  | Q34: 2048 | R34: 26.82902113 | S34: 1 | U34: 12813.57291 | V34: ="" ->  | W34: 12813.57291 | AC34: 2048
F35: =IFERROR(VLOOKUP(D35,DATA!B$42:G$46,6,FALSE),"") ->  | L35: =IFERROR(VLOOKUP(J35,DATA!G$14:H$37,2,FALSE),"") ->  | Q35: 2049 | R35: 26.96316623 | S35: 1 | U35: 14006.21402 | V35: ="" ->  | W35: 14006.21402 | AC35: 2049
F36: =IFERROR(VLOOKUP(D36,DATA!B$42:G$46,6,FALSE),"") ->  | L36: =IFERROR(VLOOKUP(J36,DATA!G$14:H$37,2,FALSE),"") ->  | Q36: 2050 | R36: 27.09798207 | S36: 1 | U36: 13235.30173 | V36: ="" ->  | W36: 13235.30173 | AC36: 2050
F37: =IFERROR(VLOOKUP(D37,DATA!B$42:G$46,6,FALSE),"") ->  | L37: =IFERROR(VLOOKUP(J37,DATA!G$14:H$37,2,FALSE),"") ->  | Q37: 2051 | R37: 27.23347198 | S37: 1 | U37: 13074.85425 | V37: ="" ->  | W37: 13074.85425 | AC37: 2051
F38: =IFERROR(VLOOKUP(D38,DATA!B$42:G$46,6,FALSE),"") ->  | L38: =IFERROR(VLOOKUP(J38,DATA!G$14:H$37,2,FALSE),"") ->  | Q38: 2052 | R38: 27.36963934 | S38: 1 | U38: 12409.35695 | V38: ="" ->  | W38: 12409.35695 | AC38: 2052
F39: =IFERROR(VLOOKUP(D39,DATA!B$42:G$46,6,FALSE),"") ->  | L39: =IFERROR(VLOOKUP(J39,DATA!G$14:H$37,2,FALSE),"") ->  | Q39: 2053 | R39: 27.50648753 | S39: 1 | U39: 13613.27016 | V39: ="" ->  | W39: 13613.27016 | AC39: 2053
F40: =IFERROR(VLOOKUP(D40,DATA!B$42:G$46,6,FALSE),"") ->  | L40: =IFERROR(VLOOKUP(J40,DATA!G$14:H$37,2,FALSE),"") ->  | Q40: 2054 | R40: 27.64401997 | S40: 1 | U40: 13945.67633 | V40: ="" ->  | W40: 13945.67633 | AC40: 2054
Q41: 2055 | R41: 27.78224007 | S41: 1 | U41: 13589.1512 | V41: ="" ->  | W41: 13589.1512 | AC41: 2055
Q42: 2056 | R42: 27.92115127 | S42: 1 | U42: 13355.33178 | V42: ="" ->  | W42: 13355.33178 | AC42: 2056
B43: Contingency Response | I43: VCR Rate Calculation | Q43: 2057 | R43: 28.06075703 | S43: 1 | U43: 14082.76075 | V43: ="" ->  | W43: 14082.76075 | AC43: 2057
Q44: 2058 | R44: 28.20106081 | S44: 1 | U44: 15678.1491 | V44: ="" ->  | W44: 15678.1491 | AC44: 2058
C45: Load Served after Contingency | L45: Customer Energy Calculation | Q45: 2059 | R45: 28.34206612 | S45: 1 | U45: 16524.37723 | V45: ="" ->  | W45: 16524.37723 | AC45: 2059
D46: Rating | E46: Period of Time Rating is available | G46: Notes on why values have been chosen | K46: Postcode | L46: Annual Consumption (kWH) | M46: VCR | Q46: 2060 | R46: 28.48377645 | S46: 1 | U46: 16820.20402 | V46: ="" ->  | W46: 16820.20402 | AC46: 2060
C47: 'Total' Immediate Capacity | D47: 45.7 | E47: 2 | F47: Time 1 | G47: 2hr | J47: Domestic | K47: 4580 | L47: 23189248.08 | M47: 29.967228 | Q47: 2061 | R47: 28.62619533 | S47: 1 | U47: 17251.23596 | V47: ="" ->  | W47: 17251.23596 | AC47: 2061
C48: 'Total' Capacity between Time 1 and Time 3 | D48: 41.2 | E48: =E49-E47 -> 3 | F48: Time 2 | G48: ec+mt 0.5MVA | J48: Commercial | L48: 13562890.98 | M48: 52.200298 | Q48: 2062 | R48: 28.76932631 | S48: 1 | U48: 17756.7091 | V48: ="" ->  | W48: 17756.7091 | AC48: 2062
C49: 'Total' Capacity at Time 3 | D49: 41.2 | E49: 5 | F49: Time 3 | G49: ec+mt 0.5MVA (not enough time to deploy MG) | J49: Industrial | L49: 92993204.86 | M49: 74.781089 | Q49: =Q48+1 -> 2063 | R49: 28.91317294 | S49: 1 | U49: 17982.47433 | V49: ="" ->  | W49: 17982.47433 | AC49: =AC48+1 -> 2063
J50: Agricultural | L50: 6919505.3 | M50: 44.402918 | Q50: =Q49+1 -> 2064 | R50: 29.0577388 | S50: 1 | U50: 18492.49434 | V50: ="" ->  | W50: 18492.49434 | AC50: =AC49+1 -> 2064
J51: Large Cust. Services (>10MVA) | M51: 12.359901 | Q51: 2065 | R51: 29.2030275 | S51: 1 | U51: 18856.14324 | V51: ="" ->  | W51: 18856.14324 | AC51: 2065
J52: Large Cust. Industrial (>10MVA) | M52: 138.329736 | Q52: 2066 | R52: 29.34904263 | S52: 1 | U52: 18509.29248 | V52: ="" ->  | W52: 18509.29248 | AC52: 2066
C53: Export under Contingency (MVA) | J53: Large Cust. Metals (>10MVA) | M53: 23.28677 | Q53: 2067 | R53: 29.49578785 | S53: 1 | U53: 16868.69049 | V53: ="" ->  | W53: 16868.69049 | AC53: 2067
D54: Rating | E54: Period of Time Export is available | J54: Large Cust. Mines (>10MVA) | M54: 41.220744 | Q54: 2068 | R54: 29.64326679 | S54: 1 | U54: 15831.62808 | V54: ="" ->  | W54: 15831.62808 | AC54: 2068
C55: Immediate Export allowed | E55: 2 | F55: Time 1 | J55: Total | L55: =SUM(L47:L54) -> 136664849.2 | M55: =(($L$47*$M$47)+($L$48*$M$48)+($L$49*$M$49)+($L$50*$M$50)+ ($L$51*$M$51)+ ($L$52*$M$52)+ ($L$53*$M$53)+ ($L$54*$M$54))/$L$55 -> 63.39804156 | Q55: =Q54+1 -> 2069 | R55: 29.79148312 | S55: 1 | U55: 15528.2284 | V55: ="" ->  | W55: 15528.2284 | AC55: =AC54+1 -> 2069
C56: Export allowed between Time 1 and Time 3 | E56: =E57-E55 -> -2 | F56: Time 2 | Q56: 2070 | R56: 29.94044054 | S56: 1 | U56: 15363.13987 | V56: ="" ->  | W56: 15363.13987 | AC56: 2070
C57: Export allowed after Time 3 | F57: Time 3 | Q57: 2071 | R57: 30.09014274 | S57: 1 | U57: 17346.69757 | V57: ="" ->  | W57: 17346.69757 | AC57: 2071
Q58: 2072 | R58: 30.24059345 | S58: 1 | U58: 16986.66668 | V58: ="" ->  | W58: 16986.66668 | AC58: 2072
Q59: 2073 | R59: 30.39179642 | S59: 1 | U59: 16781.68774 | V59: ="" ->  | W59: 16781.68774 | AC59: 2073
Q60: 2074 | R60: 30.5437554 | S60: 1 | U60: 16589.68842 | V60: ="" ->  | W60: 16589.68842 | AC60: 2074
Q61: 2075 | R61: 30.69647418 | S61: 1 | U61: 16750.26238 | V61: ="" ->  | W61: 16750.26238 | AC61: 2075
Q62: 2076 | R62: 30.84995655 | S62: 1 | U62: 16345.86608 | V62: ="" ->  | W62: 16345.86608 | AC62: 2076
Q63: 2077 | R63: 31.00420633 | S63: 1 | U63: 15465.27553 | V63: ="" ->  | W63: 15465.27553 | AC63: 2077
Q64: 2078 | R64: 31.15922736 | S64: 1 | U64: 15100.17955 | V64: ="" ->  | W64: 15100.17955 | AC64: 2078
Q65: 2079 | R65: 31.3150235 | S65: 1 | U65: 16211.8544 | V65: ="" ->  | W65: 16211.8544 | AC65: 2079
Q66: 2080 | R66: 31.47159862 | S66: 1 | U66: 15984.92151 | V66: ="" ->  | W66: 15984.92151 | AC66: 2080
Q67: 2081 | R67: 31.62895661 | S67: 1 | U67: 15508.27503 | V67: ="" ->  | W67: 15508.27503 | AC67: 2081
Q68: 2082 | R68: 31.78710139 | S68: 1 | U68: 15529.49876 | V68: ="" ->  | W68: 15529.49876 | AC68: 2082
Q69: 2083 | R69: 31.9460369 | S69: 1 | U69: 15055.82786 | V69: ="" ->  | W69: 15055.82786 | AC69: 2083
Q70: 2084 | R70: 32.10576709 | S70: 1 | U70: 14697.95126 | V70: ="" ->  | W70: 14697.95126 | AC70: 2084
Q71: 2085 | R71: 32.26629592 | S71: 1 | U71: 15264.48005 | V71: ="" ->  | W71: 15264.48005 | AC71: 2085
Q72: 2086 | R72: 32.4276274 | S72: 1 | U72: 15382.33078 | V72: ="" ->  | W72: 15382.33078 | AC72: 2086
Q73: 2087 | R73: 32.58976554 | S73: 1 | U73: 14216.22962 | V73: ="" ->  | W73: 14216.22962 | AC73: 2087
Q74: 2088 | R74: 32.75271436 | S74: 1 | U74: 13782.89413 | V74: ="" ->  | W74: 13782.89413 | AC74: 2088
Q75: 2089 | R75: 32.91647794 | S75: 1 | U75: 14537.34148 | V75: ="" ->  | W75: 14537.34148 | AC75: 2089
U76: 14568.53354 | V76: ="" ->  | W76: 14568.53354
U77: 15501.48463 | V77: ="" ->  | W77: 15501.48463
U78: 16615.62443 | V78: ="" ->  | W78: 16615.62443
U79: 16170.36772 | V79: ="" ->  | W79: 16170.36772
U80: 15499.76194 | V80: ="" ->  | W80: 15499.76194
U81: 15077.71194 | V81: ="" ->  | W81: 15077.71194
U82: 14674.19159 | V82: ="" ->  | W82: 14674.19159
U83: 14651.45844 | V83: ="" ->  | W83: 14651.45844
U84: 14508.64971 | V84: ="" ->  | W84: 14508.64971
U85: 15130.93084 | V85: ="" ->  | W85: 15130.93084
U86: 15494.49244 | V86: ="" ->  | W86: 15494.49244
U87: 15167.26699 | V87: ="" ->  | W87: 15167.26699
U88: 14912.92751 | V88: ="" ->  | W88: 14912.92751
U89: 13862.84155 | V89: ="" ->  | W89: 13862.84155
U90: 13984.85243 | V90: ="" ->  | W90: 13984.85243
U91: 15458.01353 | V91: ="" ->  | W91: 15458.01353
U92: 15823.66115 | V92: ="" ->  | W92: 15823.66115
U93: 15552.38843 | V93: ="" ->  | W93: 15552.38843
U94: 15986.53448 | V94: ="" ->  | W94: 15986.53448
U95: 17089.72585 | V95: ="" ->  | W95: 17089.72585
U96: 17088.2771 | V96: ="" ->  | W96: 17088.2771
U97: 16135.72299 | V97: ="" ->  | W97: 16135.72299
U98: 15864.74335 | V98: ="" ->  | W98: 15864.74335
U99: 16135.83124 | V99: ="" ->  | W99: 16135.83124
U100: 16087.75258 | V100: ="" ->  | W100: 16087.75258
U101: 15666.03005 | V101: ="" ->  | W101: 15666.03005
U102: 16820.82283 | V102: ="" ->  | W102: 16820.82283
U103: 17261.31153 | V103: ="" ->  | W103: 17261.31153
U104: 17130.09465 | V104: ="" ->  | W104: 17130.09465
U105: 17285.63976 | V105: ="" ->  | W105: 17285.63976
U106: 17094.9297 | V106: ="" ->  | W106: 17094.9297
U107: 16637.96043 | V107: ="" ->  | W107: 16637.96043
U108: 16561.02288 | V108: ="" ->  | W108: 16561.02288
U109: 16595.36624 | V109: ="" ->  | W109: 16595.36624
U110: 16347.03207 | V110: ="" ->  | W110: 16347.03207
U111: 15725.71588 | V111: ="" ->  | W111: 15725.71588
U112: 15229.23607 | V112: ="" ->  | W112: 15229.23607
U113: 15806.4391 | V113: ="" ->  | W113: 15806.4391
U114: 15859.92825 | V114: ="" ->  | W114: 15859.92825
U115: 15460.65331 | V115: ="" ->  | W115: 15460.65331
U116: 15474.77251 | V116: ="" ->  | W116: 15474.77251
U117: 15077.97474 | V117: ="" ->  | W117: 15077.97474
U118: 14863.81304 | V118: ="" ->  | W118: 14863.81304
U119: 15216.36403 | V119: ="" ->  | W119: 15216.36403
U120: 15297.26738 | V120: ="" ->  | W120: 15297.26738
U121: 15482.08249 | V121: ="" ->  | W121: 15482.08249
U122: 15682.02293 | V122: ="" ->  | W122: 15682.02293
U123: 16222.39387 | V123: ="" ->  | W123: 16222.39387
U124: 16153.41139 | V124: ="" ->  | W124: 16153.41139
U125: 15587.87727 | V125: ="" ->  | W125: 15587.87727
U126: 14419.41661 | V126: ="" ->  | W126: 14419.41661
U127: 13721.30376 | V127: ="" ->  | W127: 13721.30376
U128: 13166.23777 | V128: ="" ->  | W128: 13166.23777
U129: 13162.86087 | V129: ="" ->  | W129: 13162.86087
U130: 13005.67216 | V130: ="" ->  | W130: 13005.67216
U131: 12796.23415 | V131: ="" ->  | W131: 12796.23415
U132: 11963.43352 | V132: ="" ->  | W132: 11963.43352
U133: 12372.55602 | V133: ="" ->  | W133: 12372.55602
U134: 12670.16551 | V134: ="" ->  | W134: 12670.16551
U135: 12412.51521 | V135: ="" ->  | W135: 12412.51521
U136: 12720.19495 | V136: ="" ->  | W136: 12720.19495
U137: 13166.49759 | V137: ="" ->  | W137: 13166.49759
U138: 13770.39051 | V138: ="" ->  | W138: 13770.39051
U139: 12990.245 | V139: ="" ->  | W139: 12990.245
U140: 12341.06772 | V140: ="" ->  | W140: 12341.06772
U141: 13104.13066 | V141: ="" ->  | W141: 13104.13066
U142: 14492.64157 | V142: ="" ->  | W142: 14492.64157
U143: 15242.68711 | V143: ="" ->  | W143: 15242.68711
U144: 16650.90716 | V144: ="" ->  | W144: 16650.90716
U145: 17280.30503 | V145: ="" ->  | W145: 17280.30503
U146: 17922.59085 | V146: ="" ->  | W146: 17922.59085
U147: 18513.70347 | V147: ="" ->  | W147: 18513.70347
U148: 18289.2313 | V148: ="" ->  | W148: 18289.2313
U149: 17973.21081 | V149: ="" ->  | W149: 17973.21081
U150: 17689.35859 | V150: ="" ->  | W150: 17689.35859
U151: 17516.87002 | V151: ="" ->  | W151: 17516.87002
U152: 17062.60753 | V152: ="" ->  | W152: 17062.60753
U153: 16868.63232 | V153: ="" ->  | W153: 16868.63232
U154: 16554.41129 | V154: ="" ->  | W154: 16554.41129
U155: 16120.09501 | V155: ="" ->  | W155: 16120.09501
U156: 16651.60298 | V156: ="" ->  | W156: 16651.60298
U157: 16376.29318 | V157: ="" ->  | W157: 16376.29318
U158: 15717.22519 | V158: ="" ->  | W158: 15717.22519
U159: 14923.64812 | V159: ="" ->  | W159: 14923.64812
U160: 14393.3621 | V160: ="" ->  | W160: 14393.3621
U161: 14773.59933 | V161: ="" ->  | W161: 14773.59933
U162: 15037.44715 | V162: ="" ->  | W162: 15037.44715
U163: 14817.38389 | V163: ="" ->  | W163: 14817.38389
U164: 14636.72858 | V164: ="" ->  | W164: 14636.72858
U165: 14711.5494 | V165: ="" ->  | W165: 14711.5494
U166: 14559.89277 | V166: ="" ->  | W166: 14559.89277
U167: 14225.67809 | V167: ="" ->  | W167: 14225.67809
U168: 14280.69335 | V168: ="" ->  | W168: 14280.69335
U169: 14609.45016 | V169: ="" ->  | W169: 14609.45016
U170: 14749.98808 | V170: ="" ->  | W170: 14749.98808
U171: 14746.45162 | V171: ="" ->  | W171: 14746.45162
U172: 14340.68388 | V172: ="" ->  | W172: 14340.68388
U173: 14009.68957 | V173: ="" ->  | W173: 14009.68957
U174: 13557.23685 | V174: ="" ->  | W174: 13557.23685
U175: 12584.58024 | V175: ="" ->  | W175: 12584.58024
U176: 12204.06336 | V176: ="" ->  | W176: 12204.06336
U177: 11829.48487 | V177: ="" ->  | W177: 11829.48487
U178: 12164.61033 | V178: ="" ->  | W178: 12164.61033
U179: 11947.48983 | V179: ="" ->  | W179: 11947.48983
U180: 11585.47986 | V180: ="" ->  | W180: 11585.47986
U181: 11602.82132 | V181: ="" ->  | W181: 11602.82132
U182: 11493.48922 | V182: ="" ->  | W182: 11493.48922
U183: 11819.89832 | V183: ="" ->  | W183: 11819.89832
U184: 12532.66908 | V184: ="" ->  | W184: 12532.66908
U185: 13405.48509 | V185: ="" ->  | W185: 13405.48509
U186: 13296.71526 | V186: ="" ->  | W186: 13296.71526
U187: 15277.91637 | V187: ="" ->  | W187: 15277.91637
U188: 15743.14696 | V188: ="" ->  | W188: 15743.14696
U189: 14324.10091 | V189: ="" ->  | W189: 14324.10091
U190: 14341.26526 | V190: ="" ->  | W190: 14341.26526
U191: 15583.3261 | V191: ="" ->  | W191: 15583.3261
U192: 16972.07367 | V192: ="" ->  | W192: 16972.07367
U193: 17562.46817 | V193: ="" ->  | W193: 17562.46817
U194: 18558.3204 | V194: ="" ->  | W194: 18558.3204
U195: 19245.3835 | V195: ="" ->  | W195: 19245.3835
U196: 19489.97974 | V196: ="" ->  | W196: 19489.97974
U197: 18954.10299 | V197: ="" ->  | W197: 18954.10299
U198: 18543.59388 | V198: ="" ->  | W198: 18543.59388
U199: 17851.37844 | V199: ="" ->  | W199: 17851.37844
U200: 17197.25764 | V200: ="" ->  | W200: 17197.25764
U201: 17075.51467 | V201: ="" ->  | W201: 17075.51467
U202: 14809.69048 | V202: ="" ->  | W202: 14809.69048
... 2048 more rows

Sheet Reconductor -02
C1: Cell Guide: | F1: Safety risk | I1: Environmental risk | K1: Bushfire risk
C2: Input | F2: risk exists | G2: yes | I2: risk exists | J2: yes | K2: risk exists | L2: yes | N2: Option & Scenario Description
C3: Formula/Calculations | F3: likelihood scale | G3: 3 | I3: likelihood scale | J3: 3 | K3: bushfire region | L3: Gold Coast | N3: Rebuild 341 as 33kV DCCT feeder
C4: Formula/Calculations that can be overriden | F4: risk of fatality | G4: no | I4: quantity of spill | J4: >20,000 L
F5: fatality of public | G5: no
C6: Base Year: | D6: 2029 | F6: fatality of employee | G6: yes
C7: Single Contingency | D7: Yes - model single contingency | F7: risk of injury | G7: yes | J7: Benefit Multiplier | K7: =DATA!C73 -> 1
F8: injury to public | G8: no | J8: PoF multiplier | K8: =DATA!C72 -> 1
F9: injury to employee | G9: yes
B11: Contingency Components | P11: Substation/Feeder Load Forecast | Z11: Generation Forecast
C13: Transformers and Circuit Breakers | I13: Circuits/Feeders | Q13: SIFT Load Forecast | U13: Historic 30 minute load data from (SCID/NODW) (kW) This data is not used for calcualtions | W13: 30 minute load data corrected (kW) [for solar customers] This is used for calcualtions | AA13: Generation (export) data MW | AC13: Max installed output (MW) | AE13: Max allowed export under system normal (MW)
C14: Name | D14: Type | E14: YOM | F14: Full restoration of supply time (hours) | G14: Cost of emergency repair ($) | I14: Name | J14: Type | K14: Length (km) | L14: Forced Outage Rate (per year) | M14: Repair (hrs) | Q14: Year | R14: Loading (MVA) | S14: PF | U14: Annual | W14: Annual | AA14: Annual | AC14: Year | AD14: Annual | AE14: Annual
F15: =IFERROR(VLOOKUP(D15,DATA!B$42:G$46,6,FALSE),"") ->  | I15: F429 | J15: Overhead 33kV | K15: 27.4 | L15: =IFERROR((VLOOKUP(J15,DATA!B$3:C$10,2,FALSE)*(K15/100)),"") -> 1.5344 | M15: 6 | Q15: =D6 -> 2029 | R15: 25.072627 | S15: 1 | U15: 15429.18813 | V15: ="" ->  | W15: 15429.18813 | AC15: =D6 -> 2029
F16: =IFERROR(VLOOKUP(D16,DATA!B$42:G$46,6,FALSE),"") ->  | L16: =IFERROR((VLOOKUP(J16,DATA!B$3:C$10,2,FALSE)*(K16/100)),"") ->  | M16: =IFERROR(VLOOKUP(J16,DATA!G$3:H$10,2,FALSE),"") ->  | Q16: =Q15+1 -> 2030 | R16: 25.074335 | S16: 1 | U16: 15119.23915 | V16: ="" ->  | W16: 15119.23915 | AC16: =AC15+1 -> 2030
F17: =IFERROR(VLOOKUP(D17,DATA!B$42:G$46,6,FALSE),"") ->  | L17: =IFERROR((VLOOKUP(J17,DATA!B$3:C$10,2,FALSE)*(K17/100)),"") ->  | M17: =IFERROR(VLOOKUP(J17,DATA!G$3:H$10,2,FALSE),"") ->  | Q17: 2031 | R17: 25.109078 | S17: 1 | U17: 15580.09177 | V17: ="" ->  | W17: 15580.09177 | AC17: 2031
F18: =IFERROR(VLOOKUP(D18,DATA!B$42:G$46,6,FALSE),"") ->  | L18: =IFERROR((VLOOKUP(J18,DATA!B$3:C$10,2,FALSE)*(K18/100)),"") ->  | M18: =IFERROR(VLOOKUP(J18,DATA!G$3:H$10,2,FALSE),"") ->  | Q18: 2032 | R18: 25.149012 | S18: 1 | U18: 15532.54288 | V18: ="" ->  | W18: 15532.54288 | AC18: 2032
F19: =IFERROR(VLOOKUP(D19,DATA!B$42:G$46,6,FALSE),"") ->  | L19: =IFERROR((VLOOKUP(J19,DATA!B$3:C$10,2,FALSE)*(K19/100)),"") ->  | M19: =IFERROR(VLOOKUP(J19,DATA!G$3:H$10,2,FALSE),"") ->  | Q19: 2033 | R19: 25.048406 | S19: 1 | U19: 14882.5627 | V19: ="" ->  | W19: 14882.5627 | AC19: 2033
F20: =IFERROR(VLOOKUP(D20,DATA!B$42:G$46,6,FALSE),"") ->  | L20: =IFERROR((VLOOKUP(J20,DATA!B$3:C$10,2,FALSE)*(K20/100)),"") ->  | M20: =IFERROR(VLOOKUP(J20,DATA!G$3:H$10,2,FALSE),"") ->  | Q20: 2034 | R20: 25.019577 | S20: 1 | U20: 15198.70764 | V20: ="" ->  | W20: 15198.70764 | AC20: 2034
F21: =IFERROR(VLOOKUP(D21,DATA!B$42:G$46,6,FALSE),"") ->  | L21: =IFERROR((VLOOKUP(J21,DATA!B$3:C$10,2,FALSE)*(K21/100)),"") ->  | M21: =IFERROR(VLOOKUP(J21,DATA!G$3:H$10,2,FALSE),"") ->  | Q21: 2035 | R21: =R20*1.005 -> 25.14467489 | S21: 1 | U21: 14924.57587 | V21: ="" ->  | W21: 14924.57587 | AC21: 2035
F22: =IFERROR(VLOOKUP(D22,DATA!B$42:G$46,6,FALSE),"") ->  | L22: =IFERROR((VLOOKUP(J22,DATA!B$3:C$10,2,FALSE)*(K22/100)),"") ->  | M22: =IFERROR(VLOOKUP(J22,DATA!G$3:H$10,2,FALSE),"") ->  | Q22: 2036 | R22: =R21*1.005 -> 25.27039826 | S22: 1 | U22: 14712.16798 | V22: ="" ->  | W22: 14712.16798 | AC22: 2036
F23: =IFERROR(VLOOKUP(D23,DATA!B$42:G$46,6,FALSE),"") ->  | L23: =IFERROR((VLOOKUP(J23,DATA!B$3:C$10,2,FALSE)*(K23/100)),"") ->  | M23: =IFERROR(VLOOKUP(J23,DATA!G$3:H$10,2,FALSE),"") ->  | Q23: 2037 | R23: 25.39675025 | S23: 1 | U23: 14670.63534 | V23: ="" ->  | W23: 14670.63534 | AC23: 2037
F24: =IFERROR(VLOOKUP(D24,DATA!B$42:G$46,6,FALSE),"") ->  | L24: =IFERROR((VLOOKUP(J24,DATA!B$3:C$10,2,FALSE)*(K24/100)),"") ->  | M24: =IFERROR(VLOOKUP(J24,DATA!G$3:H$10,2,FALSE),"") ->  | Q24: 2038 | R24: 25.523734 | S24: 1 | U24: 13389.02414 | V24: ="" ->  | W24: 13389.02414 | AC24: 2038
F25: =IFERROR(VLOOKUP(D25,DATA!B$42:G$46,6,FALSE),"") ->  | L25: =IFERROR((VLOOKUP(J25,DATA!B$3:C$10,2,FALSE)*(K25/100)),"") ->  | M25: =IFERROR(VLOOKUP(J25,DATA!G$3:H$10,2,FALSE),"") ->  | Q25: 2039 | R25: 25.65135267 | S25: 1 | U25: 13088.81247 | V25: ="" ->  | W25: 13088.81247 | AC25: 2039
F26: =IFERROR(VLOOKUP(D26,DATA!B$42:G$46,6,FALSE),"") ->  | L26: =IFERROR((VLOOKUP(J26,DATA!B$3:C$10,2,FALSE)*(K26/100)),"") ->  | M26: =IFERROR(VLOOKUP(J26,DATA!G$3:H$10,2,FALSE),"") ->  | Q26: 2040 | R26: 25.77960944 | S26: 1 | U26: 13708.70441 | V26: ="" ->  | W26: 13708.70441 | AC26: 2040
F27: =IFERROR(VLOOKUP(D27,DATA!B$42:G$46,6,FALSE),"") ->  | L27: =IFERROR((VLOOKUP(J27,DATA!B$3:C$10,2,FALSE)*(K27/100)),"") ->  | M27: =IFERROR(VLOOKUP(J27,DATA!G$3:H$10,2,FALSE),"") ->  | Q27: 2041 | R27: 25.90850748 | S27: 1 | U27: 13548.62189 | V27: ="" ->  | W27: 13548.62189 | AC27: 2041
F28: =IFERROR(VLOOKUP(D28,DATA!B$42:G$46,6,FALSE),"") ->  | Q28: 2042 | R28: 26.03805002 | S28: 1 | U28: 13212.03911 | V28: ="" ->  | W28: 13212.03911 | AC28: 2042
F29: =IFERROR(VLOOKUP(D29,DATA!B$42:G$46,6,FALSE),"") ->  | I29: Buses, VTs, CTs and Relays | Q29: 2043 | R29: 26.16824027 | S29: 1 | U29: 13120.07976 | V29: ="" ->  | W29: 13120.07976 | AC29: 2043
F30: =IFERROR(VLOOKUP(D30,DATA!B$42:G$46,6,FALSE),"") ->  | I30: Name | J30: Type | K30: YOM | L30: Repair (hrs) | M30: Repair Cost ($) | Q30: 2044 | R30: 26.29908147 | S30: 1 | U30: 13483.21599 | V30: ="" ->  | W30: 13483.21599 | AC30: 2044
F31: =IFERROR(VLOOKUP(D31,DATA!B$42:G$46,6,FALSE),"") ->  | L31: =IFERROR(VLOOKUP(J31,DATA!G$14:H$37,2,FALSE),"") ->  | Q31: 2045 | R31: 26.43057688 | S31: 1 | U31: 14305.52685 | V31: ="" ->  | W31: 14305.52685 | AC31: 2045
F32: =IFERROR(VLOOKUP(D32,DATA!B$42:G$46,6,FALSE),"") ->  | L32: =IFERROR(VLOOKUP(J32,DATA!G$14:H$37,2,FALSE),"") ->  | Q32: 2046 | R32: 26.56272976 | S32: 1 | U32: 13732.96535 | V32: ="" ->  | W32: 13732.96535 | AC32: 2046
F33: =IFERROR(VLOOKUP(D33,DATA!B$42:G$46,6,FALSE),"") ->  | L33: =IFERROR(VLOOKUP(J33,DATA!G$14:H$37,2,FALSE),"") ->  | Q33: 2047 | R33: 26.69554341 | S33: 1 | U33: 12714.43519 | V33: ="" ->  | W33: 12714.43519 | AC33: 2047
F34: =IFERROR(VLOOKUP(D34,DATA!B$42:G$46,6,FALSE),"") ->  | L34: =IFERROR(VLOOKUP(J34,DATA!G$14:H$37,2,FALSE),"") ->  | Q34: 2048 | R34: 26.82902113 | S34: 1 | U34: 12813.57291 | V34: ="" ->  | W34: 12813.57291 | AC34: 2048
F35: =IFERROR(VLOOKUP(D35,DATA!B$42:G$46,6,FALSE),"") ->  | L35: =IFERROR(VLOOKUP(J35,DATA!G$14:H$37,2,FALSE),"") ->  | Q35: 2049 | R35: 26.96316623 | S35: 1 | U35: 14006.21402 | V35: ="" ->  | W35: 14006.21402 | AC35: 2049
F36: =IFERROR(VLOOKUP(D36,DATA!B$42:G$46,6,FALSE),"") ->  | L36: =IFERROR(VLOOKUP(J36,DATA!G$14:H$37,2,FALSE),"") ->  | Q36: 2050 | R36: 27.09798207 | S36: 1 | U36: 13235.30173 | V36: ="" ->  | W36: 13235.30173 | AC36: 2050
F37: =IFERROR(VLOOKUP(D37,DATA!B$42:G$46,6,FALSE),"") ->  | L37: =IFERROR(VLOOKUP(J37,DATA!G$14:H$37,2,FALSE),"") ->  | Q37: 2051 | R37: 27.23347198 | S37: 1 | U37: 13074.85425 | V37: ="" ->  | W37: 13074.85425 | AC37: 2051
F38: =IFERROR(VLOOKUP(D38,DATA!B$42:G$46,6,FALSE),"") ->  | L38: =IFERROR(VLOOKUP(J38,DATA!G$14:H$37,2,FALSE),"") ->  | Q38: 2052 | R38: 27.36963934 | S38: 1 | U38: 12409.35695 | V38: ="" ->  | W38: 12409.35695 | AC38: 2052
F39: =IFERROR(VLOOKUP(D39,DATA!B$42:G$46,6,FALSE),"") ->  | L39: =IFERROR(VLOOKUP(J39,DATA!G$14:H$37,2,FALSE),"") ->  | Q39: 2053 | R39: 27.50648753 | S39: 1 | U39: 13613.27016 | V39: ="" ->  | W39: 13613.27016 | AC39: 2053
F40: =IFERROR(VLOOKUP(D40,DATA!B$42:G$46,6,FALSE),"") ->  | L40: =IFERROR(VLOOKUP(J40,DATA!G$14:H$37,2,FALSE),"") ->  | Q40: 2054 | R40: 27.64401997 | S40: 1 | U40: 13945.67633 | V40: ="" ->  | W40: 13945.67633 | AC40: 2054
Q41: 2055 | R41: 27.78224007 | S41: 1 | U41: 13589.1512 | V41: ="" ->  | W41: 13589.1512 | AC41: 2055
Q42: 2056 | R42: 27.92115127 | S42: 1 | U42: 13355.33178 | V42: ="" ->  | W42: 13355.33178 | AC42: 2056
B43: Contingency Response | I43: VCR Rate Calculation | Q43: 2057 | R43: 28.06075703 | S43: 1 | U43: 14082.76075 | V43: ="" ->  | W43: 14082.76075 | AC43: 2057
Q44: 2058 | R44: 28.20106081 | S44: 1 | U44: 15678.1491 | V44: ="" ->  | W44: 15678.1491 | AC44: 2058
C45: Load Served after Contingency | L45: Customer Energy Calculation | Q45: 2059 | R45: 28.34206612 | S45: 1 | U45: 16524.37723 | V45: ="" ->  | W45: 16524.37723 | AC45: 2059
D46: Rating | E46: Period of Time Rating is available | G46: Notes on why values have been chosen | K46: Postcode | L46: Annual Consumption (kWH) | M46: VCR | Q46: 2060 | R46: 28.48377645 | S46: 1 | U46: 16820.20402 | V46: ="" ->  | W46: 16820.20402 | AC46: 2060
C47: 'Total' Immediate Capacity | D47: =45.7*2 -> 91.4 | E47: 2 | F47: Time 1 | G47: DCCT 2hr | J47: Domestic | K47: 4580 | L47: 23189248.08 | M47: 29.967228 | Q47: 2061 | R47: 28.62619533 | S47: 1 | U47: 17251.23596 | V47: ="" ->  | W47: 17251.23596 | AC47: 2061
C48: 'Total' Capacity between Time 1 and Time 3 | D48: =40.7*2+0.5 -> 81.9 | E48: =E49-E47 -> 3 | F48: Time 2 | G48: DCCT ec+mt 0.5MVA | J48: Commercial | L48: 13562890.98 | M48: 52.200298 | Q48: 2062 | R48: 28.76932631 | S48: 1 | U48: 17756.7091 | V48: ="" ->  | W48: 17756.7091 | AC48: 2062
C49: 'Total' Capacity at Time 3 | D49: =40.7*2+0.5 -> 81.9 | E49: 5 | F49: Time 3 | G49: DCCT ec+mt (not enough time to deploy MG) | J49: Industrial | L49: 92993204.86 | M49: 74.781089 | Q49: =Q48+1 -> 2063 | R49: 28.91317294 | S49: 1 | U49: 17982.47433 | V49: ="" ->  | W49: 17982.47433 | AC49: =AC48+1 -> 2063
J50: Agricultural | L50: 6919505.3 | M50: 44.402918 | Q50: =Q49+1 -> 2064 | R50: 29.0577388 | S50: 1 | U50: 18492.49434 | V50: ="" ->  | W50: 18492.49434 | AC50: =AC49+1 -> 2064
J51: Large Cust. Services (>10MVA) | M51: 12.359901 | Q51: 2065 | R51: 29.2030275 | S51: 1 | U51: 18856.14324 | V51: ="" ->  | W51: 18856.14324 | AC51: 2065
J52: Large Cust. Industrial (>10MVA) | M52: 138.329736 | Q52: 2066 | R52: 29.34904263 | S52: 1 | U52: 18509.29248 | V52: ="" ->  | W52: 18509.29248 | AC52: 2066
C53: Export under Contingency (MVA) | J53: Large Cust. Metals (>10MVA) | M53: 23.28677 | Q53: 2067 | R53: 29.49578785 | S53: 1 | U53: 16868.69049 | V53: ="" ->  | W53: 16868.69049 | AC53: 2067
D54: Rating | E54: Period of Time Export is available | J54: Large Cust. Mines (>10MVA) | M54: 41.220744 | Q54: 2068 | R54: 29.64326679 | S54: 1 | U54: 15831.62808 | V54: ="" ->  | W54: 15831.62808 | AC54: 2068
C55: Immediate Export allowed | E55: 2 | F55: Time 1 | J55: Total | L55: =SUM(L47:L54) -> 136664849.2 | M55: =(($L$47*$M$47)+($L$48*$M$48)+($L$49*$M$49)+($L$50*$M$50)+ ($L$51*$M$51)+ ($L$52*$M$52)+ ($L$53*$M$53)+ ($L$54*$M$54))/$L$55 -> 63.39804156 | Q55: =Q54+1 -> 2069 | R55: 29.79148312 | S55: 1 | U55: 15528.2284 | V55: ="" ->  | W55: 15528.2284 | AC55: =AC54+1 -> 2069
C56: Export allowed between Time 1 and Time 3 | E56: =E57-E55 -> -2 | F56: Time 2 | Q56: 2070 | R56: 29.94044054 | S56: 1 | U56: 15363.13987 | V56: ="" ->  | W56: 15363.13987 | AC56: 2070
C57: Export allowed after Time 3 | F57: Time 3 | Q57: 2071 | R57: 30.09014274 | S57: 1 | U57: 17346.69757 | V57: ="" ->  | W57: 17346.69757 | AC57: 2071
Q58: 2072 | R58: 30.24059345 | S58: 1 | U58: 16986.66668 | V58: ="" ->  | W58: 16986.66668 | AC58: 2072
Q59: 2073 | R59: 30.39179642 | S59: 1 | U59: 16781.68774 | V59: ="" ->  | W59: 16781.68774 | AC59: 2073
Q60: 2074 | R60: 30.5437554 | S60: 1 | U60: 16589.68842 | V60: ="" ->  | W60: 16589.68842 | AC60: 2074
Q61: 2075 | R61: 30.69647418 | S61: 1 | U61: 16750.26238 | V61: ="" ->  | W61: 16750.26238 | AC61: 2075
Q62: 2076 | R62: 30.84995655 | S62: 1 | U62: 16345.86608 | V62: ="" ->  | W62: 16345.86608 | AC62: 2076
Q63: 2077 | R63: 31.00420633 | S63: 1 | U63: 15465.27553 | V63: ="" ->  | W63: 15465.27553 | AC63: 2077
Q64: 2078 | R64: 31.15922736 | S64: 1 | U64: 15100.17955 | V64: ="" ->  | W64: 15100.17955 | AC64: 2078
Q65: 2079 | R65: 31.3150235 | S65: 1 | U65: 16211.8544 | V65: ="" ->  | W65: 16211.8544 | AC65: 2079
Q66: 2080 | R66: 31.47159862 | S66: 1 | U66: 15984.92151 | V66: ="" ->  | W66: 15984.92151 | AC66: 2080
Q67: 2081 | R67: 31.62895661 | S67: 1 | U67: 15508.27503 | V67: ="" ->  | W67: 15508.27503 | AC67: 2081
Q68: 2082 | R68: 31.78710139 | S68: 1 | U68: 15529.49876 | V68: ="" ->  | W68: 15529.49876 | AC68: 2082
Q69: 2083 | R69: 31.9460369 | S69: 1 | U69: 15055.82786 | V69: ="" ->  | W69: 15055.82786 | AC69: 2083
Q70: 2084 | R70: 32.10576709 | S70: 1 | U70: 14697.95126 | V70: ="" ->  | W70: 14697.95126 | AC70: 2084
Q71: 2085 | R71: 32.26629592 | S71: 1 | U71: 15264.48005 | V71: ="" ->  | W71: 15264.48005 | AC71: 2085
Q72: 2086 | R72: 32.4276274 | S72: 1 | U72: 15382.33078 | V72: ="" ->  | W72: 15382.33078 | AC72: 2086
Q73: 2087 | R73: 32.58976554 | S73: 1 | U73: 14216.22962 | V73: ="" ->  | W73: 14216.22962 | AC73: 2087
Q74: 2088 | R74: 32.75271436 | S74: 1 | U74: 13782.89413 | V74: ="" ->  | W74: 13782.89413 | AC74: 2088
Q75: 2089 | R75: 32.91647794 | S75: 1 | U75: 14537.34148 | V75: ="" ->  | W75: 14537.34148 | AC75: 2089
U76: 14568.53354 | V76: ="" ->  | W76: 14568.53354
U77: 15501.48463 | V77: ="" ->  | W77: 15501.48463
U78: 16615.62443 | V78: ="" ->  | W78: 16615.62443
U79: 16170.36772 | V79: ="" ->  | W79: 16170.36772
U80: 15499.76194 | V80: ="" ->  | W80: 15499.76194
U81: 15077.71194 | V81: ="" ->  | W81: 15077.71194
U82: 14674.19159 | V82: ="" ->  | W82: 14674.19159
U83: 14651.45844 | V83: ="" ->  | W83: 14651.45844
U84: 14508.64971 | V84: ="" ->  | W84: 14508.64971
U85: 15130.93084 | V85: ="" ->  | W85: 15130.93084
U86: 15494.49244 | V86: ="" ->  | W86: 15494.49244
U87: 15167.26699 | V87: ="" ->  | W87: 15167.26699
U88: 14912.92751 | V88: ="" ->  | W88: 14912.92751
U89: 13862.84155 | V89: ="" ->  | W89: 13862.84155
U90: 13984.85243 | V90: ="" ->  | W90: 13984.85243
U91: 15458.01353 | V91: ="" ->  | W91: 15458.01353
U92: 15823.66115 | V92: ="" ->  | W92: 15823.66115
U93: 15552.38843 | V93: ="" ->  | W93: 15552.38843
U94: 15986.53448 | V94: ="" ->  | W94: 15986.53448
U95: 17089.72585 | V95: ="" ->  | W95: 17089.72585
U96: 17088.2771 | V96: ="" ->  | W96: 17088.2771
U97: 16135.72299 | V97: ="" ->  | W97: 16135.72299
U98: 15864.74335 | V98: ="" ->  | W98: 15864.74335
U99: 16135.83124 | V99: ="" ->  | W99: 16135.83124
U100: 16087.75258 | V100: ="" ->  | W100: 16087.75258
U101: 15666.03005 | V101: ="" ->  | W101: 15666.03005
U102: 16820.82283 | V102: ="" ->  | W102: 16820.82283
U103: 17261.31153 | V103: ="" ->  | W103: 17261.31153
U104: 17130.09465 | V104: ="" ->  | W104: 17130.09465
U105: 17285.63976 | V105: ="" ->  | W105: 17285.63976
U106: 17094.9297 | V106: ="" ->  | W106: 17094.9297
U107: 16637.96043 | V107: ="" ->  | W107: 16637.96043
U108: 16561.02288 | V108: ="" ->  | W108: 16561.02288
U109: 16595.36624 | V109: ="" ->  | W109: 16595.36624
U110: 16347.03207 | V110: ="" ->  | W110: 16347.03207
U111: 15725.71588 | V111: ="" ->  | W111: 15725.71588
U112: 15229.23607 | V112: ="" ->  | W112: 15229.23607
U113: 15806.4391 | V113: ="" ->  | W113: 15806.4391
U114: 15859.92825 | V114: ="" ->  | W114: 15859.92825
U115: 15460.65331 | V115: ="" ->  | W115: 15460.65331
U116: 15474.77251 | V116: ="" ->  | W116: 15474.77251
U117: 15077.97474 | V117: ="" ->  | W117: 15077.97474
U118: 14863.81304 | V118: ="" ->  | W118: 14863.81304
U119: 15216.36403 | V119: ="" ->  | W119: 15216.36403
U120: 15297.26738 | V120: ="" ->  | W120: 15297.26738
U121: 15482.08249 | V121: ="" ->  | W121: 15482.08249
U122: 15682.02293 | V122: ="" ->  | W122: 15682.02293
U123: 16222.39387 | V123: ="" ->  | W123: 16222.39387
U124: 16153.41139 | V124: ="" ->  | W124: 16153.41139
U125: 15587.87727 | V125: ="" ->  | W125: 15587.87727
U126: 14419.41661 | V126: ="" ->  | W126: 14419.41661
U127: 13721.30376 | V127: ="" ->  | W127: 13721.30376
U128: 13166.23777 | V128: ="" ->  | W128: 13166.23777
U129: 13162.86087 | V129: ="" ->  | W129: 13162.86087
U130: 13005.67216 | V130: ="" ->  | W130: 13005.67216
U131: 12796.23415 | V131: ="" ->  | W131: 12796.23415
U132: 11963.43352 | V132: ="" ->  | W132: 11963.43352
U133: 12372.55602 | V133: ="" ->  | W133: 12372.55602
U134: 12670.16551 | V134: ="" ->  | W134: 12670.16551
U135: 12412.51521 | V135: ="" ->  | W135: 12412.51521
U136: 12720.19495 | V136: ="" ->  | W136: 12720.19495
U137: 13166.49759 | V137: ="" ->  | W137: 13166.49759
U138: 13770.39051 | V138: ="" ->  | W138: 13770.39051
U139: 12990.245 | V139: ="" ->  | W139: 12990.245
U140: 12341.06772 | V140: ="" ->  | W140: 12341.06772
U141: 13104.13066 | V141: ="" ->  | W141: 13104.13066
U142: 14492.64157 | V142: ="" ->  | W142: 14492.64157
U143: 15242.68711 | V143: ="" ->  | W143: 15242.68711
U144: 16650.90716 | V144: ="" ->  | W144: 16650.90716
U145: 17280.30503 | V145: ="" ->  | W145: 17280.30503
U146: 17922.59085 | V146: ="" ->  | W146: 17922.59085
U147: 18513.70347 | V147: ="" ->  | W147: 18513.70347
U148: 18289.2313 | V148: ="" ->  | W148: 18289.2313
U149: 17973.21081 | V149: ="" ->  | W149: 17973.21081
U150: 17689.35859 | V150: ="" ->  | W150: 17689.35859
U151: 17516.87002 | V151: ="" ->  | W151: 17516.87002
U152: 17062.60753 | V152: ="" ->  | W152: 17062.60753
U153: 16868.63232 | V153: ="" ->  | W153: 16868.63232
U154: 16554.41129 | V154: ="" ->  | W154: 16554.41129
U155: 16120.09501 | V155: ="" ->  | W155: 16120.09501
U156: 16651.60298 | V156: ="" ->  | W156: 16651.60298
U157: 16376.29318 | V157: ="" ->  | W157: 16376.29318
U158: 15717.22519 | V158: ="" ->  | W158: 15717.22519
U159: 14923.64812 | V159: ="" ->  | W159: 14923.64812
U160: 14393.3621 | V160: ="" ->  | W160: 14393.3621
U161: 14773.59933 | V161: ="" ->  | W161: 14773.59933
U162: 15037.44715 | V162: ="" ->  | W162: 15037.44715
U163: 14817.38389 | V163: ="" ->  | W163: 14817.38389
U164: 14636.72858 | V164: ="" ->  | W164: 14636.72858
U165: 14711.5494 | V165: ="" ->  | W165: 14711.5494
U166: 14559.89277 | V166: ="" ->  | W166: 14559.89277
U167: 14225.67809 | V167: ="" ->  | W167: 14225.67809
U168: 14280.69335 | V168: ="" ->  | W168: 14280.69335
U169: 14609.45016 | V169: ="" ->  | W169: 14609.45016
U170: 14749.98808 | V170: ="" ->  | W170: 14749.98808
U171: 14746.45162 | V171: ="" ->  | W171: 14746.45162
U172: 14340.68388 | V172: ="" ->  | W172: 14340.68388
U173: 14009.68957 | V173: ="" ->  | W173: 14009.68957
U174: 13557.23685 | V174: ="" ->  | W174: 13557.23685
U175: 12584.58024 | V175: ="" ->  | W175: 12584.58024
U176: 12204.06336 | V176: ="" ->  | W176: 12204.06336
U177: 11829.48487 | V177: ="" ->  | W177: 11829.48487
U178: 12164.61033 | V178: ="" ->  | W178: 12164.61033
U179: 11947.48983 | V179: ="" ->  | W179: 11947.48983
U180: 11585.47986 | V180: ="" ->  | W180: 11585.47986
U181: 11602.82132 | V181: ="" ->  | W181: 11602.82132
U182: 11493.48922 | V182: ="" ->  | W182: 11493.48922
U183: 11819.89832 | V183: ="" ->  | W183: 11819.89832
U184: 12532.66908 | V184: ="" ->  | W184: 12532.66908
U185: 13405.48509 | V185: ="" ->  | W185: 13405.48509
U186: 13296.71526 | V186: ="" ->  | W186: 13296.71526
U187: 15277.91637 | V187: ="" ->  | W187: 15277.91637
U188: 15743.14696 | V188: ="" ->  | W188: 15743.14696
U189: 14324.10091 | V189: ="" ->  | W189: 14324.10091
U190: 14341.26526 | V190: ="" ->  | W190: 14341.26526
U191: 15583.3261 | V191: ="" ->  | W191: 15583.3261
U192: 16972.07367 | V192: ="" ->  | W192: 16972.07367
U193: 17562.46817 | V193: ="" ->  | W193: 17562.46817
U194: 18558.3204 | V194: ="" ->  | W194: 18558.3204
U195: 19245.3835 | V195: ="" ->  | W195: 19245.3835
U196: 19489.97974 | V196: ="" ->  | W196: 19489.97974
U197: 18954.10299 | V197: ="" ->  | W197: 18954.10299
U198: 18543.59388 | V198: ="" ->  | W198: 18543.59388
U199: 17851.37844 | V199: ="" ->  | W199: 17851.37844
U200: 17197.25764 | V200: ="" ->  | W200: 17197.25764
U201: 17075.51467 | V201: ="" ->  | W201: 17075.51467
U202: 14809.69048 | V202: ="" ->  | W202: 14809.69048
... 2048 more rows

Sheet DATA (hidden)
B1: Forced Outage Rates | G1: Repair/Replacement Times
C2: Circuits per 100km | H2: Hours | L2: ConnectedBreakerCountTypes
B3: Overhead ≥ 110kV | C3: 0.35 | G3: Overhead ≥ 110kV | H3: 4 | L3: 0
B4: Overhead 66kV | C4: 1.4 | G4: Overhead 66kV | H4: 4 | L4: 1
B5: Overhead 33kV | C5: 5.6 | G5: Overhead 33kV | H5: 4 | L5: 2
B6: Overhead 11kV or 22kV (Urban) | C6: 6 | G6: Overhead 11kV or 22kV (Urban) | H6: 1.5
B7: Overhead 11kV or 22kV (Short Rural) | C7: 6 | G7: Overhead 11kV or 22kV (Short Rural) | H7: 2
B8: Overhead 11kV or 22kV (Long Rural) | C8: 2.6 | G8: Overhead 11kV or 22kV (Long Rural) | H8: 2.5
B9: Underground ≥ 33kV | C9: 0.15 | G9: Underground ≥ 33kV | H9: 24
B10: Underground 11kV or 22kV | C10: 0.75 | G10: Underground 11kV or 22kV | H10: 8
G12: Repair/Replacement Times | L12: 2020
C13: Bus | D13: Retirement Age | E13: Fatality | F13: Multiple Injuries | H13: Hours | L13: =L12+1 -> 2021
B14: GIS 33kV | C14: 0.003 | D14: 0 | E14: =VLOOKUP(Input!$G$3,DATA!$L$48:$M$54,2,FALSE)*VLOOKUP(DATA!$E$41,DATA!$N$48:$O$50,2,FALSE) -> 0.0001 | F14: =VLOOKUP(Input!$G$3,DATA!$L$48:$M$54,2,FALSE)*VLOOKUP(DATA!$F$41,DATA!$N$48:$O$50,2,FALSE) -> 0.0005 | G14: GIS 33kV | H14: 48 | L14: 2022
B15: GIS 66kV | C15: 0.003 | D15: 0 | E15: =VLOOKUP(Input!$G$3,DATA!$L$48:$M$54,2,FALSE)*VLOOKUP(DATA!$E$41,DATA!$N$48:$O$50,2,FALSE) -> 0.0001 | F15: =VLOOKUP(Input!$G$3,DATA!$L$48:$M$54,2,FALSE)*VLOOKUP(DATA!$F$41,DATA!$N$48:$O$50,2,FALSE) -> 0.0005 | G15: GIS 66kV | H15: 48 | L15: 2023
B16: GIS ≥ 110kV | C16: 0.003 | D16: 0 | E16: =VLOOKUP(Input!$G$3,DATA!$L$48:$M$54,2,FALSE)*VLOOKUP(DATA!$E$41,DATA!$N$48:$O$50,2,FALSE) -> 0.0001 | F16: =VLOOKUP(Input!$G$3,DATA!$L$48:$M$54,2,FALSE)*VLOOKUP(DATA!$F$41,DATA!$N$48:$O$50,2,FALSE) -> 0.0005 | G16: GIS ≥ 110kV | H16: 48 | L16: 2024
B17: Outdoor 11kV or 22kV | C17: 0.04 | D17: 0 | E17: =VLOOKUP(Input!$G$3,DATA!$L$48:$M$54,2,FALSE)*VLOOKUP(DATA!$E$41,DATA!$N$48:$O$50,2,FALSE) -> 0.0001 | F17: =VLOOKUP(Input!$G$3,DATA!$L$48:$M$54,2,FALSE)*VLOOKUP(DATA!$F$41,DATA!$N$48:$O$50,2,FALSE) -> 0.0005 | G17: Outdoor 11kV or 22kV | H17: 48 | L17: 2025
B18: Outdoor 33kV | C18: 0.03 | D18: 0 | E18: =VLOOKUP(Input!$G$3,DATA!$L$48:$M$54,2,FALSE)*VLOOKUP(DATA!$E$41,DATA!$N$48:$O$50,2,FALSE) -> 0.0001 | F18: =VLOOKUP(Input!$G$3,DATA!$L$48:$M$54,2,FALSE)*VLOOKUP(DATA!$F$41,DATA!$N$48:$O$50,2,FALSE) -> 0.0005 | G18: Outdoor 33kV | H18: 48 | L18: 2026
B19: Outdoor 66kV | C19: 0.03 | D19: 0 | E19: =VLOOKUP(Input!$G$3,DATA!$L$48:$M$54,2,FALSE)*VLOOKUP(DATA!$E$41,DATA!$N$48:$O$50,2,FALSE) -> 0.0001 | F19: =VLOOKUP(Input!$G$3,DATA!$L$48:$M$54,2,FALSE)*VLOOKUP(DATA!$F$41,DATA!$N$48:$O$50,2,FALSE) -> 0.0005 | G19: Outdoor 66kV | H19: 48 | L19: 2027
B20: Outdoor ≥ 110kV | C20: 0.03 | D20: 0 | E20: =VLOOKUP(Input!$G$3,DATA!$L$48:$M$54,2,FALSE)*VLOOKUP(DATA!$E$41,DATA!$N$48:$O$50,2,FALSE) -> 0.0001 | F20: =VLOOKUP(Input!$G$3,DATA!$L$48:$M$54,2,FALSE)*VLOOKUP(DATA!$F$41,DATA!$N$48:$O$50,2,FALSE) -> 0.0005 | G20: Outdoor ≥ 110kV | H20: 48 | L20: 2028
B21: Indoor Compound 11kV or 22kV | C21: 0.003 | D21: 0 | E21: =VLOOKUP(Input!$G$3,DATA!$L$48:$M$54,2,FALSE)*VLOOKUP(DATA!$E$41,DATA!$N$48:$O$50,2,FALSE) -> 0.0001 | F21: =VLOOKUP(Input!$G$3,DATA!$L$48:$M$54,2,FALSE)*VLOOKUP(DATA!$F$41,DATA!$N$48:$O$50,2,FALSE) -> 0.0005 | G21: Indoor Compound 11kV or 22kV | H21: 48 | L21: 2029
B22: Indoor Compound 33kV | C22: 0.003 | D22: 0 | E22: =VLOOKUP(Input!$G$3,DATA!$L$48:$M$54,2,FALSE)*VLOOKUP(DATA!$E$41,DATA!$N$48:$O$50,2,FALSE) -> 0.0001 | F22: =VLOOKUP(Input!$G$3,DATA!$L$48:$M$54,2,FALSE)*VLOOKUP(DATA!$F$41,DATA!$N$48:$O$50,2,FALSE) -> 0.0005 | G22: Indoor Compound 33kV | H22: 48 | L22: 2030
B23: Indoor Other 11kV or 22kV | C23: 0.003 | D23: 0 | E23: =VLOOKUP(Input!$G$3,DATA!$L$48:$M$54,2,FALSE)*VLOOKUP(DATA!$E$41,DATA!$N$48:$O$50,2,FALSE) -> 0.0001 | F23: =VLOOKUP(Input!$G$3,DATA!$L$48:$M$54,2,FALSE)*VLOOKUP(DATA!$F$41,DATA!$N$48:$O$50,2,FALSE) -> 0.0005 | G23: Indoor Other 11kV or 22kV | H23: 48 | L23: 2031
B24: Indoor Other 33kV | C24: 0.003 | D24: 0 | E24: =VLOOKUP(Input!$G$3,DATA!$L$48:$M$54,2,FALSE)*VLOOKUP(DATA!$E$41,DATA!$N$48:$O$50,2,FALSE) -> 0.0001 | F24: =VLOOKUP(Input!$G$3,DATA!$L$48:$M$54,2,FALSE)*VLOOKUP(DATA!$F$41,DATA!$N$48:$O$50,2,FALSE) -> 0.0005 | G24: Indoor Other 33kV | H24: 48
B25: CT | C25: 0.2 | D25: 60 | E25: =VLOOKUP(Input!$G$3,DATA!$L$48:$M$54,2,FALSE)*VLOOKUP(DATA!$E$41,DATA!$N$48:$O$50,2,FALSE) -> 0.0001 | F25: =VLOOKUP(Input!$G$3,DATA!$L$48:$M$54,2,FALSE)*VLOOKUP(DATA!$F$41,DATA!$N$48:$O$50,2,FALSE) -> 0.0005 | G25: CT | H25: 48 | L25: Yes - model single contingency
B26: VT | C26: 0.2 | D26: 60 | E26: =VLOOKUP(Input!$G$3,DATA!$L$48:$M$54,2,FALSE)*VLOOKUP(DATA!$E$41,DATA!$N$48:$O$50,2,FALSE) -> 0.0001 | F26: =VLOOKUP(Input!$G$3,DATA!$L$48:$M$54,2,FALSE)*VLOOKUP(DATA!$F$41,DATA!$N$48:$O$50,2,FALSE) -> 0.0005 | G26: VT | H26: 48 | L26: No - model double contingency
B27: Electromechanical Relay (single) | C27: 0.2 | D27: 45 | E27: =VLOOKUP(Input!$G$3,DATA!$L$48:$M$54,2,FALSE)*VLOOKUP(DATA!$E$41,DATA!$N$48:$O$50,2,FALSE) -> 0.0001 | F27: =VLOOKUP(Input!$G$3,DATA!$L$48:$M$54,2,FALSE)*VLOOKUP(DATA!$F$41,DATA!$N$48:$O$50,2,FALSE) -> 0.0005 | G27: Electromechanical Relay (single) | H27: 8
B28: Analogue Relay (single) | C28: 0.2 | D28: 25 | E28: =VLOOKUP(Input!$G$3,DATA!$L$48:$M$54,2,FALSE)*VLOOKUP(DATA!$E$41,DATA!$N$48:$O$50,2,FALSE) -> 0.0001 | F28: =VLOOKUP(Input!$G$3,DATA!$L$48:$M$54,2,FALSE)*VLOOKUP(DATA!$F$41,DATA!$N$48:$O$50,2,FALSE) -> 0.0005 | G28: Analogue Relay (single) | H28: 8 | L28: yes
B29: Digital Relay (single) | C29: 0.2 | D29: 20 | E29: =VLOOKUP(Input!$G$3,DATA!$L$48:$M$54,2,FALSE)*VLOOKUP(DATA!$E$41,DATA!$N$48:$O$50,2,FALSE) -> 0.0001 | F29: =VLOOKUP(Input!$G$3,DATA!$L$48:$M$54,2,FALSE)*VLOOKUP(DATA!$F$41,DATA!$N$48:$O$50,2,FALSE) -> 0.0005 | G29: Digital Relay (single) | H29: 8 | L29: no
B30: Electromechanical Relay (X & Y) | C30: =C27*C27 -> 0.04 | D30: 45 | E30: =VLOOKUP(Input!$G$3,DATA!$L$48:$M$54,2,FALSE)*VLOOKUP(DATA!$E$41,DATA!$N$48:$O$50,2,FALSE) -> 0.0001 | F30: =VLOOKUP(Input!$G$3,DATA!$L$48:$M$54,2,FALSE)*VLOOKUP(DATA!$F$41,DATA!$N$48:$O$50,2,FALSE) -> 0.0005 | G30: Electromechanical Relay (X & Y) | H30: 8
B31: Analogue Relay (X & Y) | C31: =C28*C28 -> 0.04 | D31: 25 | E31: =VLOOKUP(Input!$G$3,DATA!$L$48:$M$54,2,FALSE)*VLOOKUP(DATA!$E$41,DATA!$N$48:$O$50,2,FALSE) -> 0.0001 | F31: =VLOOKUP(Input!$G$3,DATA!$L$48:$M$54,2,FALSE)*VLOOKUP(DATA!$F$41,DATA!$N$48:$O$50,2,FALSE) -> 0.0005 | G31: Analogue Relay (X & Y) | H31: 8 | L31: 1
B32: Digital Relay (X & Y) | C32: 0.04 | D32: 20 | E32: =VLOOKUP(Input!$G$3,DATA!$L$48:$M$54,2,FALSE)*VLOOKUP(DATA!$E$41,DATA!$N$48:$O$50,2,FALSE) -> 0.0001 | F32: =VLOOKUP(Input!$G$3,DATA!$L$48:$M$54,2,FALSE)*VLOOKUP(DATA!$F$41,DATA!$N$48:$O$50,2,FALSE) -> 0.0005 | G32: Digital Relay (X & Y) | H32: 8 | L32: 2
L33: 3
L34: 4
L35: 5
L36: 6
L37: Environmental
L38: Quantity of spill | M38: Rectification costs | N38: Fines | O38: Disproportionality | P38: Likelihood scale | Q38: Probability
L39: >20,000 L | M39: 5000000 | N39: 82710 | O39: 6 | P39: 6 | Q39: 0.15
C40: Plant Model | L40: >10,000 <20,000 L | M40: 1000000 | N40: 82710 | O40: 6 | P40: 5 | Q40: 0.1
C41: beta | D41: gamma | E41: Fatality | F41: Multiple Injuries | G41: Repair Time | H41: Multiplier | L41: >5,000 <10,000 L | M41: 500000 | N41: 0 | O41: 6 | P41: 4 | Q41: =1/100 -> 0.01 | V41: 0.05 | W41: 0.025 | X41: 0
B42: Zone Substation Transformer | C42: 3.6 | D42: 79 | E42: =VLOOKUP(Input!$G$3,DATA!$L$48:$M$54,2,FALSE)*VLOOKUP(DATA!$E$41,DATA!$N$48:$O$50,2,FALSE) -> 0.0001 | F42: =VLOOKUP(Input!$G$3,DATA!$L$48:$M$54,2,FALSE)*VLOOKUP(DATA!$F$41,DATA!$N$48:$O$50,2,FALSE) -> 0.0005 | G42: 48 | L42: >1,000 <5,000 L | M42: 50000 | N42: 0 | O42: 3 | P42: 3 | Q42: =1/10000 -> 0.0001 | V42: 0.1 | W42: 0.05 | X42: 0.025
B43: Bulk Supply Transformer | C43: 5.9 | D43: 61 | E43: =VLOOKUP(Input!$G$3,DATA!$L$48:$M$54,2,FALSE)*VLOOKUP(DATA!$E$41,DATA!$N$48:$O$50,2,FALSE) -> 0.0001 | F43: =VLOOKUP(Input!$G$3,DATA!$L$48:$M$54,2,FALSE)*VLOOKUP(DATA!$F$41,DATA!$N$48:$O$50,2,FALSE) -> 0.0005 | G43: 48 | L43: >200 <1,000 L | M43: 5000 | N43: 0 | O43: 3 | P43: 2 | Q43: =1/100000 -> 1e-05 | V43: 0.6 | W43: 0.25 | X43: 0.2
B44: Fused Transformer | C44: 3.6 | D44: 79 | E44: =VLOOKUP(Input!$G$3,DATA!$L$48:$M$54,2,FALSE)*VLOOKUP(DATA!$E$41,DATA!$N$48:$O$50,2,FALSE) -> 0.0001 | F44: =VLOOKUP(Input!$G$3,DATA!$L$48:$M$54,2,FALSE)*VLOOKUP(DATA!$F$41,DATA!$N$48:$O$50,2,FALSE) -> 0.0005 | G44: 48 | H44: 1.2 | V44: 0.6 | W44: 0.35 | X44: 0.3
B45: 11kV or 22kV CB | C45: 4 | D45: 75 | E45: =VLOOKUP(Input!$G$3,DATA!$L$48:$M$54,2,FALSE)*VLOOKUP(DATA!$E$41,DATA!$N$48:$O$50,2,FALSE) -> 0.0001 | F45: =VLOOKUP(Input!$G$3,DATA!$L$48:$M$54,2,FALSE)*VLOOKUP(DATA!$F$41,DATA!$N$48:$O$50,2,FALSE) -> 0.0005 | G45: 48 | L45: <200 L | M45: 500 | N45: 0 | O45: 3 | P45: 1 | Q45: =1/1000000 -> 1e-06 | V45: 0.8 | W45: 0.5 | X45: 0.4
B46: ≥ 33kV CB | C46: 4 | D46: 80 | E46: =VLOOKUP(Input!$G$3,DATA!$L$48:$M$54,2,FALSE)*VLOOKUP(DATA!$E$41,DATA!$N$48:$O$50,2,FALSE) -> 0.0001 | F46: =VLOOKUP(Input!$G$3,DATA!$L$48:$M$54,2,FALSE)*VLOOKUP(DATA!$F$41,DATA!$N$48:$O$50,2,FALSE) -> 0.0005 | G46: 48 | V46: 1 | W46: 1 | X46: 1
L47: Safety
L48: likelihood | M48: probability (conversion rate) | N48: Severity | O48: Prob severity
B49: Safety | L49: 6 | M49: 1 | N49: fatality | O49: 0.1 | V49: property | W49: injury | X49: death
B50: Safety Consequence | C50: Cost | D50: Disproportionality public | E50: Disproportionality industry | F50: PUBLIC | G50: INDUSTRY | L50: 5 | M50: 0.1 | N50: Multiple Injuries | O50: 0.5 | U50: =TRANSPOSE(M57:R57) -> Low-Moderate | V50: 0.05 | W50: 0.025 | X50: 0
B51: Single Fatality | C51: 5300000 | D51: 6 | E51: 3 | F51: =C51*D51 -> 31800000 | G51: =C51*E51 -> 15900000 | L51: 4 | M51: 0.01 | U51: High | V51: 0.1 | W51: 0.05 | X51: 0.025
B52: Multiple Injuries | C52: =C51*25% -> 1325000 | D52: 6 | E52: 3 | F52: =C52*D52 -> 7950000 | G52: =C52*E52 -> 3975000 | L52: 3 | M52: =1/1000 -> 0.001 | U52: Very High | V52: 0.6 | W52: 0.25 | X52: 0.2
L53: 2 | M53: =1/10000 -> 0.0001 | U53: Severe | V53: 0.6 | W53: 0.35 | X53: 0.3
L54: 1 | M54: =1/100000 -> 1e-05 | U54: Extreme | V54: 0.8 | W54: 0.5 | X54: 0.4
B55: Bushfire | U55: Catastrophic | V55: 1 | W55: 1 | X55: 1
B56: Safety Consequence | C56: Cost | D56: Disproportionality | H56: probability | L56: Bushfire
B57: environmental cost | C57: 10000000 | H57: =VLOOKUP(Input!$L$3,DATA!$L$58:$V$73,9,FALSE) -> 0.00105095 | I57: Prob bushfire damage | L57: Annual % of Fire Danger Level per Fire Danger Region | M57: Low-Moderate | N57: High | O57: Very High | P57: Severe | Q57: Extreme | R57: Catastrophic | T57: property | U57: injury | V57: death | X57: probability of fire spreading beyond our assets
B58: Single Fatality | C58: 5100000 | D58: 6 | F58: =C58*D58 -> 30600000 | H58: =VLOOKUP(Input!$L$3,DATA!$L$58:$V$73,11,FALSE) -> 0.0002331 | I58: Prob bushfire fatality | L58: Far North | M58: 0.5444 | N58: 0.35315 | O58: 0.10055 | P58: 0.00195 | Q58: 0 | R58: 0 | T58: =((M58*$V$50)+(N58*$V$51)+(O58*$V$52)+(P58*$V$53)+(Q58*$V$54)+(R58*$V$55))*$X$58 -> 0.00124035 | U58: =((M58*$W$50)+(N58*$W$51)+(O58*$W$52)+(P58*$W$53)+(Q58*$W$54)+(R58*$W$55))*$X$58 -> 0.000570875 | V58: =((M58*$X$50)+(N58*$X$51)+(O58*$X$52)+(P58*$X$53)+(Q58*$X$54)+(R58*$X$55))*$X$58 -> 0.0002952375 | X58: 0.01
B59: Multiple Injuries | C59: =C58*25% -> 1275000 | D59: 6 | F59: =C59*D59 -> 7650000 | H59: =VLOOKUP(Input!$L$3,DATA!$L$58:$V$73,10,FALSE) -> 0.000500475 | I59: Prob bushfire injury | L59: Flinders | M59: 0.4769 | N59: 0.3842 | O59: 0.1328 | P59: 0.0061 | Q59: 0 | R59: 0 | T59: =((M59*$V$50)+(N59*$V$51)+(O59*$V$52)+(P59*$V$53)+(Q59*$V$54)+(R59*$V$55))*$X$58 -> 0.00145605 | U59: =((M59*$W$50)+(N59*$W$51)+(O59*$W$52)+(P59*$W$53)+(Q59*$W$54)+(R59*$W$55))*$X$58 -> 0.000664675 | V59: =((M59*$X$50)+(N59*$X$51)+(O59*$X$52)+(P59*$X$53)+(Q59*$X$54)+(R59*$X$55))*$X$58 -> 0.00037995
L60: Tropical Coast | M60: 0.625 | N60: 0.3277 | O60: 0.0473 | P60: 0 | Q60: 0 | R60: 0 | T60: 0.000924 | U60: 0.00043835 | V60: 0.000176525
B61: Environmental | L61: Herbert | M61: 0.5256 | N61: 0.411 | O61: 0.063 | P61: 0.0004 | Q61: 0 | R61: 0 | T61: 0.0010542 | U61: 0.0004958 | V61: 0.00022995
B62: Safety Consequence | C62: Cost | L62: Pioneer | M62: 0.5788 | N62: 0.3743 | O62: 0.0454 | P62: 0.0016 | Q62: 0 | R62: 0 | T62: 0.0009457 | U62: 0.00045095 | V62: 0.000189175
B63: environmental cost | C63: =VLOOKUP(Input!J4,DATA!L38:N45,2,FALSE)+VLOOKUP(Input!J4,DATA!L38:N45,3,FALSE)*VLOOKUP(Input!J4,DATA!L38:O45,4,FALSE) -> 5496260 | H63: =VLOOKUP(Input!J3,DATA!P38:Q45,2,FALSE) -> 0.0001 | I63: Prob environ damage | L63: Capricornia | M63: 0.4396 | N63: 0.4932 | O63: 0.0653 | P63: 0.0016 | Q63: 0.0004 | R63: 0 | T63: 0.0011176 | U63: 0.00052735 | V63: 0.0002603
L64: Central West | M64: 0.4873 | N64: 0.37385 | O64: 0.1318 | P64: 0.00705 | Q64: 0 | R64: 0 | T64: 0.0014506 | U64: 0.000662925 | V64: 0.0003782125
L65: South West | M65: 0.5862 | N65: 0.32245 | O65: 0.0776 | P65: 0.0129 | Q65: 0.0008 | R65: 0 | T65: 0.00116495 | U65: 0.000550925 | V65: 0.0002777125
L66: Darling Downs | M66: 0.3082 | N66: 0.4662 | O66: 0.2002 | P66: 0.0227 | Q66: 0.0027 | R66: 0 | T66: 0.0019793 | U66: 0.0009036 | V66: 0.00059585
L67: Bundaberg Burnett | M67: 0.4278 | N67: 0.4638 | O67: 0.1017 | P67: 0.0066 | Q67: 0 | R67: 0 | T67: 0.0013275 | U67: 0.0006162 | V67: 0.00033915
L68: Sunshine Coast | M68: 0.5811 | N68: 0.3508 | O68: 0.0594 | P68: 0.0078 | Q68: 0.0008 | R68: 0 | T68: 0.00105095 | U68: 0.000500475 | V68: 0.0002331
L69: Brisbane North | M69: 0.5811 | N69: 0.3508 | O69: 0.0594 | P69: 0.0078 | Q69: 0.0008 | R69: 0 | T69: 0.00105095 | U69: 0.000500475 | V69: 0.0002331
L70: Brisbane Central | M70: 0.5811 | N70: 0.3508 | O70: 0.0594 | P70: 0.0078 | Q70: 0.0008 | R70: 0 | T70: 0.00105095 | U70: 0.000500475 | V70: 0.0002331
L71: Brisbane South | M71: 0.5811 | N71: 0.3508 | O71: 0.0594 | P71: 0.0078 | Q71: 0.0008 | R71: 0 | T71: 0.00105095 | U71: 0.000500475 | V71: 0.0002331
B72: Probability of Failure | C72: 1 | L72: Ispwich Lockyer | M72: 0.5811 | N72: 0.3508 | O72: 0.0594 | P72: 0.0078 | Q72: 0.0008 | R72: 0 | T72: 0.00105095 | U72: 0.000500475 | V72: 0.0002331
B73: Benefit Multipler | C73: 1 | L73: Gold Coast | M73: 0.5811 | N73: 0.3508 | O73: 0.0594 | P73: 0.0078 | Q73: 0.0008 | R73: 0 | T73: 0.00105095 | U73: 0.000500475 | V73: 0.0002331

Sheet Export curtailment above max (hidden)
E1: Input
A2: Data Count | B2: =COUNT(B8:B20008) -> 17575 | E2: Formula/Calculations
A3: Max installed output | B3: =MAX(B8:B20008) -> 0 | E3: Output
A4: number of hours curtailed | B4: =COUNTIF(U8:U17575,">0")/2 -> 0
A5: total unserved generation (MWh) | B5: =SUM(U8:U17575)/2 -> 0
I6: Generation (export) data
B7: Generation data | D7: % of Load | E7: % of Time | I7: Normalized generation | J7: Frequency | K7: Accumulated Frequency | N7: % of Load | O7: % of Time | P7: Area Segmentations | Q7: Area Under LDC | R7: Area Above Limitation | T7: Curtailed export | U7: Unserved generation (MWh)
B8: =Input!AA15 -> 0 | D8: 1 | E8: =IFERROR(K8/B$2,"") -> 0 | I8: =IF(B8="","",IFERROR(B8/B$3,"")) ->  | J8: =FREQUENCY($I$8:$I$20008,$D$8:$D$1008) -> 0 | K8: =J8 -> 0 | N8: =ROUND(D8*100,1) -> 100 | O8: =E8*100 -> 0 | P8: =(O8/1000+0.5*(O9-O8)/1000)*0.01 -> 0 | Q8: =Q9+(O8/1000+0.5*(O9-O8)/1000)*0.01 -> 0 | R8: 0 | T8: =IF(B8<Input!$AE$15,'Export curtailment above max'!B8,Input!$AE$15) -> 0 | U8: =B8-T8 -> 0
B9: =Input!AA16 -> 0 | D9: 0.999 | E9: =IFERROR(K9/B$2,"") -> 0 | I9: =IF(B9="","",IFERROR(B9/B$3,"")) ->  | J9: 0 | K9: =K8+J9 -> 0 | N9: =ROUND(D9*100,1) -> 99.9 | O9: 0 | P9: =(O9/1000+0.5*(O10-O9)/1000)*0.01 -> 0 | Q9: =Q10+(O9/1000+0.5*(O10-O9)/1000)*0.01 -> 0 | R9: =R8+P9 -> 0 | T9: =IF(B9<Input!$AE$15,'Export curtailment above max'!B9,Input!$AE$15) -> 0 | U9: =B9-T9 -> 0
B10: =Input!AA17 -> 0 | D10: 0.998 | E10: 0 | J10: 0 | K10: 0 | N10: 99.8 | O10: 0 | P10: 0 | Q10: 0 | R10: =R9+P10 -> 0 | T10: =IF(B10<Input!$AE$15,'Export curtailment above max'!B10,Input!$AE$15) -> 0 | U10: 0
B11: =Input!AA18 -> 0 | D11: 0.997 | E11: 0 | J11: 0 | K11: 0 | N11: 99.7 | O11: 0 | P11: 0 | Q11: 0 | R11: 0 | T11: =IF(B11<Input!$AE$15,'Export curtailment above max'!B11,Input!$AE$15) -> 0 | U11: 0
B12: =Input!AA19 -> 0 | D12: 0.996 | E12: 0 | J12: 0 | K12: 0 | N12: 99.6 | O12: 0 | P12: 0 | Q12: 0 | R12: 0 | T12: =IF(B12<Input!$AE$15,'Export curtailment above max'!B12,Input!$AE$15) -> 0 | U12: 0
B13: =Input!AA20 -> 0 | D13: 0.995 | E13: 0 | J13: 0 | K13: 0 | N13: 99.5 | O13: 0 | P13: 0 | Q13: 0 | R13: 0 | T13: =IF(B13<Input!$AE$15,'Export curtailment above max'!B13,Input!$AE$15) -> 0 | U13: 0
B14: =Input!AA21 -> 0 | D14: 0.994 | E14: 0 | J14: 0 | K14: 0 | N14: 99.4 | O14: 0 | P14: 0 | Q14: 0 | R14: 0 | T14: =IF(B14<Input!$AE$15,'Export curtailment above max'!B14,Input!$AE$15) -> 0 | U14: 0
B15: =Input!AA22 -> 0 | D15: 0.993 | E15: 0 | J15: 0 | K15: 0 | N15: 99.3 | O15: 0 | P15: 0 | Q15: 0 | R15: 0 | T15: =IF(B15<Input!$AE$15,'Export curtailment above max'!B15,Input!$AE$15) -> 0 | U15: 0
B16: =Input!AA23 -> 0 | D16: 0.992 | E16: 0 | J16: 0 | K16: 0 | N16: 99.2 | O16: 0 | P16: 0 | Q16: 0 | R16: 0 | T16: =IF(B16<Input!$AE$15,'Export curtailment above max'!B16,Input!$AE$15) -> 0 | U16: 0
B17: =Input!AA24 -> 0 | D17: 0.991 | E17: 0 | J17: 0 | K17: 0 | N17: 99.1 | O17: 0 | P17: 0 | Q17: 0 | R17: 0 | T17: =IF(B17<Input!$AE$15,'Export curtailment above max'!B17,Input!$AE$15) -> 0 | U17: 0
B18: =Input!AA25 -> 0 | D18: 0.99 | E18: 0 | J18: 0 | K18: 0 | N18: 99 | O18: 0 | P18: 0 | Q18: 0 | R18: 0 | T18: =IF(B18<Input!$AE$15,'Export curtailment above max'!B18,Input!$AE$15) -> 0 | U18: 0
B19: =Input!AA26 -> 0 | D19: 0.989 | E19: 0 | J19: 0 | K19: 0 | N19: 98.9 | O19: 0 | P19: 0 | Q19: 0 | R19: 0 | T19: =IF(B19<Input!$AE$15,'Export curtailment above max'!B19,Input!$AE$15) -> 0 | U19: 0
B20: =Input!AA27 -> 0 | D20: 0.988 | E20: 0 | J20: 0 | K20: 0 | N20: 98.8 | O20: 0 | P20: 0 | Q20: 0 | R20: 0 | T20: =IF(B20<Input!$AE$15,'Export curtailment above max'!B20,Input!$AE$15) -> 0 | U20: 0
B21: =Input!AA28 -> 0 | D21: 0.987 | E21: 0 | J21: 0 | K21: 0 | N21: 98.7 | O21: 0 | P21: 0 | Q21: 0 | R21: 0 | T21: =IF(B21<Input!$AE$15,'Export curtailment above max'!B21,Input!$AE$15) -> 0 | U21: 0
B22: =Input!AA29 -> 0 | D22: 0.986 | E22: 0 | J22: 0 | K22: 0 | N22: 98.6 | O22: 0 | P22: 0 | Q22: 0 | R22: 0 | T22: =IF(B22<Input!$AE$15,'Export curtailment above max'!B22,Input!$AE$15) -> 0 | U22: 0
B23: =Input!AA30 -> 0 | D23: 0.985 | E23: 0 | J23: 0 | K23: 0 | N23: 98.5 | O23: 0 | P23: 0 | Q23: 0 | R23: 0 | T23: =IF(B23<Input!$AE$15,'Export curtailment above max'!B23,Input!$AE$15) -> 0 | U23: 0
B24: =Input!AA31 -> 0 | D24: 0.984 | E24: 0 | J24: 0 | K24: 0 | N24: 98.4 | O24: 0 | P24: 0 | Q24: 0 | R24: 0 | T24: =IF(B24<Input!$AE$15,'Export curtailment above max'!B24,Input!$AE$15) -> 0 | U24: 0
B25: =Input!AA32 -> 0 | D25: 0.983 | E25: 0 | J25: 0 | K25: 0 | N25: 98.3 | O25: 0 | P25: 0 | Q25: 0 | R25: 0 | T25: =IF(B25<Input!$AE$15,'Export curtailment above max'!B25,Input!$AE$15) -> 0 | U25: 0
B26: =Input!AA33 -> 0 | D26: 0.982 | E26: 0 | J26: 0 | K26: 0 | N26: 98.2 | O26: 0 | P26: 0 | Q26: 0 | R26: 0 | T26: =IF(B26<Input!$AE$15,'Export curtailment above max'!B26,Input!$AE$15) -> 0 | U26: 0
B27: =Input!AA34 -> 0 | D27: 0.981 | E27: 0 | J27: 0 | K27: 0 | N27: 98.1 | O27: 0 | P27: 0 | Q27: 0 | R27: 0 | T27: =IF(B27<Input!$AE$15,'Export curtailment above max'!B27,Input!$AE$15) -> 0 | U27: 0
B28: =Input!AA35 -> 0 | D28: 0.98 | E28: 0 | J28: 0 | K28: 0 | N28: 98 | O28: 0 | P28: 0 | Q28: 0 | R28: 0 | T28: =IF(B28<Input!$AE$15,'Export curtailment above max'!B28,Input!$AE$15) -> 0 | U28: 0
B29: =Input!AA36 -> 0 | D29: 0.979 | E29: 0 | J29: 0 | K29: 0 | N29: 97.9 | O29: 0 | P29: 0 | Q29: 0 | R29: 0 | T29: =IF(B29<Input!$AE$15,'Export curtailment above max'!B29,Input!$AE$15) -> 0 | U29: 0
B30: =Input!AA37 -> 0 | D30: 0.978 | E30: 0 | J30: 0 | K30: 0 | N30: 97.8 | O30: 0 | P30: 0 | Q30: 0 | R30: 0 | T30: =IF(B30<Input!$AE$15,'Export curtailment above max'!B30,Input!$AE$15) -> 0 | U30: 0
B31: =Input!AA38 -> 0 | D31: 0.977 | E31: 0 | J31: 0 | K31: 0 | N31: 97.7 | O31: 0 | P31: 0 | Q31: 0 | R31: 0 | T31: =IF(B31<Input!$AE$15,'Export curtailment above max'!B31,Input!$AE$15) -> 0 | U31: 0
B32: =Input!AA39 -> 0 | D32: 0.976 | E32: 0 | J32: 0 | K32: 0 | N32: 97.6 | O32: 0 | P32: 0 | Q32: 0 | R32: 0 | T32: =IF(B32<Input!$AE$15,'Export curtailment above max'!B32,Input!$AE$15) -> 0 | U32: 0
B33: =Input!AA40 -> 0 | D33: 0.975 | E33: 0 | J33: 0 | K33: 0 | N33: 97.5 | O33: 0 | P33: 0 | Q33: 0 | R33: 0 | T33: =IF(B33<Input!$AE$15,'Export curtailment above max'!B33,Input!$AE$15) -> 0 | U33: 0
B34: =Input!AA41 -> 0 | D34: 0.974 | E34: 0 | J34: 0 | K34: 0 | N34: 97.4 | O34: 0 | P34: 0 | Q34: 0 | R34: 0 | T34: =IF(B34<Input!$AE$15,'Export curtailment above max'!B34,Input!$AE$15) -> 0 | U34: 0
B35: =Input!AA42 -> 0 | D35: 0.973 | E35: 0 | J35: 0 | K35: 0 | N35: 97.3 | O35: 0 | P35: 0 | Q35: 0 | R35: 0 | T35: =IF(B35<Input!$AE$15,'Export curtailment above max'!B35,Input!$AE$15) -> 0 | U35: 0
B36: =Input!AA43 -> 0 | D36: 0.972 | E36: 0 | J36: 0 | K36: 0 | N36: 97.2 | O36: 0 | P36: 0 | Q36: 0 | R36: 0 | T36: =IF(B36<Input!$AE$15,'Export curtailment above max'!B36,Input!$AE$15) -> 0 | U36: 0
B37: =Input!AA44 -> 0 | D37: 0.971 | E37: 0 | J37: 0 | K37: 0 | N37: 97.1 | O37: 0 | P37: 0 | Q37: 0 | R37: 0 | T37: =IF(B37<Input!$AE$15,'Export curtailment above max'!B37,Input!$AE$15) -> 0 | U37: 0
B38: =Input!AA45 -> 0 | D38: 0.97 | E38: 0 | J38: 0 | K38: 0 | N38: 97 | O38: 0 | P38: 0 | Q38: 0 | R38: 0 | T38: =IF(B38<Input!$AE$15,'Export curtailment above max'!B38,Input!$AE$15) -> 0 | U38: 0
B39: =Input!AA46 -> 0 | D39: 0.969 | E39: 0 | J39: 0 | K39: 0 | N39: 96.9 | O39: 0 | P39: 0 | Q39: 0 | R39: 0 | T39: =IF(B39<Input!$AE$15,'Export curtailment above max'!B39,Input!$AE$15) -> 0 | U39: 0
B40: =Input!AA47 -> 0 | D40: 0.968 | E40: 0 | J40: 0 | K40: 0 | N40: 96.8 | O40: 0 | P40: 0 | Q40: 0 | R40: 0 | T40: =IF(B40<Input!$AE$15,'Export curtailment above max'!B40,Input!$AE$15) -> 0 | U40: 0
B41: =Input!AA48 -> 0 | D41: 0.967 | E41: 0 | J41: 0 | K41: 0 | N41: 96.7 | O41: 0 | P41: 0 | Q41: 0 | R41: 0 | T41: =IF(B41<Input!$AE$15,'Export curtailment above max'!B41,Input!$AE$15) -> 0 | U41: 0
B42: =Input!AA49 -> 0 | D42: 0.966 | E42: 0 | J42: 0 | K42: 0 | N42: 96.6 | O42: 0 | P42: 0 | Q42: 0 | R42: 0 | T42: =IF(B42<Input!$AE$15,'Export curtailment above max'!B42,Input!$AE$15) -> 0 | U42: 0
B43: =Input!AA50 -> 0 | D43: 0.965 | E43: 0 | J43: 0 | K43: 0 | N43: 96.5 | O43: 0 | P43: 0 | Q43: 0 | R43: 0 | T43: =IF(B43<Input!$AE$15,'Export curtailment above max'!B43,Input!$AE$15) -> 0 | U43: 0
B44: =Input!AA51 -> 0 | D44: 0.964 | E44: 0 | J44: 0 | K44: 0 | N44: 96.4 | O44: 0 | P44: 0 | Q44: 0 | R44: 0 | T44: =IF(B44<Input!$AE$15,'Export curtailment above max'!B44,Input!$AE$15) -> 0 | U44: 0
B45: =Input!AA52 -> 0 | D45: 0.963 | E45: 0 | J45: 0 | K45: 0 | N45: 96.3 | O45: 0 | P45: 0 | Q45: 0 | R45: 0 | T45: =IF(B45<Input!$AE$15,'Export curtailment above max'!B45,Input!$AE$15) -> 0 | U45: 0
B46: =Input!AA53 -> 0 | D46: 0.962 | E46: 0 | J46: 0 | K46: 0 | N46: 96.2 | O46: 0 | P46: 0 | Q46: 0 | R46: 0 | T46: =IF(B46<Input!$AE$15,'Export curtailment above max'!B46,Input!$AE$15) -> 0 | U46: 0
B47: =Input!AA54 -> 0 | D47: 0.961 | E47: 0 | J47: 0 | K47: 0 | N47: 96.1 | O47: 0 | P47: 0 | Q47: 0 | R47: 0 | T47: =IF(B47<Input!$AE$15,'Export curtailment above max'!B47,Input!$AE$15) -> 0 | U47: 0
B48: =Input!AA55 -> 0 | D48: 0.96 | E48: 0 | J48: 0 | K48: 0 | N48: 96 | O48: 0 | P48: 0 | Q48: 0 | R48: 0 | T48: =IF(B48<Input!$AE$15,'Export curtailment above max'!B48,Input!$AE$15) -> 0 | U48: 0
B49: =Input!AA56 -> 0 | D49: 0.959 | E49: 0 | J49: 0 | K49: 0 | N49: 95.9 | O49: 0 | P49: 0 | Q49: 0 | R49: 0 | T49: =IF(B49<Input!$AE$15,'Export curtailment above max'!B49,Input!$AE$15) -> 0 | U49: 0
B50: =Input!AA57 -> 0 | D50: 0.958 | E50: 0 | J50: 0 | K50: 0 | N50: 95.8 | O50: 0 | P50: 0 | Q50: 0 | R50: 0 | T50: =IF(B50<Input!$AE$15,'Export curtailment above max'!B50,Input!$AE$15) -> 0 | U50: 0
B51: =Input!AA58 -> 0 | D51: 0.957 | E51: 0 | J51: 0 | K51: 0 | N51: 95.7 | O51: 0 | P51: 0 | Q51: 0 | R51: 0 | T51: =IF(B51<Input!$AE$15,'Export curtailment above max'!B51,Input!$AE$15) -> 0 | U51: 0
B52: =Input!AA59 -> 0 | D52: 0.956 | E52: 0 | J52: 0 | K52: 0 | N52: 95.6 | O52: 0 | P52: 0 | Q52: 0 | R52: 0 | T52: =IF(B52<Input!$AE$15,'Export curtailment above max'!B52,Input!$AE$15) -> 0 | U52: 0
B53: =Input!AA60 -> 0 | D53: 0.955 | E53: 0 | J53: 0 | K53: 0 | N53: 95.5 | O53: 0 | P53: 0 | Q53: 0 | R53: 0 | T53: =IF(B53<Input!$AE$15,'Export curtailment above max'!B53,Input!$AE$15) -> 0 | U53: 0
B54: =Input!AA61 -> 0 | D54: 0.954 | E54: 0 | J54: 0 | K54: 0 | N54: 95.4 | O54: 0 | P54: 0 | Q54: 0 | R54: 0 | T54: =IF(B54<Input!$AE$15,'Export curtailment above max'!B54,Input!$AE$15) -> 0 | U54: 0
B55: =Input!AA62 -> 0 | D55: 0.953 | E55: 0 | J55: 0 | K55: 0 | N55: 95.3 | O55: 0 | P55: 0 | Q55: 0 | R55: 0 | T55: =IF(B55<Input!$AE$15,'Export curtailment above max'!B55,Input!$AE$15) -> 0 | U55: 0
B56: =Input!AA63 -> 0 | D56: 0.952 | E56: 0 | J56: 0 | K56: 0 | N56: 95.2 | O56: 0 | P56: 0 | Q56: 0 | R56: 0 | T56: =IF(B56<Input!$AE$15,'Export curtailment above max'!B56,Input!$AE$15) -> 0 | U56: 0
B57: =Input!AA64 -> 0 | D57: 0.951 | E57: 0 | J57: 0 | K57: 0 | N57: 95.1 | O57: 0 | P57: 0 | Q57: 0 | R57: 0 | T57: =IF(B57<Input!$AE$15,'Export curtailment above max'!B57,Input!$AE$15) -> 0 | U57: 0
B58: =Input!AA65 -> 0 | D58: 0.95 | E58: 0 | J58: 0 | K58: 0 | N58: 95 | O58: 0 | P58: 0 | Q58: 0 | R58: 0 | T58: =IF(B58<Input!$AE$15,'Export curtailment above max'!B58,Input!$AE$15) -> 0 | U58: 0
B59: =Input!AA66 -> 0 | D59: 0.949 | E59: 0 | J59: 0 | K59: 0 | N59: 94.9 | O59: 0 | P59: 0 | Q59: 0 | R59: 0 | T59: =IF(B59<Input!$AE$15,'Export curtailment above max'!B59,Input!$AE$15) -> 0 | U59: 0
B60: =Input!AA67 -> 0 | D60: 0.948 | E60: 0 | J60: 0 | K60: 0 | N60: 94.8 | O60: 0 | P60: 0 | Q60: 0 | R60: 0 | T60: =IF(B60<Input!$AE$15,'Export curtailment above max'!B60,Input!$AE$15) -> 0 | U60: 0
B61: =Input!AA68 -> 0 | D61: 0.947 | E61: 0 | J61: 0 | K61: 0 | N61: 94.7 | O61: 0 | P61: 0 | Q61: 0 | R61: 0 | T61: =IF(B61<Input!$AE$15,'Export curtailment above max'!B61,Input!$AE$15) -> 0 | U61: 0
B62: =Input!AA69 -> 0 | D62: 0.946 | E62: 0 | J62: 0 | K62: 0 | N62: 94.6 | O62: 0 | P62: 0 | Q62: 0 | R62: 0 | T62: =IF(B62<Input!$AE$15,'Export curtailment above max'!B62,Input!$AE$15) -> 0 | U62: 0
B63: =Input!AA70 -> 0 | D63: 0.945 | E63: 0 | J63: 0 | K63: 0 | N63: 94.5 | O63: 0 | P63: 0 | Q63: 0 | R63: 0 | T63: =IF(B63<Input!$AE$15,'Export curtailment above max'!B63,Input!$AE$15) -> 0 | U63: 0
B64: =Input!AA71 -> 0 | D64: 0.944 | E64: 0 | J64: 0 | K64: 0 | N64: 94.4 | O64: 0 | P64: 0 | Q64: 0 | R64: 0 | T64: =IF(B64<Input!$AE$15,'Export curtailment above max'!B64,Input!$AE$15) -> 0 | U64: 0
B65: =Input!AA72 -> 0 | D65: 0.943 | E65: 0 | J65: 0 | K65: 0 | N65: 94.3 | O65: 0 | P65: 0 | Q65: 0 | R65: 0 | T65: =IF(B65<Input!$AE$15,'Export curtailment above max'!B65,Input!$AE$15) -> 0 | U65: 0
B66: =Input!AA73 -> 0 | D66: 0.942 | E66: 0 | J66: 0 | K66: 0 | N66: 94.2 | O66: 0 | P66: 0 | Q66: 0 | R66: 0 | T66: =IF(B66<Input!$AE$15,'Export curtailment above max'!B66,Input!$AE$15) -> 0 | U66: 0
B67: =Input!AA74 -> 0 | D67: 0.941 | E67: 0 | J67: 0 | K67: 0 | N67: 94.1 | O67: 0 | P67: 0 | Q67: 0 | R67: 0 | T67: =IF(B67<Input!$AE$15,'Export curtailment above max'!B67,Input!$AE$15) -> 0 | U67: 0
B68: =Input!AA75 -> 0 | D68: 0.94 | E68: 0 | J68: 0 | K68: 0 | N68: 94 | O68: 0 | P68: 0 | Q68: 0 | R68: 0 | T68: =IF(B68<Input!$AE$15,'Export curtailment above max'!B68,Input!$AE$15) -> 0 | U68: 0
B69: =Input!AA76 -> 0 | D69: 0.939 | E69: 0 | J69: 0 | K69: 0 | N69: 93.9 | O69: 0 | P69: 0 | Q69: 0 | R69: 0 | T69: =IF(B69<Input!$AE$15,'Export curtailment above max'!B69,Input!$AE$15) -> 0 | U69: 0
B70: =Input!AA77 -> 0 | D70: 0.938 | E70: 0 | J70: 0 | K70: 0 | N70: 93.8 | O70: 0 | P70: 0 | Q70: 0 | R70: 0 | T70: =IF(B70<Input!$AE$15,'Export curtailment above max'!B70,Input!$AE$15) -> 0 | U70: 0
B71: =Input!AA78 -> 0 | D71: 0.937 | E71: 0 | J71: 0 | K71: 0 | N71: 93.7 | O71: 0 | P71: 0 | Q71: 0 | R71: 0 | T71: =IF(B71<Input!$AE$15,'Export curtailment above max'!B71,Input!$AE$15) -> 0 | U71: 0
B72: =Input!AA79 -> 0 | D72: 0.936 | E72: =IFERROR(K72/B$2,"") -> 0 | J72: 0 | K72: 0 | N72: 93.6 | O72: =E72*100 -> 0 | P72: 0 | Q72: 0 | R72: 0 | T72: =IF(B72<Input!$AE$15,'Export curtailment above max'!B72,Input!$AE$15) -> 0 | U72: =B72-T72 -> 0
B73: =Input!AA80 -> 0 | D73: 0.935 | E73: 0 | I73: =IF(B73="","",IFERROR(B73/B$3,"")) ->  | J73: 0 | K73: =K72+J73 -> 0 | N73: =ROUND(D73*100,1) -> 93.5 | O73: 0 | P73: =(O73/1000+0.5*(O74-O73)/1000)*0.01 -> 0 | Q73: =Q74+(O73/1000+0.5*(O74-O73)/1000)*0.01 -> 0 | R73: 0 | T73: =IF(B73<Input!$AE$15,'Export curtailment above max'!B73,Input!$AE$15) -> 0 | U73: 0
B74: =Input!AA81 -> 0 | D74: 0.934 | E74: 0 | J74: 0 | K74: 0 | N74: 93.4 | O74: 0 | P74: 0 | Q74: 0 | R74: =R73+P74 -> 0 | T74: =IF(B74<Input!$AE$15,'Export curtailment above max'!B74,Input!$AE$15) -> 0 | U74: 0
B75: =Input!AA82 -> 0 | D75: 0.933 | E75: 0 | J75: 0 | K75: 0 | N75: 93.3 | O75: 0 | P75: 0 | Q75: 0 | R75: 0 | T75: =IF(B75<Input!$AE$15,'Export curtailment above max'!B75,Input!$AE$15) -> 0 | U75: 0
B76: =Input!AA83 -> 0 | D76: 0.932 | E76: 0 | J76: 0 | K76: 0 | N76: 93.2 | O76: 0 | P76: 0 | Q76: 0 | R76: 0 | T76: =IF(B76<Input!$AE$15,'Export curtailment above max'!B76,Input!$AE$15) -> 0 | U76: 0
B77: =Input!AA84 -> 0 | D77: 0.931 | E77: 0 | J77: 0 | K77: 0 | N77: 93.1 | O77: 0 | P77: 0 | Q77: 0 | R77: 0 | T77: =IF(B77<Input!$AE$15,'Export curtailment above max'!B77,Input!$AE$15) -> 0 | U77: 0
B78: =Input!AA85 -> 0 | D78: 0.93 | E78: 0 | J78: 0 | K78: 0 | N78: 93 | O78: 0 | P78: 0 | Q78: 0 | R78: 0 | T78: =IF(B78<Input!$AE$15,'Export curtailment above max'!B78,Input!$AE$15) -> 0 | U78: 0
B79: =Input!AA86 -> 0 | D79: 0.929 | E79: 0 | J79: 0 | K79: 0 | N79: 92.9 | O79: 0 | P79: 0 | Q79: 0 | R79: 0 | T79: =IF(B79<Input!$AE$15,'Export curtailment above max'!B79,Input!$AE$15) -> 0 | U79: 0
B80: =Input!AA87 -> 0 | D80: 0.928 | E80: 0 | J80: 0 | K80: 0 | N80: 92.8 | O80: 0 | P80: 0 | Q80: 0 | R80: 0 | T80: =IF(B80<Input!$AE$15,'Export curtailment above max'!B80,Input!$AE$15) -> 0 | U80: 0
B81: =Input!AA88 -> 0 | D81: 0.927 | E81: 0 | J81: 0 | K81: 0 | N81: 92.7 | O81: 0 | P81: 0 | Q81: 0 | R81: 0 | T81: =IF(B81<Input!$AE$15,'Export curtailment above max'!B81,Input!$AE$15) -> 0 | U81: 0
B82: =Input!AA89 -> 0 | D82: 0.926 | E82: 0 | J82: 0 | K82: 0 | N82: 92.6 | O82: 0 | P82: 0 | Q82: 0 | R82: 0 | T82: =IF(B82<Input!$AE$15,'Export curtailment above max'!B82,Input!$AE$15) -> 0 | U82: 0
B83: =Input!AA90 -> 0 | D83: 0.925 | E83: 0 | J83: 0 | K83: 0 | N83: 92.5 | O83: 0 | P83: 0 | Q83: 0 | R83: 0 | T83: =IF(B83<Input!$AE$15,'Export curtailment above max'!B83,Input!$AE$15) -> 0 | U83: 0
B84: =Input!AA91 -> 0 | D84: 0.924 | E84: 0 | J84: 0 | K84: 0 | N84: 92.4 | O84: 0 | P84: 0 | Q84: 0 | R84: 0 | T84: =IF(B84<Input!$AE$15,'Export curtailment above max'!B84,Input!$AE$15) -> 0 | U84: 0
B85: =Input!AA92 -> 0 | D85: 0.923 | E85: 0 | J85: 0 | K85: 0 | N85: 92.3 | O85: 0 | P85: 0 | Q85: 0 | R85: 0 | T85: =IF(B85<Input!$AE$15,'Export curtailment above max'!B85,Input!$AE$15) -> 0 | U85: 0
B86: =Input!AA93 -> 0 | D86: 0.922 | E86: 0 | J86: 0 | K86: 0 | N86: 92.2 | O86: 0 | P86: 0 | Q86: 0 | R86: 0 | T86: =IF(B86<Input!$AE$15,'Export curtailment above max'!B86,Input!$AE$15) -> 0 | U86: 0
B87: =Input!AA94 -> 0 | D87: 0.921 | E87: 0 | J87: 0 | K87: 0 | N87: 92.1 | O87: 0 | P87: 0 | Q87: 0 | R87: 0 | T87: =IF(B87<Input!$AE$15,'Export curtailment above max'!B87,Input!$AE$15) -> 0 | U87: 0
B88: =Input!AA95 -> 0 | D88: 0.92 | E88: 0 | J88: 0 | K88: 0 | N88: 92 | O88: 0 | P88: 0 | Q88: 0 | R88: 0 | T88: =IF(B88<Input!$AE$15,'Export curtailment above max'!B88,Input!$AE$15) -> 0 | U88: 0
B89: =Input!AA96 -> 0 | D89: 0.919 | E89: 0 | J89: 0 | K89: 0 | N89: 91.9 | O89: 0 | P89: 0 | Q89: 0 | R89: 0 | T89: =IF(B89<Input!$AE$15,'Export curtailment above max'!B89,Input!$AE$15) -> 0 | U89: 0
B90: =Input!AA97 -> 0 | D90: 0.918 | E90: 0 | J90: 0 | K90: 0 | N90: 91.8 | O90: 0 | P90: 0 | Q90: 0 | R90: 0 | T90: =IF(B90<Input!$AE$15,'Export curtailment above max'!B90,Input!$AE$15) -> 0 | U90: 0
B91: =Input!AA98 -> 0 | D91: 0.917 | E91: 0 | J91: 0 | K91: 0 | N91: 91.7 | O91: 0 | P91: 0 | Q91: 0 | R91: 0 | T91: =IF(B91<Input!$AE$15,'Export curtailment above max'!B91,Input!$AE$15) -> 0 | U91: 0
B92: =Input!AA99 -> 0 | D92: 0.916 | E92: 0 | J92: 0 | K92: 0 | N92: 91.6 | O92: 0 | P92: 0 | Q92: 0 | R92: 0 | T92: =IF(B92<Input!$AE$15,'Export curtailment above max'!B92,Input!$AE$15) -> 0 | U92: 0
B93: =Input!AA100 -> 0 | D93: 0.915 | E93: 0 | J93: 0 | K93: 0 | N93: 91.5 | O93: 0 | P93: 0 | Q93: 0 | R93: 0 | T93: =IF(B93<Input!$AE$15,'Export curtailment above max'!B93,Input!$AE$15) -> 0 | U93: 0
B94: =Input!AA101 -> 0 | D94: 0.914 | E94: 0 | J94: 0 | K94: 0 | N94: 91.4 | O94: 0 | P94: 0 | Q94: 0 | R94: 0 | T94: =IF(B94<Input!$AE$15,'Export curtailment above max'!B94,Input!$AE$15) -> 0 | U94: 0
B95: =Input!AA102 -> 0 | D95: 0.913 | E95: 0 | J95: 0 | K95: 0 | N95: 91.3 | O95: 0 | P95: 0 | Q95: 0 | R95: 0 | T95: =IF(B95<Input!$AE$15,'Export curtailment above max'!B95,Input!$AE$15) -> 0 | U95: 0
B96: =Input!AA103 -> 0 | D96: 0.912 | E96: 0 | J96: 0 | K96: 0 | N96: 91.2 | O96: 0 | P96: 0 | Q96: 0 | R96: 0 | T96: =IF(B96<Input!$AE$15,'Export curtailment above max'!B96,Input!$AE$15) -> 0 | U96: 0
B97: =Input!AA104 -> 0 | D97: 0.911 | E97: 0 | J97: 0 | K97: 0 | N97: 91.1 | O97: 0 | P97: 0 | Q97: 0 | R97: 0 | T97: =IF(B97<Input!$AE$15,'Export curtailment above max'!B97,Input!$AE$15) -> 0 | U97: 0
B98: =Input!AA105 -> 0 | D98: 0.91 | E98: 0 | J98: 0 | K98: 0 | N98: 91 | O98: 0 | P98: 0 | Q98: 0 | R98: 0 | T98: =IF(B98<Input!$AE$15,'Export curtailment above max'!B98,Input!$AE$15) -> 0 | U98: 0
B99: =Input!AA106 -> 0 | D99: 0.909 | E99: 0 | J99: 0 | K99: 0 | N99: 90.9 | O99: 0 | P99: 0 | Q99: 0 | R99: 0 | T99: =IF(B99<Input!$AE$15,'Export curtailment above max'!B99,Input!$AE$15) -> 0 | U99: 0
B100: =Input!AA107 -> 0 | D100: 0.908 | E100: 0 | J100: 0 | K100: 0 | N100: 90.8 | O100: 0 | P100: 0 | Q100: 0 | R100: 0 | T100: =IF(B100<Input!$AE$15,'Export curtailment above max'!B100,Input!$AE$15) -> 0 | U100: 0
B101: =Input!AA108 -> 0 | D101: 0.907 | E101: 0 | J101: 0 | K101: 0 | N101: 90.7 | O101: 0 | P101: 0 | Q101: 0 | R101: 0 | T101: =IF(B101<Input!$AE$15,'Export curtailment above max'!B101,Input!$AE$15) -> 0 | U101: 0
B102: =Input!AA109 -> 0 | D102: 0.906 | E102: 0 | J102: 0 | K102: 0 | N102: 90.6 | O102: 0 | P102: 0 | Q102: 0 | R102: 0 | T102: =IF(B102<Input!$AE$15,'Export curtailment above max'!B102,Input!$AE$15) -> 0 | U102: 0
B103: =Input!AA110 -> 0 | D103: 0.905 | E103: 0 | J103: 0 | K103: 0 | N103: 90.5 | O103: 0 | P103: 0 | Q103: 0 | R103: 0 | T103: =IF(B103<Input!$AE$15,'Export curtailment above max'!B103,Input!$AE$15) -> 0 | U103: 0
B104: =Input!AA111 -> 0 | D104: 0.904 | E104: 0 | J104: 0 | K104: 0 | N104: 90.4 | O104: 0 | P104: 0 | Q104: 0 | R104: 0 | T104: =IF(B104<Input!$AE$15,'Export curtailment above max'!B104,Input!$AE$15) -> 0 | U104: 0
B105: =Input!AA112 -> 0 | D105: 0.903 | E105: 0 | J105: 0 | K105: 0 | N105: 90.3 | O105: 0 | P105: 0 | Q105: 0 | R105: 0 | T105: =IF(B105<Input!$AE$15,'Export curtailment above max'!B105,Input!$AE$15) -> 0 | U105: 0
B106: =Input!AA113 -> 0 | D106: 0.902 | E106: 0 | J106: 0 | K106: 0 | N106: 90.2 | O106: 0 | P106: 0 | Q106: 0 | R106: 0 | T106: =IF(B106<Input!$AE$15,'Export curtailment above max'!B106,Input!$AE$15) -> 0 | U106: 0
B107: =Input!AA114 -> 0 | D107: 0.901 | E107: 0 | J107: 0 | K107: 0 | N107: 90.1 | O107: 0 | P107: 0 | Q107: 0 | R107: 0 | T107: =IF(B107<Input!$AE$15,'Export curtailment above max'!B107,Input!$AE$15) -> 0 | U107: 0
B108: =Input!AA115 -> 0 | D108: 0.9 | E108: 0 | J108: 0 | K108: 0 | N108: 90 | O108: 0 | P108: 0 | Q108: 0 | R108: 0 | T108: =IF(B108<Input!$AE$15,'Export curtailment above max'!B108,Input!$AE$15) -> 0 | U108: 0
B109: =Input!AA116 -> 0 | D109: 0.899 | E109: 0 | J109: 0 | K109: 0 | N109: 89.9 | O109: 0 | P109: 0 | Q109: 0 | R109: =R108+P109 -> 0 | T109: =IF(B109<Input!$AE$15,'Export curtailment above max'!B109,Input!$AE$15) -> 0 | U109: 0
B110: =Input!AA117 -> 0 | D110: 0.898 | E110: 0 | J110: 0 | K110: 0 | N110: 89.8 | O110: 0 | P110: 0 | Q110: 0 | R110: 0 | T110: =IF(B110<Input!$AE$15,'Export curtailment above max'!B110,Input!$AE$15) -> 0 | U110: 0
B111: =Input!AA118 -> 0 | D111: 0.897 | E111: 0 | J111: 0 | K111: 0 | N111: 89.7 | O111: 0 | P111: 0 | Q111: 0 | R111: 0 | T111: =IF(B111<Input!$AE$15,'Export curtailment above max'!B111,Input!$AE$15) -> 0 | U111: 0
B112: =Input!AA119 -> 0 | D112: 0.896 | E112: 0 | J112: 0 | K112: 0 | N112: 89.6 | O112: 0 | P112: 0 | Q112: 0 | R112: 0 | T112: =IF(B112<Input!$AE$15,'Export curtailment above max'!B112,Input!$AE$15) -> 0 | U112: 0
B113: =Input!AA120 -> 0 | D113: 0.895 | E113: 0 | J113: 0 | K113: 0 | N113: 89.5 | O113: 0 | P113: 0 | Q113: 0 | R113: 0 | T113: =IF(B113<Input!$AE$15,'Export curtailment above max'!B113,Input!$AE$15) -> 0 | U113: 0
B114: =Input!AA121 -> 0 | D114: 0.894 | E114: 0 | J114: 0 | K114: 0 | N114: 89.4 | O114: 0 | P114: 0 | Q114: 0 | R114: 0 | T114: =IF(B114<Input!$AE$15,'Export curtailment above max'!B114,Input!$AE$15) -> 0 | U114: 0
B115: =Input!AA122 -> 0 | D115: 0.893 | E115: 0 | J115: 0 | K115: 0 | N115: 89.3 | O115: 0 | P115: 0 | Q115: 0 | R115: 0 | T115: =IF(B115<Input!$AE$15,'Export curtailment above max'!B115,Input!$AE$15) -> 0 | U115: 0
B116: =Input!AA123 -> 0 | D116: 0.892 | E116: 0 | J116: 0 | K116: 0 | N116: 89.2 | O116: 0 | P116: 0 | Q116: 0 | R116: 0 | T116: =IF(B116<Input!$AE$15,'Export curtailment above max'!B116,Input!$AE$15) -> 0 | U116: 0
B117: =Input!AA124 -> 0 | D117: 0.891 | E117: 0 | J117: 0 | K117: 0 | N117: 89.1 | O117: 0 | P117: 0 | Q117: 0 | R117: 0 | T117: =IF(B117<Input!$AE$15,'Export curtailment above max'!B117,Input!$AE$15) -> 0 | U117: 0
B118: =Input!AA125 -> 0 | D118: 0.89 | E118: 0 | J118: 0 | K118: 0 | N118: 89 | O118: 0 | P118: 0 | Q118: 0 | R118: 0 | T118: =IF(B118<Input!$AE$15,'Export curtailment above max'!B118,Input!$AE$15) -> 0 | U118: 0
B119: =Input!AA126 -> 0 | D119: 0.889 | E119: 0 | J119: 0 | K119: 0 | N119: 88.9 | O119: 0 | P119: 0 | Q119: 0 | R119: 0 | T119: =IF(B119<Input!$AE$15,'Export curtailment above max'!B119,Input!$AE$15) -> 0 | U119: 0
B120: =Input!AA127 -> 0 | D120: 0.888 | E120: 0 | J120: 0 | K120: 0 | N120: 88.8 | O120: 0 | P120: 0 | Q120: 0 | R120: 0 | T120: =IF(B120<Input!$AE$15,'Export curtailment above max'!B120,Input!$AE$15) -> 0 | U120: 0
B121: =Input!AA128 -> 0 | D121: 0.887 | E121: 0 | J121: 0 | K121: 0 | N121: 88.7 | O121: 0 | P121: 0 | Q121: 0 | R121: 0 | T121: =IF(B121<Input!$AE$15,'Export curtailment above max'!B121,Input!$AE$15) -> 0 | U121: 0
B122: =Input!AA129 -> 0 | D122: 0.886 | E122: 0 | J122: 0 | K122: 0 | N122: 88.6 | O122: 0 | P122: 0 | Q122: 0 | R122: 0 | T122: =IF(B122<Input!$AE$15,'Export curtailment above max'!B122,Input!$AE$15) -> 0 | U122: 0
B123: =Input!AA130 -> 0 | D123: 0.885 | E123: 0 | J123: 0 | K123: 0 | N123: 88.5 | O123: 0 | P123: 0 | Q123: 0 | R123: 0 | T123: =IF(B123<Input!$AE$15,'Export curtailment above max'!B123,Input!$AE$15) -> 0 | U123: 0
B124: =Input!AA131 -> 0 | D124: 0.884 | E124: 0 | J124: 0 | K124: 0 | N124: 88.4 | O124: 0 | P124: 0 | Q124: 0 | R124: 0 | T124: =IF(B124<Input!$AE$15,'Export curtailment above max'!B124,Input!$AE$15) -> 0 | U124: 0
B125: =Input!AA132 -> 0 | D125: 0.883 | E125: 0 | J125: 0 | K125: 0 | N125: 88.3 | O125: 0 | P125: 0 | Q125: 0 | R125: 0 | T125: =IF(B125<Input!$AE$15,'Export curtailment above max'!B125,Input!$AE$15) -> 0 | U125: 0
B126: =Input!AA133 -> 0 | D126: 0.882 | E126: 0 | J126: 0 | K126: 0 | N126: 88.2 | O126: 0 | P126: 0 | Q126: 0 | R126: 0 | T126: =IF(B126<Input!$AE$15,'Export curtailment above max'!B126,Input!$AE$15) -> 0 | U126: 0
B127: =Input!AA134 -> 0 | D127: 0.881 | E127: 0 | J127: 0 | K127: 0 | N127: 88.1 | O127: 0 | P127: 0 | Q127: 0 | R127: 0 | T127: =IF(B127<Input!$AE$15,'Export curtailment above max'!B127,Input!$AE$15) -> 0 | U127: 0
B128: =Input!AA135 -> 0 | D128: 0.88 | E128: 0 | J128: 0 | K128: 0 | N128: 88 | O128: 0 | P128: 0 | Q128: 0 | R128: 0 | T128: =IF(B128<Input!$AE$15,'Export curtailment above max'!B128,Input!$AE$15) -> 0 | U128: 0
B129: =Input!AA136 -> 0 | D129: 0.879 | E129: 0 | J129: 0 | K129: 0 | N129: 87.9 | O129: 0 | P129: 0 | Q129: 0 | R129: 0 | T129: =IF(B129<Input!$AE$15,'Export curtailment above max'!B129,Input!$AE$15) -> 0 | U129: 0
B130: =Input!AA137 -> 0 | D130: 0.878 | E130: 0 | J130: 0 | K130: 0 | N130: 87.8 | O130: 0 | P130: 0 | Q130: 0 | R130: 0 | T130: =IF(B130<Input!$AE$15,'Export curtailment above max'!B130,Input!$AE$15) -> 0 | U130: 0
B131: =Input!AA138 -> 0 | D131: 0.877 | E131: 0 | J131: 0 | K131: 0 | N131: 87.7 | O131: 0 | P131: 0 | Q131: 0 | R131: 0 | T131: =IF(B131<Input!$AE$15,'Export curtailment above max'!B131,Input!$AE$15) -> 0 | U131: 0
B132: =Input!AA139 -> 0 | D132: 0.876 | E132: 0 | J132: 0 | K132: 0 | N132: 87.6 | O132: 0 | P132: 0 | Q132: 0 | R132: 0 | T132: =IF(B132<Input!$AE$15,'Export curtailment above max'!B132,Input!$AE$15) -> 0 | U132: 0
B133: =Input!AA140 -> 0 | D133: 0.875 | E133: 0 | J133: 0 | K133: 0 | N133: 87.5 | O133: 0 | P133: 0 | Q133: 0 | R133: 0 | T133: =IF(B133<Input!$AE$15,'Export curtailment above max'!B133,Input!$AE$15) -> 0 | U133: 0
B134: =Input!AA141 -> 0 | D134: 0.874 | E134: 0 | J134: 0 | K134: 0 | N134: 87.4 | O134: 0 | P134: 0 | Q134: 0 | R134: 0 | T134: =IF(B134<Input!$AE$15,'Export curtailment above max'!B134,Input!$AE$15) -> 0 | U134: 0
B135: =Input!AA142 -> 0 | D135: 0.873 | E135: 0 | J135: 0 | K135: 0 | N135: 87.3 | O135: 0 | P135: 0 | Q135: 0 | R135: 0 | T135: =IF(B135<Input!$AE$15,'Export curtailment above max'!B135,Input!$AE$15) -> 0 | U135: 0
B136: =Input!AA143 -> 0 | D136: 0.872 | E136: =IFERROR(K136/B$2,"") -> 0 | J136: 0 | K136: 0 | N136: 87.2 | O136: =E136*100 -> 0 | P136: 0 | Q136: 0 | R136: 0 | T136: =IF(B136<Input!$AE$15,'Export curtailment above max'!B136,Input!$AE$15) -> 0 | U136: =B136-T136 -> 0
B137: =Input!AA144 -> 0 | D137: 0.871 | E137: 0 | I137: =IF(B137="","",IFERROR(B137/B$3,"")) ->  | J137: 0 | K137: =K136+J137 -> 0 | N137: =ROUND(D137*100,1) -> 87.1 | O137: 0 | P137: =(O137/1000+0.5*(O138-O137)/1000)*0.01 -> 0 | Q137: =Q138+(O137/1000+0.5*(O138-O137)/1000)*0.01 -> 0 | R137: 0 | T137: =IF(B137<Input!$AE$15,'Export curtailment above max'!B137,Input!$AE$15) -> 0 | U137: 0
B138: =Input!AA145 -> 0 | D138: 0.87 | E138: 0 | J138: 0 | K138: 0 | N138: 87 | O138: 0 | P138: 0 | Q138: 0 | R138: 0 | T138: =IF(B138<Input!$AE$15,'Export curtailment above max'!B138,Input!$AE$15) -> 0 | U138: 0
B139: =Input!AA146 -> 0 | D139: 0.869 | E139: 0 | J139: 0 | K139: 0 | N139: 86.9 | O139: 0 | P139: 0 | Q139: 0 | R139: 0 | T139: =IF(B139<Input!$AE$15,'Export curtailment above max'!B139,Input!$AE$15) -> 0 | U139: 0
B140: =Input!AA147 -> 0 | D140: 0.868 | E140: 0 | J140: 0 | K140: 0 | N140: 86.8 | O140: 0 | P140: 0 | Q140: 0 | R140: 0 | T140: =IF(B140<Input!$AE$15,'Export curtailment above max'!B140,Input!$AE$15) -> 0 | U140: 0
B141: =Input!AA148 -> 0 | D141: 0.867 | E141: 0 | J141: 0 | K141: 0 | N141: 86.7 | O141: 0 | P141: 0 | Q141: 0 | R141: 0 | T141: =IF(B141<Input!$AE$15,'Export curtailment above max'!B141,Input!$AE$15) -> 0 | U141: 0
B142: =Input!AA149 -> 0 | D142: 0.866 | E142: 0 | J142: 0 | K142: 0 | N142: 86.6 | O142: 0 | P142: 0 | Q142: 0 | R142: 0 | T142: =IF(B142<Input!$AE$15,'Export curtailment above max'!B142,Input!$AE$15) -> 0 | U142: 0
B143: =Input!AA150 -> 0 | D143: 0.865 | E143: 0 | J143: 0 | K143: 0 | N143: 86.5 | O143: 0 | P143: 0 | Q143: 0 | R143: 0 | T143: =IF(B143<Input!$AE$15,'Export curtailment above max'!B143,Input!$AE$15) -> 0 | U143: 0
B144: =Input!AA151 -> 0 | D144: 0.864 | E144: 0 | J144: 0 | K144: 0 | N144: 86.4 | O144: 0 | P144: 0 | Q144: 0 | R144: 0 | T144: =IF(B144<Input!$AE$15,'Export curtailment above max'!B144,Input!$AE$15) -> 0 | U144: 0
B145: =Input!AA152 -> 0 | D145: 0.863 | E145: 0 | J145: 0 | K145: 0 | N145: 86.3 | O145: 0 | P145: 0 | Q145: 0 | R145: 0 | T145: =IF(B145<Input!$AE$15,'Export curtailment above max'!B145,Input!$AE$15) -> 0 | U145: 0
B146: =Input!AA153 -> 0 | D146: 0.862 | E146: 0 | J146: 0 | K146: 0 | N146: 86.2 | O146: 0 | P146: 0 | Q146: 0 | R146: 0 | T146: =IF(B146<Input!$AE$15,'Export curtailment above max'!B146,Input!$AE$15) -> 0 | U146: 0
B147: =Input!AA154 -> 0 | D147: 0.861 | E147: 0 | J147: 0 | K147: 0 | N147: 86.1 | O147: 0 | P147: 0 | Q147: 0 | R147: 0 | T147: =IF(B147<Input!$AE$15,'Export curtailment above max'!B147,Input!$AE$15) -> 0 | U147: 0
B148: =Input!AA155 -> 0 | D148: 0.86 | E148: 0 | J148: 0 | K148: 0 | N148: 86 | O148: 0 | P148: 0 | Q148: 0 | R148: 0 | T148: =IF(B148<Input!$AE$15,'Export curtailment above max'!B148,Input!$AE$15) -> 0 | U148: 0
B149: =Input!AA156 -> 0 | D149: 0.859 | E149: 0 | J149: 0 | K149: 0 | N149: 85.9 | O149: 0 | P149: 0 | Q149: 0 | R149: 0 | T149: =IF(B149<Input!$AE$15,'Export curtailment above max'!B149,Input!$AE$15) -> 0 | U149: 0
B150: =Input!AA157 -> 0 | D150: 0.858 | E150: 0 | J150: 0 | K150: 0 | N150: 85.8 | O150: 0 | P150: 0 | Q150: 0 | R150: 0 | T150: =IF(B150<Input!$AE$15,'Export curtailment above max'!B150,Input!$AE$15) -> 0 | U150: 0
B151: =Input!AA158 -> 0 | D151: 0.857 | E151: 0 | J151: 0 | K151: 0 | N151: 85.7 | O151: 0 | P151: 0 | Q151: 0 | R151: 0 | T151: =IF(B151<Input!$AE$15,'Export curtailment above max'!B151,Input!$AE$15) -> 0 | U151: 0
B152: =Input!AA159 -> 0 | D152: 0.856 | E152: 0 | J152: 0 | K152: 0 | N152: 85.6 | O152: 0 | P152: 0 | Q152: 0 | R152: 0 | T152: =IF(B152<Input!$AE$15,'Export curtailment above max'!B152,Input!$AE$15) -> 0 | U152: 0
B153: =Input!AA160 -> 0 | D153: 0.855 | E153: 0 | J153: 0 | K153: 0 | N153: 85.5 | O153: 0 | P153: 0 | Q153: 0 | R153: 0 | T153: =IF(B153<Input!$AE$15,'Export curtailment above max'!B153,Input!$AE$15) -> 0 | U153: 0
B154: =Input!AA161 -> 0 | D154: 0.854 | E154: 0 | J154: 0 | K154: 0 | N154: 85.4 | O154: 0 | P154: 0 | Q154: 0 | R154: 0 | T154: =IF(B154<Input!$AE$15,'Export curtailment above max'!B154,Input!$AE$15) -> 0 | U154: 0
B155: =Input!AA162 -> 0 | D155: 0.853 | E155: 0 | J155: 0 | K155: 0 | N155: 85.3 | O155: 0 | P155: 0 | Q155: 0 | R155: 0 | T155: =IF(B155<Input!$AE$15,'Export curtailment above max'!B155,Input!$AE$15) -> 0 | U155: 0
B156: =Input!AA163 -> 0 | D156: 0.852 | E156: 0 | J156: 0 | K156: 0 | N156: 85.2 | O156: 0 | P156: 0 | Q156: 0 | R156: 0 | T156: =IF(B156<Input!$AE$15,'Export curtailment above max'!B156,Input!$AE$15) -> 0 | U156: 0
B157: =Input!AA164 -> 0 | D157: 0.851 | E157: 0 | J157: 0 | K157: 0 | N157: 85.1 | O157: 0 | P157: 0 | Q157: 0 | R157: 0 | T157: =IF(B157<Input!$AE$15,'Export curtailment above max'!B157,Input!$AE$15) -> 0 | U157: 0
B158: =Input!AA165 -> 0 | D158: 0.85 | E158: 0 | J158: 0 | K158: 0 | N158: 85 | O158: 0 | P158: 0 | Q158: 0 | R158: 0 | T158: =IF(B158<Input!$AE$15,'Export curtailment above max'!B158,Input!$AE$15) -> 0 | U158: 0
B159: =Input!AA166 -> 0 | D159: 0.849 | E159: 0 | J159: 0 | K159: 0 | N159: 84.9 | O159: 0 | P159: 0 | Q159: 0 | R159: 0 | T159: =IF(B159<Input!$AE$15,'Export curtailment above max'!B159,Input!$AE$15) -> 0 | U159: 0
B160: =Input!AA167 -> 0 | D160: 0.848 | E160: 0 | J160: 0 | K160: 0 | N160: 84.8 | O160: 0 | P160: 0 | Q160: 0 | R160: 0 | T160: =IF(B160<Input!$AE$15,'Export curtailment above max'!B160,Input!$AE$15) -> 0 | U160: 0
B161: =Input!AA168 -> 0 | D161: 0.847 | E161: 0 | J161: 0 | K161: 0 | N161: 84.7 | O161: 0 | P161: 0 | Q161: 0 | R161: 0 | T161: =IF(B161<Input!$AE$15,'Export curtailment above max'!B161,Input!$AE$15) -> 0 | U161: 0
B162: =Input!AA169 -> 0 | D162: 0.846 | E162: 0 | J162: 0 | K162: 0 | N162: 84.6 | O162: 0 | P162: 0 | Q162: 0 | R162: 0 | T162: =IF(B162<Input!$AE$15,'Export curtailment above max'!B162,Input!$AE$15) -> 0 | U162: 0
B163: =Input!AA170 -> 0 | D163: 0.845 | E163: 0 | J163: 0 | K163: 0 | N163: 84.5 | O163: 0 | P163: 0 | Q163: 0 | R163: 0 | T163: =IF(B163<Input!$AE$15,'Export curtailment above max'!B163,Input!$AE$15) -> 0 | U163: 0
B164: =Input!AA171 -> 0 | D164: 0.844 | E164: 0 | J164: 0 | K164: 0 | N164: 84.4 | O164: 0 | P164: 0 | Q164: 0 | R164: 0 | T164: =IF(B164<Input!$AE$15,'Export curtailment above max'!B164,Input!$AE$15) -> 0 | U164: 0
B165: =Input!AA172 -> 0 | D165: 0.843 | E165: 0 | J165: 0 | K165: 0 | N165: 84.3 | O165: 0 | P165: 0 | Q165: 0 | R165: 0 | T165: =IF(B165<Input!$AE$15,'Export curtailment above max'!B165,Input!$AE$15) -> 0 | U165: 0
B166: =Input!AA173 -> 0 | D166: 0.842 | E166: 0 | J166: 0 | K166: 0 | N166: 84.2 | O166: 0 | P166: 0 | Q166: 0 | R166: 0 | T166: =IF(B166<Input!$AE$15,'Export curtailment above max'!B166,Input!$AE$15) -> 0 | U166: 0
B167: =Input!AA174 -> 0 | D167: 0.841 | E167: 0 | J167: 0 | K167: 0 | N167: 84.1 | O167: 0 | P167: 0 | Q167: 0 | R167: 0 | T167: =IF(B167<Input!$AE$15,'Export curtailment above max'!B167,Input!$AE$15) -> 0 | U167: 0
B168: =Input!AA175 -> 0 | D168: 0.84 | E168: 0 | J168: 0 | K168: 0 | N168: 84 | O168: 0 | P168: 0 | Q168: 0 | R168: 0 | T168: =IF(B168<Input!$AE$15,'Export curtailment above max'!B168,Input!$AE$15) -> 0 | U168: 0
B169: =Input!AA176 -> 0 | D169: 0.839 | E169: 0 | J169: 0 | K169: 0 | N169: 83.9 | O169: 0 | P169: 0 | Q169: 0 | R169: 0 | T169: =IF(B169<Input!$AE$15,'Export curtailment above max'!B169,Input!$AE$15) -> 0 | U169: 0
B170: =Input!AA177 -> 0 | D170: 0.838 | E170: 0 | J170: 0 | K170: 0 | N170: 83.8 | O170: 0 | P170: 0 | Q170: 0 | R170: 0 | T170: =IF(B170<Input!$AE$15,'Export curtailment above max'!B170,Input!$AE$15) -> 0 | U170: 0
B171: =Input!AA178 -> 0 | D171: 0.837 | E171: 0 | J171: 0 | K171: 0 | N171: 83.7 | O171: 0 | P171: 0 | Q171: 0 | R171: 0 | T171: =IF(B171<Input!$AE$15,'Export curtailment above max'!B171,Input!$AE$15) -> 0 | U171: 0
B172: =Input!AA179 -> 0 | D172: 0.836 | E172: 0 | J172: 0 | K172: 0 | N172: 83.6 | O172: 0 | P172: 0 | Q172: 0 | R172: 0 | T172: =IF(B172<Input!$AE$15,'Export curtailment above max'!B172,Input!$AE$15) -> 0 | U172: 0
B173: =Input!AA180 -> 0 | D173: 0.835 | E173: 0 | J173: 0 | K173: 0 | N173: 83.5 | O173: 0 | P173: 0 | Q173: 0 | R173: =R172+P173 -> 0 | T173: =IF(B173<Input!$AE$15,'Export curtailment above max'!B173,Input!$AE$15) -> 0 | U173: 0
B174: =Input!AA181 -> 0 | D174: 0.834 | E174: 0 | J174: 0 | K174: 0 | N174: 83.4 | O174: 0 | P174: 0 | Q174: 0 | R174: 0 | T174: =IF(B174<Input!$AE$15,'Export curtailment above max'!B174,Input!$AE$15) -> 0 | U174: 0
B175: =Input!AA182 -> 0 | D175: 0.833 | E175: 0 | J175: 0 | K175: 0 | N175: 83.3 | O175: 0 | P175: 0 | Q175: 0 | R175: 0 | T175: =IF(B175<Input!$AE$15,'Export curtailment above max'!B175,Input!$AE$15) -> 0 | U175: 0
B176: =Input!AA183 -> 0 | D176: 0.832 | E176: 0 | J176: 0 | K176: 0 | N176: 83.2 | O176: 0 | P176: 0 | Q176: 0 | R176: 0 | T176: =IF(B176<Input!$AE$15,'Export curtailment above max'!B176,Input!$AE$15) -> 0 | U176: 0
B177: =Input!AA184 -> 0 | D177: 0.831 | E177: 0 | J177: 0 | K177: 0 | N177: 83.1 | O177: 0 | P177: 0 | Q177: 0 | R177: 0 | T177: =IF(B177<Input!$AE$15,'Export curtailment above max'!B177,Input!$AE$15) -> 0 | U177: 0
B178: =Input!AA185 -> 0 | D178: 0.83 | E178: 0 | J178: 0 | K178: 0 | N178: 83 | O178: 0 | P178: 0 | Q178: 0 | R178: 0 | T178: =IF(B178<Input!$AE$15,'Export curtailment above max'!B178,Input!$AE$15) -> 0 | U178: 0
B179: =Input!AA186 -> 0 | D179: 0.829 | E179: 0 | J179: 0 | K179: 0 | N179: 82.9 | O179: 0 | P179: 0 | Q179: 0 | R179: 0 | T179: =IF(B179<Input!$AE$15,'Export curtailment above max'!B179,Input!$AE$15) -> 0 | U179: 0
B180: =Input!AA187 -> 0 | D180: 0.828 | E180: 0 | J180: 0 | K180: 0 | N180: 82.8 | O180: 0 | P180: 0 | Q180: 0 | R180: 0 | T180: =IF(B180<Input!$AE$15,'Export curtailment above max'!B180,Input!$AE$15) -> 0 | U180: 0
B181: =Input!AA188 -> 0 | D181: 0.827 | E181: 0 | J181: 0 | K181: 0 | N181: 82.7 | O181: 0 | P181: 0 | Q181: 0 | R181: 0 | T181: =IF(B181<Input!$AE$15,'Export curtailment above max'!B181,Input!$AE$15) -> 0 | U181: 0
B182: =Input!AA189 -> 0 | D182: 0.826 | E182: 0 | J182: 0 | K182: 0 | N182: 82.6 | O182: 0 | P182: 0 | Q182: 0 | R182: 0 | T182: =IF(B182<Input!$AE$15,'Export curtailment above max'!B182,Input!$AE$15) -> 0 | U182: 0
B183: =Input!AA190 -> 0 | D183: 0.825 | E183: 0 | J183: 0 | K183: 0 | N183: 82.5 | O183: 0 | P183: 0 | Q183: 0 | R183: 0 | T183: =IF(B183<Input!$AE$15,'Export curtailment above max'!B183,Input!$AE$15) -> 0 | U183: 0
B184: =Input!AA191 -> 0 | D184: 0.824 | E184: 0 | J184: 0 | K184: 0 | N184: 82.4 | O184: 0 | P184: 0 | Q184: 0 | R184: 0 | T184: =IF(B184<Input!$AE$15,'Export curtailment above max'!B184,Input!$AE$15) -> 0 | U184: 0
B185: =Input!AA192 -> 0 | D185: 0.823 | E185: 0 | J185: 0 | K185: 0 | N185: 82.3 | O185: 0 | P185: 0 | Q185: 0 | R185: 0 | T185: =IF(B185<Input!$AE$15,'Export curtailment above max'!B185,Input!$AE$15) -> 0 | U185: 0
B186: =Input!AA193 -> 0 | D186: 0.822 | E186: 0 | J186: 0 | K186: 0 | N186: 82.2 | O186: 0 | P186: 0 | Q186: 0 | R186: 0 | T186: =IF(B186<Input!$AE$15,'Export curtailment above max'!B186,Input!$AE$15) -> 0 | U186: 0
B187: =Input!AA194 -> 0 | D187: 0.821 | E187: 0 | J187: 0 | K187: 0 | N187: 82.1 | O187: 0 | P187: 0 | Q187: 0 | R187: 0 | T187: =IF(B187<Input!$AE$15,'Export curtailment above max'!B187,Input!$AE$15) -> 0 | U187: 0
B188: =Input!AA195 -> 0 | D188: 0.82 | E188: 0 | J188: 0 | K188: 0 | N188: 82 | O188: 0 | P188: 0 | Q188: 0 | R188: 0 | T188: =IF(B188<Input!$AE$15,'Export curtailment above max'!B188,Input!$AE$15) -> 0 | U188: 0
B189: =Input!AA196 -> 0 | D189: 0.819 | E189: 0 | J189: 0 | K189: 0 | N189: 81.9 | O189: 0 | P189: 0 | Q189: 0 | R189: 0 | T189: =IF(B189<Input!$AE$15,'Export curtailment above max'!B189,Input!$AE$15) -> 0 | U189: 0
B190: =Input!AA197 -> 0 | D190: 0.818 | E190: 0 | J190: 0 | K190: 0 | N190: 81.8 | O190: 0 | P190: 0 | Q190: 0 | R190: 0 | T190: =IF(B190<Input!$AE$15,'Export curtailment above max'!B190,Input!$AE$15) -> 0 | U190: 0
B191: =Input!AA198 -> 0 | D191: 0.817 | E191: 0 | J191: 0 | K191: 0 | N191: 81.7 | O191: 0 | P191: 0 | Q191: 0 | R191: 0 | T191: =IF(B191<Input!$AE$15,'Export curtailment above max'!B191,Input!$AE$15) -> 0 | U191: 0
B192: =Input!AA199 -> 0 | D192: 0.816 | E192: 0 | J192: 0 | K192: 0 | N192: 81.6 | O192: 0 | P192: 0 | Q192: 0 | R192: 0 | T192: =IF(B192<Input!$AE$15,'Export curtailment above max'!B192,Input!$AE$15) -> 0 | U192: 0
B193: =Input!AA200 -> 0 | D193: 0.815 | E193: 0 | J193: 0 | K193: 0 | N193: 81.5 | O193: 0 | P193: 0 | Q193: 0 | R193: 0 | T193: =IF(B193<Input!$AE$15,'Export curtailment above max'!B193,Input!$AE$15) -> 0 | U193: 0
B194: =Input!AA201 -> 0 | D194: 0.814 | E194: 0 | J194: 0 | K194: 0 | N194: 81.4 | O194: 0 | P194: 0 | Q194: 0 | R194: 0 | T194: =IF(B194<Input!$AE$15,'Export curtailment above max'!B194,Input!$AE$15) -> 0 | U194: 0
B195: =Input!AA202 -> 0 | D195: 0.813 | E195: 0 | J195: 0 | K195: 0 | N195: 81.3 | O195: 0 | P195: 0 | Q195: 0 | R195: 0 | T195: =IF(B195<Input!$AE$15,'Export curtailment above max'!B195,Input!$AE$15) -> 0 | U195: 0
B196: =Input!AA203 -> 0 | D196: 0.812 | E196: 0 | J196: 0 | K196: 0 | N196: 81.2 | O196: 0 | P196: 0 | Q196: 0 | R196: 0 | T196: =IF(B196<Input!$AE$15,'Export curtailment above max'!B196,Input!$AE$15) -> 0 | U196: 0
B197: =Input!AA204 -> 0 | D197: 0.811 | E197: 0 | J197: 0 | K197: 0 | N197: 81.1 | O197: 0 | P197: 0 | Q197: 0 | R197: 0 | T197: =IF(B197<Input!$AE$15,'Export curtailment above max'!B197,Input!$AE$15) -> 0 | U197: 0
B198: =Input!AA205 -> 0 | D198: 0.81 | E198: 0 | J198: 0 | K198: 0 | N198: 81 | O198: 0 | P198: 0 | Q198: 0 | R198: 0 | T198: =IF(B198<Input!$AE$15,'Export curtailment above max'!B198,Input!$AE$15) -> 0 | U198: 0
B199: =Input!AA206 -> 0 | D199: 0.809 | E199: 0 | J199: 0 | K199: 0 | N199: 80.9 | O199: 0 | P199: 0 | Q199: 0 | R199: 0 | T199: =IF(B199<Input!$AE$15,'Export curtailment above max'!B199,Input!$AE$15) -> 0 | U199: 0
B200: =Input!AA207 -> 0 | D200: 0.808 | E200: =IFERROR(K200/B$2,"") -> 0 | J200: 0 | K200: 0 | N200: 80.8 | O200: =E200*100 -> 0 | P200: 0 | Q200: 0 | R200: 0 | T200: =IF(B200<Input!$AE$15,'Export curtailment above max'!B200,Input!$AE$15) -> 0 | U200: =B200-T200 -> 0
... 4300 more rows

Sheet RISK QUANTN - RELIABILITY expor (hidden)
F1: Annual | G1: =8760 -> 8760 | I1: Very Large No. | J1: 1000000000 | L1: =(MAX(Input!$F$15:$F$36,Input!$M$15:$M$27,Input!$L$31:$L$40)-Input!$E$57) -> 6
D2: Outage rates
A3: beta | B3: gamma | C3: Multiplier | E3: =Input!D6 -> 2029 | F3: =E3+1 -> 2030 | G3: =F3+1 -> 2031 | H3: 2032 | I3: 2033 | J3: 2034 | K3: 2035 | L3: 2036 | M3: 2037 | N3: 2038 | O3: 2039 | P3: 2040 | Q3: 2041 | R3: 2042 | S3: 2043 | T3: 2044 | U3: =T3+1 -> 2045 | V3: 2046 | W3: 2047 | X3: 2048 | Y3: 2049 | Z3: 2050 | AA3: 2051 | AB3: 2052 | AC3: 2053 | AD3: 2054 | AE3: 2055 | AF3: 2056 | AG3: 2057 | AH3: 2058 | AI3: 2059 | AJ3: 2060 | AK3: 2061 | AL3: 2062 | AM3: 2063 | AN3: 2064 | AO3: 2065 | AP3: 2066 | AQ3: 2067 | AR3: 2068 | AS3: 2069 | AT3: 2070 | AU3: 2071 | AV3: 2072 | AW3: 2073 | AX3: 2074 | AY3: 2075 | AZ3: 2076 | BA3: 2077 | BB3: 2078 | BC3: 2079 | BD3: 2080 | BE3: 2081 | BF3: 2082 | BG3: 2083 | BH3: 2084 | BI3: 2085 | BJ3: 2086 | BK3: 2087 | BL3: 2088 | BM3: 2089
A4: =IFERROR(VLOOKUP(Input!D15,DATA!B$42:D$46,2,FALSE),"") ->  | B4: =IFERROR(VLOOKUP(Input!D15,DATA!B$42:D$46,3,FALSE),"") ->  | C4: =IF(Input!D15=DATA!$B$44,DATA!$H$44,IF(Input!D15="","",1)) ->  | D4: FOR TR or CB 1 | E4: =IFERROR(IF(E$3-Input!$E15<0,0,IF(E$3-Input!$E15>3,($A4*(E$3-Input!$E15)^($A4-1))/($B4^$A4),0.027))*$C4*DATA!$C$72,"") ->  | F4: =IFERROR(IF(F$3-Input!$E15<0,0,IF(F$3-Input!$E15>3,($A4*(F$3-Input!$E15)^($A4-1))/($B4^$A4),0.027))*$C4*DATA!$C$72,"") ->  | G4: =IFERROR(IF(G$3-Input!$E15<0,0,IF(G$3-Input!$E15>3,($A4*(G$3-Input!$E15)^($A4-1))/($B4^$A4),0.027))*$C4*DATA!$C$72,"") ->  | H4: =IFERROR(IF(H$3-Input!$E15<0,0,IF(H$3-Input!$E15>3,($A4*(H$3-Input!$E15)^($A4-1))/($B4^$A4),0.027))*$C4*DATA!$C$72,"") ->  | I4: =IFERROR(IF(I$3-Input!$E15<0,0,IF(I$3-Input!$E15>3,($A4*(I$3-Input!$E15)^($A4-1))/($B4^$A4),0.027))*$C4*DATA!$C$72,"") ->  | J4: =IFERROR(IF(J$3-Input!$E15<0,0,IF(J$3-Input!$E15>3,($A4*(J$3-Input!$E15)^($A4-1))/($B4^$A4),0.027))*$C4*DATA!$C$72,"") ->  | K4: =IFERROR(IF(K$3-Input!$E15<0,0,IF(K$3-Input!$E15>3,($A4*(K$3-Input!$E15)^($A4-1))/($B4^$A4),0.027))*$C4*DATA!$C$72,"") ->  | L4: =IFERROR(IF(L$3-Input!$E15<0,0,IF(L$3-Input!$E15>3,($A4*(L$3-Input!$E15)^($A4-1))/($B4^$A4),0.027))*$C4*DATA!$C$72,"") ->  | M4: =IFERROR(IF(M$3-Input!$E15<0,0,IF(M$3-Input!$E15>3,($A4*(M$3-Input!$E15)^($A4-1))/($B4^$A4),0.027))*$C4*DATA!$C$72,"") ->  | N4: =IFERROR(IF(N$3-Input!$E15<0,0,IF(N$3-Input!$E15>3,($A4*(N$3-Input!$E15)^($A4-1))/($B4^$A4),0.027))*$C4*DATA!$C$72,"") ->  | O4: =IFERROR(IF(O$3-Input!$E15<0,0,IF(O$3-Input!$E15>3,($A4*(O$3-Input!$E15)^($A4-1))/($B4^$A4),0.027))*$C4*DATA!$C$72,"") ->  | P4: =IFERROR(IF(P$3-Input!$E15<0,0,IF(P$3-Input!$E15>3,($A4*(P$3-Input!$E15)^($A4-1))/($B4^$A4),0.027))*$C4*DATA!$C$72,"") ->  | Q4: =IFERROR(IF(Q$3-Input!$E15<0,0,IF(Q$3-Input!$E15>3,($A4*(Q$3-Input!$E15)^($A4-1))/($B4^$A4),0.027))*$C4*DATA!$C$72,"") ->  | R4: =IFERROR(IF(R$3-Input!$E15<0,0,IF(R$3-Input!$E15>3,($A4*(R$3-Input!$E15)^($A4-1))/($B4^$A4),0.027))*$C4*DATA!$C$72,"") ->  | S4: =IFERROR(IF(S$3-Input!$E15<0,0,IF(S$3-Input!$E15>3,($A4*(S$3-Input!$E15)^($A4-1))/($B4^$A4),0.027))*$C4*DATA!$C$72,"") ->  | T4: =IFERROR(IF(T$3-Input!$E15<0,0,IF(T$3-Input!$E15>3,($A4*(T$3-Input!$E15)^($A4-1))/($B4^$A4),0.027))*$C4*DATA!$C$72,"") ->  | U4: =IFERROR(IF(U$3-Input!$E15<0,0,IF(U$3-Input!$E15>3,($A4*(U$3-Input!$E15)^($A4-1))/($B4^$A4),0.027))*$C4*DATA!$C$72,"") ->  | V4: =IFERROR(IF(V$3-Input!$E15<0,0,IF(V$3-Input!$E15>3,($A4*(V$3-Input!$E15)^($A4-1))/($B4^$A4),0.027))*$C4*DATA!$C$72,"") ->  | W4: =IFERROR(IF(W$3-Input!$E15<0,0,IF(W$3-Input!$E15>3,($A4*(W$3-Input!$E15)^($A4-1))/($B4^$A4),0.027))*$C4*DATA!$C$72,"") ->  | X4: =IFERROR(IF(X$3-Input!$E15<0,0,IF(X$3-Input!$E15>3,($A4*(X$3-Input!$E15)^($A4-1))/($B4^$A4),0.027))*$C4*DATA!$C$72,"") ->  | Y4: =IFERROR(IF(Y$3-Input!$E15<0,0,IF(Y$3-Input!$E15>3,($A4*(Y$3-Input!$E15)^($A4-1))/($B4^$A4),0.027))*$C4*DATA!$C$72,"") ->  | Z4: =IFERROR(IF(Z$3-Input!$E15<0,0,IF(Z$3-Input!$E15>3,($A4*(Z$3-Input!$E15)^($A4-1))/($B4^$A4),0.027))*$C4*DATA!$C$72,"") ->  | AA4: =IFERROR(IF(AA$3-Input!$E15<0,0,IF(AA$3-Input!$E15>3,($A4*(AA$3-Input!$E15)^($A4-1))/($B4^$A4),0.027))*$C4*DATA!$C$72,"") ->  | AB4: =IFERROR(IF(AB$3-Input!$E15<0,0,IF(AB$3-Input!$E15>3,($A4*(AB$3-Input!$E15)^($A4-1))/($B4^$A4),0.027))*$C4*DATA!$C$72,"") ->  | AC4: =IFERROR(IF(AC$3-Input!$E15<0,0,IF(AC$3-Input!$E15>3,($A4*(AC$3-Input!$E15)^($A4-1))/($B4^$A4),0.027))*$C4*DATA!$C$72,"") ->  | AD4: =IFERROR(IF(AD$3-Input!$E15<0,0,IF(AD$3-Input!$E15>3,($A4*(AD$3-Input!$E15)^($A4-1))/($B4^$A4),0.027))*$C4*DATA!$C$72,"") ->  | AE4: =IFERROR(IF(AE$3-Input!$E15<0,0,IF(AE$3-Input!$E15>3,($A4*(AE$3-Input!$E15)^($A4-1))/($B4^$A4),0.027))*$C4*DATA!$C$72,"") ->  | AF4: =IFERROR(IF(AF$3-Input!$E15<0,0,IF(AF$3-Input!$E15>3,($A4*(AF$3-Input!$E15)^($A4-1))/($B4^$A4),0.027))*$C4*DATA!$C$72,"") ->  | AG4: =IFERROR(IF(AG$3-Input!$E15<0,0,IF(AG$3-Input!$E15>3,($A4*(AG$3-Input!$E15)^($A4-1))/($B4^$A4),0.027))*$C4*DATA!$C$72,"") ->  | AH4: =IFERROR(IF(AH$3-Input!$E15<0,0,IF(AH$3-Input!$E15>3,($A4*(AH$3-Input!$E15)^($A4-1))/($B4^$A4),0.027))*$C4*DATA!$C$72,"") ->  | AI4: =IFERROR(IF(AI$3-Input!$E15<0,0,IF(AI$3-Input!$E15>3,($A4*(AI$3-Input!$E15)^($A4-1))/($B4^$A4),0.027))*$C4*DATA!$C$72,"") ->  | AJ4: =IFERROR(IF(AJ$3-Input!$E15<0,0,IF(AJ$3-Input!$E15>3,($A4*(AJ$3-Input!$E15)^($A4-1))/($B4^$A4),0.027))*$C4*DATA!$C$72,"") ->  | AK4: =IFERROR(IF(AK$3-Input!$E15<0,0,IF(AK$3-Input!$E15>3,($A4*(AK$3-Input!$E15)^($A4-1))/($B4^$A4),0.027))*$C4*DATA!$C$72,"") ->  | AL4: =IFERROR(IF(AL$3-Input!$E15<0,0,IF(AL$3-Input!$E15>3,($A4*(AL$3-Input!$E15)^($A4-1))/($B4^$A4),0.027))*$C4*DATA!$C$72,"") ->  | AM4: =IFERROR(IF(AM$3-Input!$E15<0,0,IF(AM$3-Input!$E15>3,($A4*(AM$3-Input!$E15)^($A4-1))/($B4^$A4),0.027))*$C4*DATA!$C$72,"") ->  | AN4: =IFERROR(IF(AN$3-Input!$E15<0,0,IF(AN$3-Input!$E15>3,($A4*(AN$3-Input!$E15)^($A4-1))/($B4^$A4),0.027))*$C4*DATA!$C$72,"") ->  | AO4: =IFERROR(IF(AO$3-Input!$E15<0,0,IF(AO$3-Input!$E15>3,($A4*(AO$3-Input!$E15)^($A4-1))/($B4^$A4),0.027))*$C4*DATA!$C$72,"") ->  | AP4: =IFERROR(IF(AP$3-Input!$E15<0,0,IF(AP$3-Input!$E15>3,($A4*(AP$3-Input!$E15)^($A4-1))/($B4^$A4),0.027))*$C4*DATA!$C$72,"") ->  | AQ4: =IFERROR(IF(AQ$3-Input!$E15<0,0,IF(AQ$3-Input!$E15>3,($A4*(AQ$3-Input!$E15)^($A4-1))/($B4^$A4),0.027))*$C4*DATA!$C$72,"") ->  | AR4: =IFERROR(IF(AR$3-Input!$E15<0,0,IF(AR$3-Input!$E15>3,($A4*(AR$3-Input!$E15)^($A4-1))/($B4^$A4),0.027))*$C4*DATA!$C$72,"") ->  | AS4: =IFERROR(IF(AS$3-Input!$E15<0,0,IF(AS$3-Input!$E15>3,($A4*(AS$3-Input!$E15)^($A4-1))/($B4^$A4),0.027))*$C4*DATA!$C$72,"") ->  | AT4: =IFERROR(IF(AT$3-Input!$E15<0,0,IF(AT$3-Input!$E15>3,($A4*(AT$3-Input!$E15)^($A4-1))/($B4^$A4),0.027))*$C4*DATA!$C$72,"") ->  | AU4: =IFERROR(IF(AU$3-Input!$E15<0,0,IF(AU$3-Input!$E15>3,($A4*(AU$3-Input!$E15)^($A4-1))/($B4^$A4),0.027))*$C4*DATA!$C$72,"") ->  | AV4: =IFERROR(IF(AV$3-Input!$E15<0,0,IF(AV$3-Input!$E15>3,($A4*(AV$3-Input!$E15)^($A4-1))/($B4^$A4),0.027))*$C4*DATA!$C$72,"") ->  | AW4: =IFERROR(IF(AW$3-Input!$E15<0,0,IF(AW$3-Input!$E15>3,($A4*(AW$3-Input!$E15)^($A4-1))/($B4^$A4),0.027))*$C4*DATA!$C$72,"") ->  | AX4: =IFERROR(IF(AX$3-Input!$E15<0,0,IF(AX$3-Input!$E15>3,($A4*(AX$3-Input!$E15)^($A4-1))/($B4^$A4),0.027))*$C4*DATA!$C$72,"") ->  | AY4: =IFERROR(IF(AY$3-Input!$E15<0,0,IF(AY$3-Input!$E15>3,($A4*(AY$3-Input!$E15)^($A4-1))/($B4^$A4),0.027))*$C4*DATA!$C$72,"") ->  | AZ4: =IFERROR(IF(AZ$3-Input!$E15<0,0,IF(AZ$3-Input!$E15>3,($A4*(AZ$3-Input!$E15)^($A4-1))/($B4^$A4),0.027))*$C4*DATA!$C$72,"") ->  | BA4: =IFERROR(IF(BA$3-Input!$E15<0,0,IF(BA$3-Input!$E15>3,($A4*(BA$3-Input!$E15)^($A4-1))/($B4^$A4),0.027))*$C4*DATA!$C$72,"") ->  | BB4: =IFERROR(IF(BB$3-Input!$E15<0,0,IF(BB$3-Input!$E15>3,($A4*(BB$3-Input!$E15)^($A4-1))/($B4^$A4),0.027))*$C4*DATA!$C$72,"") ->  | BC4: =IFERROR(IF(BC$3-Input!$E15<0,0,IF(BC$3-Input!$E15>3,($A4*(BC$3-Input!$E15)^($A4-1))/($B4^$A4),0.027))*$C4*DATA!$C$72,"") ->  | BD4: =IFERROR(IF(BD$3-Input!$E15<0,0,IF(BD$3-Input!$E15>3,($A4*(BD$3-Input!$E15)^($A4-1))/($B4^$A4),0.027))*$C4*DATA!$C$72,"") ->  | BE4: =IFERROR(IF(BE$3-Input!$E15<0,0,IF(BE$3-Input!$E15>3,($A4*(BE$3-Input!$E15)^($A4-1))/($B4^$A4),0.027))*$C4*DATA!$C$72,"") ->  | BF4: =IFERROR(IF(BF$3-Input!$E15<0,0,IF(BF$3-Input!$E15>3,($A4*(BF$3-Input!$E15)^($A4-1))/($B4^$A4),0.027))*$C4*DATA!$C$72,"") ->  | BG4: =IFERROR(IF(BG$3-Input!$E15<0,0,IF(BG$3-Input!$E15>3,($A4*(BG$3-Input!$E15)^($A4-1))/($B4^$A4),0.027))*$C4*DATA!$C$72,"") ->  | BH4: =IFERROR(IF(BH$3-Input!$E15<0,0,IF(BH$3-Input!$E15>3,($A4*(BH$3-Input!$E15)^($A4-1))/($B4^$A4),0.027))*$C4*DATA!$C$72,"") ->  | BI4: =IFERROR(IF(BI$3-Input!$E15<0,0,IF(BI$3-Input!$E15>3,($A4*(BI$3-Input!$E15)^($A4-1))/($B4^$A4),0.027))*$C4*DATA!$C$72,"") ->  | BJ4: =IFERROR(IF(BJ$3-Input!$E15<0,0,IF(BJ$3-Input!$E15>3,($A4*(BJ$3-Input!$E15)^($A4-1))/($B4^$A4),0.027))*$C4*DATA!$C$72,"") ->  | BK4: =IFERROR(IF(BK$3-Input!$E15<0,0,IF(BK$3-Input!$E15>3,($A4*(BK$3-Input!$E15)^($A4-1))/($B4^$A4),0.027))*$C4*DATA!$C$72,"") ->  | BL4: =IFERROR(IF(BL$3-Input!$E15<0,0,IF(BL$3-Input!$E15>3,($A4*(BL$3-Input!$E15)^($A4-1))/($B4^$A4),0.027))*$C4*DATA!$C$72,"") ->  | BM4: =IFERROR(IF(BM$3-Input!$E15<0,0,IF(BM$3-Input!$E15>3,($A4*(BM$3-Input!$E15)^($A4-1))/($B4^$A4),0.027))*$C4*DATA!$C$72,"") -> 
A5: =IFERROR(VLOOKUP(Input!D16,DATA!B$42:D$46,2,FALSE),"") ->  | B5: =IFERROR(VLOOKUP(Input!D16,DATA!B$42:D$46,3,FALSE),"") ->  | C5: =IF(Input!D16=DATA!$B$44,DATA!$H$44,IF(Input!D16="","",1)) ->  | D5: FOR TR or CB 2 | E5: =IFERROR(IF(E$3-Input!$E16<0,0,IF(E$3-Input!$E16>3,($A5*(E$3-Input!$E16)^($A5-1))/($B5^$A5),0.027))*$C5*DATA!$C$72,"") ->  | F5: =IFERROR(IF(F$3-Input!$E16<0,0,IF(F$3-Input!$E16>3,($A5*(F$3-Input!$E16)^($A5-1))/($B5^$A5),0.027))*$C5*DATA!$C$72,"") ->  | G5: =IFERROR(IF(G$3-Input!$E16<0,0,IF(G$3-Input!$E16>3,($A5*(G$3-Input!$E16)^($A5-1))/($B5^$A5),0.027))*$C5*DATA!$C$72,"") ->  | H5: =IFERROR(IF(H$3-Input!$E16<0,0,IF(H$3-Input!$E16>3,($A5*(H$3-Input!$E16)^($A5-1))/($B5^$A5),0.027))*$C5*DATA!$C$72,"") ->  | I5: =IFERROR(IF(I$3-Input!$E16<0,0,IF(I$3-Input!$E16>3,($A5*(I$3-Input!$E16)^($A5-1))/($B5^$A5),0.027))*$C5*DATA!$C$72,"") ->  | J5: =IFERROR(IF(J$3-Input!$E16<0,0,IF(J$3-Input!$E16>3,($A5*(J$3-Input!$E16)^($A5-1))/($B5^$A5),0.027))*$C5*DATA!$C$72,"") ->  | K5: =IFERROR(IF(K$3-Input!$E16<0,0,IF(K$3-Input!$E16>3,($A5*(K$3-Input!$E16)^($A5-1))/($B5^$A5),0.027))*$C5*DATA!$C$72,"") ->  | L5: =IFERROR(IF(L$3-Input!$E16<0,0,IF(L$3-Input!$E16>3,($A5*(L$3-Input!$E16)^($A5-1))/($B5^$A5),0.027))*$C5*DATA!$C$72,"") ->  | M5: =IFERROR(IF(M$3-Input!$E16<0,0,IF(M$3-Input!$E16>3,($A5*(M$3-Input!$E16)^($A5-1))/($B5^$A5),0.027))*$C5*DATA!$C$72,"") ->  | N5: =IFERROR(IF(N$3-Input!$E16<0,0,IF(N$3-Input!$E16>3,($A5*(N$3-Input!$E16)^($A5-1))/($B5^$A5),0.027))*$C5*DATA!$C$72,"") ->  | O5: =IFERROR(IF(O$3-Input!$E16<0,0,IF(O$3-Input!$E16>3,($A5*(O$3-Input!$E16)^($A5-1))/($B5^$A5),0.027))*$C5*DATA!$C$72,"") ->  | P5: =IFERROR(IF(P$3-Input!$E16<0,0,IF(P$3-Input!$E16>3,($A5*(P$3-Input!$E16)^($A5-1))/($B5^$A5),0.027))*$C5*DATA!$C$72,"") ->  | Q5: =IFERROR(IF(Q$3-Input!$E16<0,0,IF(Q$3-Input!$E16>3,($A5*(Q$3-Input!$E16)^($A5-1))/($B5^$A5),0.027))*$C5*DATA!$C$72,"") ->  | R5: =IFERROR(IF(R$3-Input!$E16<0,0,IF(R$3-Input!$E16>3,($A5*(R$3-Input!$E16)^($A5-1))/($B5^$A5),0.027))*$C5*DATA!$C$72,"") ->  | S5: =IFERROR(IF(S$3-Input!$E16<0,0,IF(S$3-Input!$E16>3,($A5*(S$3-Input!$E16)^($A5-1))/($B5^$A5),0.027))*$C5*DATA!$C$72,"") ->  | T5: =IFERROR(IF(T$3-Input!$E16<0,0,IF(T$3-Input!$E16>3,($A5*(T$3-Input!$E16)^($A5-1))/($B5^$A5),0.027))*$C5*DATA!$C$72,"") ->  | U5: =IFERROR(IF(U$3-Input!$E16<0,0,IF(U$3-Input!$E16>3,($A5*(U$3-Input!$E16)^($A5-1))/($B5^$A5),0.027))*$C5*DATA!$C$72,"") ->  | V5: =IFERROR(IF(V$3-Input!$E16<0,0,IF(V$3-Input!$E16>3,($A5*(V$3-Input!$E16)^($A5-1))/($B5^$A5),0.027))*$C5*DATA!$C$72,"") ->  | W5: =IFERROR(IF(W$3-Input!$E16<0,0,IF(W$3-Input!$E16>3,($A5*(W$3-Input!$E16)^($A5-1))/($B5^$A5),0.027))*$C5*DATA!$C$72,"") ->  | X5: =IFERROR(IF(X$3-Input!$E16<0,0,IF(X$3-Input!$E16>3,($A5*(X$3-Input!$E16)^($A5-1))/($B5^$A5),0.027))*$C5*DATA!$C$72,"") ->  | Y5: =IFERROR(IF(Y$3-Input!$E16<0,0,IF(Y$3-Input!$E16>3,($A5*(Y$3-Input!$E16)^($A5-1))/($B5^$A5),0.027))*$C5*DATA!$C$72,"") ->  | Z5: =IFERROR(IF(Z$3-Input!$E16<0,0,IF(Z$3-Input!$E16>3,($A5*(Z$3-Input!$E16)^($A5-1))/($B5^$A5),0.027))*$C5*DATA!$C$72,"") ->  | AA5: =IFERROR(IF(AA$3-Input!$E16<0,0,IF(AA$3-Input!$E16>3,($A5*(AA$3-Input!$E16)^($A5-1))/($B5^$A5),0.027))*$C5*DATA!$C$72,"") ->  | AB5: =IFERROR(IF(AB$3-Input!$E16<0,0,IF(AB$3-Input!$E16>3,($A5*(AB$3-Input!$E16)^($A5-1))/($B5^$A5),0.027))*$C5*DATA!$C$72,"") ->  | AC5: =IFERROR(IF(AC$3-Input!$E16<0,0,IF(AC$3-Input!$E16>3,($A5*(AC$3-Input!$E16)^($A5-1))/($B5^$A5),0.027))*$C5*DATA!$C$72,"") ->  | AD5: =IFERROR(IF(AD$3-Input!$E16<0,0,IF(AD$3-Input!$E16>3,($A5*(AD$3-Input!$E16)^($A5-1))/($B5^$A5),0.027))*$C5*DATA!$C$72,"") ->  | AE5: =IFERROR(IF(AE$3-Input!$E16<0,0,IF(AE$3-Input!$E16>3,($A5*(AE$3-Input!$E16)^($A5-1))/($B5^$A5),0.027))*$C5*DATA!$C$72,"") ->  | AF5: =IFERROR(IF(AF$3-Input!$E16<0,0,IF(AF$3-Input!$E16>3,($A5*(AF$3-Input!$E16)^($A5-1))/($B5^$A5),0.027))*$C5*DATA!$C$72,"") ->  | AG5: =IFERROR(IF(AG$3-Input!$E16<0,0,IF(AG$3-Input!$E16>3,($A5*(AG$3-Input!$E16)^($A5-1))/($B5^$A5),0.027))*$C5*DATA!$C$72,"") ->  | AH5: =IFERROR(IF(AH$3-Input!$E16<0,0,IF(AH$3-Input!$E16>3,($A5*(AH$3-Input!$E16)^($A5-1))/($B5^$A5),0.027))*$C5*DATA!$C$72,"") ->  | AI5: =IFERROR(IF(AI$3-Input!$E16<0,0,IF(AI$3-Input!$E16>3,($A5*(AI$3-Input!$E16)^($A5-1))/($B5^$A5),0.027))*$C5*DATA!$C$72,"") ->  | AJ5: =IFERROR(IF(AJ$3-Input!$E16<0,0,IF(AJ$3-Input!$E16>3,($A5*(AJ$3-Input!$E16)^($A5-1))/($B5^$A5),0.027))*$C5*DATA!$C$72,"") ->  | AK5: =IFERROR(IF(AK$3-Input!$E16<0,0,IF(AK$3-Input!$E16>3,($A5*(AK$3-Input!$E16)^($A5-1))/($B5^$A5),0.027))*$C5*DATA!$C$72,"") ->  | AL5: =IFERROR(IF(AL$3-Input!$E16<0,0,IF(AL$3-Input!$E16>3,($A5*(AL$3-Input!$E16)^($A5-1))/($B5^$A5),0.027))*$C5*DATA!$C$72,"") ->  | AM5: =IFERROR(IF(AM$3-Input!$E16<0,0,IF(AM$3-Input!$E16>3,($A5*(AM$3-Input!$E16)^($A5-1))/($B5^$A5),0.027))*$C5*DATA!$C$72,"") ->  | AN5: =IFERROR(IF(AN$3-Input!$E16<0,0,IF(AN$3-Input!$E16>3,($A5*(AN$3-Input!$E16)^($A5-1))/($B5^$A5),0.027))*$C5*DATA!$C$72,"") ->  | AO5: =IFERROR(IF(AO$3-Input!$E16<0,0,IF(AO$3-Input!$E16>3,($A5*(AO$3-Input!$E16)^($A5-1))/($B5^$A5),0.027))*$C5*DATA!$C$72,"") ->  | AP5: =IFERROR(IF(AP$3-Input!$E16<0,0,IF(AP$3-Input!$E16>3,($A5*(AP$3-Input!$E16)^($A5-1))/($B5^$A5),0.027))*$C5*DATA!$C$72,"") ->  | AQ5: =IFERROR(IF(AQ$3-Input!$E16<0,0,IF(AQ$3-Input!$E16>3,($A5*(AQ$3-Input!$E16)^($A5-1))/($B5^$A5),0.027))*$C5*DATA!$C$72,"") ->  | AR5: =IFERROR(IF(AR$3-Input!$E16<0,0,IF(AR$3-Input!$E16>3,($A5*(AR$3-Input!$E16)^($A5-1))/($B5^$A5),0.027))*$C5*DATA!$C$72,"") ->  | AS5: =IFERROR(IF(AS$3-Input!$E16<0,0,IF(AS$3-Input!$E16>3,($A5*(AS$3-Input!$E16)^($A5-1))/($B5^$A5),0.027))*$C5*DATA!$C$72,"") ->  | AT5: =IFERROR(IF(AT$3-Input!$E16<0,0,IF(AT$3-Input!$E16>3,($A5*(AT$3-Input!$E16)^($A5-1))/($B5^$A5),0.027))*$C5*DATA!$C$72,"") ->  | AU5: =IFERROR(IF(AU$3-Input!$E16<0,0,IF(AU$3-Input!$E16>3,($A5*(AU$3-Input!$E16)^($A5-1))/($B5^$A5),0.027))*$C5*DATA!$C$72,"") ->  | AV5: =IFERROR(IF(AV$3-Input!$E16<0,0,IF(AV$3-Input!$E16>3,($A5*(AV$3-Input!$E16)^($A5-1))/($B5^$A5),0.027))*$C5*DATA!$C$72,"") ->  | AW5: =IFERROR(IF(AW$3-Input!$E16<0,0,IF(AW$3-Input!$E16>3,($A5*(AW$3-Input!$E16)^($A5-1))/($B5^$A5),0.027))*$C5*DATA!$C$72,"") ->  | AX5: =IFERROR(IF(AX$3-Input!$E16<0,0,IF(AX$3-Input!$E16>3,($A5*(AX$3-Input!$E16)^($A5-1))/($B5^$A5),0.027))*$C5*DATA!$C$72,"") ->  | AY5: =IFERROR(IF(AY$3-Input!$E16<0,0,IF(AY$3-Input!$E16>3,($A5*(AY$3-Input!$E16)^($A5-1))/($B5^$A5),0.027))*$C5*DATA!$C$72,"") ->  | AZ5: =IFERROR(IF(AZ$3-Input!$E16<0,0,IF(AZ$3-Input!$E16>3,($A5*(AZ$3-Input!$E16)^($A5-1))/($B5^$A5),0.027))*$C5*DATA!$C$72,"") ->  | BA5: =IFERROR(IF(BA$3-Input!$E16<0,0,IF(BA$3-Input!$E16>3,($A5*(BA$3-Input!$E16)^($A5-1))/($B5^$A5),0.027))*$C5*DATA!$C$72,"") ->  | BB5: =IFERROR(IF(BB$3-Input!$E16<0,0,IF(BB$3-Input!$E16>3,($A5*(BB$3-Input!$E16)^($A5-1))/($B5^$A5),0.027))*$C5*DATA!$C$72,"") ->  | BC5: =IFERROR(IF(BC$3-Input!$E16<0,0,IF(BC$3-Input!$E16>3,($A5*(BC$3-Input!$E16)^($A5-1))/($B5^$A5),0.027))*$C5*DATA!$C$72,"") ->  | BD5: =IFERROR(IF(BD$3-Input!$E16<0,0,IF(BD$3-Input!$E16>3,($A5*(BD$3-Input!$E16)^($A5-1))/($B5^$A5),0.027))*$C5*DATA!$C$72,"") ->  | BE5: =IFERROR(IF(BE$3-Input!$E16<0,0,IF(BE$3-Input!$E16>3,($A5*(BE$3-Input!$E16)^($A5-1))/($B5^$A5),0.027))*$C5*DATA!$C$72,"") ->  | BF5: =IFERROR(IF(BF$3-Input!$E16<0,0,IF(BF$3-Input!$E16>3,($A5*(BF$3-Input!$E16)^($A5-1))/($B5^$A5),0.027))*$C5*DATA!$C$72,"") ->  | BG5: =IFERROR(IF(BG$3-Input!$E16<0,0,IF(BG$3-Input!$E16>3,($A5*(BG$3-Input!$E16)^($A5-1))/($B5^$A5),0.027))*$C5*DATA!$C$72,"") ->  | BH5: =IFERROR(IF(BH$3-Input!$E16<0,0,IF(BH$3-Input!$E16>3,($A5*(BH$3-Input!$E16)^($A5-1))/($B5^$A5),0.027))*$C5*DATA!$C$72,"") ->  | BI5: =IFERROR(IF(BI$3-Input!$E16<0,0,IF(BI$3-Input!$E16>3,($A5*(BI$3-Input!$E16)^($A5-1))/($B5^$A5),0.027))*$C5*DATA!$C$72,"") ->  | BJ5: =IFERROR(IF(BJ$3-Input!$E16<0,0,IF(BJ$3-Input!$E16>3,($A5*(BJ$3-Input!$E16)^($A5-1))/($B5^$A5),0.027))*$C5*DATA!$C$72,"") ->  | BK5: =IFERROR(IF(BK$3-Input!$E16<0,0,IF(BK$3-Input!$E16>3,($A5*(BK$3-Input!$E16)^($A5-1))/($B5^$A5),0.027))*$C5*DATA!$C$72,"") ->  | BL5: =IFERROR(IF(BL$3-Input!$E16<0,0,IF(BL$3-Input!$E16>3,($A5*(BL$3-Input!$E16)^($A5-1))/($B5^$A5),0.027))*$C5*DATA!$C$72,"") ->  | BM5: =IFERROR(IF(BM$3-Input!$E16<0,0,IF(BM$3-Input!$E16>3,($A5*(BM$3-Input!$E16)^($A5-1))/($B5^$A5),0.027))*$C5*DATA!$C$72,"") -> 
A6: =IFERROR(VLOOKUP(Input!D17,DATA!B$42:D$46,2,FALSE),"") ->  | B6: =IFERROR(VLOOKUP(Input!D17,DATA!B$42:D$46,3,FALSE),"") ->  | C6: =IF(Input!D17=DATA!$B$44,DATA!$H$44,IF(Input!D17="","",1)) ->  | D6: FOR TR or CB 3 | E6: =IFERROR(IF(E$3-Input!$E17<0,0,IF(E$3-Input!$E17>3,($A6*(E$3-Input!$E17)^($A6-1))/($B6^$A6),0.027))*$C6*DATA!$C$72,"") ->  | F6: =IFERROR(IF(F$3-Input!$E17<0,0,IF(F$3-Input!$E17>3,($A6*(F$3-Input!$E17)^($A6-1))/($B6^$A6),0.027))*$C6*DATA!$C$72,"") ->  | G6: =IFERROR(IF(G$3-Input!$E17<0,0,IF(G$3-Input!$E17>3,($A6*(G$3-Input!$E17)^($A6-1))/($B6^$A6),0.027))*$C6*DATA!$C$72,"") ->  | H6: =IFERROR(IF(H$3-Input!$E17<0,0,IF(H$3-Input!$E17>3,($A6*(H$3-Input!$E17)^($A6-1))/($B6^$A6),0.027))*$C6*DATA!$C$72,"") ->  | I6: =IFERROR(IF(I$3-Input!$E17<0,0,IF(I$3-Input!$E17>3,($A6*(I$3-Input!$E17)^($A6-1))/($B6^$A6),0.027))*$C6*DATA!$C$72,"") ->  | J6: =IFERROR(IF(J$3-Input!$E17<0,0,IF(J$3-Input!$E17>3,($A6*(J$3-Input!$E17)^($A6-1))/($B6^$A6),0.027))*$C6*DATA!$C$72,"") ->  | K6: =IFERROR(IF(K$3-Input!$E17<0,0,IF(K$3-Input!$E17>3,($A6*(K$3-Input!$E17)^($A6-1))/($B6^$A6),0.027))*$C6*DATA!$C$72,"") ->  | L6: =IFERROR(IF(L$3-Input!$E17<0,0,IF(L$3-Input!$E17>3,($A6*(L$3-Input!$E17)^($A6-1))/($B6^$A6),0.027))*$C6*DATA!$C$72,"") ->  | M6: =IFERROR(IF(M$3-Input!$E17<0,0,IF(M$3-Input!$E17>3,($A6*(M$3-Input!$E17)^($A6-1))/($B6^$A6),0.027))*$C6*DATA!$C$72,"") ->  | N6: =IFERROR(IF(N$3-Input!$E17<0,0,IF(N$3-Input!$E17>3,($A6*(N$3-Input!$E17)^($A6-1))/($B6^$A6),0.027))*$C6*DATA!$C$72,"") ->  | O6: =IFERROR(IF(O$3-Input!$E17<0,0,IF(O$3-Input!$E17>3,($A6*(O$3-Input!$E17)^($A6-1))/($B6^$A6),0.027))*$C6*DATA!$C$72,"") ->  | P6: =IFERROR(IF(P$3-Input!$E17<0,0,IF(P$3-Input!$E17>3,($A6*(P$3-Input!$E17)^($A6-1))/($B6^$A6),0.027))*$C6*DATA!$C$72,"") ->  | Q6: =IFERROR(IF(Q$3-Input!$E17<0,0,IF(Q$3-Input!$E17>3,($A6*(Q$3-Input!$E17)^($A6-1))/($B6^$A6),0.027))*$C6*DATA!$C$72,"") ->  | R6: =IFERROR(IF(R$3-Input!$E17<0,0,IF(R$3-Input!$E17>3,($A6*(R$3-Input!$E17)^($A6-1))/($B6^$A6),0.027))*$C6*DATA!$C$72,"") ->  | S6: =IFERROR(IF(S$3-Input!$E17<0,0,IF(S$3-Input!$E17>3,($A6*(S$3-Input!$E17)^($A6-1))/($B6^$A6),0.027))*$C6*DATA!$C$72,"") ->  | T6: =IFERROR(IF(T$3-Input!$E17<0,0,IF(T$3-Input!$E17>3,($A6*(T$3-Input!$E17)^($A6-1))/($B6^$A6),0.027))*$C6*DATA!$C$72,"") ->  | U6: =IFERROR(IF(U$3-Input!$E17<0,0,IF(U$3-Input!$E17>3,($A6*(U$3-Input!$E17)^($A6-1))/($B6^$A6),0.027))*$C6*DATA!$C$72,"") ->  | V6: =IFERROR(IF(V$3-Input!$E17<0,0,IF(V$3-Input!$E17>3,($A6*(V$3-Input!$E17)^($A6-1))/($B6^$A6),0.027))*$C6*DATA!$C$72,"") ->  | W6: =IFERROR(IF(W$3-Input!$E17<0,0,IF(W$3-Input!$E17>3,($A6*(W$3-Input!$E17)^($A6-1))/($B6^$A6),0.027))*$C6*DATA!$C$72,"") ->  | X6: =IFERROR(IF(X$3-Input!$E17<0,0,IF(X$3-Input!$E17>3,($A6*(X$3-Input!$E17)^($A6-1))/($B6^$A6),0.027))*$C6*DATA!$C$72,"") ->  | Y6: =IFERROR(IF(Y$3-Input!$E17<0,0,IF(Y$3-Input!$E17>3,($A6*(Y$3-Input!$E17)^($A6-1))/($B6^$A6),0.027))*$C6*DATA!$C$72,"") ->  | Z6: =IFERROR(IF(Z$3-Input!$E17<0,0,IF(Z$3-Input!$E17>3,($A6*(Z$3-Input!$E17)^($A6-1))/($B6^$A6),0.027))*$C6*DATA!$C$72,"") ->  | AA6: =IFERROR(IF(AA$3-Input!$E17<0,0,IF(AA$3-Input!$E17>3,($A6*(AA$3-Input!$E17)^($A6-1))/($B6^$A6),0.027))*$C6*DATA!$C$72,"") ->  | AB6: =IFERROR(IF(AB$3-Input!$E17<0,0,IF(AB$3-Input!$E17>3,($A6*(AB$3-Input!$E17)^($A6-1))/($B6^$A6),0.027))*$C6*DATA!$C$72,"") ->  | AC6: =IFERROR(IF(AC$3-Input!$E17<0,0,IF(AC$3-Input!$E17>3,($A6*(AC$3-Input!$E17)^($A6-1))/($B6^$A6),0.027))*$C6*DATA!$C$72,"") ->  | AD6: =IFERROR(IF(AD$3-Input!$E17<0,0,IF(AD$3-Input!$E17>3,($A6*(AD$3-Input!$E17)^($A6-1))/($B6^$A6),0.027))*$C6*DATA!$C$72,"") ->  | AE6: =IFERROR(IF(AE$3-Input!$E17<0,0,IF(AE$3-Input!$E17>3,($A6*(AE$3-Input!$E17)^($A6-1))/($B6^$A6),0.027))*$C6*DATA!$C$72,"") ->  | AF6: =IFERROR(IF(AF$3-Input!$E17<0,0,IF(AF$3-Input!$E17>3,($A6*(AF$3-Input!$E17)^($A6-1))/($B6^$A6),0.027))*$C6*DATA!$C$72,"") ->  | AG6: =IFERROR(IF(AG$3-Input!$E17<0,0,IF(AG$3-Input!$E17>3,($A6*(AG$3-Input!$E17)^($A6-1))/($B6^$A6),0.027))*$C6*DATA!$C$72,"") ->  | AH6: =IFERROR(IF(AH$3-Input!$E17<0,0,IF(AH$3-Input!$E17>3,($A6*(AH$3-Input!$E17)^($A6-1))/($B6^$A6),0.027))*$C6*DATA!$C$72,"") ->  | AI6: =IFERROR(IF(AI$3-Input!$E17<0,0,IF(AI$3-Input!$E17>3,($A6*(AI$3-Input!$E17)^($A6-1))/($B6^$A6),0.027))*$C6*DATA!$C$72,"") ->  | AJ6: =IFERROR(IF(AJ$3-Input!$E17<0,0,IF(AJ$3-Input!$E17>3,($A6*(AJ$3-Input!$E17)^($A6-1))/($B6^$A6),0.027))*$C6*DATA!$C$72,"") ->  | AK6: =IFERROR(IF(AK$3-Input!$E17<0,0,IF(AK$3-Input!$E17>3,($A6*(AK$3-Input!$E17)^($A6-1))/($B6^$A6),0.027))*$C6*DATA!$C$72,"") ->  | AL6: =IFERROR(IF(AL$3-Input!$E17<0,0,IF(AL$3-Input!$E17>3,($A6*(AL$3-Input!$E17)^($A6-1))/($B6^$A6),0.027))*$C6*DATA!$C$72,"") ->  | AM6: =IFERROR(IF(AM$3-Input!$E17<0,0,IF(AM$3-Input!$E17>3,($A6*(AM$3-Input!$E17)^($A6-1))/($B6^$A6),0.027))*$C6*DATA!$C$72,"") ->  | AN6: =IFERROR(IF(AN$3-Input!$E17<0,0,IF(AN$3-Input!$E17>3,($A6*(AN$3-Input!$E17)^($A6-1))/($B6^$A6),0.027))*$C6*DATA!$C$72,"") ->  | AO6: =IFERROR(IF(AO$3-Input!$E17<0,0,IF(AO$3-Input!$E17>3,($A6*(AO$3-Input!$E17)^($A6-1))/($B6^$A6),0.027))*$C6*DATA!$C$72,"") ->  | AP6: =IFERROR(IF(AP$3-Input!$E17<0,0,IF(AP$3-Input!$E17>3,($A6*(AP$3-Input!$E17)^($A6-1))/($B6^$A6),0.027))*$C6*DATA!$C$72,"") ->  | AQ6: =IFERROR(IF(AQ$3-Input!$E17<0,0,IF(AQ$3-Input!$E17>3,($A6*(AQ$3-Input!$E17)^($A6-1))/($B6^$A6),0.027))*$C6*DATA!$C$72,"") ->  | AR6: =IFERROR(IF(AR$3-Input!$E17<0,0,IF(AR$3-Input!$E17>3,($A6*(AR$3-Input!$E17)^($A6-1))/($B6^$A6),0.027))*$C6*DATA!$C$72,"") ->  | AS6: =IFERROR(IF(AS$3-Input!$E17<0,0,IF(AS$3-Input!$E17>3,($A6*(AS$3-Input!$E17)^($A6-1))/($B6^$A6),0.027))*$C6*DATA!$C$72,"") ->  | AT6: =IFERROR(IF(AT$3-Input!$E17<0,0,IF(AT$3-Input!$E17>3,($A6*(AT$3-Input!$E17)^($A6-1))/($B6^$A6),0.027))*$C6*DATA!$C$72,"") ->  | AU6: =IFERROR(IF(AU$3-Input!$E17<0,0,IF(AU$3-Input!$E17>3,($A6*(AU$3-Input!$E17)^($A6-1))/($B6^$A6),0.027))*$C6*DATA!$C$72,"") ->  | AV6: =IFERROR(IF(AV$3-Input!$E17<0,0,IF(AV$3-Input!$E17>3,($A6*(AV$3-Input!$E17)^($A6-1))/($B6^$A6),0.027))*$C6*DATA!$C$72,"") ->  | AW6: =IFERROR(IF(AW$3-Input!$E17<0,0,IF(AW$3-Input!$E17>3,($A6*(AW$3-Input!$E17)^($A6-1))/($B6^$A6),0.027))*$C6*DATA!$C$72,"") ->  | AX6: =IFERROR(IF(AX$3-Input!$E17<0,0,IF(AX$3-Input!$E17>3,($A6*(AX$3-Input!$E17)^($A6-1))/($B6^$A6),0.027))*$C6*DATA!$C$72,"") ->  | AY6: =IFERROR(IF(AY$3-Input!$E17<0,0,IF(AY$3-Input!$E17>3,($A6*(AY$3-Input!$E17)^($A6-1))/($B6^$A6),0.027))*$C6*DATA!$C$72,"") ->  | AZ6: =IFERROR(IF(AZ$3-Input!$E17<0,0,IF(AZ$3-Input!$E17>3,($A6*(AZ$3-Input!$E17)^($A6-1))/($B6^$A6),0.027))*$C6*DATA!$C$72,"") ->  | BA6: =IFERROR(IF(BA$3-Input!$E17<0,0,IF(BA$3-Input!$E17>3,($A6*(BA$3-Input!$E17)^($A6-1))/($B6^$A6),0.027))*$C6*DATA!$C$72,"") ->  | BB6: =IFERROR(IF(BB$3-Input!$E17<0,0,IF(BB$3-Input!$E17>3,($A6*(BB$3-Input!$E17)^($A6-1))/($B6^$A6),0.027))*$C6*DATA!$C$72,"") ->  | BC6: =IFERROR(IF(BC$3-Input!$E17<0,0,IF(BC$3-Input!$E17>3,($A6*(BC$3-Input!$E17)^($A6-1))/($B6^$A6),0.027))*$C6*DATA!$C$72,"") ->  | BD6: =IFERROR(IF(BD$3-Input!$E17<0,0,IF(BD$3-Input!$E17>3,($A6*(BD$3-Input!$E17)^($A6-1))/($B6^$A6),0.027))*$C6*DATA!$C$72,"") ->  | BE6: =IFERROR(IF(BE$3-Input!$E17<0,0,IF(BE$3-Input!$E17>3,($A6*(BE$3-Input!$E17)^($A6-1))/($B6^$A6),0.027))*$C6*DATA!$C$72,"") ->  | BF6: =IFERROR(IF(BF$3-Input!$E17<0,0,IF(BF$3-Input!$E17>3,($A6*(BF$3-Input!$E17)^($A6-1))/($B6^$A6),0.027))*$C6*DATA!$C$72,"") ->  | BG6: =IFERROR(IF(BG$3-Input!$E17<0,0,IF(BG$3-Input!$E17>3,($A6*(BG$3-Input!$E17)^($A6-1))/($B6^$A6),0.027))*$C6*DATA!$C$72,"") ->  | BH6: =IFERROR(IF(BH$3-Input!$E17<0,0,IF(BH$3-Input!$E17>3,($A6*(BH$3-Input!$E17)^($A6-1))/($B6^$A6),0.027))*$C6*DATA!$C$72,"") ->  | BI6: =IFERROR(IF(BI$3-Input!$E17<0,0,IF(BI$3-Input!$E17>3,($A6*(BI$3-Input!$E17)^($A6-1))/($B6^$A6),0.027))*$C6*DATA!$C$72,"") ->  | BJ6: =IFERROR(IF(BJ$3-Input!$E17<0,0,IF(BJ$3-Input!$E17>3,($A6*(BJ$3-Input!$E17)^($A6-1))/($B6^$A6),0.027))*$C6*DATA!$C$72,"") ->  | BK6: =IFERROR(IF(BK$3-Input!$E17<0,0,IF(BK$3-Input!$E17>3,($A6*(BK$3-Input!$E17)^($A6-1))/($B6^$A6),0.027))*$C6*DATA!$C$72,"") ->  | BL6: =IFERROR(IF(BL$3-Input!$E17<0,0,IF(BL$3-Input!$E17>3,($A6*(BL$3-Input!$E17)^($A6-1))/($B6^$A6),0.027))*$C6*DATA!$C$72,"") ->  | BM6: =IFERROR(IF(BM$3-Input!$E17<0,0,IF(BM$3-Input!$E17>3,($A6*(BM$3-Input!$E17)^($A6-1))/($B6^$A6),0.027))*$C6*DATA!$C$72,"") -> 
A7: =IFERROR(VLOOKUP(Input!D18,DATA!B$42:D$46,2,FALSE),"") ->  | B7: =IFERROR(VLOOKUP(Input!D18,DATA!B$42:D$46,3,FALSE),"") ->  | C7: =IF(Input!D18=DATA!$B$44,DATA!$H$44,IF(Input!D18="","",1)) ->  | D7: FOR TR or CB 4 | E7: =IFERROR(IF(E$3-Input!$E18<0,0,IF(E$3-Input!$E18>3,($A7*(E$3-Input!$E18)^($A7-1))/($B7^$A7),0.027))*$C7*DATA!$C$72,"") ->  | F7: =IFERROR(IF(F$3-Input!$E18<0,0,IF(F$3-Input!$E18>3,($A7*(F$3-Input!$E18)^($A7-1))/($B7^$A7),0.027))*$C7*DATA!$C$72,"") ->  | G7: =IFERROR(IF(G$3-Input!$E18<0,0,IF(G$3-Input!$E18>3,($A7*(G$3-Input!$E18)^($A7-1))/($B7^$A7),0.027))*$C7*DATA!$C$72,"") ->  | H7: =IFERROR(IF(H$3-Input!$E18<0,0,IF(H$3-Input!$E18>3,($A7*(H$3-Input!$E18)^($A7-1))/($B7^$A7),0.027))*$C7*DATA!$C$72,"") ->  | I7: =IFERROR(IF(I$3-Input!$E18<0,0,IF(I$3-Input!$E18>3,($A7*(I$3-Input!$E18)^($A7-1))/($B7^$A7),0.027))*$C7*DATA!$C$72,"") ->  | J7: =IFERROR(IF(J$3-Input!$E18<0,0,IF(J$3-Input!$E18>3,($A7*(J$3-Input!$E18)^($A7-1))/($B7^$A7),0.027))*$C7*DATA!$C$72,"") ->  | K7: =IFERROR(IF(K$3-Input!$E18<0,0,IF(K$3-Input!$E18>3,($A7*(K$3-Input!$E18)^($A7-1))/($B7^$A7),0.027))*$C7*DATA!$C$72,"") ->  | L7: =IFERROR(IF(L$3-Input!$E18<0,0,IF(L$3-Input!$E18>3,($A7*(L$3-Input!$E18)^($A7-1))/($B7^$A7),0.027))*$C7*DATA!$C$72,"") ->  | M7: =IFERROR(IF(M$3-Input!$E18<0,0,IF(M$3-Input!$E18>3,($A7*(M$3-Input!$E18)^($A7-1))/($B7^$A7),0.027))*$C7*DATA!$C$72,"") ->  | N7: =IFERROR(IF(N$3-Input!$E18<0,0,IF(N$3-Input!$E18>3,($A7*(N$3-Input!$E18)^($A7-1))/($B7^$A7),0.027))*$C7*DATA!$C$72,"") ->  | O7: =IFERROR(IF(O$3-Input!$E18<0,0,IF(O$3-Input!$E18>3,($A7*(O$3-Input!$E18)^($A7-1))/($B7^$A7),0.027))*$C7*DATA!$C$72,"") ->  | P7: =IFERROR(IF(P$3-Input!$E18<0,0,IF(P$3-Input!$E18>3,($A7*(P$3-Input!$E18)^($A7-1))/($B7^$A7),0.027))*$C7*DATA!$C$72,"") ->  | Q7: =IFERROR(IF(Q$3-Input!$E18<0,0,IF(Q$3-Input!$E18>3,($A7*(Q$3-Input!$E18)^($A7-1))/($B7^$A7),0.027))*$C7*DATA!$C$72,"") ->  | R7: =IFERROR(IF(R$3-Input!$E18<0,0,IF(R$3-Input!$E18>3,($A7*(R$3-Input!$E18)^($A7-1))/($B7^$A7),0.027))*$C7*DATA!$C$72,"") ->  | S7: =IFERROR(IF(S$3-Input!$E18<0,0,IF(S$3-Input!$E18>3,($A7*(S$3-Input!$E18)^($A7-1))/($B7^$A7),0.027))*$C7*DATA!$C$72,"") ->  | T7: =IFERROR(IF(T$3-Input!$E18<0,0,IF(T$3-Input!$E18>3,($A7*(T$3-Input!$E18)^($A7-1))/($B7^$A7),0.027))*$C7*DATA!$C$72,"") ->  | U7: =IFERROR(IF(U$3-Input!$E18<0,0,IF(U$3-Input!$E18>3,($A7*(U$3-Input!$E18)^($A7-1))/($B7^$A7),0.027))*$C7*DATA!$C$72,"") ->  | V7: =IFERROR(IF(V$3-Input!$E18<0,0,IF(V$3-Input!$E18>3,($A7*(V$3-Input!$E18)^($A7-1))/($B7^$A7),0.027))*$C7*DATA!$C$72,"") ->  | W7: =IFERROR(IF(W$3-Input!$E18<0,0,IF(W$3-Input!$E18>3,($A7*(W$3-Input!$E18)^($A7-1))/($B7^$A7),0.027))*$C7*DATA!$C$72,"") ->  | X7: =IFERROR(IF(X$3-Input!$E18<0,0,IF(X$3-Input!$E18>3,($A7*(X$3-Input!$E18)^($A7-1))/($B7^$A7),0.027))*$C7*DATA!$C$72,"") ->  | Y7: =IFERROR(IF(Y$3-Input!$E18<0,0,IF(Y$3-Input!$E18>3,($A7*(Y$3-Input!$E18)^($A7-1))/($B7^$A7),0.027))*$C7*DATA!$C$72,"") ->  | Z7: =IFERROR(IF(Z$3-Input!$E18<0,0,IF(Z$3-Input!$E18>3,($A7*(Z$3-Input!$E18)^($A7-1))/($B7^$A7),0.027))*$C7*DATA!$C$72,"") ->  | AA7: =IFERROR(IF(AA$3-Input!$E18<0,0,IF(AA$3-Input!$E18>3,($A7*(AA$3-Input!$E18)^($A7-1))/($B7^$A7),0.027))*$C7*DATA!$C$72,"") ->  | AB7: =IFERROR(IF(AB$3-Input!$E18<0,0,IF(AB$3-Input!$E18>3,($A7*(AB$3-Input!$E18)^($A7-1))/($B7^$A7),0.027))*$C7*DATA!$C$72,"") ->  | AC7: =IFERROR(IF(AC$3-Input!$E18<0,0,IF(AC$3-Input!$E18>3,($A7*(AC$3-Input!$E18)^($A7-1))/($B7^$A7),0.027))*$C7*DATA!$C$72,"") ->  | AD7: =IFERROR(IF(AD$3-Input!$E18<0,0,IF(AD$3-Input!$E18>3,($A7*(AD$3-Input!$E18)^($A7-1))/($B7^$A7),0.027))*$C7*DATA!$C$72,"") ->  | AE7: =IFERROR(IF(AE$3-Input!$E18<0,0,IF(AE$3-Input!$E18>3,($A7*(AE$3-Input!$E18)^($A7-1))/($B7^$A7),0.027))*$C7*DATA!$C$72,"") ->  | AF7: =IFERROR(IF(AF$3-Input!$E18<0,0,IF(AF$3-Input!$E18>3,($A7*(AF$3-Input!$E18)^($A7-1))/($B7^$A7),0.027))*$C7*DATA!$C$72,"") ->  | AG7: =IFERROR(IF(AG$3-Input!$E18<0,0,IF(AG$3-Input!$E18>3,($A7*(AG$3-Input!$E18)^($A7-1))/($B7^$A7),0.027))*$C7*DATA!$C$72,"") ->  | AH7: =IFERROR(IF(AH$3-Input!$E18<0,0,IF(AH$3-Input!$E18>3,($A7*(AH$3-Input!$E18)^($A7-1))/($B7^$A7),0.027))*$C7*DATA!$C$72,"") ->  | AI7: =IFERROR(IF(AI$3-Input!$E18<0,0,IF(AI$3-Input!$E18>3,($A7*(AI$3-Input!$E18)^($A7-1))/($B7^$A7),0.027))*$C7*DATA!$C$72,"") ->  | AJ7: =IFERROR(IF(AJ$3-Input!$E18<0,0,IF(AJ$3-Input!$E18>3,($A7*(AJ$3-Input!$E18)^($A7-1))/($B7^$A7),0.027))*$C7*DATA!$C$72,"") ->  | AK7: =IFERROR(IF(AK$3-Input!$E18<0,0,IF(AK$3-Input!$E18>3,($A7*(AK$3-Input!$E18)^($A7-1))/($B7^$A7),0.027))*$C7*DATA!$C$72,"") ->  | AL7: =IFERROR(IF(AL$3-Input!$E18<0,0,IF(AL$3-Input!$E18>3,($A7*(AL$3-Input!$E18)^($A7-1))/($B7^$A7),0.027))*$C7*DATA!$C$72,"") ->  | AM7: =IFERROR(IF(AM$3-Input!$E18<0,0,IF(AM$3-Input!$E18>3,($A7*(AM$3-Input!$E18)^($A7-1))/($B7^$A7),0.027))*$C7*DATA!$C$72,"") ->  | AN7: =IFERROR(IF(AN$3-Input!$E18<0,0,IF(AN$3-Input!$E18>3,($A7*(AN$3-Input!$E18)^($A7-1))/($B7^$A7),0.027))*$C7*DATA!$C$72,"") ->  | AO7: =IFERROR(IF(AO$3-Input!$E18<0,0,IF(AO$3-Input!$E18>3,($A7*(AO$3-Input!$E18)^($A7-1))/($B7^$A7),0.027))*$C7*DATA!$C$72,"") ->  | AP7: =IFERROR(IF(AP$3-Input!$E18<0,0,IF(AP$3-Input!$E18>3,($A7*(AP$3-Input!$E18)^($A7-1))/($B7^$A7),0.027))*$C7*DATA!$C$72,"") ->  | AQ7: =IFERROR(IF(AQ$3-Input!$E18<0,0,IF(AQ$3-Input!$E18>3,($A7*(AQ$3-Input!$E18)^($A7-1))/($B7^$A7),0.027))*$C7*DATA!$C$72,"") ->  | AR7: =IFERROR(IF(AR$3-Input!$E18<0,0,IF(AR$3-Input!$E18>3,($A7*(AR$3-Input!$E18)^($A7-1))/($B7^$A7),0.027))*$C7*DATA!$C$72,"") ->  | AS7: =IFERROR(IF(AS$3-Input!$E18<0,0,IF(AS$3-Input!$E18>3,($A7*(AS$3-Input!$E18)^($A7-1))/($B7^$A7),0.027))*$C7*DATA!$C$72,"") ->  | AT7: =IFERROR(IF(AT$3-Input!$E18<0,0,IF(AT$3-Input!$E18>3,($A7*(AT$3-Input!$E18)^($A7-1))/($B7^$A7),0.027))*$C7*DATA!$C$72,"") ->  | AU7: =IFERROR(IF(AU$3-Input!$E18<0,0,IF(AU$3-Input!$E18>3,($A7*(AU$3-Input!$E18)^($A7-1))/($B7^$A7),0.027))*$C7*DATA!$C$72,"") ->  | AV7: =IFERROR(IF(AV$3-Input!$E18<0,0,IF(AV$3-Input!$E18>3,($A7*(AV$3-Input!$E18)^($A7-1))/($B7^$A7),0.027))*$C7*DATA!$C$72,"") ->  | AW7: =IFERROR(IF(AW$3-Input!$E18<0,0,IF(AW$3-Input!$E18>3,($A7*(AW$3-Input!$E18)^($A7-1))/($B7^$A7),0.027))*$C7*DATA!$C$72,"") ->  | AX7: =IFERROR(IF(AX$3-Input!$E18<0,0,IF(AX$3-Input!$E18>3,($A7*(AX$3-Input!$E18)^($A7-1))/($B7^$A7),0.027))*$C7*DATA!$C$72,"") ->  | AY7: =IFERROR(IF(AY$3-Input!$E18<0,0,IF(AY$3-Input!$E18>3,($A7*(AY$3-Input!$E18)^($A7-1))/($B7^$A7),0.027))*$C7*DATA!$C$72,"") ->  | AZ7: =IFERROR(IF(AZ$3-Input!$E18<0,0,IF(AZ$3-Input!$E18>3,($A7*(AZ$3-Input!$E18)^($A7-1))/($B7^$A7),0.027))*$C7*DATA!$C$72,"") ->  | BA7: =IFERROR(IF(BA$3-Input!$E18<0,0,IF(BA$3-Input!$E18>3,($A7*(BA$3-Input!$E18)^($A7-1))/($B7^$A7),0.027))*$C7*DATA!$C$72,"") ->  | BB7: =IFERROR(IF(BB$3-Input!$E18<0,0,IF(BB$3-Input!$E18>3,($A7*(BB$3-Input!$E18)^($A7-1))/($B7^$A7),0.027))*$C7*DATA!$C$72,"") ->  | BC7: =IFERROR(IF(BC$3-Input!$E18<0,0,IF(BC$3-Input!$E18>3,($A7*(BC$3-Input!$E18)^($A7-1))/($B7^$A7),0.027))*$C7*DATA!$C$72,"") ->  | BD7: =IFERROR(IF(BD$3-Input!$E18<0,0,IF(BD$3-Input!$E18>3,($A7*(BD$3-Input!$E18)^($A7-1))/($B7^$A7),0.027))*$C7*DATA!$C$72,"") ->  | BE7: =IFERROR(IF(BE$3-Input!$E18<0,0,IF(BE$3-Input!$E18>3,($A7*(BE$3-Input!$E18)^($A7-1))/($B7^$A7),0.027))*$C7*DATA!$C$72,"") ->  | BF7: =IFERROR(IF(BF$3-Input!$E18<0,0,IF(BF$3-Input!$E18>3,($A7*(BF$3-Input!$E18)^($A7-1))/($B7^$A7),0.027))*$C7*DATA!$C$72,"") ->  | BG7: =IFERROR(IF(BG$3-Input!$E18<0,0,IF(BG$3-Input!$E18>3,($A7*(BG$3-Input!$E18)^($A7-1))/($B7^$A7),0.027))*$C7*DATA!$C$72,"") ->  | BH7: =IFERROR(IF(BH$3-Input!$E18<0,0,IF(BH$3-Input!$E18>3,($A7*(BH$3-Input!$E18)^($A7-1))/($B7^$A7),0.027))*$C7*DATA!$C$72,"") ->  | BI7: =IFERROR(IF(BI$3-Input!$E18<0,0,IF(BI$3-Input!$E18>3,($A7*(BI$3-Input!$E18)^($A7-1))/($B7^$A7),0.027))*$C7*DATA!$C$72,"") ->  | BJ7: =IFERROR(IF(BJ$3-Input!$E18<0,0,IF(BJ$3-Input!$E18>3,($A7*(BJ$3-Input!$E18)^($A7-1))/($B7^$A7),0.027))*$C7*DATA!$C$72,"") ->  | BK7: =IFERROR(IF(BK$3-Input!$E18<0,0,IF(BK$3-Input!$E18>3,($A7*(BK$3-Input!$E18)^($A7-1))/($B7^$A7),0.027))*$C7*DATA!$C$72,"") ->  | BL7: =IFERROR(IF(BL$3-Input!$E18<0,0,IF(BL$3-Input!$E18>3,($A7*(BL$3-Input!$E18)^($A7-1))/($B7^$A7),0.027))*$C7*DATA!$C$72,"") ->  | BM7: =IFERROR(IF(BM$3-Input!$E18<0,0,IF(BM$3-Input!$E18>3,($A7*(BM$3-Input!$E18)^($A7-1))/($B7^$A7),0.027))*$C7*DATA!$C$72,"") -> 
A8: =IFERROR(VLOOKUP(Input!D19,DATA!B$42:D$46,2,FALSE),"") ->  | B8: =IFERROR(VLOOKUP(Input!D19,DATA!B$42:D$46,3,FALSE),"") ->  | C8: =IF(Input!D19=DATA!$B$44,DATA!$H$44,IF(Input!D19="","",1)) ->  | D8: FOR TR or CB 5 | E8: =IFERROR(IF(E$3-Input!$E19<0,0,IF(E$3-Input!$E19>3,($A8*(E$3-Input!$E19)^($A8-1))/($B8^$A8),0.027))*$C8*DATA!$C$72,"") ->  | F8: =IFERROR(IF(F$3-Input!$E19<0,0,IF(F$3-Input!$E19>3,($A8*(F$3-Input!$E19)^($A8-1))/($B8^$A8),0.027))*$C8*DATA!$C$72,"") ->  | G8: =IFERROR(IF(G$3-Input!$E19<0,0,IF(G$3-Input!$E19>3,($A8*(G$3-Input!$E19)^($A8-1))/($B8^$A8),0.027))*$C8*DATA!$C$72,"") ->  | H8: =IFERROR(IF(H$3-Input!$E19<0,0,IF(H$3-Input!$E19>3,($A8*(H$3-Input!$E19)^($A8-1))/($B8^$A8),0.027))*$C8*DATA!$C$72,"") ->  | I8: =IFERROR(IF(I$3-Input!$E19<0,0,IF(I$3-Input!$E19>3,($A8*(I$3-Input!$E19)^($A8-1))/($B8^$A8),0.027))*$C8*DATA!$C$72,"") ->  | J8: =IFERROR(IF(J$3-Input!$E19<0,0,IF(J$3-Input!$E19>3,($A8*(J$3-Input!$E19)^($A8-1))/($B8^$A8),0.027))*$C8*DATA!$C$72,"") ->  | K8: =IFERROR(IF(K$3-Input!$E19<0,0,IF(K$3-Input!$E19>3,($A8*(K$3-Input!$E19)^($A8-1))/($B8^$A8),0.027))*$C8*DATA!$C$72,"") ->  | L8: =IFERROR(IF(L$3-Input!$E19<0,0,IF(L$3-Input!$E19>3,($A8*(L$3-Input!$E19)^($A8-1))/($B8^$A8),0.027))*$C8*DATA!$C$72,"") ->  | M8: =IFERROR(IF(M$3-Input!$E19<0,0,IF(M$3-Input!$E19>3,($A8*(M$3-Input!$E19)^($A8-1))/($B8^$A8),0.027))*$C8*DATA!$C$72,"") ->  | N8: =IFERROR(IF(N$3-Input!$E19<0,0,IF(N$3-Input!$E19>3,($A8*(N$3-Input!$E19)^($A8-1))/($B8^$A8),0.027))*$C8*DATA!$C$72,"") ->  | O8: =IFERROR(IF(O$3-Input!$E19<0,0,IF(O$3-Input!$E19>3,($A8*(O$3-Input!$E19)^($A8-1))/($B8^$A8),0.027))*$C8*DATA!$C$72,"") ->  | P8: =IFERROR(IF(P$3-Input!$E19<0,0,IF(P$3-Input!$E19>3,($A8*(P$3-Input!$E19)^($A8-1))/($B8^$A8),0.027))*$C8*DATA!$C$72,"") ->  | Q8: =IFERROR(IF(Q$3-Input!$E19<0,0,IF(Q$3-Input!$E19>3,($A8*(Q$3-Input!$E19)^($A8-1))/($B8^$A8),0.027))*$C8*DATA!$C$72,"") ->  | R8: =IFERROR(IF(R$3-Input!$E19<0,0,IF(R$3-Input!$E19>3,($A8*(R$3-Input!$E19)^($A8-1))/($B8^$A8),0.027))*$C8*DATA!$C$72,"") ->  | S8: =IFERROR(IF(S$3-Input!$E19<0,0,IF(S$3-Input!$E19>3,($A8*(S$3-Input!$E19)^($A8-1))/($B8^$A8),0.027))*$C8*DATA!$C$72,"") ->  | T8: =IFERROR(IF(T$3-Input!$E19<0,0,IF(T$3-Input!$E19>3,($A8*(T$3-Input!$E19)^($A8-1))/($B8^$A8),0.027))*$C8*DATA!$C$72,"") ->  | U8: =IFERROR(IF(U$3-Input!$E19<0,0,IF(U$3-Input!$E19>3,($A8*(U$3-Input!$E19)^($A8-1))/($B8^$A8),0.027))*$C8*DATA!$C$72,"") ->  | V8: =IFERROR(IF(V$3-Input!$E19<0,0,IF(V$3-Input!$E19>3,($A8*(V$3-Input!$E19)^($A8-1))/($B8^$A8),0.027))*$C8*DATA!$C$72,"") ->  | W8: =IFERROR(IF(W$3-Input!$E19<0,0,IF(W$3-Input!$E19>3,($A8*(W$3-Input!$E19)^($A8-1))/($B8^$A8),0.027))*$C8*DATA!$C$72,"") ->  | X8: =IFERROR(IF(X$3-Input!$E19<0,0,IF(X$3-Input!$E19>3,($A8*(X$3-Input!$E19)^($A8-1))/($B8^$A8),0.027))*$C8*DATA!$C$72,"") ->  | Y8: =IFERROR(IF(Y$3-Input!$E19<0,0,IF(Y$3-Input!$E19>3,($A8*(Y$3-Input!$E19)^($A8-1))/($B8^$A8),0.027))*$C8*DATA!$C$72,"") ->  | Z8: =IFERROR(IF(Z$3-Input!$E19<0,0,IF(Z$3-Input!$E19>3,($A8*(Z$3-Input!$E19)^($A8-1))/($B8^$A8),0.027))*$C8*DATA!$C$72,"") ->  | AA8: =IFERROR(IF(AA$3-Input!$E19<0,0,IF(AA$3-Input!$E19>3,($A8*(AA$3-Input!$E19)^($A8-1))/($B8^$A8),0.027))*$C8*DATA!$C$72,"") ->  | AB8: =IFERROR(IF(AB$3-Input!$E19<0,0,IF(AB$3-Input!$E19>3,($A8*(AB$3-Input!$E19)^($A8-1))/($B8^$A8),0.027))*$C8*DATA!$C$72,"") ->  | AC8: =IFERROR(IF(AC$3-Input!$E19<0,0,IF(AC$3-Input!$E19>3,($A8*(AC$3-Input!$E19)^($A8-1))/($B8^$A8),0.027))*$C8*DATA!$C$72,"") ->  | AD8: =IFERROR(IF(AD$3-Input!$E19<0,0,IF(AD$3-Input!$E19>3,($A8*(AD$3-Input!$E19)^($A8-1))/($B8^$A8),0.027))*$C8*DATA!$C$72,"") ->  | AE8: =IFERROR(IF(AE$3-Input!$E19<0,0,IF(AE$3-Input!$E19>3,($A8*(AE$3-Input!$E19)^($A8-1))/($B8^$A8),0.027))*$C8*DATA!$C$72,"") ->  | AF8: =IFERROR(IF(AF$3-Input!$E19<0,0,IF(AF$3-Input!$E19>3,($A8*(AF$3-Input!$E19)^($A8-1))/($B8^$A8),0.027))*$C8*DATA!$C$72,"") ->  | AG8: =IFERROR(IF(AG$3-Input!$E19<0,0,IF(AG$3-Input!$E19>3,($A8*(AG$3-Input!$E19)^($A8-1))/($B8^$A8),0.027))*$C8*DATA!$C$72,"") ->  | AH8: =IFERROR(IF(AH$3-Input!$E19<0,0,IF(AH$3-Input!$E19>3,($A8*(AH$3-Input!$E19)^($A8-1))/($B8^$A8),0.027))*$C8*DATA!$C$72,"") ->  | AI8: =IFERROR(IF(AI$3-Input!$E19<0,0,IF(AI$3-Input!$E19>3,($A8*(AI$3-Input!$E19)^($A8-1))/($B8^$A8),0.027))*$C8*DATA!$C$72,"") ->  | AJ8: =IFERROR(IF(AJ$3-Input!$E19<0,0,IF(AJ$3-Input!$E19>3,($A8*(AJ$3-Input!$E19)^($A8-1))/($B8^$A8),0.027))*$C8*DATA!$C$72,"") ->  | AK8: =IFERROR(IF(AK$3-Input!$E19<0,0,IF(AK$3-Input!$E19>3,($A8*(AK$3-Input!$E19)^($A8-1))/($B8^$A8),0.027))*$C8*DATA!$C$72,"") ->  | AL8: =IFERROR(IF(AL$3-Input!$E19<0,0,IF(AL$3-Input!$E19>3,($A8*(AL$3-Input!$E19)^($A8-1))/($B8^$A8),0.027))*$C8*DATA!$C$72,"") ->  | AM8: =IFERROR(IF(AM$3-Input!$E19<0,0,IF(AM$3-Input!$E19>3,($A8*(AM$3-Input!$E19)^($A8-1))/($B8^$A8),0.027))*$C8*DATA!$C$72,"") ->  | AN8: =IFERROR(IF(AN$3-Input!$E19<0,0,IF(AN$3-Input!$E19>3,($A8*(AN$3-Input!$E19)^($A8-1))/($B8^$A8),0.027))*$C8*DATA!$C$72,"") ->  | AO8: =IFERROR(IF(AO$3-Input!$E19<0,0,IF(AO$3-Input!$E19>3,($A8*(AO$3-Input!$E19)^($A8-1))/($B8^$A8),0.027))*$C8*DATA!$C$72,"") ->  | AP8: =IFERROR(IF(AP$3-Input!$E19<0,0,IF(AP$3-Input!$E19>3,($A8*(AP$3-Input!$E19)^($A8-1))/($B8^$A8),0.027))*$C8*DATA!$C$72,"") ->  | AQ8: =IFERROR(IF(AQ$3-Input!$E19<0,0,IF(AQ$3-Input!$E19>3,($A8*(AQ$3-Input!$E19)^($A8-1))/($B8^$A8),0.027))*$C8*DATA!$C$72,"") ->  | AR8: =IFERROR(IF(AR$3-Input!$E19<0,0,IF(AR$3-Input!$E19>3,($A8*(AR$3-Input!$E19)^($A8-1))/($B8^$A8),0.027))*$C8*DATA!$C$72,"") ->  | AS8: =IFERROR(IF(AS$3-Input!$E19<0,0,IF(AS$3-Input!$E19>3,($A8*(AS$3-Input!$E19)^($A8-1))/($B8^$A8),0.027))*$C8*DATA!$C$72,"") ->  | AT8: =IFERROR(IF(AT$3-Input!$E19<0,0,IF(AT$3-Input!$E19>3,($A8*(AT$3-Input!$E19)^($A8-1))/($B8^$A8),0.027))*$C8*DATA!$C$72,"") ->  | AU8: =IFERROR(IF(AU$3-Input!$E19<0,0,IF(AU$3-Input!$E19>3,($A8*(AU$3-Input!$E19)^($A8-1))/($B8^$A8),0.027))*$C8*DATA!$C$72,"") ->  | AV8: =IFERROR(IF(AV$3-Input!$E19<0,0,IF(AV$3-Input!$E19>3,($A8*(AV$3-Input!$E19)^($A8-1))/($B8^$A8),0.027))*$C8*DATA!$C$72,"") ->  | AW8: =IFERROR(IF(AW$3-Input!$E19<0,0,IF(AW$3-Input!$E19>3,($A8*(AW$3-Input!$E19)^($A8-1))/($B8^$A8),0.027))*$C8*DATA!$C$72,"") ->  | AX8: =IFERROR(IF(AX$3-Input!$E19<0,0,IF(AX$3-Input!$E19>3,($A8*(AX$3-Input!$E19)^($A8-1))/($B8^$A8),0.027))*$C8*DATA!$C$72,"") ->  | AY8: =IFERROR(IF(AY$3-Input!$E19<0,0,IF(AY$3-Input!$E19>3,($A8*(AY$3-Input!$E19)^($A8-1))/($B8^$A8),0.027))*$C8*DATA!$C$72,"") ->  | AZ8: =IFERROR(IF(AZ$3-Input!$E19<0,0,IF(AZ$3-Input!$E19>3,($A8*(AZ$3-Input!$E19)^($A8-1))/($B8^$A8),0.027))*$C8*DATA!$C$72,"") ->  | BA8: =IFERROR(IF(BA$3-Input!$E19<0,0,IF(BA$3-Input!$E19>3,($A8*(BA$3-Input!$E19)^($A8-1))/($B8^$A8),0.027))*$C8*DATA!$C$72,"") ->  | BB8: =IFERROR(IF(BB$3-Input!$E19<0,0,IF(BB$3-Input!$E19>3,($A8*(BB$3-Input!$E19)^($A8-1))/($B8^$A8),0.027))*$C8*DATA!$C$72,"") ->  | BC8: =IFERROR(IF(BC$3-Input!$E19<0,0,IF(BC$3-Input!$E19>3,($A8*(BC$3-Input!$E19)^($A8-1))/($B8^$A8),0.027))*$C8*DATA!$C$72,"") ->  | BD8: =IFERROR(IF(BD$3-Input!$E19<0,0,IF(BD$3-Input!$E19>3,($A8*(BD$3-Input!$E19)^($A8-1))/($B8^$A8),0.027))*$C8*DATA!$C$72,"") ->  | BE8: =IFERROR(IF(BE$3-Input!$E19<0,0,IF(BE$3-Input!$E19>3,($A8*(BE$3-Input!$E19)^($A8-1))/($B8^$A8),0.027))*$C8*DATA!$C$72,"") ->  | BF8: =IFERROR(IF(BF$3-Input!$E19<0,0,IF(BF$3-Input!$E19>3,($A8*(BF$3-Input!$E19)^($A8-1))/($B8^$A8),0.027))*$C8*DATA!$C$72,"") ->  | BG8: =IFERROR(IF(BG$3-Input!$E19<0,0,IF(BG$3-Input!$E19>3,($A8*(BG$3-Input!$E19)^($A8-1))/($B8^$A8),0.027))*$C8*DATA!$C$72,"") ->  | BH8: =IFERROR(IF(BH$3-Input!$E19<0,0,IF(BH$3-Input!$E19>3,($A8*(BH$3-Input!$E19)^($A8-1))/($B8^$A8),0.027))*$C8*DATA!$C$72,"") ->  | BI8: =IFERROR(IF(BI$3-Input!$E19<0,0,IF(BI$3-Input!$E19>3,($A8*(BI$3-Input!$E19)^($A8-1))/($B8^$A8),0.027))*$C8*DATA!$C$72,"") ->  | BJ8: =IFERROR(IF(BJ$3-Input!$E19<0,0,IF(BJ$3-Input!$E19>3,($A8*(BJ$3-Input!$E19)^($A8-1))/($B8^$A8),0.027))*$C8*DATA!$C$72,"") ->  | BK8: =IFERROR(IF(BK$3-Input!$E19<0,0,IF(BK$3-Input!$E19>3,($A8*(BK$3-Input!$E19)^($A8-1))/($B8^$A8),0.027))*$C8*DATA!$C$72,"") ->  | BL8: =IFERROR(IF(BL$3-Input!$E19<0,0,IF(BL$3-Input!$E19>3,($A8*(BL$3-Input!$E19)^($A8-1))/($B8^$A8),0.027))*$C8*DATA!$C$72,"") ->  | BM8: =IFERROR(IF(BM$3-Input!$E19<0,0,IF(BM$3-Input!$E19>3,($A8*(BM$3-Input!$E19)^($A8-1))/($B8^$A8),0.027))*$C8*DATA!$C$72,"") -> 
